Workbook

Sheet Sample Report (hidden)
A2: Date
A3: Hen
A4: Program
A5: Start at 999999
A6: Sequence component 1 | B6: Time 1 | C6: Seqeunce Component 2 | D6: Time 2 | E6: Seqeunce Component 3 | F6: Time 3 | G6: Correct 0 = No 1=Yes | J6: Seqeunce | K6: Time
A7: 12 | B7: 7 | C7: 12 | D7: 42 | E7: 13 | F7: 18 | G7: if 77 new line, if 31 or 41 = yes new line on 77, | J7: =string of Seqeunce compponent 1, 2 & 3 | K7: =time 3
A8: This continues until ther is a 1 on its own to indicate start of summary data
J9: 10-19 =1
A10: Summary Data | J10: 20-29 =2
A11: Correct | B11: Incorrect | C11: Rft | D11: total | E11: Av Correct | F11: Av Incorrect | G11: Percent correct | H11: Time | J11: in this example the seqeunce would be 111
A12: 40 | B12: 33 | C12: 40 | D12: 73 | E12: 23.95 | F12: 15 | G12: 54 | H12: 806

Sheet Summary
A2: Day | B2: Date | C2: Average Response Rate | D2: Target % | E2: RF for non correct sequence | F2: U Value | K2: Block 1 | L2: Block 2 | M2: Block 3 | N2: Block 4 | O2: Block 5 | P2: Block 6
A3: 1 | B3: ='!MA13C50.096'!B2:C2 -> <date> | C3: =('!MA13C50.096'!H156/60)/'!MA13C50.096'!Q3 -> 2.659444444 | D3: ='!MA13C50.096'!N28/'!MA13C50.096'!Q3 -> 0 | E3: =SUM('!MA13C50.096'!L28:Q28)/'!MA13C50.096'!Q3 -> 7.74 | F3: ='!MA13C50.096'!Q24 -> 0.2591628442 | J3: Average Response Rate | K3: =AVERAGE(C3:C7) -> 3.163037379 | L3: =AVERAGE(C8:C12) -> 5.515027825 | M3: =AVERAGE(C13:C17) -> 2.711048751 | N3: =AVERAGE(C18:C22) -> 2.285274766 | O3: =AVERAGE(C23:C27) -> 2.134986294 | P3: =AVERAGE(C28:C32) -> 2.149435625
A4: 2 | B4: ='!MA14D10.096'!B2:C2 -> <date> | C4: =('!MA14D10.096'!H131/60)/'!MA14D10.096'!Q3 -> 3.188933333 | D4: ='!MA14D10.096'!N28/'!MA14D10.096'!Q3 -> 0 | E4: =SUM('!MA14D10.096'!L28:Q28)/'!MA14D10.096'!Q3 -> 9.232 | F4: ='!MA14D10.096'!Q24 -> 0.3318774879 | J4: Target % | K4: =AVERAGE(D3:D7) -> 0.0336996337 | L4: =AVERAGE(D8:D12) -> 0.06498771529 | M4: =AVERAGE(D13:D17) -> 0.1393497168 | N4: =AVERAGE(D18:D22) -> 0.2860753306 | O4: =AVERAGE(D23:D27) -> 0.3153982611 | P4: =AVERAGE(D28:D32) -> 0.3602508053
A5: 3 | B5: ='!MA15C40.096'!B2:C2 -> <date> | C5: =('!MA15C40.096'!H132/60)/'!MA15C40.096'!Q3 -> 3.161111111 | D5: ='!MA15C40.096'!N28/'!MA15C40.096'!Q3 -> 0.03174603175 | E5: =SUM('!MA15C40.096'!L28:Q28)/'!MA15C40.096'!Q3 -> 10.06349206 | F5: ='!MA15C40.096'!Q24 -> 0.4469713804 | J5: CCRF | K5: =AVERAGE(E3:E7) -> 11.07547448 | L5: =AVERAGE(E8:E12) -> 22.30034649 | M5: =AVERAGE(E13:E17) -> 13.29526146 | N5: =AVERAGE(E18:E22) -> 13.87772654 | O5: =AVERAGE(E23:E27) -> 16.34429556 | P5: =AVERAGE(E28:E32) -> 17.15953429
A6: 4 | B6: ='!MA16B50.096'!B2:C2 -> <date> | C6: =('!MA16B50.096'!H123/60)/'!MA16B50.096'!Q3 -> 3.407407407 | D6: ='!MA16B50.096'!N28/'!MA16B50.096'!Q3 -> 0.05982905983 | E6: =SUM('!MA16B50.096'!L28:Q28)/'!MA16B50.096'!Q3 -> 9.888888889 | F6: ='!MA16B50.096'!Q24 -> 0.5389397466 | J6: U Value | K6: =AVERAGE(F3:F7) -> 0.4212993072 | L6: =AVERAGE(F8:F12) -> 0.5773154063 | M6: =AVERAGE(F13:F17) -> 0.4479594515 | N6: =AVERAGE(F18:F22) -> 0.4090943736 | O6: =AVERAGE(F23:F27) -> 0.3757365114 | P6: =AVERAGE(F28:F32) -> 0.3569732481
A7: 5 | B7: ='!MA17F00.096'!B2:C2 -> <date> | C7: =('!MA17F00.096'!H123/60)/'!MA17F00.096'!Q3 -> 3.398290598 | D7: ='!MA17F00.096'!N28/'!MA17F00.096'!Q3 -> 0.07692307692 | E7: =SUM('!MA17F00.096'!L28:Q28)/'!MA17F00.096'!Q3 -> 18.45299145 | F7: ='!MA17F00.096'!Q24 -> 0.529545077
A8: 6 | B8: ='!MA18C30.096'!B2:C2 -> <date> | C8: =('!MA18C30.096'!H90/60)/'!MA18C30.096'!Q3 -> 4.361176471 | D8: ='!MA18C30.096'!N28/'!MA18C30.096'!Q3 -> 0.03529411765 | E8: =SUM('!MA18C30.096'!L28:Q28)/'!MA18C30.096'!Q3 -> 13.43529412 | F8: ='!MA18C30.096'!Q24 -> 0.5655173577
A9: 7 | B9: ='!MA19C00.096'!B2:C2 -> <date> | C9: =('!MA19C00.096'!H74/60)/'!MA19C00.096'!Q3 -> 4.915217391 | D9: ='!MA19C00.096'!N28/'!MA19C00.096'!Q3 -> 0.08695652174 | E9: =SUM('!MA19C00.096'!L28:Q28)/'!MA19C00.096'!Q3 -> 32.47826087 | F9: ='!MA19C00.096'!Q24 -> 0.5840194974 | G9: =K3 -> 3.163037379 | H9: 5.515027825 | I9: 2.711048751 | J9: 2.285274766 | K9: 2.134986294 | L9: 2.149435625 | M9: =K4 -> 0.0336996337 | N9: 0.06498771529 | O9: 0.1393497168 | P9: 0.2860753306 | Q9: 0.3153982611 | R9: 0.3602508053 | S9: =K6 -> 0.4212993072 | T9: 0.5773154063 | U9: 0.4479594515 | V9: 0.4090943736 | W9: 0.3757365114 | X9: 0.3569732481
A10: 8 | B10: ='!MA20B30.096'!B2:C2 -> <date> | C10: =('!MA20B30.096'!H57/60)/'!MA20B30.096'!Q3 -> 7.579166667 | D10: ='!MA20B30.096'!N28/'!MA20B30.096'!Q3 -> 0.09615384615 | E10: =SUM('!MA20B30.096'!L28:Q28)/'!MA20B30.096'!Q3 -> 21.78846154 | F10: ='!MA20B30.096'!Q24 -> 0.625571598
A11: 9 | B11: ='!MA21B50.096'!B2:C2 -> <date> | C11: =('!MA21B50.096'!H69/60)/'!MA21B50.096'!Q3 -> 6.18359375 | D11: ='!MA21B50.096'!N28/'!MA21B50.096'!Q3 -> 0.015625 | E11: =SUM('!MA21B50.096'!L28:Q28)/'!MA21B50.096'!Q3 -> 19.265625 | F11: ='!MA21B50.096'!Q24 -> 0.5685849521
A12: 10 | B12: ='!MA22840.096'!B2:C2 -> <date> | C12: =('!MA22840.096'!H94/60)/'!MA22840.096'!Q3 -> 4.535984848 | D12: ='!MA22840.096'!N28/'!MA22840.096'!Q3 -> 0.09090909091 | E12: =SUM('!MA22840.096'!L28:Q28)/'!MA22840.096'!Q3 -> 24.53409091 | F12: ='!MA22840.096'!Q24 -> 0.5428836262
A13: 11 | B13: ='!MA23920.096'!B2:C2 -> <date> | C13: =('!MA23920.096'!H137/60)/'!MA23920.096'!Q3 -> 3.038040712 | D13: ='!MA23920.096'!N28/'!MA23920.096'!Q3 -> 0.08396946565 | E13: =SUM('!MA23920.096'!L28:Q28)/'!MA23920.096'!Q3 -> 16.54198473 | F13: ='!MA23920.096'!Q24 -> 0.5245861598
A14: 12 | B14: ='!MA24B40.096'!B2:C2 -> <date> | C14: =('!MA24B40.096'!H110/60)/'!MA24B40.096'!Q3 -> 3.770833333 | D14: ='!MA24B40.096'!N28/'!MA24B40.096'!Q3 -> 0.1538461538 | E14: =SUM('!MA24B40.096'!L28:Q28)/'!MA24B40.096'!Q3 -> 21.75 | F14: ='!MA24B40.096'!Q24 -> 0.4563816193
A15: 13 | B15: ='!MA25B30.096'!B2:C2 -> <date> | C15: =('!MA25B30.096'!H170/60)/'!MA25B30.096'!Q3 -> 2.432418699 | D15: ='!MA25B30.096'!N28/'!MA25B30.096'!Q3 -> 0.07317073171 | E15: =SUM('!MA25B30.096'!L28:Q28)/'!MA25B30.096'!Q3 -> 7.25 | F15: ='!MA25B30.096'!Q24 -> 0.4637624858
A16: 14 | B16: ='!MA26910.096'!B2:C2 -> <date> | C16: =('!MA26910.096'!H191/60)/'!MA26910.096'!Q3 -> 2.160900901 | D16: ='!MA26910.096'!N28/'!MA26910.096'!Q3 -> 0.1243243243 | E16: =SUM('!MA26910.096'!L28:Q28)/'!MA26910.096'!Q3 -> 6.47027027 | F16: ='!MA26910.096'!Q24 -> 0.4568342433
A17: 15 | B17: ='!MA27850.096'!B2:C2 -> <date> | C17: =('!MA27850.096'!H159/60)/'!MA27850.096'!Q3 -> 2.153050109 | D17: ='!MA27850.096'!N28/'!MA27850.096'!Q3 -> 0.2614379085 | E17: =SUM('!MA27850.096'!L28:Q28)/'!MA27850.096'!Q3 -> 14.46405229 | F17: ='!MA27850.096'!Q24 -> 0.3382327493
A18: 16 | B18: ='!MA30A20.096'!B2:C2 -> <date> | C18: =('!MA30A20.096'!H143/60)/'!MA30A20.096'!Q3 -> 2.147688564 | D18: ='!MA30A20.096'!N28/'!MA30A20.096'!Q3 -> 0.2919708029 | E18: =SUM('!MA30A20.096'!L28:Q28)/'!MA30A20.096'!Q3 -> 9.547445255 | F18: ='!MA30A20.096'!Q24 -> 0.4021515994
A19: 17 | B19: ='!MA31D10.096'!B2:C2 -> <date> | C19: =('!MA31D10.096'!H176/60)/'!MA31D10.096'!Q3 -> 2.327095517 | D19: ='!MA31D10.096'!N28/'!MA31D10.096'!Q3 -> 0.2222222222 | E19: =SUM('!MA31D10.096'!L28:Q28)/'!MA31D10.096'!Q3 -> 7.701754386 | F19: ='!MA31D10.096'!Q24 -> 0.419922264
A20: 18 | B20: ='!MB02B50.096'!B2:C2 -> <date> | C20: =('!MB02B50.096'!H132/60)/'!MB02B50.096'!Q3 -> 2.31984127 | D20: ='!MB02B50.096'!N28/'!MB02B50.096'!Q3 -> 0.3174603175 | E20: =SUM('!MB02B50.096'!L28:Q28)/'!MB02B50.096'!Q3 -> 18.27777778 | F20: ='!MB02B50.096'!Q24 -> 0.4219828683
A21: 19 | B21: ='!MB04B10.096'!B2:C2 -> <date> | C21: =('!MB04B10.096'!H124/60)/'!MB04B10.096'!Q3 -> 2.326553672 | D21: ='!MB04B10.096'!N28/'!MB04B10.096'!Q3 -> 0.3389830508 | E21: =SUM('!MB04B10.096'!L28:Q28)/'!MB04B10.096'!Q3 -> 19.49152542 | F21: ='!MB04B10.096'!Q24 -> 0.3897737936
A22: 20 | B22: ='!MB05B00.096'!B2:C2 -> <date> | C22: =('!MB05B00.096'!H160/60)/'!MB05B00.096'!Q3 -> 2.305194805 | D22: ='!MB05B00.096'!N28/'!MB05B00.096'!Q3 -> 0.2597402597 | E22: =SUM('!MB05B00.096'!L28:Q28)/'!MB05B00.096'!Q3 -> 14.37012987 | F22: ='!MB05B00.096'!Q24 -> 0.4116413427
A23: 21 | B23: ='!MB08A30.096'!B2:C2 -> <date> | C23: =('!MB08A30.096'!H148/60)/'!MB08A30.096'!Q3 -> 2.096713615 | D23: ='!MB08A30.096'!N28/'!MB08A30.096'!Q3 -> 0.2816901408 | E23: =SUM('!MB08A30.096'!L28:Q28)/'!MB08A30.096'!Q3 -> 15.55633803 | F23: ='!MB08A30.096'!Q24 -> 0.3496212439
A24: 22 | B24: ='!MB09C20.096'!B2:C2 -> <date> | C24: =('!MB09C20.096'!H139/60)/'!MB09C20.096'!Q3 -> 2.078571429 | D24: ='!MB09C20.096'!N28/'!MB09C20.096'!Q3 -> 0.3007518797 | E24: =SUM('!MB09C20.096'!L28:Q28)/'!MB09C20.096'!Q3 -> 17.26315789 | F24: ='!MB09C20.096'!Q24 -> 0.401022756
A25: 23 | B25: ='!MB13B50.096'!B2:C2 -> <date> | C25: =('!MB13B50.096'!H136/60)/'!MB13B50.096'!Q3 -> 2.176666667 | D25: ='!MB13B50.096'!N28/'!MB13B50.096'!Q3 -> 0.3076923077 | E25: =SUM('!MB13B50.096'!L28:Q28)/'!MB13B50.096'!Q3 -> 16.96153846 | F25: ='!MB13B50.096'!Q24 -> 0.3914714826
A26: 24 | B26: ='!MB16B20.096'!B2:C2 -> <date> | C26: =('!MB16B20.096'!H109/60)/'!MB16B20.096'!Q3 -> 2.159546926 | D26: ='!MB16B20.096'!N28/'!MB16B20.096'!Q3 -> 0.3883495146 | E26: =SUM('!MB16B20.096'!L28:Q28)/'!MB16B20.096'!Q3 -> 22.19417476 | F26: ='!MB16B20.096'!Q24 -> 0.3722582005
A27: 25 | B27: ='!MB17C00.096'!B2:C2 -> <date> | C27: =('!MB17C00.096'!H140/60)/'!MB17C00.096'!Q3 -> 2.163432836 | D27: ='!MB17C00.096'!N28/'!MB17C00.096'!Q3 -> 0.2985074627 | E27: =SUM('!MB17C00.096'!L28:Q28)/'!MB17C00.096'!Q3 -> 9.746268657 | F27: ='!MB17C00.096'!Q24 -> 0.3643088743
A28: 26 | B28: ='!MB18B40.096'!B2:C2 -> <date> | C28: =('!MB18B40.096'!H98/60)/'!MB18B40.096'!Q3 -> 2.173913043 | D28: ='!MB18B40.096'!N28/'!MB18B40.096'!Q3 -> 0.4347826087 | E28: =SUM('!MB18B40.096'!L28:Q28)/'!MB18B40.096'!Q3 -> 24.92391304 | F28: ='!MB18B40.096'!Q24 -> 0.3419439683
A29: 27 | B29: ='!MB19B10.096'!B2:C2 -> <date> | C29: =('!MB19B10.096'!H116/60)/'!MB19B10.096'!Q3 -> 2.180757576 | D29: ='!MB19B10.096'!N28/'!MB19B10.096'!Q3 -> 0.3636363636 | E29: =SUM('!MB19B10.096'!L28:Q28)/'!MB19B10.096'!Q3 -> 11.80909091 | F29: ='!MB19B10.096'!Q24 -> 0.3295982095
A30: 28 | B30: ='!MB20C50.096'!B2:C2 -> <date> | C30: =('!MB20C50.096'!H123/60)/'!MB20C50.096'!Q3 -> 2.14957265 | D30: ='!MB20C50.096'!N28/'!MB20C50.096'!Q3 -> 0.3418803419 | E30: =SUM('!MB20C50.096'!L28:Q28)/'!MB20C50.096'!Q3 -> 19.66666667 | F30: ='!MB20C50.096'!Q24 -> 0.3576758913
A31: 29 | B31: ='!MB21950.096'!B2:C2 -> <date> | C31: =('!MB21950.096'!H120/60)/'!MB21950.096'!Q3 -> 2.162573099 | D31: ='!MB21950.096'!N28/'!MB21950.096'!Q3 -> 0.350877193 | E31: =SUM('!MB21950.096'!L28:Q28)/'!MB21950.096'!Q3 -> 19.28947368 | F31: ='!MB21950.096'!Q24 -> 0.3794080176
A32: 30 | B32: ='!MB24A50.096'!B2:C2 -> <date> | C32: =('!MB24A50.096'!H135/60)/'!MB24A50.096'!Q3 -> 2.080361757 | D32: ='!MB24A50.096'!N28/'!MB24A50.096'!Q3 -> 0.3100775194 | E32: =SUM('!MB24A50.096'!L28:Q28)/'!MB24A50.096'!Q3 -> 10.10852713 | F32: ='!MB24A50.096'!Q24 -> 0.3762401538

Sheet Start
F1: Use Folder 51 | H1: Auto Clean Up | J1: Correct sequence
F2: FALSE | H2: TRUE | J2: 2212
A4: Working with Folder | G4: Process All/Or Pick A number: ALL or an integer
A5: E:\Hen Data\Raw Data\96_176\phase 3 var\ | G5: ALL
A6: Filenames:
A7: !MA13C50.096 | G7: Paint Cells
A8: !MA14D10.096 | G8: FALSE
A9: !MA15C40.096
A10: !MB08A30.096
A11: !MB09C20.096
A12: !MB13B50.096
A13: !MB16B20.096
A14: !MB17C00.096
A15: !MB18B40.096
A16: !MB19B10.096
A17: !MB20C50.096
A18: !MB24A50.096
A19: !MA16B50.096
A20: !MA17F00.096
A21: !MA18C30.096
A22: !MA19C00.096
A23: !MA20B30.096
A24: !MA21B50.096
A25: !MA24B40.096
A26: !MA25B30.096
A27: !MA30A20.096
A28: !MA31D10.096
A29: !MA22840.096
A30: !MA23920.096
A31: !MA26910.096
A32: !MA27850.096
A33: !MB02B50.096
A34: !MB04B10.096
A35: !MB05B00.096
A36: !MB21950.096

Sheet !MA13C50.096
A1: Report for:!MA13C50.096
A2: Date: | B2: <date>
A3: Hen: | B3: <hen> | F3: Correct Sequence | G3: =Start!J2 -> 2212 | P3: Total Sequences in Data | Q3: =4994-COUNTBLANK(L7:L5000) -> 150 | V3: Total Sequences in Block Data | W3: =COUNTA(L7:L31) -> 25 | AA3: Total Sequences in Block Data | AB3: =COUNTA(L32:L56) -> 25 | AF3: Total Sequences in Block Data | AG3: =COUNTA(L57:L81) -> 25 | AK3: Total Sequences in Block Data | AL3: =COUNTA(L82:L106) -> 25 | AP3: Total Sequences in Block Data | AQ3: =COUNTA(L107:L131) -> 25 | AU3: Total Sequences in Block Data | AV3: =COUNTA(L132:L156) -> 25
P4: Total Sequences in Summary | Q4: =SUM(O7:O22) -> 150 | V4: Total Sequences in Block Summary | W4: =SUM(U7:U22) -> 25 | AA4: Total Sequences in Block Summary | AB4: =SUM(Z7:Z22) -> 25 | AF4: Total Sequences in Block Summary | AG4: =SUM(AE7:AE22) -> 25 | AK4: Total Sequences in Block Summary | AL4: =SUM(AJ7:AJ22) -> 25 | AP4: Total Sequences in Block Summary | AQ4: =SUM(AO7:AO22) -> 25 | AU4: Total Sequences in Block Summary | AV4: =SUM(AT7:AT22) -> 25
T5: Block 1 | Y5: Block 2 | AD5: Block 3 | AI5: Block 4 | AN5: Block 5 | AS5: Block 6
A6: Sequence Component 1 | B6: Time 1 | C6: Sequence Component 2 | D6: Time 2 | E6: Sequence Component 3 | F6: Time 3 | G6: Sequence Component 4 | H6: Time 4 | I6: Sequence Component 5 | J6: Time 5 | K6: Correct? 0=No 1=Yes | L6: Sequence | N6: Frequency | P6: Relative Frequency | Q6: Variability | T6: Frequency | V6: Relative Frequency | W6: Variability | Y6: Frequency | AA6: Relative Frequency | AB6: Variability | AD6: Frequency | AF6: Relative Frequency | AG6: Variability | AI6: Frequency | AK6: Relative Frequency | AL6: Variability | AN6: Frequency | AP6: Relative Frequency | AQ6: Variability | AS6: Frequency | AU6: Relative Frequency | AV6: Variability
A7: 12 | B7: 22 | C7: 23 | D7: 37 | E7: 24 | F7: 54 | G7: 14 | H7: 74 | K7: 0 | L7: 1221 | N7: 1111 | O7: =COUNTIF($L$7:$L$500,N7) -> 102 | P7: =O7/$Q$4 -> 0.68 | Q7: =IF(P7=0,0,(P7*((LOG(P7))/LOG(2)))) -> -0.378347477 | T7: =N7 -> 1111 | U7: =COUNTIF(L7:L31,T7) -> 13 | V7: =U7/(W4-U20) -> 0.52 | W7: =IF(V7=0,0,(V7*((LOG(V7))/LOG(2)))) -> -0.4905765652 | Y7: =N7 -> 1111 | Z7: =COUNTIF(L32:L56,Y7) -> 25 | AA7: =Z7/(AB4-Z20) -> 1 | AB7: =IF(AA7=0,0,(AA7*((LOG(AA7))/LOG(2)))) -> 0 | AD7: =N7 -> 1111 | AE7: =COUNTIF(L57:L81,AD7) -> 21 | AF7: =AE7/(AG4-AE20) -> 0.84 | AG7: =IF(AF7=0,0,(AF7*((LOG(AF7))/LOG(2)))) -> -0.2112925643 | AI7: =N7 -> 1111 | AJ7: =COUNTIF(L82:L106,AI7) -> 18 | AK7: =AJ7/(AL4-AJ20) -> 0.72 | AL7: =IF(AK7=0,0,(AK7*((LOG(AK7))/LOG(2)))) -> -0.3412304556 | AN7: =N7 -> 1111 | AO7: =COUNTIF(L107:L131,AN7) -> 12 | AP7: =AO7/(AQ4-AO20) -> 0.48 | AQ7: =IF(AP7=0,0,(AP7*((LOG(AP7))/LOG(2)))) -> -0.5082689707 | AS7: =N7 -> 1111 | AT7: =COUNTIF(L132:L156,AS7) -> 13 | AU7: =AT7/(AV4-AT20) -> 0.52 | AV7: =IF(AU7=0,0,(AU7*((LOG(AU7))/LOG(2)))) -> -0.4905765652
A8: 21 | B8: 170 | C8: 12 | D8: 180 | E8: 13 | F8: 185 | G8: 23 | H8: 196 | K8: 0 | L8: 2112 | N8: 1112 | O8: =COUNTIF($L$7:$L$500,N8) -> 10 | P8: =O8/$Q$4 -> 0.06666666667 | Q8: =IF(P8=0,0,(P8*((LOG(P8))/LOG(2)))) -> -0.260459373 | T8: =N8 -> 1112 | U8: =COUNTIF(L7:L31,T8) -> 6 | V8: =U8/(W4-U20) -> 0.24 | W8: =IF(V8=0,0,(V8*((LOG(V8))/LOG(2)))) -> -0.4941344854 | Y8: =N8 -> 1112 | Z8: =COUNTIF(L32:L56,Y8) -> 0 | AA8: =Z8/(AB4-Z20) -> 0 | AB8: =IF(AA8=0,0,(AA8*((LOG(AA8))/LOG(2)))) -> 0 | AD8: =N8 -> 1112 | AE8: =COUNTIF(L57:L81,AD8) -> 0 | AF8: =AE8/(AG4-AE20) -> 0 | AG8: =IF(AF8=0,0,(AF8*((LOG(AF8))/LOG(2)))) -> 0 | AI8: =N8 -> 1112 | AJ8: =COUNTIF(L82:L106,AI8) -> 0 | AK8: =AJ8/(AL4-AJ20) -> 0 | AL8: =IF(AK8=0,0,(AK8*((LOG(AK8))/LOG(2)))) -> 0 | AN8: =N8 -> 1112 | AO8: =COUNTIF(L107:L131,AN8) -> 3 | AP8: =AO8/(AQ4-AO20) -> 0.12 | AQ8: =IF(AP8=0,0,(AP8*((LOG(AP8))/LOG(2)))) -> -0.3670672427 | AS8: =N8 -> 1112 | AT8: =COUNTIF(L132:L156,AS8) -> 1 | AU8: =AT8/(AV4-AT20) -> 0.04 | AV8: =IF(AU8=0,0,(AU8*((LOG(AU8))/LOG(2)))) -> -0.1857542476
A9: 12 | B9: 297 | C9: 14 | D9: 302 | E9: 13 | F9: 309 | G9: 14 | H9: 323 | K9: 0 | L9: 1111 | N9: 1121 | O9: =COUNTIF($L$7:$L$500,N9) -> 6 | P9: =O9/$Q$4 -> 0.04 | Q9: =IF(P9=0,0,(P9*((LOG(P9))/LOG(2)))) -> -0.1857542476 | T9: =N9 -> 1121 | U9: =COUNTIF(L7:L31,T9) -> 1 | V9: =U9/(W4-U20) -> 0.04 | W9: =IF(V9=0,0,(V9*((LOG(V9))/LOG(2)))) -> -0.1857542476 | Y9: =N9 -> 1121 | Z9: =COUNTIF(L32:L56,Y9) -> 0 | AA9: =Z9/(AB4-Z20) -> 0 | AB9: =IF(AA9=0,0,(AA9*((LOG(AA9))/LOG(2)))) -> 0 | AD9: =N9 -> 1121 | AE9: =COUNTIF(L57:L81,AD9) -> 1 | AF9: =AE9/(AG4-AE20) -> 0.04 | AG9: =IF(AF9=0,0,(AF9*((LOG(AF9))/LOG(2)))) -> -0.1857542476 | AI9: =N9 -> 1121 | AJ9: =COUNTIF(L82:L106,AI9) -> 2 | AK9: =AJ9/(AL4-AJ20) -> 0.08 | AL9: =IF(AK9=0,0,(AK9*((LOG(AK9))/LOG(2)))) -> -0.2915084952 | AN9: =N9 -> 1121 | AO9: =COUNTIF(L107:L131,AN9) -> 0 | AP9: =AO9/(AQ4-AO20) -> 0 | AQ9: =IF(AP9=0,0,(AP9*((LOG(AP9))/LOG(2)))) -> 0 | AS9: =N9 -> 1121 | AT9: =COUNTIF(L132:L156,AS9) -> 2 | AU9: =AT9/(AV4-AT20) -> 0.08 | AV9: =IF(AU9=0,0,(AU9*((LOG(AU9))/LOG(2)))) -> -0.2915084952
A10: 12 | B10: 427 | C10: 14 | D10: 432 | E10: 24 | F10: 444 | G10: 23 | H10: 455 | K10: 0 | L10: 1122 | N10: 1122 | O10: =COUNTIF($L$7:$L$500,N10) -> 3 | P10: =O10/$Q$4 -> 0.02 | Q10: =IF(P10=0,0,(P10*((LOG(P10))/LOG(2)))) -> -0.1128771238 | T10: =N10 -> 1122 | U10: =COUNTIF(L7:L31,T10) -> 3 | V10: =U10/(W4-U20) -> 0.12 | W10: =IF(V10=0,0,(V10*((LOG(V10))/LOG(2)))) -> -0.3670672427 | Y10: =N10 -> 1122 | Z10: =COUNTIF(L32:L56,Y10) -> 0 | AA10: =Z10/(AB4-Z20) -> 0 | AB10: =IF(AA10=0,0,(AA10*((LOG(AA10))/LOG(2)))) -> 0 | AD10: =N10 -> 1122 | AE10: =COUNTIF(L57:L81,AD10) -> 0 | AF10: =AE10/(AG4-AE20) -> 0 | AG10: =IF(AF10=0,0,(AF10*((LOG(AF10))/LOG(2)))) -> 0 | AI10: =N10 -> 1122 | AJ10: =COUNTIF(L82:L106,AI10) -> 0 | AK10: =AJ10/(AL4-AJ20) -> 0 | AL10: =IF(AK10=0,0,(AK10*((LOG(AK10))/LOG(2)))) -> 0 | AN10: =N10 -> 1122 | AO10: =COUNTIF(L107:L131,AN10) -> 0 | AP10: =AO10/(AQ4-AO20) -> 0 | AQ10: =IF(AP10=0,0,(AP10*((LOG(AP10))/LOG(2)))) -> 0 | AS10: =N10 -> 1122 | AT10: =COUNTIF(L132:L156,AS10) -> 0 | AU10: =AT10/(AV4-AT20) -> 0 | AV10: =IF(AU10=0,0,(AU10*((LOG(AU10))/LOG(2)))) -> 0
A11: 12 | B11: 553 | C11: 14 | D11: 562 | E11: 13 | F11: 567 | G11: 14 | H11: 574 | K11: 0 | L11: 1111 | N11: 1211 | O11: =COUNTIF($L$7:$L$500,N11) -> 5 | P11: =O11/$Q$4 -> 0.03333333333 | Q11: =IF(P11=0,0,(P11*((LOG(P11))/LOG(2)))) -> -0.1635630199 | T11: =N11 -> 1211 | U11: =COUNTIF(L7:L31,T11) -> 0 | V11: =U11/(W4-U20) -> 0 | W11: =IF(V11=0,0,(V11*((LOG(V11))/LOG(2)))) -> 0 | Y11: =N11 -> 1211 | Z11: =COUNTIF(L32:L56,Y11) -> 0 | AA11: =Z11/(AB4-Z20) -> 0 | AB11: =IF(AA11=0,0,(AA11*((LOG(AA11))/LOG(2)))) -> 0 | AD11: =N11 -> 1211 | AE11: =COUNTIF(L57:L81,AD11) -> 1 | AF11: =AE11/(AG4-AE20) -> 0.04 | AG11: =IF(AF11=0,0,(AF11*((LOG(AF11))/LOG(2)))) -> -0.1857542476 | AI11: =N11 -> 1211 | AJ11: =COUNTIF(L82:L106,AI11) -> 1 | AK11: =AJ11/(AL4-AJ20) -> 0.04 | AL11: =IF(AK11=0,0,(AK11*((LOG(AK11))/LOG(2)))) -> -0.1857542476 | AN11: =N11 -> 1211 | AO11: =COUNTIF(L107:L131,AN11) -> 3 | AP11: =AO11/(AQ4-AO20) -> 0.12 | AQ11: =IF(AP11=0,0,(AP11*((LOG(AP11))/LOG(2)))) -> -0.3670672427 | AS11: =N11 -> 1211 | AT11: =COUNTIF(L132:L156,AS11) -> 0 | AU11: =AT11/(AV4-AT20) -> 0 | AV11: =IF(AU11=0,0,(AU11*((LOG(AU11))/LOG(2)))) -> 0
A12: 12 | B12: 673 | C12: 14 | D12: 678 | E12: 24 | F12: 691 | G12: 23 | H12: 702 | K12: 0 | L12: 1122 | N12: 1212 | O12: =COUNTIF($L$7:$L$500,N12) -> 0 | P12: =O12/$Q$4 -> 0 | Q12: =IF(P12=0,0,(P12*((LOG(P12))/LOG(2)))) -> 0 | T12: =N12 -> 1212 | U12: =COUNTIF(L7:L31,T12) -> 0 | V12: =U12/(W4-U20) -> 0 | W12: =IF(V12=0,0,(V12*((LOG(V12))/LOG(2)))) -> 0 | Y12: =N12 -> 1212 | Z12: =COUNTIF(L32:L56,Y12) -> 0 | AA12: =Z12/(AB4-Z20) -> 0 | AB12: =IF(AA12=0,0,(AA12*((LOG(AA12))/LOG(2)))) -> 0 | AD12: =N12 -> 1212 | AE12: =COUNTIF(L57:L81,AD12) -> 0 | AF12: =AE12/(AG4-AE20) -> 0 | AG12: =IF(AF12=0,0,(AF12*((LOG(AF12))/LOG(2)))) -> 0 | AI12: =N12 -> 1212 | AJ12: =COUNTIF(L82:L106,AI12) -> 0 | AK12: =AJ12/(AL4-AJ20) -> 0 | AL12: =IF(AK12=0,0,(AK12*((LOG(AK12))/LOG(2)))) -> 0 | AN12: =N12 -> 1212 | AO12: =COUNTIF(L107:L131,AN12) -> 0 | AP12: =AO12/(AQ4-AO20) -> 0 | AQ12: =IF(AP12=0,0,(AP12*((LOG(AP12))/LOG(2)))) -> 0 | AS12: =N12 -> 1212 | AT12: =COUNTIF(L132:L156,AS12) -> 0 | AU12: =AT12/(AV4-AT20) -> 0 | AV12: =IF(AU12=0,0,(AU12*((LOG(AU12))/LOG(2)))) -> 0
A13: 12 | B13: 800 | C13: 14 | D13: 805 | E13: 13 | F13: 810 | G13: 14 | H13: 815 | K13: 0 | L13: 1111 | N13: 1221 | O13: =COUNTIF($L$7:$L$500,N13) -> 1 | P13: =O13/$Q$4 -> 0.006666666667 | Q13: =IF(P13=0,0,(P13*((LOG(P13))/LOG(2)))) -> -0.0481921246 | T13: =N13 -> 1221 | U13: =COUNTIF(L7:L31,T13) -> 1 | V13: =U13/(W4-U20) -> 0.04 | W13: =IF(V13=0,0,(V13*((LOG(V13))/LOG(2)))) -> -0.1857542476 | Y13: =N13 -> 1221 | Z13: =COUNTIF(L32:L56,Y13) -> 0 | AA13: =Z13/(AB4-Z20) -> 0 | AB13: =IF(AA13=0,0,(AA13*((LOG(AA13))/LOG(2)))) -> 0 | AD13: =N13 -> 1221 | AE13: =COUNTIF(L57:L81,AD13) -> 0 | AF13: =AE13/(AG4-AE20) -> 0 | AG13: =IF(AF13=0,0,(AF13*((LOG(AF13))/LOG(2)))) -> 0 | AI13: =N13 -> 1221 | AJ13: =COUNTIF(L82:L106,AI13) -> 0 | AK13: =AJ13/(AL4-AJ20) -> 0 | AL13: =IF(AK13=0,0,(AK13*((LOG(AK13))/LOG(2)))) -> 0 | AN13: =N13 -> 1221 | AO13: =COUNTIF(L107:L131,AN13) -> 0 | AP13: =AO13/(AQ4-AO20) -> 0 | AQ13: =IF(AP13=0,0,(AP13*((LOG(AP13))/LOG(2)))) -> 0 | AS13: =N13 -> 1221 | AT13: =COUNTIF(L132:L156,AS13) -> 0 | AU13: =AT13/(AV4-AT20) -> 0 | AV13: =IF(AU13=0,0,(AU13*((LOG(AU13))/LOG(2)))) -> 0
A14: 12 | B14: 911 | C14: 14 | D14: 916 | E14: 13 | F14: 920 | G14: 23 | H14: 933 | K14: 0 | L14: 1112 | N14: 1222 | O14: =COUNTIF($L$7:$L$500,N14) -> 0 | P14: =O14/$Q$4 -> 0 | Q14: =IF(P14=0,0,(P14*((LOG(P14))/LOG(2)))) -> 0 | T14: =N14 -> 1222 | U14: =COUNTIF(L7:L31,T14) -> 0 | V14: =U14/(W4-U20) -> 0 | W14: =IF(V14=0,0,(V14*((LOG(V14))/LOG(2)))) -> 0 | Y14: =N14 -> 1222 | Z14: =COUNTIF(L32:L56,Y14) -> 0 | AA14: =Z14/(AB4-Z20) -> 0 | AB14: =IF(AA14=0,0,(AA14*((LOG(AA14))/LOG(2)))) -> 0 | AD14: =N14 -> 1222 | AE14: =COUNTIF(L57:L81,AD14) -> 0 | AF14: =AE14/(AG4-AE20) -> 0 | AG14: =IF(AF14=0,0,(AF14*((LOG(AF14))/LOG(2)))) -> 0 | AI14: =N14 -> 1222 | AJ14: =COUNTIF(L82:L106,AI14) -> 0 | AK14: =AJ14/(AL4-AJ20) -> 0 | AL14: =IF(AK14=0,0,(AK14*((LOG(AK14))/LOG(2)))) -> 0 | AN14: =N14 -> 1222 | AO14: =COUNTIF(L107:L131,AN14) -> 0 | AP14: =AO14/(AQ4-AO20) -> 0 | AQ14: =IF(AP14=0,0,(AP14*((LOG(AP14))/LOG(2)))) -> 0 | AS14: =N14 -> 1222 | AT14: =COUNTIF(L132:L156,AS14) -> 0 | AU14: =AT14/(AV4-AT20) -> 0 | AV14: =IF(AU14=0,0,(AU14*((LOG(AU14))/LOG(2)))) -> 0
A15: 12 | B15: 1035 | C15: 14 | D15: 1043 | E15: 13 | F15: 1048 | G15: 14 | H15: 1060 | K15: 0 | L15: 1111 | N15: 2111 | O15: =COUNTIF($L$7:$L$500,N15) -> 10 | P15: =O15/$Q$4 -> 0.06666666667 | Q15: =IF(P15=0,0,(P15*((LOG(P15))/LOG(2)))) -> -0.260459373 | T15: =N15 -> 2111 | U15: =COUNTIF(L7:L31,T15) -> 0 | V15: =U15/(W4-U20) -> 0 | W15: =IF(V15=0,0,(V15*((LOG(V15))/LOG(2)))) -> 0 | Y15: =N15 -> 2111 | Z15: =COUNTIF(L32:L56,Y15) -> 0 | AA15: =Z15/(AB4-Z20) -> 0 | AB15: =IF(AA15=0,0,(AA15*((LOG(AA15))/LOG(2)))) -> 0 | AD15: =N15 -> 2111 | AE15: =COUNTIF(L57:L81,AD15) -> 2 | AF15: =AE15/(AG4-AE20) -> 0.08 | AG15: =IF(AF15=0,0,(AF15*((LOG(AF15))/LOG(2)))) -> -0.2915084952 | AI15: =N15 -> 2111 | AJ15: =COUNTIF(L82:L106,AI15) -> 2 | AK15: =AJ15/(AL4-AJ20) -> 0.08 | AL15: =IF(AK15=0,0,(AK15*((LOG(AK15))/LOG(2)))) -> -0.2915084952 | AN15: =N15 -> 2111 | AO15: =COUNTIF(L107:L131,AN15) -> 1 | AP15: =AO15/(AQ4-AO20) -> 0.04 | AQ15: =IF(AP15=0,0,(AP15*((LOG(AP15))/LOG(2)))) -> -0.1857542476 | AS15: =N15 -> 2111 | AT15: =COUNTIF(L132:L156,AS15) -> 5 | AU15: =AT15/(AV4-AT20) -> 0.2 | AV15: =IF(AU15=0,0,(AU15*((LOG(AU15))/LOG(2)))) -> -0.464385619
A16: 12 | B16: 1162 | C16: 14 | D16: 1166 | E16: 24 | F16: 1178 | G16: 23 | H16: 1214 | K16: 0 | L16: 1122 | N16: 2112 | O16: =COUNTIF($L$7:$L$500,N16) -> 3 | P16: =O16/$Q$4 -> 0.02 | Q16: =IF(P16=0,0,(P16*((LOG(P16))/LOG(2)))) -> -0.1128771238 | T16: =N16 -> 2112 | U16: =COUNTIF(L7:L31,T16) -> 1 | V16: =U16/(W4-U20) -> 0.04 | W16: =IF(V16=0,0,(V16*((LOG(V16))/LOG(2)))) -> -0.1857542476 | Y16: =N16 -> 2112 | Z16: =COUNTIF(L32:L56,Y16) -> 0 | AA16: =Z16/(AB4-Z20) -> 0 | AB16: =IF(AA16=0,0,(AA16*((LOG(AA16))/LOG(2)))) -> 0 | AD16: =N16 -> 2112 | AE16: =COUNTIF(L57:L81,AD16) -> 0 | AF16: =AE16/(AG4-AE20) -> 0 | AG16: =IF(AF16=0,0,(AF16*((LOG(AF16))/LOG(2)))) -> 0 | AI16: =N16 -> 2112 | AJ16: =COUNTIF(L82:L106,AI16) -> 0 | AK16: =AJ16/(AL4-AJ20) -> 0 | AL16: =IF(AK16=0,0,(AK16*((LOG(AK16))/LOG(2)))) -> 0 | AN16: =N16 -> 2112 | AO16: =COUNTIF(L107:L131,AN16) -> 0 | AP16: =AO16/(AQ4-AO20) -> 0 | AQ16: =IF(AP16=0,0,(AP16*((LOG(AP16))/LOG(2)))) -> 0 | AS16: =N16 -> 2112 | AT16: =COUNTIF(L132:L156,AS16) -> 2 | AU16: =AT16/(AV4-AT20) -> 0.08 | AV16: =IF(AU16=0,0,(AU16*((LOG(AU16))/LOG(2)))) -> -0.2915084952
A17: 12 | B17: 1313 | C17: 14 | D17: 1317 | E17: 13 | F17: 1322 | G17: 23 | H17: 1334 | K17: 0 | L17: 1112 | N17: 2121 | O17: =COUNTIF($L$7:$L$500,N17) -> 1 | P17: =O17/$Q$4 -> 0.006666666667 | Q17: =IF(P17=0,0,(P17*((LOG(P17))/LOG(2)))) -> -0.0481921246 | T17: =N17 -> 2121 | U17: =COUNTIF(L7:L31,T17) -> 0 | V17: =U17/(W4-U20) -> 0 | W17: =IF(V17=0,0,(V17*((LOG(V17))/LOG(2)))) -> 0 | Y17: =N17 -> 2121 | Z17: =COUNTIF(L32:L56,Y17) -> 0 | AA17: =Z17/(AB4-Z20) -> 0 | AB17: =IF(AA17=0,0,(AA17*((LOG(AA17))/LOG(2)))) -> 0 | AD17: =N17 -> 2121 | AE17: =COUNTIF(L57:L81,AD17) -> 0 | AF17: =AE17/(AG4-AE20) -> 0 | AG17: =IF(AF17=0,0,(AF17*((LOG(AF17))/LOG(2)))) -> 0 | AI17: =N17 -> 2121 | AJ17: =COUNTIF(L82:L106,AI17) -> 0 | AK17: =AJ17/(AL4-AJ20) -> 0 | AL17: =IF(AK17=0,0,(AK17*((LOG(AK17))/LOG(2)))) -> 0 | AN17: =N17 -> 2121 | AO17: =COUNTIF(L107:L131,AN17) -> 0 | AP17: =AO17/(AQ4-AO20) -> 0 | AQ17: =IF(AP17=0,0,(AP17*((LOG(AP17))/LOG(2)))) -> 0 | AS17: =N17 -> 2121 | AT17: =COUNTIF(L132:L156,AS17) -> 1 | AU17: =AT17/(AV4-AT20) -> 0.04 | AV17: =IF(AU17=0,0,(AU17*((LOG(AU17))/LOG(2)))) -> -0.1857542476
A18: 12 | B18: 1433 | C18: 14 | D18: 1438 | E18: 13 | F18: 1445 | G18: 14 | H18: 1451 | K18: 0 | L18: 1111 | N18: 2122 | O18: =COUNTIF($L$7:$L$500,N18) -> 1 | P18: =O18/$Q$4 -> 0.006666666667 | Q18: =IF(P18=0,0,(P18*((LOG(P18))/LOG(2)))) -> -0.0481921246 | T18: =N18 -> 2122 | U18: =COUNTIF(L7:L31,T18) -> 0 | V18: =U18/(W4-U20) -> 0 | W18: =IF(V18=0,0,(V18*((LOG(V18))/LOG(2)))) -> 0 | Y18: =N18 -> 2122 | Z18: =COUNTIF(L32:L56,Y18) -> 0 | AA18: =Z18/(AB4-Z20) -> 0 | AB18: =IF(AA18=0,0,(AA18*((LOG(AA18))/LOG(2)))) -> 0 | AD18: =N18 -> 2122 | AE18: =COUNTIF(L57:L81,AD18) -> 0 | AF18: =AE18/(AG4-AE20) -> 0 | AG18: =IF(AF18=0,0,(AF18*((LOG(AF18))/LOG(2)))) -> 0 | AI18: =N18 -> 2122 | AJ18: =COUNTIF(L82:L106,AI18) -> 1 | AK18: =AJ18/(AL4-AJ20) -> 0.04 | AL18: =IF(AK18=0,0,(AK18*((LOG(AK18))/LOG(2)))) -> -0.1857542476 | AN18: =N18 -> 2122 | AO18: =COUNTIF(L107:L131,AN18) -> 0 | AP18: =AO18/(AQ4-AO20) -> 0 | AQ18: =IF(AP18=0,0,(AP18*((LOG(AP18))/LOG(2)))) -> 0 | AS18: =N18 -> 2122 | AT18: =COUNTIF(L132:L156,AS18) -> 0 | AU18: =AT18/(AV4-AT20) -> 0 | AV18: =IF(AU18=0,0,(AU18*((LOG(AU18))/LOG(2)))) -> 0
A19: 12 | B19: 1548 | C19: 14 | D19: 1553 | E19: 13 | F19: 1557 | G19: 23 | H19: 1569 | K19: 0 | L19: 1112 | N19: 2211 | O19: =COUNTIF($L$7:$L$500,N19) -> 7 | P19: =O19/$Q$4 -> 0.04666666667 | Q19: =IF(P19=0,0,(P19*((LOG(P19))/LOG(2)))) -> -0.2063349759 | T19: =N19 -> 2211 | U19: =COUNTIF(L7:L31,T19) -> 0 | V19: =U19/(W4-U20) -> 0 | W19: =IF(V19=0,0,(V19*((LOG(V19))/LOG(2)))) -> 0 | Y19: =N19 -> 2211 | Z19: =COUNTIF(L32:L56,Y19) -> 0 | AA19: =Z19/(AB4-Z20) -> 0 | AB19: =IF(AA19=0,0,(AA19*((LOG(AA19))/LOG(2)))) -> 0 | AD19: =N19 -> 2211 | AE19: =COUNTIF(L57:L81,AD19) -> 0 | AF19: =AE19/(AG4-AE20) -> 0 | AG19: =IF(AF19=0,0,(AF19*((LOG(AF19))/LOG(2)))) -> 0 | AI19: =N19 -> 2211 | AJ19: =COUNTIF(L82:L106,AI19) -> 1 | AK19: =AJ19/(AL4-AJ20) -> 0.04 | AL19: =IF(AK19=0,0,(AK19*((LOG(AK19))/LOG(2)))) -> -0.1857542476 | AN19: =N19 -> 2211 | AO19: =COUNTIF(L107:L131,AN19) -> 5 | AP19: =AO19/(AQ4-AO20) -> 0.2 | AQ19: =IF(AP19=0,0,(AP19*((LOG(AP19))/LOG(2)))) -> -0.464385619 | AS19: =N19 -> 2211 | AT19: =COUNTIF(L132:L156,AS19) -> 1 | AU19: =AT19/(AV4-AT20) -> 0.04 | AV19: =IF(AU19=0,0,(AU19*((LOG(AU19))/LOG(2)))) -> -0.1857542476
A20: 12 | B20: 1678 | C20: 14 | D20: 1684 | E20: 13 | F20: 1695 | G20: 14 | H20: 1701 | K20: 0 | L20: 1111 | N20: 2212 | O20: =COUNTIF($L$7:$L$500,N20) -> 0 | P20: =O20/$Q$4 -> 0 | Q20: =IF(P20=0,0,(P20*((LOG(P20))/LOG(2)))) -> 0 | T20: =N20 -> 2212 | U20: =COUNTIF(L7:L31,T20) -> 0 | Y20: =N20 -> 2212 | Z20: =COUNTIF(L32:L56,Y20) -> 0 | AD20: =N20 -> 2212 | AE20: =COUNTIF(L57:L81,AD20) -> 0 | AI20: =N20 -> 2212 | AJ20: =COUNTIF(L82:L106,AI20) -> 0 | AN20: =N20 -> 2212 | AO20: =COUNTIF(L107:L131,AN20) -> 0 | AS20: =N20 -> 2212 | AT20: =COUNTIF(L132:L156,AS20) -> 0
A21: 12 | B21: 1799 | C21: 14 | D21: 1807 | E21: 24 | F21: 1819 | G21: 14 | H21: 1848 | K21: 0 | L21: 1121 | N21: 2221 | O21: =COUNTIF($L$7:$L$500,N21) -> 0 | P21: =O21/$Q$4 -> 0 | Q21: =IF(P21=0,0,(P21*((LOG(P21))/LOG(2)))) -> 0 | T21: =N21 -> 2221 | U21: =COUNTIF(L7:L31,T21) -> 0 | V21: =U21/(W4-U20) -> 0 | W21: =IF(V21=0,0,(V21*((LOG(V21))/LOG(2)))) -> 0 | Y21: =N21 -> 2221 | Z21: =COUNTIF(L32:L56,Y21) -> 0 | AA21: =Z21/(AB4-Z20) -> 0 | AB21: =IF(AA21=0,0,(AA21*((LOG(AA21))/LOG(2)))) -> 0 | AD21: =N21 -> 2221 | AE21: =COUNTIF(L57:L81,AD21) -> 0 | AF21: =AE21/(AG4-AE20) -> 0 | AG21: =IF(AF21=0,0,(AF21*((LOG(AF21))/LOG(2)))) -> 0 | AI21: =N21 -> 2221 | AJ21: =COUNTIF(L82:L106,AI21) -> 0 | AK21: =AJ21/(AL4-AJ20) -> 0 | AL21: =IF(AK21=0,0,(AK21*((LOG(AK21))/LOG(2)))) -> 0 | AN21: =N21 -> 2221 | AO21: =COUNTIF(L107:L131,AN21) -> 0 | AP21: =AO21/(AQ4-AO20) -> 0 | AQ21: =IF(AP21=0,0,(AP21*((LOG(AP21))/LOG(2)))) -> 0 | AS21: =N21 -> 2221 | AT21: =COUNTIF(L132:L156,AS21) -> 0 | AU21: =AT21/(AV4-AT20) -> 0 | AV21: =IF(AU21=0,0,(AU21*((LOG(AU21))/LOG(2)))) -> 0
A22: 12 | B22: 1946 | C22: 14 | D22: 1957 | E22: 13 | F22: 1962 | G22: 23 | H22: 1974 | K22: 0 | L22: 1112 | N22: 2222 | O22: =COUNTIF($L$7:$L$500,N22) -> 1 | P22: =O22/$Q$4 -> 0.006666666667 | Q22: =IF(P22=0,0,(P22*((LOG(P22))/LOG(2)))) -> -0.0481921246 | T22: =N22 -> 2222 | U22: =COUNTIF(L7:L31,T22) -> 0 | V22: =U22/(W4-U20) -> 0 | W22: =IF(V22=0,0,(V22*((LOG(V22))/LOG(2)))) -> 0 | Y22: =N22 -> 2222 | Z22: =COUNTIF(L32:L56,Y22) -> 0 | AA22: =Z22/(AB4-Z20) -> 0 | AB22: =IF(AA22=0,0,(AA22*((LOG(AA22))/LOG(2)))) -> 0 | AD22: =N22 -> 2222 | AE22: =COUNTIF(L57:L81,AD22) -> 0 | AF22: =AE22/(AG4-AE20) -> 0 | AG22: =IF(AF22=0,0,(AF22*((LOG(AF22))/LOG(2)))) -> 0 | AI22: =N22 -> 2222 | AJ22: =COUNTIF(L82:L106,AI22) -> 0 | AK22: =AJ22/(AL4-AJ20) -> 0 | AL22: =IF(AK22=0,0,(AK22*((LOG(AK22))/LOG(2)))) -> 0 | AN22: =N22 -> 2222 | AO22: =COUNTIF(L107:L131,AN22) -> 1 | AP22: =AO22/(AQ4-AO20) -> 0.04 | AQ22: =IF(AP22=0,0,(AP22*((LOG(AP22))/LOG(2)))) -> -0.1857542476 | AS22: =N22 -> 2222 | AT22: =COUNTIF(L132:L156,AS22) -> 0 | AU22: =AT22/(AV4-AT20) -> 0 | AV22: =IF(AU22=0,0,(AU22*((LOG(AU22))/LOG(2)))) -> 0
A23: 12 | B23: 2071 | C23: 14 | D23: 2076 | E23: 13 | F23: 2081 | G23: 23 | H23: 2093 | K23: 0 | L23: 1112 | P23: =SUM(P7:P22) -> 1 | Q23: =-SUM(Q7:Q22) -> 1.873441212 | V23: =SUM(V7:V22) -> 1 | W23: =-SUM(W7:W22) -> 1.909041036 | AA23: =SUM(AA7:AA22) -> 1 | AB23: =-SUM(AB7:AB22) -> 0 | AF23: =SUM(AF7:AF22) -> 1 | AG23: =-SUM(AG7:AG22) -> 0.8743095546 | AK23: =SUM(AK7:AK22) -> 1 | AL23: =-SUM(AL7:AL22) -> 1.481510189 | AP23: =SUM(AP7:AP22) -> 1 | AQ23: =-SUM(AQ7:AQ22) -> 2.07829757 | AU23: =SUM(AU7:AU22) -> 1 | AV23: =-SUM(AV7:AV22) -> 2.095241917
A24: 12 | B24: 2191 | C24: 14 | D24: 2195 | E24: 13 | F24: 2199 | G24: 14 | H24: 2204 | K24: 0 | L24: 1111 | P24: U= | Q24: =Q23/(LOG(Q4)/LOG(2)) -> 0.2591628442 | V24: U1= | W24: =W23/(LOG(W4)/LOG(2)) -> 0.4110896113 | AA24: U2= | AB24: =AB23/(LOG(AB4)/LOG(2)) -> 0 | AF24: U3= | AG24: =AG23/(LOG(AG4)/LOG(2)) -> 0.1882723148 | AK24: U4= | AL24: =AL23/(LOG(AL4)/LOG(2)) -> 0.3190258544 | AP24: U5= | AQ24: =AQ23/(LOG(AQ4)/LOG(2)) -> 0.4475370221 | AU24: U6= | AV24: =AV23/(LOG(AV4)/LOG(2)) -> 0.4511857887
A25: 12 | B25: 2301 | C25: 14 | D25: 2306 | E25: 13 | F25: 2311 | G25: 23 | H25: 2323 | K25: 0 | L25: 1112
A26: 12 | B26: 2423 | C26: 14 | D26: 2428 | E26: 13 | F26: 2447 | G26: 14 | H26: 2453 | K26: 0 | L26: 1111
A27: 12 | B27: 2558 | C27: 14 | D27: 2563 | E27: 13 | F27: 2577 | G27: 14 | H27: 2583 | K27: 0 | L27: 1111 | N27: Total Target Seq
A28: 12 | B28: 2683 | C28: 14 | D28: 2687 | E28: 13 | F28: 2695 | G28: 14 | H28: 2701 | K28: 0 | L28: 1111 | N28: =COUNTIF(L7:L156,G3) -> 0 | P28: 25 | Q28: 25 | R28: 25 | S28: 25 | T28: 25 | U28: 25
A29: 12 | B29: 2798 | C29: 14 | D29: 2805 | E29: 13 | F29: 2810 | G29: 14 | H29: 2815 | K29: 0 | L29: 1111 | P29: % of reinforcement given in 6 equal intervals based on number of trials
A30: 12 | B30: 2914 | C30: 14 | D30: 2930 | E30: 13 | F30: 2937 | G30: 14 | H30: 2945 | K30: 0 | L30: 1111 | P30: %_1 | Q30: %_2 | R30: %_3 | S30: %_4 | T30: %_5 | U30: %_6
A31: 12 | B31: 3043 | C31: 14 | D31: 3047 | E31: 13 | F31: 3052 | G31: 14 | H31: 3059 | K31: 0 | L31: 1111 | O31: target sequence | P31: =$G$3 -> 2212 | Q31: =$G$3 -> 2212 | R31: =$G$3 -> 2212 | S31: =$G$3 -> 2212 | T31: =$G$3 -> 2212 | U31: =$G$3 -> 2212
A32: 12 | B32: 3161 | C32: 14 | D32: 3193 | E32: 13 | F32: 3199 | G32: 14 | H32: 3205 | K32: 0 | L32: 1111 | O32: total reinforcement | P32: =U20 -> 0 | Q32: =Z20 -> 0 | R32: =AE20 -> 0 | S32: =AJ20 -> 0 | T32: =AO20 -> 0 | U32: =AT20 -> 0
A33: 12 | B33: 3306 | C33: 14 | D33: 3315 | E33: 13 | F33: 3325 | G33: 14 | H33: 3330 | K33: 0 | L33: 1111 | O33: % target
A34: 12 | B34: 3432 | C34: 14 | D34: 3444 | E34: 13 | F34: 3449 | G34: 14 | H34: 3456 | K34: 0 | L34: 1111 | O34: CCRF
A35: 12 | B35: 3556 | C35: 14 | D35: 3560 | E35: 13 | F35: 3565 | G35: 14 | H35: 3569 | K35: 0 | L35: 1111 | O35: % CCRf
A36: 12 | B36: 3698 | C36: 14 | D36: 3705 | E36: 13 | F36: 3711 | G36: 14 | H36: 3717 | K36: 0 | L36: 1111 | O36: average response rate | P36: =H31/P28 -> 122.36 | Q36: =(H56-H31)/Q28 -> 123.36 | R36: =(H81-H56)/R28 -> 168.92 | S36: =(H106-H81)/S28 -> 161.32 | T36: =(H131-H106)/T28 -> 191.28 | U36: =(H156-H131)/U28 -> 190.16
A37: 12 | B37: 3835 | C37: 14 | D37: 3840 | E37: 13 | F37: 3845 | G37: 14 | H37: 3850 | K37: 0 | L37: 1111
A38: 12 | B38: 3957 | C38: 14 | D38: 3963 | E38: 13 | F38: 3968 | G38: 14 | H38: 3973 | K38: 0 | L38: 1111
A39: 12 | B39: 4071 | C39: 14 | D39: 4082 | E39: 13 | F39: 4095 | G39: 14 | H39: 4099 | K39: 0 | L39: 1111
A40: 12 | B40: 4205 | C40: 14 | D40: 4209 | E40: 13 | F40: 4214 | G40: 14 | H40: 4220 | K40: 0 | L40: 1111
A41: 12 | B41: 4329 | C41: 14 | D41: 4333 | E41: 13 | F41: 4337 | G41: 14 | H41: 4350 | K41: 0 | L41: 1111
A42: 12 | B42: 4448 | C42: 14 | D42: 4453 | E42: 13 | F42: 4461 | G42: 14 | H42: 4465 | K42: 0 | L42: 1111
A43: 12 | B43: 4564 | C43: 14 | D43: 4568 | E43: 13 | F43: 4573 | G43: 14 | H43: 4591 | K43: 0 | L43: 1111
A44: 12 | B44: 4692 | C44: 14 | D44: 4700 | E44: 13 | F44: 4705 | G44: 14 | H44: 4712 | K44: 0 | L44: 1111
A45: 12 | B45: 4811 | C45: 14 | D45: 4815 | E45: 13 | F45: 4820 | G45: 14 | H45: 4824 | K45: 0 | L45: 1111
A46: 12 | B46: 4925 | C46: 14 | D46: 4929 | E46: 13 | F46: 4938 | G46: 14 | H46: 4944 | K46: 0 | L46: 1111
A47: 12 | B47: 5044 | C47: 14 | D47: 5047 | E47: 13 | F47: 5056 | G47: 14 | H47: 5061 | K47: 0 | L47: 1111
A48: 12 | B48: 5158 | C48: 14 | D48: 5163 | E48: 13 | F48: 5167 | G48: 14 | H48: 5181 | K48: 0 | L48: 1111
A49: 12 | B49: 5280 | C49: 14 | D49: 5284 | E49: 13 | F49: 5288 | G49: 14 | H49: 5296 | K49: 0 | L49: 1111
A50: 12 | B50: 5392 | C50: 14 | D50: 5396 | E50: 13 | F50: 5400 | G50: 14 | H50: 5404 | K50: 0 | L50: 1111
A51: 12 | B51: 5503 | C51: 14 | D51: 5510 | E51: 13 | F51: 5514 | G51: 14 | H51: 5522 | K51: 0 | L51: 1111
A52: 12 | B52: 5618 | C52: 14 | D52: 5623 | E52: 13 | F52: 5633 | G52: 14 | H52: 5640 | K52: 0 | L52: 1111
A53: 12 | B53: 5740 | C53: 14 | D53: 5749 | E53: 13 | F53: 5753 | G53: 14 | H53: 5766 | K53: 0 | L53: 1111
A54: 12 | B54: 5867 | C54: 14 | D54: 5877 | E54: 13 | F54: 5882 | G54: 14 | H54: 5887 | K54: 0 | L54: 1111
A55: 12 | B55: 6000 | C55: 14 | D55: 6005 | E55: 13 | F55: 6010 | G55: 14 | H55: 6028 | K55: 0 | L55: 1111
A56: 12 | B56: 6125 | C56: 14 | D56: 6130 | E56: 13 | F56: 6139 | G56: 14 | H56: 6143 | K56: 0 | L56: 1111
A57: 12 | B57: 6240 | C57: 14 | D57: 6254 | E57: 13 | F57: 6258 | G57: 14 | H57: 6263 | K57: 0 | L57: 1111
A58: 12 | B58: 6363 | C58: 14 | D58: 6367 | E58: 13 | F58: 6371 | G58: 14 | H58: 6376 | K58: 0 | L58: 1111
A59: 12 | B59: 6482 | C59: 14 | D59: 6486 | E59: 13 | F59: 6491 | G59: 14 | H59: 6496 | K59: 0 | L59: 1111
A60: 12 | B60: 6594 | C60: 14 | D60: 6602 | E60: 13 | F60: 6606 | G60: 14 | H60: 6619 | K60: 0 | L60: 1111
A61: 12 | B61: 6844 | C61: 14 | D61: 6854 | E61: 13 | F61: 6872 | G61: 14 | H61: 6878 | K61: 0 | L61: 1111
A62: 12 | B62: 7014 | C62: 14 | D62: 7019 | E62: 13 | F62: 7024 | G62: 14 | H62: 7029 | K62: 0 | L62: 1111
A63: 12 | B63: 7210 | C63: 14 | D63: 7218 | E63: 13 | F63: 7222 | G63: 14 | H63: 7227 | K63: 0 | L63: 1111
A64: 12 | B64: 7381 | C64: 14 | D64: 7393 | E64: 13 | F64: 7398 | G64: 14 | H64: 7404 | K64: 0 | L64: 1111
A65: 12 | B65: 7510 | C65: 14 | D65: 7521 | E65: 13 | F65: 7525 | G65: 14 | H65: 7531 | K65: 0 | L65: 1111
A66: 12 | B66: 7690 | C66: 14 | D66: 7695 | E66: 13 | F66: 7699 | G66: 14 | H66: 7704 | K66: 0 | L66: 1111
A67: 21 | B67: 8102 | C67: 12 | D67: 8113 | E67: 13 | F67: 8118 | G67: 14 | H67: 8123 | K67: 0 | L67: 2111
A68: 12 | B68: 8276 | C68: 14 | D68: 8310 | E68: 13 | F68: 8315 | G68: 14 | H68: 8320 | K68: 0 | L68: 1111
A69: 21 | B69: 8447 | C69: 12 | D69: 8463 | E69: 13 | F69: 8467 | G69: 14 | H69: 8475 | K69: 0 | L69: 2111
A70: 12 | B70: 8579 | C70: 14 | D70: 8583 | E70: 24 | F70: 8594 | G70: 14 | H70: 8608 | K70: 0 | L70: 1121
A71: 12 | B71: 8710 | C71: 14 | D71: 8719 | E71: 13 | F71: 8728 | G71: 14 | H71: 8733 | K71: 0 | L71: 1111
A72: 12 | B72: 8890 | C72: 14 | D72: 8894 | E72: 13 | F72: 8899 | G72: 14 | H72: 8903 | K72: 0 | L72: 1111
A73: 12 | B73: 9011 | C73: 14 | D73: 9027 | E73: 13 | F73: 9032 | G73: 14 | H73: 9036 | K73: 0 | L73: 1111
A74: 12 | B74: 9155 | C74: 14 | D74: 9159 | E74: 13 | F74: 9163 | G74: 14 | H74: 9169 | K74: 0 | L74: 1111
A75: 12 | B75: 9273 | C75: 14 | D75: 9292 | E75: 13 | F75: 9296 | G75: 14 | H75: 9313 | K75: 0 | L75: 1111
A76: 12 | B76: 9412 | C76: 14 | D76: 9428 | E76: 13 | F76: 9445 | G76: 14 | H76: 9452 | K76: 0 | L76: 1111
A77: 12 | B77: 9560 | C77: 14 | D77: 9573 | E77: 13 | F77: 9586 | G77: 14 | H77: 9590 | K77: 0 | L77: 1111
A78: 12 | B78: 9836 | C78: 14 | D78: 9841 | E78: 13 | F78: 9846 | G78: 14 | H78: 9851 | K78: 0 | L78: 1111
A79: 12 | B79: 10018 | C79: 23 | D79: 10036 | E79: 13 | F79: 10047 | G79: 14 | H79: 10052 | K79: 0 | L79: 1211
A80: 12 | B80: 10199 | C80: 14 | D80: 10206 | E80: 13 | F80: 10218 | G80: 14 | H80: 10226 | K80: 0 | L80: 1111
A81: 12 | B81: 10331 | C81: 14 | D81: 10347 | E81: 13 | F81: 10351 | G81: 14 | H81: 10366 | K81: 0 | L81: 1111
A82: 12 | B82: 10483 | C82: 14 | D82: 10503 | E82: 13 | F82: 10508 | G82: 14 | H82: 10512 | K82: 0 | L82: 1111
A83: 12 | B83: 10625 | C83: 14 | D83: 10633 | E83: 13 | F83: 10652 | G83: 14 | H83: 10657 | K83: 0 | L83: 1111
A84: 12 | B84: 10758 | C84: 14 | D84: 10770 | E84: 13 | F84: 10780 | G84: 14 | H84: 10785 | K84: 0 | L84: 1111
A85: 12 | B85: 10887 | C85: 14 | D85: 10896 | E85: 13 | F85: 10906 | G85: 14 | H85: 10915 | K85: 0 | L85: 1111
A86: 12 | B86: 11021 | C86: 14 | D86: 11042 | E86: 13 | F86: 11046 | G86: 14 | H86: 11050 | K86: 0 | L86: 1111
A87: 12 | B87: 11168 | C87: 14 | D87: 11172 | E87: 13 | F87: 11177 | G87: 14 | H87: 11185 | K87: 0 | L87: 1111
A88: 12 | B88: 11314 | C88: 14 | D88: 11318 | E88: 13 | F88: 11322 | G88: 14 | H88: 11327 | K88: 0 | L88: 1111
A89: 12 | B89: 11436 | C89: 14 | D89: 11455 | E89: 13 | F89: 11459 | G89: 14 | H89: 11463 | K89: 0 | L89: 1111
A90: 12 | B90: 11571 | C90: 14 | D90: 11579 | E90: 13 | F90: 11583 | G90: 14 | H90: 11588 | K90: 0 | L90: 1111
A91: 12 | B91: 11722 | C91: 14 | D91: 11726 | E91: 13 | F91: 11739 | G91: 14 | H91: 11743 | K91: 0 | L91: 1111
A92: 12 | B92: 11853 | C92: 14 | D92: 11857 | E92: 13 | F92: 11877 | G92: 14 | H92: 11881 | K92: 0 | L92: 1111
A93: 12 | B93: 11995 | C93: 14 | D93: 11998 | E93: 24 | F93: 12013 | G93: 14 | H93: 12022 | K93: 0 | L93: 1121
A94: 12 | B94: 12129 | C94: 14 | D94: 12133 | E94: 13 | F94: 12142 | G94: 14 | H94: 12146 | K94: 0 | L94: 1111
A95: 12 | B95: 12257 | C95: 14 | D95: 12261 | E95: 13 | F95: 12265 | G95: 14 | H95: 12269 | K95: 0 | L95: 1111
A96: 12 | B96: 12409 | C96: 14 | D96: 12413 | E96: 13 | F96: 12418 | G96: 14 | H96: 12423 | K96: 0 | L96: 1111
A97: 12 | B97: 12528 | C97: 14 | D97: 12532 | E97: 13 | F97: 12543 | G97: 14 | H97: 12548 | K97: 0 | L97: 1111
A98: 12 | B98: 12651 | C98: 14 | D98: 12667 | E98: 13 | F98: 12671 | G98: 14 | H98: 12689 | K98: 0 | L98: 1111
A99: 12 | B99: 12834 | C99: 14 | D99: 12839 | E99: 13 | F99: 12843 | G99: 14 | H99: 12848 | K99: 0 | L99: 1111
A100: 21 | B100: 13001 | C100: 12 | D100: 13032 | E100: 13 | F100: 13039 | G100: 14 | H100: 13044 | K100: 0 | L100: 2111
A101: 21 | B101: 13251 | C101: 12 | D101: 13263 | E101: 13 | F101: 13269 | G101: 14 | H101: 13274 | K101: 0 | L101: 2111
A102: 21 | B102: 13381 | C102: 21 | D102: 13416 | E102: 11 | F102: 13426 | G102: 12 | H102: 13430 | K102: 0 | L102: 2211
A103: 12 | B103: 13552 | C103: 14 | D103: 13560 | E103: 24 | F103: 13579 | G103: 14 | H103: 13591 | K103: 0 | L103: 1121
A104: 12 | B104: 13764 | C104: 23 | D104: 13773 | E104: 13 | F104: 13783 | G104: 14 | H104: 13787 | K104: 0 | L104: 1211
A105: 21 | B105: 14174 | C105: 12 | D105: 14185 | E105: 24 | F105: 14199 | G105: 23 | H105: 14217 | K105: 0 | L105: 2122
A106: 12 | B106: 14380 | C106: 14 | D106: 14390 | E106: 13 | F106: 14394 | G106: 14 | H106: 14399 | K106: 0 | L106: 1111
A107: 12 | B107: 14527 | C107: 23 | D107: 14542 | E107: 13 | F107: 14551 | G107: 14 | H107: 14555 | K107: 0 | L107: 1211
A108: 12 | B108: 14715 | C108: 14 | D108: 14722 | E108: 13 | F108: 14727 | G108: 14 | H108: 14732 | K108: 0 | L108: 1111
A109: 12 | B109: 14952 | C109: 14 | D109: 14956 | E109: 13 | F109: 14960 | G109: 14 | H109: 14964 | K109: 0 | L109: 1111
A110: 21 | B110: 15149 | C110: 21 | D110: 15157 | E110: 22 | F110: 15178 | G110: 23 | H110: 15205 | K110: 0 | L110: 2222
A111: 12 | B111: 15325 | C111: 14 | D111: 15329 | E111: 13 | F111: 15344 | G111: 14 | H111: 15348 | K111: 0 | L111: 1111
A112: 12 | B112: 15513 | C112: 23 | D112: 15522 | E112: 13 | F112: 15533 | G112: 14 | H112: 15537 | K112: 0 | L112: 1211
A113: 12 | B113: 15663 | C113: 14 | D113: 15671 | E113: 13 | F113: 15679 | G113: 14 | H113: 15688 | K113: 0 | L113: 1111
A114: 12 | B114: 15805 | C114: 14 | D114: 15826 | E114: 13 | F114: 15830 | G114: 14 | H114: 15835 | K114: 0 | L114: 1111
A115: 12 | B115: 15969 | C115: 14 | D115: 15976 | E115: 13 | F115: 15980 | G115: 23 | H115: 16009 | K115: 0 | L115: 1112
A116: 12 | B116: 16133 | C116: 14 | D116: 16144 | E116: 13 | F116: 16148 | G116: 23 | H116: 16169 | K116: 0 | L116: 1112
A117: 12 | B117: 16368 | C117: 14 | D117: 16390 | E117: 13 | F117: 16398 | G117: 14 | H117: 16404 | K117: 0 | L117: 1111
A118: 21 | B118: 16644 | C118: 12 | D118: 16654 | E118: 13 | F118: 16658 | G118: 14 | H118: 16662 | K118: 0 | L118: 2111
A119: 21 | B119: 16822 | C119: 21 | D119: 16843 | E119: 11 | F119: 16854 | G119: 12 | H119: 16859 | K119: 0 | L119: 2211
A120: 12 | B120: 16984 | C120: 14 | D120: 16988 | E120: 13 | F120: 16996 | G120: 14 | H120: 17001 | K120: 0 | L120: 1111
A121: 12 | B121: 17157 | C121: 14 | D121: 17169 | E121: 13 | F121: 17174 | G121: 14 | H121: 17178 | K121: 0 | L121: 1111
A122: 21 | B122: 17302 | C122: 21 | D122: 17311 | E122: 11 | F122: 17322 | G122: 12 | H122: 17329 | K122: 0 | L122: 2211
A123: 12 | B123: 17520 | C123: 23 | D123: 17540 | E123: 13 | F123: 17551 | G123: 14 | H123: 17556 | K123: 0 | L123: 1211
A124: 21 | B124: 17687 | C124: 21 | D124: 17696 | E124: 11 | F124: 17706 | G124: 12 | H124: 17711 | K124: 0 | L124: 2211
A125: 12 | B125: 17844 | C125: 14 | D125: 17848 | E125: 13 | F125: 17856 | G125: 14 | H125: 17860 | K125: 0 | L125: 1111
A126: 21 | B126: 18038 | C126: 21 | D126: 18047 | E126: 11 | F126: 18059 | G126: 12 | H126: 18064 | K126: 0 | L126: 2211
A127: 12 | B127: 18266 | C127: 14 | D127: 18271 | E127: 13 | F127: 18275 | G127: 23 | H127: 18287 | K127: 0 | L127: 1112
A128: 12 | B128: 18442 | C128: 14 | D128: 18467 | E128: 13 | F128: 18474 | G128: 14 | H128: 18479 | K128: 0 | L128: 1111
A129: 12 | B129: 18796 | C129: 14 | D129: 18804 | E129: 13 | F129: 18809 | G129: 14 | H129: 18815 | K129: 0 | L129: 1111
A130: 12 | B130: 18984 | C130: 14 | D130: 18988 | E130: 13 | F130: 18992 | G130: 14 | H130: 18999 | K130: 0 | L130: 1111
A131: 21 | B131: 19154 | C131: 21 | D131: 19167 | E131: 11 | F131: 19177 | G131: 12 | H131: 19181 | K131: 0 | L131: 2211
A132: 12 | B132: 19319 | C132: 14 | D132: 19323 | E132: 13 | F132: 19327 | G132: 23 | H132: 19375 | K132: 0 | L132: 1112
A133: 12 | B133: 19698 | C133: 14 | D133: 19719 | E133: 13 | F133: 19724 | G133: 14 | H133: 19729 | K133: 0 | L133: 1111
A134: 21 | B134: 19875 | C134: 12 | D134: 19996 | E134: 13 | F134: 20000 | G134: 23 | H134: 20012 | K134: 0 | L134: 2112
A135: 21 | B135: 20184 | C135: 12 | D135: 20197 | E135: 24 | F135: 20230 | G135: 14 | H135: 20240 | K135: 0 | L135: 2121
A136: 21 | B136: 20442 | C136: 12 | D136: 20452 | E136: 13 | F136: 20457 | G136: 14 | H136: 20462 | K136: 0 | L136: 2111
A137: 21 | B137: 20619 | C137: 12 | D137: 20629 | E137: 13 | F137: 20633 | G137: 14 | H137: 20637 | K137: 0 | L137: 2111
A138: 21 | B138: 21104 | C138: 12 | D138: 21120 | E138: 13 | F138: 21124 | G138: 14 | H138: 21129 | K138: 0 | L138: 2111
A139: 21 | B139: 21362 | C139: 12 | D139: 21372 | E139: 13 | F139: 21377 | G139: 14 | H139: 21381 | K139: 0 | L139: 2111
A140: 21 | B140: 21513 | C140: 12 | D140: 21524 | E140: 13 | F140: 21529 | G140: 14 | H140: 21535 | K140: 0 | L140: 2111
A141: 12 | B141: 21739 | C141: 14 | D141: 21744 | E141: 13 | F141: 21749 | G141: 14 | H141: 21757 | K141: 0 | L141: 1111
A142: 21 | B142: 21932 | C142: 21 | D142: 21953 | E142: 11 | F142: 21963 | G142: 12 | H142: 21967 | K142: 0 | L142: 2211
A143: 21 | B143: 22095 | C143: 12 | D143: 22106 | E143: 13 | F143: 22118 | G143: 23 | H143: 22131 | K143: 0 | L143: 2112
A144: 12 | B144: 22300 | C144: 14 | D144: 22309 | E144: 24 | F144: 22325 | G144: 14 | H144: 22336 | K144: 0 | L144: 1121
A145: 12 | B145: 22448 | C145: 14 | D145: 22460 | E145: 13 | F145: 22465 | G145: 14 | H145: 22470 | K145: 0 | L145: 1111
A146: 12 | B146: 22568 | C146: 14 | D146: 22572 | E146: 13 | F146: 22576 | G146: 14 | H146: 22580 | K146: 0 | L146: 1111
A147: 12 | B147: 22682 | C147: 14 | D147: 22697 | E147: 13 | F147: 22702 | G147: 14 | H147: 22707 | K147: 0 | L147: 1111
A148: 12 | B148: 22809 | C148: 14 | D148: 22813 | E148: 13 | F148: 22822 | G148: 14 | H148: 22826 | K148: 0 | L148: 1111
A149: 12 | B149: 22926 | C149: 14 | D149: 22942 | E149: 13 | F149: 22947 | G149: 14 | H149: 22957 | K149: 0 | L149: 1111
A150: 12 | B150: 23069 | C150: 14 | D150: 23073 | E150: 13 | F150: 23085 | G150: 14 | H150: 23090 | K150: 0 | L150: 1111
A151: 12 | B151: 23187 | C151: 14 | D151: 23196 | E151: 13 | F151: 23209 | G151: 14 | H151: 23214 | K151: 0 | L151: 1111
A152: 12 | B152: 23314 | C152: 14 | D152: 23318 | E152: 13 | F152: 23326 | G152: 14 | H152: 23350 | K152: 0 | L152: 1111
A153: 12 | B153: 23450 | C153: 14 | D153: 23461 | E153: 24 | F153: 23493 | G153: 14 | H153: 23505 | K153: 0 | L153: 1121
A154: 12 | B154: 23613 | C154: 14 | D154: 23637 | E154: 13 | F154: 23641 | G154: 14 | H154: 23645 | K154: 0 | L154: 1111
A155: 12 | B155: 23766 | C155: 14 | D155: 23770 | E155: 13 | F155: 23774 | G155: 14 | H155: 23793 | K155: 0 | L155: 1111
A156: 12 | B156: 23907 | C156: 14 | D156: 23923 | E156: 13 | F156: 23928 | G156: 14 | H156: 23935 | L156: 1111

Sheet !MA14D10.096
A1: Report for:!MA14D10.096
A2: Date: | B2: <date>
A3: Hen: | B3: <hen> | F3: Correct Sequence | G3: =Start!J2 -> 2212 | P3: Total Sequences in Data | Q3: =4994-COUNTBLANK(L7:L5000) -> 125 | V3: Total Sequences in Block Data | W3: =COUNTA(L7:L27) -> 21 | AA3: Total Sequences in Block Data | AB3: =COUNTA(L28:L48) -> 21 | AF3: Total Sequences in Block Data | AG3: =COUNTA(L49:L68) -> 20 | AK3: Total Sequences in Block Data | AL3: =COUNTA(L69:L89) -> 21 | AP3: Total Sequences in Block Data | AQ3: =COUNTA(L90:L110) -> 21 | AU3: Total Sequences in Block Data | AV3: =COUNTA(L111:L131) -> 21
P4: Total Sequences in Summary | Q4: =SUM(O7:O22) -> 125 | V4: Total Sequences in Block Summary | W4: =SUM(U7:U22) -> 21 | AA4: Total Sequences in Block Summary | AB4: =SUM(Z7:Z22) -> 21 | AF4: Total Sequences in Block Summary | AG4: =SUM(AE7:AE22) -> 20 | AK4: Total Sequences in Block Summary | AL4: =SUM(AJ7:AJ22) -> 21 | AP4: Total Sequences in Block Summary | AQ4: =SUM(AO7:AO22) -> 21 | AU4: Total Sequences in Block Summary | AV4: =SUM(AT7:AT22) -> 21
T5: Block 1 | Y5: Block 2 | AD5: Block 3 | AI5: Block 4 | AN5: Block 5 | AS5: Block 6
A6: Sequence Component 1 | B6: Time 1 | C6: Sequence Component 2 | D6: Time 2 | E6: Sequence Component 3 | F6: Time 3 | G6: Sequence Component 4 | H6: Time 4 | I6: Sequence Component 5 | J6: Time 5 | K6: Correct? 0=No 1=Yes | L6: Sequence | N6: Frequency | P6: Relative Frequency | Q6: Variability | T6: Frequency | V6: Relative Frequency | W6: Variability | Y6: Frequency | AA6: Relative Frequency | AB6: Variability | AD6: Frequency | AF6: Relative Frequency | AG6: Variability | AI6: Frequency | AK6: Relative Frequency | AL6: Variability | AN6: Frequency | AP6: Relative Frequency | AQ6: Variability | AS6: Frequency | AU6: Relative Frequency | AV6: Variability
A7: 21 | B7: 15 | C7: 12 | D7: 56 | E7: 24 | F7: 82 | G7: 14 | H7: 92 | K7: 0 | L7: 2121 | N7: 1111 | O7: =COUNTIF($L$7:$L$500,N7) -> 68 | P7: =O7/$Q$4 -> 0.544 | Q7: =IF(P7=0,0,(P7*((LOG(P7))/LOG(2)))) -> -0.4778068652 | T7: =N7 -> 1111 | U7: =COUNTIF(L7:L27,T7) -> 10 | V7: =U7/(W4-U20) -> 0.4761904762 | W7: =IF(V7=0,0,(V7*((LOG(V7))/LOG(2)))) -> -0.5097092038 | Y7: =N7 -> 1111 | Z7: =COUNTIF(L28:L48,Y7) -> 11 | AA7: =Z7/(AB4-Z20) -> 0.5238095238 | AB7: =IF(AA7=0,0,(AA7*((LOG(AA7))/LOG(2)))) -> -0.4886544688 | AD7: =N7 -> 1111 | AE7: =COUNTIF(L49:L68,AD7) -> 15 | AF7: =AE7/(AG4-AE20) -> 0.75 | AG7: =IF(AF7=0,0,(AF7*((LOG(AF7))/LOG(2)))) -> -0.3112781245 | AI7: =N7 -> 1111 | AJ7: =COUNTIF(L69:L89,AI7) -> 12 | AK7: =AJ7/(AL4-AJ20) -> 0.5714285714 | AL7: =IF(AK7=0,0,(AK7*((LOG(AK7))/LOG(2)))) -> -0.4613456697 | AN7: =N7 -> 1111 | AO7: =COUNTIF(L90:L110,AN7) -> 14 | AP7: =AO7/(AQ4-AO20) -> 0.6666666667 | AQ7: =IF(AP7=0,0,(AP7*((LOG(AP7))/LOG(2)))) -> -0.3899750005 | AS7: =N7 -> 1111 | AT7: =COUNTIF(L111:L131,AS7) -> 6 | AU7: =AT7/(AV4-AT20) -> 0.2857142857 | AV7: =IF(AU7=0,0,(AU7*((LOG(AU7))/LOG(2)))) -> -0.5163871206
A8: 12 | B8: 192 | C8: 14 | D8: 196 | E8: 13 | F8: 200 | G8: 23 | H8: 212 | K8: 0 | L8: 1112 | N8: 1112 | O8: =COUNTIF($L$7:$L$500,N8) -> 11 | P8: =O8/$Q$4 -> 0.088 | Q8: =IF(P8=0,0,(P8*((LOG(P8))/LOG(2)))) -> -0.3085590346 | T8: =N8 -> 1112 | U8: =COUNTIF(L7:L27,T8) -> 4 | V8: =U8/(W4-U20) -> 0.1904761905 | W8: =IF(V8=0,0,(V8*((LOG(V8))/LOG(2)))) -> -0.4556795091 | Y8: =N8 -> 1112 | Z8: =COUNTIF(L28:L48,Y8) -> 5 | AA8: =Z8/(AB4-Z20) -> 0.2380952381 | AB8: =IF(AA8=0,0,(AA8*((LOG(AA8))/LOG(2)))) -> -0.49294984 | AD8: =N8 -> 1112 | AE8: =COUNTIF(L49:L68,AD8) -> 1 | AF8: =AE8/(AG4-AE20) -> 0.05 | AG8: =IF(AF8=0,0,(AF8*((LOG(AF8))/LOG(2)))) -> -0.2160964047 | AI8: =N8 -> 1112 | AJ8: =COUNTIF(L69:L89,AI8) -> 0 | AK8: =AJ8/(AL4-AJ20) -> 0 | AL8: =IF(AK8=0,0,(AK8*((LOG(AK8))/LOG(2)))) -> 0 | AN8: =N8 -> 1112 | AO8: =COUNTIF(L90:L110,AN8) -> 1 | AP8: =AO8/(AQ4-AO20) -> 0.04761904762 | AQ8: =IF(AP8=0,0,(AP8*((LOG(AP8))/LOG(2)))) -> -0.2091579725 | AS8: =N8 -> 1112 | AT8: =COUNTIF(L111:L131,AS8) -> 0 | AU8: =AT8/(AV4-AT20) -> 0 | AV8: =IF(AU8=0,0,(AU8*((LOG(AU8))/LOG(2)))) -> 0
A9: 12 | B9: 308 | C9: 14 | D9: 317 | E9: 24 | F9: 327 | G9: 14 | H9: 339 | K9: 0 | L9: 1121 | N9: 1121 | O9: =COUNTIF($L$7:$L$500,N9) -> 9 | P9: =O9/$Q$4 -> 0.072 | Q9: =IF(P9=0,0,(P9*((LOG(P9))/LOG(2)))) -> -0.2733018684 | T9: =N9 -> 1121 | U9: =COUNTIF(L7:L27,T9) -> 3 | V9: =U9/(W4-U20) -> 0.1428571429 | W9: =IF(V9=0,0,(V9*((LOG(V9))/LOG(2)))) -> -0.4010507032 | Y9: =N9 -> 1121 | Z9: =COUNTIF(L28:L48,Y9) -> 2 | AA9: =Z9/(AB4-Z20) -> 0.09523809524 | AB9: =IF(AA9=0,0,(AA9*((LOG(AA9))/LOG(2)))) -> -0.3230778498 | AD9: =N9 -> 1121 | AE9: =COUNTIF(L49:L68,AD9) -> 1 | AF9: =AE9/(AG4-AE20) -> 0.05 | AG9: =IF(AF9=0,0,(AF9*((LOG(AF9))/LOG(2)))) -> -0.2160964047 | AI9: =N9 -> 1121 | AJ9: =COUNTIF(L69:L89,AI9) -> 1 | AK9: =AJ9/(AL4-AJ20) -> 0.04761904762 | AL9: =IF(AK9=0,0,(AK9*((LOG(AK9))/LOG(2)))) -> -0.2091579725 | AN9: =N9 -> 1121 | AO9: =COUNTIF(L90:L110,AN9) -> 1 | AP9: =AO9/(AQ4-AO20) -> 0.04761904762 | AQ9: =IF(AP9=0,0,(AP9*((LOG(AP9))/LOG(2)))) -> -0.2091579725 | AS9: =N9 -> 1121 | AT9: =COUNTIF(L111:L131,AS9) -> 1 | AU9: =AT9/(AV4-AT20) -> 0.04761904762 | AV9: =IF(AU9=0,0,(AU9*((LOG(AU9))/LOG(2)))) -> -0.2091579725
A10: 12 | B10: 439 | C10: 14 | D10: 456 | E10: 13 | F10: 460 | G10: 14 | H10: 465 | K10: 0 | L10: 1111 | N10: 1122 | O10: =COUNTIF($L$7:$L$500,N10) -> 0 | P10: =O10/$Q$4 -> 0 | Q10: =IF(P10=0,0,(P10*((LOG(P10))/LOG(2)))) -> 0 | T10: =N10 -> 1122 | U10: =COUNTIF(L7:L27,T10) -> 0 | V10: =U10/(W4-U20) -> 0 | W10: =IF(V10=0,0,(V10*((LOG(V10))/LOG(2)))) -> 0 | Y10: =N10 -> 1122 | Z10: =COUNTIF(L28:L48,Y10) -> 0 | AA10: =Z10/(AB4-Z20) -> 0 | AB10: =IF(AA10=0,0,(AA10*((LOG(AA10))/LOG(2)))) -> 0 | AD10: =N10 -> 1122 | AE10: =COUNTIF(L49:L68,AD10) -> 0 | AF10: =AE10/(AG4-AE20) -> 0 | AG10: =IF(AF10=0,0,(AF10*((LOG(AF10))/LOG(2)))) -> 0 | AI10: =N10 -> 1122 | AJ10: =COUNTIF(L69:L89,AI10) -> 0 | AK10: =AJ10/(AL4-AJ20) -> 0 | AL10: =IF(AK10=0,0,(AK10*((LOG(AK10))/LOG(2)))) -> 0 | AN10: =N10 -> 1122 | AO10: =COUNTIF(L90:L110,AN10) -> 0 | AP10: =AO10/(AQ4-AO20) -> 0 | AQ10: =IF(AP10=0,0,(AP10*((LOG(AP10))/LOG(2)))) -> 0 | AS10: =N10 -> 1122 | AT10: =COUNTIF(L111:L131,AS10) -> 0 | AU10: =AT10/(AV4-AT20) -> 0 | AV10: =IF(AU10=0,0,(AU10*((LOG(AU10))/LOG(2)))) -> 0
A11: 12 | B11: 563 | C11: 14 | D11: 567 | E11: 13 | F11: 577 | G11: 14 | H11: 582 | K11: 0 | L11: 1111 | N11: 1211 | O11: =COUNTIF($L$7:$L$500,N11) -> 7 | P11: =O11/$Q$4 -> 0.056 | Q11: =IF(P11=0,0,(P11*((LOG(P11))/LOG(2)))) -> -0.2328720443 | T11: =N11 -> 1211 | U11: =COUNTIF(L7:L27,T11) -> 2 | V11: =U11/(W4-U20) -> 0.09523809524 | W11: =IF(V11=0,0,(V11*((LOG(V11))/LOG(2)))) -> -0.3230778498 | Y11: =N11 -> 1211 | Z11: =COUNTIF(L28:L48,Y11) -> 1 | AA11: =Z11/(AB4-Z20) -> 0.04761904762 | AB11: =IF(AA11=0,0,(AA11*((LOG(AA11))/LOG(2)))) -> -0.2091579725 | AD11: =N11 -> 1211 | AE11: =COUNTIF(L49:L68,AD11) -> 0 | AF11: =AE11/(AG4-AE20) -> 0 | AG11: =IF(AF11=0,0,(AF11*((LOG(AF11))/LOG(2)))) -> 0 | AI11: =N11 -> 1211 | AJ11: =COUNTIF(L69:L89,AI11) -> 1 | AK11: =AJ11/(AL4-AJ20) -> 0.04761904762 | AL11: =IF(AK11=0,0,(AK11*((LOG(AK11))/LOG(2)))) -> -0.2091579725 | AN11: =N11 -> 1211 | AO11: =COUNTIF(L90:L110,AN11) -> 0 | AP11: =AO11/(AQ4-AO20) -> 0 | AQ11: =IF(AP11=0,0,(AP11*((LOG(AP11))/LOG(2)))) -> 0 | AS11: =N11 -> 1211 | AT11: =COUNTIF(L111:L131,AS11) -> 3 | AU11: =AT11/(AV4-AT20) -> 0.1428571429 | AV11: =IF(AU11=0,0,(AU11*((LOG(AU11))/LOG(2)))) -> -0.4010507032
A12: 12 | B12: 681 | C12: 14 | D12: 685 | E12: 13 | F12: 692 | G12: 14 | H12: 696 | K12: 0 | L12: 1111 | N12: 1212 | O12: =COUNTIF($L$7:$L$500,N12) -> 0 | P12: =O12/$Q$4 -> 0 | Q12: =IF(P12=0,0,(P12*((LOG(P12))/LOG(2)))) -> 0 | T12: =N12 -> 1212 | U12: =COUNTIF(L7:L27,T12) -> 0 | V12: =U12/(W4-U20) -> 0 | W12: =IF(V12=0,0,(V12*((LOG(V12))/LOG(2)))) -> 0 | Y12: =N12 -> 1212 | Z12: =COUNTIF(L28:L48,Y12) -> 0 | AA12: =Z12/(AB4-Z20) -> 0 | AB12: =IF(AA12=0,0,(AA12*((LOG(AA12))/LOG(2)))) -> 0 | AD12: =N12 -> 1212 | AE12: =COUNTIF(L49:L68,AD12) -> 0 | AF12: =AE12/(AG4-AE20) -> 0 | AG12: =IF(AF12=0,0,(AF12*((LOG(AF12))/LOG(2)))) -> 0 | AI12: =N12 -> 1212 | AJ12: =COUNTIF(L69:L89,AI12) -> 0 | AK12: =AJ12/(AL4-AJ20) -> 0 | AL12: =IF(AK12=0,0,(AK12*((LOG(AK12))/LOG(2)))) -> 0 | AN12: =N12 -> 1212 | AO12: =COUNTIF(L90:L110,AN12) -> 0 | AP12: =AO12/(AQ4-AO20) -> 0 | AQ12: =IF(AP12=0,0,(AP12*((LOG(AP12))/LOG(2)))) -> 0 | AS12: =N12 -> 1212 | AT12: =COUNTIF(L111:L131,AS12) -> 0 | AU12: =AT12/(AV4-AT20) -> 0 | AV12: =IF(AU12=0,0,(AU12*((LOG(AU12))/LOG(2)))) -> 0
A13: 12 | B13: 796 | C13: 14 | D13: 803 | E13: 13 | F13: 808 | G13: 23 | H13: 821 | K13: 0 | L13: 1112 | N13: 1221 | O13: =COUNTIF($L$7:$L$500,N13) -> 0 | P13: =O13/$Q$4 -> 0 | Q13: =IF(P13=0,0,(P13*((LOG(P13))/LOG(2)))) -> 0 | T13: =N13 -> 1221 | U13: =COUNTIF(L7:L27,T13) -> 0 | V13: =U13/(W4-U20) -> 0 | W13: =IF(V13=0,0,(V13*((LOG(V13))/LOG(2)))) -> 0 | Y13: =N13 -> 1221 | Z13: =COUNTIF(L28:L48,Y13) -> 0 | AA13: =Z13/(AB4-Z20) -> 0 | AB13: =IF(AA13=0,0,(AA13*((LOG(AA13))/LOG(2)))) -> 0 | AD13: =N13 -> 1221 | AE13: =COUNTIF(L49:L68,AD13) -> 0 | AF13: =AE13/(AG4-AE20) -> 0 | AG13: =IF(AF13=0,0,(AF13*((LOG(AF13))/LOG(2)))) -> 0 | AI13: =N13 -> 1221 | AJ13: =COUNTIF(L69:L89,AI13) -> 0 | AK13: =AJ13/(AL4-AJ20) -> 0 | AL13: =IF(AK13=0,0,(AK13*((LOG(AK13))/LOG(2)))) -> 0 | AN13: =N13 -> 1221 | AO13: =COUNTIF(L90:L110,AN13) -> 0 | AP13: =AO13/(AQ4-AO20) -> 0 | AQ13: =IF(AP13=0,0,(AP13*((LOG(AP13))/LOG(2)))) -> 0 | AS13: =N13 -> 1221 | AT13: =COUNTIF(L111:L131,AS13) -> 0 | AU13: =AT13/(AV4-AT20) -> 0 | AV13: =IF(AU13=0,0,(AU13*((LOG(AU13))/LOG(2)))) -> 0
A14: 12 | B14: 923 | C14: 14 | D14: 930 | E14: 13 | F14: 951 | G14: 14 | H14: 960 | K14: 0 | L14: 1111 | N14: 1222 | O14: =COUNTIF($L$7:$L$500,N14) -> 0 | P14: =O14/$Q$4 -> 0 | Q14: =IF(P14=0,0,(P14*((LOG(P14))/LOG(2)))) -> 0 | T14: =N14 -> 1222 | U14: =COUNTIF(L7:L27,T14) -> 0 | V14: =U14/(W4-U20) -> 0 | W14: =IF(V14=0,0,(V14*((LOG(V14))/LOG(2)))) -> 0 | Y14: =N14 -> 1222 | Z14: =COUNTIF(L28:L48,Y14) -> 0 | AA14: =Z14/(AB4-Z20) -> 0 | AB14: =IF(AA14=0,0,(AA14*((LOG(AA14))/LOG(2)))) -> 0 | AD14: =N14 -> 1222 | AE14: =COUNTIF(L49:L68,AD14) -> 0 | AF14: =AE14/(AG4-AE20) -> 0 | AG14: =IF(AF14=0,0,(AF14*((LOG(AF14))/LOG(2)))) -> 0 | AI14: =N14 -> 1222 | AJ14: =COUNTIF(L69:L89,AI14) -> 0 | AK14: =AJ14/(AL4-AJ20) -> 0 | AL14: =IF(AK14=0,0,(AK14*((LOG(AK14))/LOG(2)))) -> 0 | AN14: =N14 -> 1222 | AO14: =COUNTIF(L90:L110,AN14) -> 0 | AP14: =AO14/(AQ4-AO20) -> 0 | AQ14: =IF(AP14=0,0,(AP14*((LOG(AP14))/LOG(2)))) -> 0 | AS14: =N14 -> 1222 | AT14: =COUNTIF(L111:L131,AS14) -> 0 | AU14: =AT14/(AV4-AT20) -> 0 | AV14: =IF(AU14=0,0,(AU14*((LOG(AU14))/LOG(2)))) -> 0
A15: 12 | B15: 1060 | C15: 14 | D15: 1068 | E15: 13 | F15: 1076 | G15: 14 | H15: 1080 | K15: 0 | L15: 1111 | N15: 2111 | O15: =COUNTIF($L$7:$L$500,N15) -> 14 | P15: =O15/$Q$4 -> 0.112 | Q15: =IF(P15=0,0,(P15*((LOG(P15))/LOG(2)))) -> -0.3537440886 | T15: =N15 -> 2111 | U15: =COUNTIF(L7:L27,T15) -> 1 | V15: =U15/(W4-U20) -> 0.04761904762 | W15: =IF(V15=0,0,(V15*((LOG(V15))/LOG(2)))) -> -0.2091579725 | Y15: =N15 -> 2111 | Z15: =COUNTIF(L28:L48,Y15) -> 0 | AA15: =Z15/(AB4-Z20) -> 0 | AB15: =IF(AA15=0,0,(AA15*((LOG(AA15))/LOG(2)))) -> 0 | AD15: =N15 -> 2111 | AE15: =COUNTIF(L49:L68,AD15) -> 2 | AF15: =AE15/(AG4-AE20) -> 0.1 | AG15: =IF(AF15=0,0,(AF15*((LOG(AF15))/LOG(2)))) -> -0.3321928095 | AI15: =N15 -> 2111 | AJ15: =COUNTIF(L69:L89,AI15) -> 4 | AK15: =AJ15/(AL4-AJ20) -> 0.1904761905 | AL15: =IF(AK15=0,0,(AK15*((LOG(AK15))/LOG(2)))) -> -0.4556795091 | AN15: =N15 -> 2111 | AO15: =COUNTIF(L90:L110,AN15) -> 2 | AP15: =AO15/(AQ4-AO20) -> 0.09523809524 | AQ15: =IF(AP15=0,0,(AP15*((LOG(AP15))/LOG(2)))) -> -0.3230778498 | AS15: =N15 -> 2111 | AT15: =COUNTIF(L111:L131,AS15) -> 5 | AU15: =AT15/(AV4-AT20) -> 0.2380952381 | AV15: =IF(AU15=0,0,(AU15*((LOG(AU15))/LOG(2)))) -> -0.49294984
A16: 12 | B16: 1181 | C16: 14 | D16: 1199 | E16: 13 | F16: 1204 | G16: 14 | H16: 1221 | K16: 0 | L16: 1111 | N16: 2112 | O16: =COUNTIF($L$7:$L$500,N16) -> 4 | P16: =O16/$Q$4 -> 0.032 | Q16: =IF(P16=0,0,(P16*((LOG(P16))/LOG(2)))) -> -0.1589050971 | T16: =N16 -> 2112 | U16: =COUNTIF(L7:L27,T16) -> 0 | V16: =U16/(W4-U20) -> 0 | W16: =IF(V16=0,0,(V16*((LOG(V16))/LOG(2)))) -> 0 | Y16: =N16 -> 2112 | Z16: =COUNTIF(L28:L48,Y16) -> 2 | AA16: =Z16/(AB4-Z20) -> 0.09523809524 | AB16: =IF(AA16=0,0,(AA16*((LOG(AA16))/LOG(2)))) -> -0.3230778498 | AD16: =N16 -> 2112 | AE16: =COUNTIF(L49:L68,AD16) -> 0 | AF16: =AE16/(AG4-AE20) -> 0 | AG16: =IF(AF16=0,0,(AF16*((LOG(AF16))/LOG(2)))) -> 0 | AI16: =N16 -> 2112 | AJ16: =COUNTIF(L69:L89,AI16) -> 1 | AK16: =AJ16/(AL4-AJ20) -> 0.04761904762 | AL16: =IF(AK16=0,0,(AK16*((LOG(AK16))/LOG(2)))) -> -0.2091579725 | AN16: =N16 -> 2112 | AO16: =COUNTIF(L90:L110,AN16) -> 1 | AP16: =AO16/(AQ4-AO20) -> 0.04761904762 | AQ16: =IF(AP16=0,0,(AP16*((LOG(AP16))/LOG(2)))) -> -0.2091579725 | AS16: =N16 -> 2112 | AT16: =COUNTIF(L111:L131,AS16) -> 0 | AU16: =AT16/(AV4-AT20) -> 0 | AV16: =IF(AU16=0,0,(AU16*((LOG(AU16))/LOG(2)))) -> 0
A17: 12 | B17: 1322 | C17: 14 | D17: 1333 | E17: 13 | F17: 1337 | G17: 14 | H17: 1356 | K17: 0 | L17: 1111 | N17: 2121 | O17: =COUNTIF($L$7:$L$500,N17) -> 1 | P17: =O17/$Q$4 -> 0.008 | Q17: =IF(P17=0,0,(P17*((LOG(P17))/LOG(2)))) -> -0.05572627428 | T17: =N17 -> 2121 | U17: =COUNTIF(L7:L27,T17) -> 1 | V17: =U17/(W4-U20) -> 0.04761904762 | W17: =IF(V17=0,0,(V17*((LOG(V17))/LOG(2)))) -> -0.2091579725 | Y17: =N17 -> 2121 | Z17: =COUNTIF(L28:L48,Y17) -> 0 | AA17: =Z17/(AB4-Z20) -> 0 | AB17: =IF(AA17=0,0,(AA17*((LOG(AA17))/LOG(2)))) -> 0 | AD17: =N17 -> 2121 | AE17: =COUNTIF(L49:L68,AD17) -> 0 | AF17: =AE17/(AG4-AE20) -> 0 | AG17: =IF(AF17=0,0,(AF17*((LOG(AF17))/LOG(2)))) -> 0 | AI17: =N17 -> 2121 | AJ17: =COUNTIF(L69:L89,AI17) -> 0 | AK17: =AJ17/(AL4-AJ20) -> 0 | AL17: =IF(AK17=0,0,(AK17*((LOG(AK17))/LOG(2)))) -> 0 | AN17: =N17 -> 2121 | AO17: =COUNTIF(L90:L110,AN17) -> 0 | AP17: =AO17/(AQ4-AO20) -> 0 | AQ17: =IF(AP17=0,0,(AP17*((LOG(AP17))/LOG(2)))) -> 0 | AS17: =N17 -> 2121 | AT17: =COUNTIF(L111:L131,AS17) -> 0 | AU17: =AT17/(AV4-AT20) -> 0 | AV17: =IF(AU17=0,0,(AU17*((LOG(AU17))/LOG(2)))) -> 0
A18: 21 | B18: 1463 | C18: 12 | D18: 1476 | E18: 13 | F18: 1484 | G18: 14 | H18: 1488 | K18: 0 | L18: 2111 | N18: 2122 | O18: =COUNTIF($L$7:$L$500,N18) -> 1 | P18: =O18/$Q$4 -> 0.008 | Q18: =IF(P18=0,0,(P18*((LOG(P18))/LOG(2)))) -> -0.05572627428 | T18: =N18 -> 2122 | U18: =COUNTIF(L7:L27,T18) -> 0 | V18: =U18/(W4-U20) -> 0 | W18: =IF(V18=0,0,(V18*((LOG(V18))/LOG(2)))) -> 0 | Y18: =N18 -> 2122 | Z18: =COUNTIF(L28:L48,Y18) -> 0 | AA18: =Z18/(AB4-Z20) -> 0 | AB18: =IF(AA18=0,0,(AA18*((LOG(AA18))/LOG(2)))) -> 0 | AD18: =N18 -> 2122 | AE18: =COUNTIF(L49:L68,AD18) -> 0 | AF18: =AE18/(AG4-AE20) -> 0 | AG18: =IF(AF18=0,0,(AF18*((LOG(AF18))/LOG(2)))) -> 0 | AI18: =N18 -> 2122 | AJ18: =COUNTIF(L69:L89,AI18) -> 0 | AK18: =AJ18/(AL4-AJ20) -> 0 | AL18: =IF(AK18=0,0,(AK18*((LOG(AK18))/LOG(2)))) -> 0 | AN18: =N18 -> 2122 | AO18: =COUNTIF(L90:L110,AN18) -> 0 | AP18: =AO18/(AQ4-AO20) -> 0 | AQ18: =IF(AP18=0,0,(AP18*((LOG(AP18))/LOG(2)))) -> 0 | AS18: =N18 -> 2122 | AT18: =COUNTIF(L111:L131,AS18) -> 1 | AU18: =AT18/(AV4-AT20) -> 0.04761904762 | AV18: =IF(AU18=0,0,(AU18*((LOG(AU18))/LOG(2)))) -> -0.2091579725
A19: 12 | B19: 1581 | C19: 14 | D19: 1602 | E19: 13 | F19: 1610 | G19: 23 | H19: 1619 | K19: 0 | L19: 1112 | N19: 2211 | O19: =COUNTIF($L$7:$L$500,N19) -> 6 | P19: =O19/$Q$4 -> 0.048 | Q19: =IF(P19=0,0,(P19*((LOG(P19))/LOG(2)))) -> -0.2102794456 | T19: =N19 -> 2211 | U19: =COUNTIF(L7:L27,T19) -> 0 | V19: =U19/(W4-U20) -> 0 | W19: =IF(V19=0,0,(V19*((LOG(V19))/LOG(2)))) -> 0 | Y19: =N19 -> 2211 | Z19: =COUNTIF(L28:L48,Y19) -> 0 | AA19: =Z19/(AB4-Z20) -> 0 | AB19: =IF(AA19=0,0,(AA19*((LOG(AA19))/LOG(2)))) -> 0 | AD19: =N19 -> 2211 | AE19: =COUNTIF(L49:L68,AD19) -> 0 | AF19: =AE19/(AG4-AE20) -> 0 | AG19: =IF(AF19=0,0,(AF19*((LOG(AF19))/LOG(2)))) -> 0 | AI19: =N19 -> 2211 | AJ19: =COUNTIF(L69:L89,AI19) -> 2 | AK19: =AJ19/(AL4-AJ20) -> 0.09523809524 | AL19: =IF(AK19=0,0,(AK19*((LOG(AK19))/LOG(2)))) -> -0.3230778498 | AN19: =N19 -> 2211 | AO19: =COUNTIF(L90:L110,AN19) -> 1 | AP19: =AO19/(AQ4-AO20) -> 0.04761904762 | AQ19: =IF(AP19=0,0,(AP19*((LOG(AP19))/LOG(2)))) -> -0.2091579725 | AS19: =N19 -> 2211 | AT19: =COUNTIF(L111:L131,AS19) -> 3 | AU19: =AT19/(AV4-AT20) -> 0.1428571429 | AV19: =IF(AU19=0,0,(AU19*((LOG(AU19))/LOG(2)))) -> -0.4010507032
A20: 12 | B20: 1717 | C20: 14 | D20: 1734 | E20: 13 | F20: 1738 | G20: 23 | H20: 1758 | K20: 0 | L20: 1112 | N20: 2212 | O20: =COUNTIF($L$7:$L$500,N20) -> 0 | P20: =O20/$Q$4 -> 0 | Q20: =IF(P20=0,0,(P20*((LOG(P20))/LOG(2)))) -> 0 | T20: =N20 -> 2212 | U20: =COUNTIF(L7:L27,T20) -> 0 | Y20: =N20 -> 2212 | Z20: =COUNTIF(L28:L48,Y20) -> 0 | AD20: =N20 -> 2212 | AE20: =COUNTIF(L49:L68,AD20) -> 0 | AI20: =N20 -> 2212 | AJ20: =COUNTIF(L69:L89,AI20) -> 0 | AN20: =N20 -> 2212 | AO20: =COUNTIF(L90:L110,AN20) -> 0 | AS20: =N20 -> 2212 | AT20: =COUNTIF(L111:L131,AS20) -> 0
A21: 12 | B21: 1870 | C21: 23 | D21: 1881 | E21: 13 | F21: 1895 | G21: 14 | H21: 1899 | K21: 0 | L21: 1211 | N21: 2221 | O21: =COUNTIF($L$7:$L$500,N21) -> 1 | P21: =O21/$Q$4 -> 0.008 | Q21: =IF(P21=0,0,(P21*((LOG(P21))/LOG(2)))) -> -0.05572627428 | T21: =N21 -> 2221 | U21: =COUNTIF(L7:L27,T21) -> 0 | V21: =U21/(W4-U20) -> 0 | W21: =IF(V21=0,0,(V21*((LOG(V21))/LOG(2)))) -> 0 | Y21: =N21 -> 2221 | Z21: =COUNTIF(L28:L48,Y21) -> 0 | AA21: =Z21/(AB4-Z20) -> 0 | AB21: =IF(AA21=0,0,(AA21*((LOG(AA21))/LOG(2)))) -> 0 | AD21: =N21 -> 2221 | AE21: =COUNTIF(L49:L68,AD21) -> 0 | AF21: =AE21/(AG4-AE20) -> 0 | AG21: =IF(AF21=0,0,(AF21*((LOG(AF21))/LOG(2)))) -> 0 | AI21: =N21 -> 2221 | AJ21: =COUNTIF(L69:L89,AI21) -> 0 | AK21: =AJ21/(AL4-AJ20) -> 0 | AL21: =IF(AK21=0,0,(AK21*((LOG(AK21))/LOG(2)))) -> 0 | AN21: =N21 -> 2221 | AO21: =COUNTIF(L90:L110,AN21) -> 0 | AP21: =AO21/(AQ4-AO20) -> 0 | AQ21: =IF(AP21=0,0,(AP21*((LOG(AP21))/LOG(2)))) -> 0 | AS21: =N21 -> 2221 | AT21: =COUNTIF(L111:L131,AS21) -> 1 | AU21: =AT21/(AV4-AT20) -> 0.04761904762 | AV21: =IF(AU21=0,0,(AU21*((LOG(AU21))/LOG(2)))) -> -0.2091579725
A22: 12 | B22: 1989 | C22: 14 | D22: 1993 | E22: 24 | F22: 2006 | G22: 14 | H22: 2017 | K22: 0 | L22: 1121 | N22: 2222 | O22: =COUNTIF($L$7:$L$500,N22) -> 3 | P22: =O22/$Q$4 -> 0.024 | Q22: =IF(P22=0,0,(P22*((LOG(P22))/LOG(2)))) -> -0.1291397228 | T22: =N22 -> 2222 | U22: =COUNTIF(L7:L27,T22) -> 0 | V22: =U22/(W4-U20) -> 0 | W22: =IF(V22=0,0,(V22*((LOG(V22))/LOG(2)))) -> 0 | Y22: =N22 -> 2222 | Z22: =COUNTIF(L28:L48,Y22) -> 0 | AA22: =Z22/(AB4-Z20) -> 0 | AB22: =IF(AA22=0,0,(AA22*((LOG(AA22))/LOG(2)))) -> 0 | AD22: =N22 -> 2222 | AE22: =COUNTIF(L49:L68,AD22) -> 1 | AF22: =AE22/(AG4-AE20) -> 0.05 | AG22: =IF(AF22=0,0,(AF22*((LOG(AF22))/LOG(2)))) -> -0.2160964047 | AI22: =N22 -> 2222 | AJ22: =COUNTIF(L69:L89,AI22) -> 0 | AK22: =AJ22/(AL4-AJ20) -> 0 | AL22: =IF(AK22=0,0,(AK22*((LOG(AK22))/LOG(2)))) -> 0 | AN22: =N22 -> 2222 | AO22: =COUNTIF(L90:L110,AN22) -> 1 | AP22: =AO22/(AQ4-AO20) -> 0.04761904762 | AQ22: =IF(AP22=0,0,(AP22*((LOG(AP22))/LOG(2)))) -> -0.2091579725 | AS22: =N22 -> 2222 | AT22: =COUNTIF(L111:L131,AS22) -> 1 | AU22: =AT22/(AV4-AT20) -> 0.04761904762 | AV22: =IF(AU22=0,0,(AU22*((LOG(AU22))/LOG(2)))) -> -0.2091579725
A23: 12 | B23: 2118 | C23: 14 | D23: 2123 | E23: 13 | F23: 2127 | G23: 14 | H23: 2132 | K23: 0 | L23: 1111 | P23: =SUM(P7:P22) -> 1 | Q23: =-SUM(Q7:Q22) -> 2.31178699 | V23: =SUM(V7:V22) -> 1 | W23: =-SUM(W7:W22) -> 2.107833211 | AA23: =SUM(AA7:AA22) -> 1 | AB23: =-SUM(AB7:AB22) -> 1.836917981 | AF23: =SUM(AF7:AF22) -> 1 | AG23: =-SUM(AG7:AG22) -> 1.291760148 | AK23: =SUM(AK7:AK22) -> 1 | AL23: =-SUM(AL7:AL22) -> 1.867576946 | AP23: =SUM(AP7:AP22) -> 1 | AQ23: =-SUM(AQ7:AQ22) -> 1.758842713 | AU23: =SUM(AU7:AU22) -> 1 | AV23: =-SUM(AV7:AV22) -> 2.648070257
A24: 12 | B24: 2232 | C24: 14 | D24: 2236 | E24: 13 | F24: 2245 | G24: 14 | H24: 2249 | K24: 0 | L24: 1111 | P24: U= | Q24: =Q23/(LOG(Q4)/LOG(2)) -> 0.3318774879 | V24: U1= | W24: =W23/(LOG(W4)/LOG(2)) -> 0.4798909113 | AA24: U2= | AB24: =AB23/(LOG(AB4)/LOG(2)) -> 0.4182115735 | AF24: U3= | AG24: =AG23/(LOG(AG4)/LOG(2)) -> 0.2988851549 | AK24: U4= | AL24: =AL23/(LOG(AL4)/LOG(2)) -> 0.4251917078 | AP24: U5= | AQ24: =AQ23/(LOG(AQ4)/LOG(2)) -> 0.4004361579 | AU24: U6= | AV24: =AV23/(LOG(AV4)/LOG(2)) -> 0.602886814
A25: 12 | B25: 2346 | C25: 14 | D25: 2350 | E25: 13 | F25: 2354 | G25: 14 | H25: 2371 | K25: 0 | L25: 1111
A26: 12 | B26: 2472 | C26: 14 | D26: 2479 | E26: 24 | F26: 2493 | G26: 14 | H26: 2503 | K26: 0 | L26: 1121
A27: 12 | B27: 2599 | C27: 23 | D27: 2623 | E27: 13 | F27: 2634 | G27: 14 | H27: 2644 | K27: 0 | L27: 1211 | N27: Total Target Seq
A28: 12 | B28: 2750 | C28: 14 | D28: 2758 | E28: 13 | F28: 2762 | G28: 23 | H28: 2775 | K28: 0 | L28: 1112 | N28: =COUNTIF(L7:L131,G3) -> 0 | P28: 21 | Q28: 21 | R28: 20 | S28: 21 | T28: 21 | U28: 21
A29: 12 | B29: 2880 | C29: 14 | D29: 2883 | E29: 13 | F29: 2897 | G29: 14 | H29: 2901 | K29: 0 | L29: 1111 | P29: % of reinforcement given in 6 equal intervals based on number of trials
A30: 12 | B30: 3004 | C30: 14 | D30: 3014 | E30: 13 | F30: 3019 | G30: 14 | H30: 3038 | K30: 0 | L30: 1111 | P30: %_1 | Q30: %_2 | R30: %_3 | S30: %_4 | T30: %_5 | U30: %_6
A31: 12 | B31: 3135 | C31: 14 | D31: 3138 | E31: 13 | F31: 3142 | G31: 23 | H31: 3160 | K31: 0 | L31: 1112 | O31: target sequence | P31: =$G$3 -> 2212 | Q31: =$G$3 -> 2212 | R31: =$G$3 -> 2212 | S31: =$G$3 -> 2212 | T31: =$G$3 -> 2212 | U31: =$G$3 -> 2212
A32: 12 | B32: 3260 | C32: 14 | D32: 3272 | E32: 13 | F32: 3295 | G32: 14 | H32: 3299 | K32: 0 | L32: 1111 | O32: total reinforcement | P32: =U20 -> 0 | Q32: =Z20 -> 0 | R32: =AE20 -> 0 | S32: =AJ20 -> 0 | T32: =AO20 -> 0 | U32: =AT20 -> 0
A33: 12 | B33: 3396 | C33: 14 | D33: 3415 | E33: 24 | F33: 3426 | G33: 14 | H33: 3437 | K33: 0 | L33: 1121 | O33: % target
A34: 12 | B34: 3554 | C34: 14 | D34: 3559 | E34: 13 | F34: 3563 | G34: 23 | H34: 3576 | K34: 0 | L34: 1112 | O34: CCRF
A35: 12 | B35: 3702 | C35: 14 | D35: 3706 | E35: 24 | F35: 3722 | G35: 14 | H35: 3737 | K35: 0 | L35: 1121 | O35: % CCRf
A36: 12 | B36: 3845 | C36: 14 | D36: 3857 | E36: 13 | F36: 3867 | G36: 14 | H36: 3871 | K36: 0 | L36: 1111 | O36: average response rate | P36: =H27/P28 -> 125.9047619 | Q36: =(H48-H27)/Q28 -> 167.8095238 | R36: =(H68-H48)/R28 -> 231.35 | S36: =(H89-H68)/S28 -> 228.952381 | T36: =(H110-H89)/T28 -> 161.1904762 | U36: =(H131-H110)/U28 -> 234.7142857
A37: 12 | B37: 3971 | C37: 14 | D37: 3978 | E37: 13 | F37: 3986 | G37: 14 | H37: 4003 | K37: 0 | L37: 1111
A38: 12 | B38: 4173 | C38: 14 | D38: 4177 | E38: 13 | F38: 4182 | G38: 14 | H38: 4190 | K38: 0 | L38: 1111
A39: 21 | B39: 4343 | C39: 12 | D39: 4354 | E39: 13 | F39: 4358 | G39: 23 | H39: 4369 | K39: 0 | L39: 2112
A40: 21 | B40: 4554 | C40: 12 | D40: 4565 | E40: 13 | F40: 4570 | G40: 23 | H40: 4623 | K40: 0 | L40: 2112
A41: 12 | B41: 4811 | C41: 23 | D41: 4825 | E41: 13 | F41: 4835 | G41: 14 | H41: 4841 | K41: 0 | L41: 1211
A42: 12 | B42: 4950 | C42: 14 | D42: 4954 | E42: 13 | F42: 4962 | G42: 14 | H42: 4966 | K42: 0 | L42: 1111
A43: 12 | B43: 5152 | C43: 14 | D43: 5162 | E43: 13 | F43: 5172 | G43: 23 | H43: 5186 | K43: 0 | L43: 1112
A44: 12 | B44: 5505 | C44: 14 | D44: 5509 | E44: 13 | F44: 5520 | G44: 23 | H44: 5532 | K44: 0 | L44: 1112
A45: 12 | B45: 5690 | C45: 14 | D45: 5694 | E45: 13 | F45: 5717 | G45: 14 | H45: 5724 | K45: 0 | L45: 1111
A46: 12 | B46: 5844 | C46: 14 | D46: 5848 | E46: 13 | F46: 5870 | G46: 14 | H46: 5877 | K46: 0 | L46: 1111
A47: 12 | B47: 5993 | C47: 14 | D47: 6005 | E47: 13 | F47: 6010 | G47: 14 | H47: 6018 | K47: 0 | L47: 1111
A48: 12 | B48: 6151 | C48: 14 | D48: 6155 | E48: 13 | F48: 6163 | G48: 14 | H48: 6168 | K48: 0 | L48: 1111
A49: 12 | B49: 6300 | C49: 14 | D49: 6309 | E49: 13 | F49: 6313 | G49: 14 | H49: 6319 | K49: 0 | L49: 1111
A50: 21 | B50: 6486 | C50: 12 | D50: 6497 | E50: 13 | F50: 6503 | G50: 14 | H50: 6540 | K50: 0 | L50: 2111
A51: 21 | B51: 6712 | C51: 12 | D51: 6723 | E51: 13 | F51: 6727 | G51: 14 | H51: 6731 | K51: 0 | L51: 2111
A52: 21 | B52: 6843 | C52: 21 | D52: 6859 | E52: 22 | F52: 6868 | G52: 23 | H52: 6890 | K52: 0 | L52: 2222
A53: 12 | B53: 7008 | C53: 14 | D53: 7015 | E53: 13 | F53: 7027 | G53: 14 | H53: 7032 | K53: 0 | L53: 1111
A54: 12 | B54: 7251 | C54: 14 | D54: 7262 | E54: 24 | F54: 7309 | G54: 14 | H54: 7320 | K54: 0 | L54: 1121
A55: 12 | B55: 7784 | C55: 14 | D55: 7792 | E55: 13 | F55: 7796 | G55: 14 | H55: 7812 | K55: 0 | L55: 1111
A56: 12 | B56: 8124 | C56: 14 | D56: 8131 | E56: 13 | F56: 8150 | G56: 14 | H56: 8154 | K56: 0 | L56: 1111
A57: 12 | B57: 8291 | C57: 14 | D57: 8309 | E57: 13 | F57: 8320 | G57: 14 | H57: 8333 | K57: 0 | L57: 1111
A58: 12 | B58: 8446 | C58: 14 | D58: 8451 | E58: 13 | F58: 8459 | G58: 14 | H58: 8466 | K58: 0 | L58: 1111
A59: 12 | B59: 8566 | C59: 14 | D59: 8580 | E59: 13 | F59: 8584 | G59: 14 | H59: 8589 | K59: 0 | L59: 1111
A60: 12 | B60: 8693 | C60: 14 | D60: 8704 | E60: 13 | F60: 8712 | G60: 14 | H60: 8717 | K60: 0 | L60: 1111
A61: 12 | B61: 8824 | C61: 14 | D61: 8828 | E61: 13 | F61: 8845 | G61: 14 | H61: 8850 | K61: 0 | L61: 1111
A62: 12 | B62: 8998 | C62: 14 | D62: 9004 | E62: 13 | F62: 9020 | G62: 14 | H62: 9025 | K62: 0 | L62: 1111
A63: 12 | B63: 9325 | C63: 14 | D63: 9336 | E63: 13 | F63: 9341 | G63: 23 | H63: 9350 | K63: 0 | L63: 1112
A64: 12 | B64: 9519 | C64: 14 | D64: 9526 | E64: 13 | F64: 9536 | G64: 14 | H64: 9541 | K64: 0 | L64: 1111
A65: 12 | B65: 9693 | C65: 14 | D65: 9697 | E65: 13 | F65: 9710 | G65: 14 | H65: 9715 | K65: 0 | L65: 1111
A66: 12 | B66: 10134 | C66: 14 | D66: 10143 | E66: 13 | F66: 10148 | G66: 14 | H66: 10156 | K66: 0 | L66: 1111
A67: 12 | B67: 10552 | C67: 14 | D67: 10556 | E67: 13 | F67: 10564 | G67: 14 | H67: 10569 | K67: 0 | L67: 1111
A68: 12 | B68: 10782 | C68: 14 | D68: 10786 | E68: 13 | F68: 10790 | G68: 14 | H68: 10795 | K68: 0 | L68: 1111
A69: 12 | B69: 11058 | C69: 14 | D69: 11076 | E69: 13 | F69: 11082 | G69: 14 | H69: 11089 | K69: 0 | L69: 1111
A70: 12 | B70: 11227 | C70: 14 | D70: 11231 | E70: 13 | F70: 11239 | G70: 14 | H70: 11243 | K70: 0 | L70: 1111
A71: 12 | B71: 11635 | C71: 14 | D71: 11639 | E71: 13 | F71: 11647 | G71: 14 | H71: 11653 | K71: 0 | L71: 1111
A72: 12 | B72: 11879 | C72: 14 | D72: 11893 | E72: 13 | F72: 11897 | G72: 14 | H72: 11904 | K72: 0 | L72: 1111
A73: 21 | B73: 12323 | C73: 12 | D73: 12334 | E73: 13 | F73: 12338 | G73: 14 | H73: 12343 | K73: 0 | L73: 2111
A74: 12 | B74: 12662 | C74: 23 | D74: 12675 | E74: 13 | F74: 12689 | G74: 14 | H74: 12693 | K74: 0 | L74: 1211
A75: 21 | B75: 12849 | C75: 12 | D75: 12862 | E75: 13 | F75: 12867 | G75: 14 | H75: 12876 | K75: 0 | L75: 2111
A76: 21 | B76: 13193 | C76: 12 | D76: 13204 | E76: 13 | F76: 13217 | G76: 23 | H76: 13230 | K76: 0 | L76: 2112
A77: 21 | B77: 13422 | C77: 21 | D77: 13474 | E77: 11 | F77: 13509 | G77: 12 | H77: 13514 | K77: 0 | L77: 2211
A78: 12 | B78: 13655 | C78: 14 | D78: 13666 | E78: 13 | F78: 13675 | G78: 14 | H78: 13679 | K78: 0 | L78: 1111
A79: 12 | B79: 13782 | C79: 14 | D79: 13790 | E79: 24 | F79: 13802 | G79: 14 | H79: 13812 | K79: 0 | L79: 1121
A80: 21 | B80: 14072 | C80: 21 | D80: 14121 | E80: 11 | F80: 14139 | G80: 12 | H80: 14144 | K80: 0 | L80: 2211
A81: 12 | B81: 14272 | C81: 14 | D81: 14276 | E81: 13 | F81: 14287 | G81: 14 | H81: 14292 | K81: 0 | L81: 1111
A82: 12 | B82: 14396 | C82: 14 | D82: 14408 | E82: 13 | F82: 14414 | G82: 14 | H82: 14421 | K82: 0 | L82: 1111
A83: 12 | B83: 14541 | C83: 14 | D83: 14545 | E83: 13 | F83: 14551 | G83: 14 | H83: 14556 | K83: 0 | L83: 1111
A84: 12 | B84: 14654 | C84: 14 | D84: 14662 | E84: 13 | F84: 14675 | G84: 14 | H84: 14680 | K84: 0 | L84: 1111
A85: 12 | B85: 14784 | C85: 14 | D85: 14791 | E85: 13 | F85: 14803 | G85: 14 | H85: 14807 | K85: 0 | L85: 1111
A86: 21 | B86: 15094 | C86: 12 | D86: 15117 | E86: 13 | F86: 15122 | G86: 14 | H86: 15127 | K86: 0 | L86: 2111
A87: 12 | B87: 15260 | C87: 14 | D87: 15264 | E87: 13 | F87: 15268 | G87: 14 | H87: 15273 | K87: 0 | L87: 1111
A88: 21 | B88: 15397 | C88: 12 | D88: 15433 | E88: 13 | F88: 15438 | G88: 14 | H88: 15445 | K88: 0 | L88: 2111
A89: 12 | B89: 15581 | C89: 14 | D89: 15589 | E89: 13 | F89: 15598 | G89: 14 | H89: 15603 | K89: 0 | L89: 1111
A90: 12 | B90: 15701 | C90: 14 | D90: 15721 | E90: 13 | F90: 15726 | G90: 14 | H90: 15730 | K90: 0 | L90: 1111
A91: 12 | B91: 15898 | C91: 14 | D91: 15906 | E91: 13 | F91: 15913 | G91: 14 | H91: 15918 | K91: 0 | L91: 1111
A92: 12 | B92: 16023 | C92: 14 | D92: 16040 | E92: 13 | F92: 16048 | G92: 14 | H92: 16055 | K92: 0 | L92: 1111
A93: 12 | B93: 16169 | C93: 14 | D93: 16187 | E93: 13 | F93: 16194 | G93: 14 | H93: 16201 | K93: 0 | L93: 1111
A94: 12 | B94: 16302 | C94: 14 | D94: 16315 | E94: 13 | F94: 16320 | G94: 14 | H94: 16324 | K94: 0 | L94: 1111
A95: 21 | B95: 16462 | C95: 12 | D95: 16472 | E95: 13 | F95: 16477 | G95: 14 | H95: 16481 | K95: 0 | L95: 2111
A96: 12 | B96: 16601 | C96: 14 | D96: 16613 | E96: 24 | F96: 16628 | G96: 14 | H96: 16638 | K96: 0 | L96: 1121
A97: 21 | B97: 16976 | C97: 21 | D97: 16995 | E97: 11 | F97: 17006 | G97: 12 | H97: 17011 | K97: 0 | L97: 2211
A98: 12 | B98: 17117 | C98: 14 | D98: 17130 | E98: 13 | F98: 17136 | G98: 14 | H98: 17146 | K98: 0 | L98: 1111
A99: 12 | B99: 17256 | C99: 14 | D99: 17260 | E99: 13 | F99: 17278 | G99: 14 | H99: 17282 | K99: 0 | L99: 1111
A100: 21 | B100: 17389 | C100: 12 | D100: 17401 | E100: 13 | F100: 17420 | G100: 14 | H100: 17424 | K100: 0 | L100: 2111
A101: 21 | B101: 17521 | C101: 12 | D101: 17553 | E101: 13 | F101: 17557 | G101: 23 | H101: 17581 | K101: 0 | L101: 2112
A102: 12 | B102: 17700 | C102: 14 | D102: 17723 | E102: 13 | F102: 17730 | G102: 14 | H102: 17737 | K102: 0 | L102: 1111
A103: 12 | B103: 17840 | C103: 14 | D103: 17847 | E103: 13 | F103: 17851 | G103: 14 | H103: 17857 | K103: 0 | L103: 1111
A104: 12 | B104: 17962 | C104: 14 | D104: 17966 | E104: 13 | F104: 17975 | G104: 14 | H104: 17979 | K104: 0 | L104: 1111
A105: 21 | B105: 18130 | C105: 21 | D105: 18137 | E105: 22 | F105: 18152 | G105: 23 | H105: 18271 | K105: 0 | L105: 2222
A106: 12 | B106: 18370 | C106: 14 | D106: 18376 | E106: 13 | F106: 18394 | G106: 23 | H106: 18409 | K106: 0 | L106: 1112
A107: 12 | B107: 18524 | C107: 14 | D107: 18535 | E107: 13 | F107: 18543 | G107: 14 | H107: 18558 | K107: 0 | L107: 1111
A108: 12 | B108: 18665 | C108: 14 | D108: 18671 | E108: 13 | F108: 18676 | G108: 14 | H108: 18691 | K108: 0 | L108: 1111
A109: 12 | B109: 18801 | C109: 14 | D109: 18822 | E109: 13 | F109: 18829 | G109: 14 | H109: 18836 | K109: 0 | L109: 1111
A110: 12 | B110: 18938 | C110: 14 | D110: 18954 | E110: 13 | F110: 18983 | G110: 14 | H110: 18988 | K110: 0 | L110: 1111
A111: 21 | B111: 19107 | C111: 12 | D111: 19121 | E111: 13 | F111: 19145 | G111: 14 | H111: 19149 | K111: 0 | L111: 2111
A112: 12 | B112: 19308 | C112: 14 | D112: 19312 | E112: 13 | F112: 19316 | G112: 14 | H112: 19321 | K112: 0 | L112: 1111
A113: 12 | B113: 19545 | C113: 14 | D113: 19555 | E113: 13 | F113: 19579 | G113: 14 | H113: 19587 | K113: 0 | L113: 1111
A114: 12 | B114: 19707 | C114: 14 | D114: 19723 | E114: 13 | F114: 19730 | G114: 14 | H114: 19735 | K114: 0 | L114: 1111
A115: 12 | B115: 19844 | C115: 14 | D115: 19849 | E115: 13 | F115: 19854 | G115: 14 | H115: 19876 | K115: 0 | L115: 1111
A116: 21 | B116: 20059 | C116: 21 | D116: 20082 | E116: 22 | F116: 20104 | G116: 23 | H116: 20118 | K116: 0 | L116: 2222
A117: 21 | B117: 20251 | C117: 12 | D117: 20268 | E117: 13 | F117: 20288 | G117: 14 | H117: 20301 | K117: 0 | L117: 2111
A118: 21 | B118: 20481 | C118: 12 | D118: 20505 | E118: 13 | F118: 20519 | G118: 14 | H118: 20524 | K118: 0 | L118: 2111
A119: 21 | B119: 20804 | C119: 21 | D119: 20832 | E119: 11 | F119: 20843 | G119: 12 | H119: 20848 | K119: 0 | L119: 2211
A120: 21 | B120: 21152 | C120: 12 | D120: 21163 | E120: 13 | F120: 21168 | G120: 14 | H120: 21172 | K120: 0 | L120: 2111
A121: 12 | B121: 21316 | C121: 14 | D121: 21320 | E121: 24 | F121: 21333 | G121: 14 | H121: 21345 | K121: 0 | L121: 1121
A122: 21 | B122: 21602 | C122: 12 | D122: 21613 | E122: 24 | F122: 21623 | G122: 23 | H122: 21653 | K122: 0 | L122: 2122
A123: 12 | B123: 21964 | C123: 14 | D123: 21982 | E123: 13 | F123: 21986 | G123: 14 | H123: 21999 | K123: 0 | L123: 1111
A124: 12 | B124: 22116 | C124: 14 | D124: 22121 | E124: 13 | F124: 22143 | G124: 14 | H124: 22158 | K124: 0 | L124: 1111
A125: 21 | B125: 22293 | C125: 21 | D125: 22335 | E125: 11 | F125: 22349 | G125: 12 | H125: 22354 | K125: 0 | L125: 2211
A126: 12 | B126: 22487 | C126: 23 | D126: 22506 | E126: 13 | F126: 22516 | G126: 14 | H126: 22521 | K126: 0 | L126: 1211
A127: 12 | B127: 22658 | C127: 23 | D127: 22671 | E127: 13 | F127: 22707 | G127: 14 | H127: 22712 | K127: 0 | L127: 1211
A128: 21 | B128: 22923 | C128: 21 | D128: 22939 | E128: 11 | F128: 22949 | G128: 12 | H128: 22966 | K128: 0 | L128: 2211
A129: 21 | B129: 23262 | C129: 12 | D129: 23276 | E129: 13 | F129: 23280 | G129: 14 | H129: 23285 | K129: 0 | L129: 2111
A130: 12 | B130: 23442 | C130: 23 | D130: 23467 | E130: 13 | F130: 23477 | G130: 14 | H130: 23482 | K130: 0 | L130: 1211
A131: 21 | B131: 23851 | C131: 21 | D131: 23890 | E131: 22 | F131: 23907 | G131: 14 | H131: 23917 | L131: 2221

Sheet !MA15C40.096
A1: Report for:!MA15C40.096
A2: Date: | B2: <date>
A3: Hen: | B3: <hen> | F3: Correct Sequence | G3: =Start!J2 -> 2212 | P3: Total Sequences in Data | Q3: =4994-COUNTBLANK(L7:L5000) -> 126 | V3: Total Sequences in Block Data | W3: =COUNTA(L7:L27) -> 21 | AA3: Total Sequences in Block Data | AB3: =COUNTA(L28:L48) -> 21 | AF3: Total Sequences in Block Data | AG3: =COUNTA(L49:L69) -> 21 | AK3: Total Sequences in Block Data | AL3: =COUNTA(L70:L90) -> 21 | AP3: Total Sequences in Block Data | AQ3: =COUNTA(L91:L111) -> 21 | AU3: Total Sequences in Block Data | AV3: =COUNTA(L112:L132) -> 21
P4: Total Sequences in Summary | Q4: =SUM(O7:O22) -> 126 | V4: Total Sequences in Block Summary | W4: =SUM(U7:U22) -> 21 | AA4: Total Sequences in Block Summary | AB4: =SUM(Z7:Z22) -> 21 | AF4: Total Sequences in Block Summary | AG4: =SUM(AE7:AE22) -> 21 | AK4: Total Sequences in Block Summary | AL4: =SUM(AJ7:AJ22) -> 21 | AP4: Total Sequences in Block Summary | AQ4: =SUM(AO7:AO22) -> 21 | AU4: Total Sequences in Block Summary | AV4: =SUM(AT7:AT22) -> 21
T5: Block 1 | Y5: Block 2 | AD5: Block 3 | AI5: Block 4 | AN5: Block 5 | AS5: Block 6
A6: Sequence Component 1 | B6: Time 1 | C6: Sequence Component 2 | D6: Time 2 | E6: Sequence Component 3 | F6: Time 3 | G6: Sequence Component 4 | H6: Time 4 | I6: Sequence Component 5 | J6: Time 5 | K6: Correct? 0=No 1=Yes | L6: Sequence | N6: Frequency | P6: Relative Frequency | Q6: Variability | T6: Frequency | V6: Relative Frequency | W6: Variability | Y6: Frequency | AA6: Relative Frequency | AB6: Variability | AD6: Frequency | AF6: Relative Frequency | AG6: Variability | AI6: Frequency | AK6: Relative Frequency | AL6: Variability | AN6: Frequency | AP6: Relative Frequency | AQ6: Variability | AS6: Frequency | AU6: Relative Frequency | AV6: Variability
A7: 12 | B7: 13 | C7: 14 | D7: 18 | E7: 13 | F7: 28 | G7: 14 | H7: 34 | K7: 0 | L7: 1111 | N7: 1111 | O7: =COUNTIF($L$7:$L$500,N7) -> 45 | P7: =O7/$Q$4 -> 0.3571428571 | Q7: =IF(P7=0,0,(P7*((LOG(P7))/LOG(2)))) -> -0.5305095811 | T7: =N7 -> 1111 | U7: =COUNTIF(L7:L27,T7) -> 6 | V7: =U7/(W4-U20) -> 0.3 | W7: =IF(V7=0,0,(V7*((LOG(V7))/LOG(2)))) -> -0.5210896782 | Y7: =N7 -> 1111 | Z7: =COUNTIF(L28:L48,Y7) -> 13 | AA7: =Z7/(AB4-Z20) -> 0.619047619 | AB7: =IF(AA7=0,0,(AA7*((LOG(AA7))/LOG(2)))) -> -0.4283052457 | AD7: =N7 -> 1111 | AE7: =COUNTIF(L49:L69,AD7) -> 3 | AF7: =AE7/(AG4-AE20) -> 0.1428571429 | AG7: =IF(AF7=0,0,(AF7*((LOG(AF7))/LOG(2)))) -> -0.4010507032 | AI7: =N7 -> 1111 | AJ7: =COUNTIF(L70:L90,AI7) -> 10 | AK7: =AJ7/(AL4-AJ20) -> 0.5 | AL7: =IF(AK7=0,0,(AK7*((LOG(AK7))/LOG(2)))) -> -0.5 | AN7: =N7 -> 1111 | AO7: =COUNTIF(L91:L111,AN7) -> 7 | AP7: =AO7/(AQ4-AO20) -> 0.35 | AQ7: =IF(AP7=0,0,(AP7*((LOG(AP7))/LOG(2)))) -> -0.5301006105 | AS7: =N7 -> 1111 | AT7: =COUNTIF(L112:L132,AS7) -> 6 | AU7: =AT7/(AV4-AT20) -> 0.3 | AV7: =IF(AU7=0,0,(AU7*((LOG(AU7))/LOG(2)))) -> -0.5210896782
A8: 12 | B8: 135 | C8: 14 | D8: 142 | E8: 13 | F8: 161 | G8: 14 | H8: 168 | K8: 0 | L8: 1111 | N8: 1112 | O8: =COUNTIF($L$7:$L$500,N8) -> 13 | P8: =O8/$Q$4 -> 0.1031746032 | Q8: =IF(P8=0,0,(P8*((LOG(P8))/LOG(2)))) -> -0.3380866879 | T8: =N8 -> 1112 | U8: =COUNTIF(L7:L27,T8) -> 2 | V8: =U8/(W4-U20) -> 0.1 | W8: =IF(V8=0,0,(V8*((LOG(V8))/LOG(2)))) -> -0.3321928095 | Y8: =N8 -> 1112 | Z8: =COUNTIF(L28:L48,Y8) -> 2 | AA8: =Z8/(AB4-Z20) -> 0.09523809524 | AB8: =IF(AA8=0,0,(AA8*((LOG(AA8))/LOG(2)))) -> -0.3230778498 | AD8: =N8 -> 1112 | AE8: =COUNTIF(L49:L69,AD8) -> 2 | AF8: =AE8/(AG4-AE20) -> 0.09523809524 | AG8: =IF(AF8=0,0,(AF8*((LOG(AF8))/LOG(2)))) -> -0.3230778498 | AI8: =N8 -> 1112 | AJ8: =COUNTIF(L70:L90,AI8) -> 3 | AK8: =AJ8/(AL4-AJ20) -> 0.15 | AL8: =IF(AK8=0,0,(AK8*((LOG(AK8))/LOG(2)))) -> -0.4105448391 | AN8: =N8 -> 1112 | AO8: =COUNTIF(L91:L111,AN8) -> 0 | AP8: =AO8/(AQ4-AO20) -> 0 | AQ8: =IF(AP8=0,0,(AP8*((LOG(AP8))/LOG(2)))) -> 0 | AS8: =N8 -> 1112 | AT8: =COUNTIF(L112:L132,AS8) -> 4 | AU8: =AT8/(AV4-AT20) -> 0.2 | AV8: =IF(AU8=0,0,(AU8*((LOG(AU8))/LOG(2)))) -> -0.464385619
A9: 12 | B9: 266 | C9: 14 | D9: 274 | E9: 13 | F9: 278 | G9: 14 | H9: 301 | K9: 0 | L9: 1111 | N9: 1121 | O9: =COUNTIF($L$7:$L$500,N9) -> 18 | P9: =O9/$Q$4 -> 0.1428571429 | Q9: =IF(P9=0,0,(P9*((LOG(P9))/LOG(2)))) -> -0.4010507032 | T9: =N9 -> 1121 | U9: =COUNTIF(L7:L27,T9) -> 1 | V9: =U9/(W4-U20) -> 0.05 | W9: =IF(V9=0,0,(V9*((LOG(V9))/LOG(2)))) -> -0.2160964047 | Y9: =N9 -> 1121 | Z9: =COUNTIF(L28:L48,Y9) -> 2 | AA9: =Z9/(AB4-Z20) -> 0.09523809524 | AB9: =IF(AA9=0,0,(AA9*((LOG(AA9))/LOG(2)))) -> -0.3230778498 | AD9: =N9 -> 1121 | AE9: =COUNTIF(L49:L69,AD9) -> 5 | AF9: =AE9/(AG4-AE20) -> 0.2380952381 | AG9: =IF(AF9=0,0,(AF9*((LOG(AF9))/LOG(2)))) -> -0.49294984 | AI9: =N9 -> 1121 | AJ9: =COUNTIF(L70:L90,AI9) -> 3 | AK9: =AJ9/(AL4-AJ20) -> 0.15 | AL9: =IF(AK9=0,0,(AK9*((LOG(AK9))/LOG(2)))) -> -0.4105448391 | AN9: =N9 -> 1121 | AO9: =COUNTIF(L91:L111,AN9) -> 4 | AP9: =AO9/(AQ4-AO20) -> 0.2 | AQ9: =IF(AP9=0,0,(AP9*((LOG(AP9))/LOG(2)))) -> -0.464385619 | AS9: =N9 -> 1121 | AT9: =COUNTIF(L112:L132,AS9) -> 3 | AU9: =AT9/(AV4-AT20) -> 0.15 | AV9: =IF(AU9=0,0,(AU9*((LOG(AU9))/LOG(2)))) -> -0.4105448391
A10: 12 | B10: 436 | C10: 14 | D10: 453 | E10: 13 | F10: 460 | G10: 14 | H10: 468 | K10: 0 | L10: 1111 | N10: 1122 | O10: =COUNTIF($L$7:$L$500,N10) -> 0 | P10: =O10/$Q$4 -> 0 | Q10: =IF(P10=0,0,(P10*((LOG(P10))/LOG(2)))) -> 0 | T10: =N10 -> 1122 | U10: =COUNTIF(L7:L27,T10) -> 0 | V10: =U10/(W4-U20) -> 0 | W10: =IF(V10=0,0,(V10*((LOG(V10))/LOG(2)))) -> 0 | Y10: =N10 -> 1122 | Z10: =COUNTIF(L28:L48,Y10) -> 0 | AA10: =Z10/(AB4-Z20) -> 0 | AB10: =IF(AA10=0,0,(AA10*((LOG(AA10))/LOG(2)))) -> 0 | AD10: =N10 -> 1122 | AE10: =COUNTIF(L49:L69,AD10) -> 0 | AF10: =AE10/(AG4-AE20) -> 0 | AG10: =IF(AF10=0,0,(AF10*((LOG(AF10))/LOG(2)))) -> 0 | AI10: =N10 -> 1122 | AJ10: =COUNTIF(L70:L90,AI10) -> 0 | AK10: =AJ10/(AL4-AJ20) -> 0 | AL10: =IF(AK10=0,0,(AK10*((LOG(AK10))/LOG(2)))) -> 0 | AN10: =N10 -> 1122 | AO10: =COUNTIF(L91:L111,AN10) -> 0 | AP10: =AO10/(AQ4-AO20) -> 0 | AQ10: =IF(AP10=0,0,(AP10*((LOG(AP10))/LOG(2)))) -> 0 | AS10: =N10 -> 1122 | AT10: =COUNTIF(L112:L132,AS10) -> 0 | AU10: =AT10/(AV4-AT20) -> 0 | AV10: =IF(AU10=0,0,(AU10*((LOG(AU10))/LOG(2)))) -> 0
A11: 12 | B11: 590 | C11: 14 | D11: 594 | E11: 13 | F11: 600 | G11: 23 | H11: 613 | K11: 0 | L11: 1112 | N11: 1211 | O11: =COUNTIF($L$7:$L$500,N11) -> 8 | P11: =O11/$Q$4 -> 0.06349206349 | Q11: =IF(P11=0,0,(P11*((LOG(P11))/LOG(2)))) -> -0.2525257094 | T11: =N11 -> 1211 | U11: =COUNTIF(L7:L27,T11) -> 1 | V11: =U11/(W4-U20) -> 0.05 | W11: =IF(V11=0,0,(V11*((LOG(V11))/LOG(2)))) -> -0.2160964047 | Y11: =N11 -> 1211 | Z11: =COUNTIF(L28:L48,Y11) -> 1 | AA11: =Z11/(AB4-Z20) -> 0.04761904762 | AB11: =IF(AA11=0,0,(AA11*((LOG(AA11))/LOG(2)))) -> -0.2091579725 | AD11: =N11 -> 1211 | AE11: =COUNTIF(L49:L69,AD11) -> 1 | AF11: =AE11/(AG4-AE20) -> 0.04761904762 | AG11: =IF(AF11=0,0,(AF11*((LOG(AF11))/LOG(2)))) -> -0.2091579725 | AI11: =N11 -> 1211 | AJ11: =COUNTIF(L70:L90,AI11) -> 1 | AK11: =AJ11/(AL4-AJ20) -> 0.05 | AL11: =IF(AK11=0,0,(AK11*((LOG(AK11))/LOG(2)))) -> -0.2160964047 | AN11: =N11 -> 1211 | AO11: =COUNTIF(L91:L111,AN11) -> 2 | AP11: =AO11/(AQ4-AO20) -> 0.1 | AQ11: =IF(AP11=0,0,(AP11*((LOG(AP11))/LOG(2)))) -> -0.3321928095 | AS11: =N11 -> 1211 | AT11: =COUNTIF(L112:L132,AS11) -> 2 | AU11: =AT11/(AV4-AT20) -> 0.1 | AV11: =IF(AU11=0,0,(AU11*((LOG(AU11))/LOG(2)))) -> -0.3321928095
A12: 12 | B12: 723 | C12: 14 | D12: 749 | E12: 13 | F12: 754 | G12: 14 | H12: 775 | K12: 0 | L12: 1111 | N12: 1212 | O12: =COUNTIF($L$7:$L$500,N12) -> 2 | P12: =O12/$Q$4 -> 0.01587301587 | Q12: =IF(P12=0,0,(P12*((LOG(P12))/LOG(2)))) -> -0.0948774591 | T12: =N12 -> 1212 | U12: =COUNTIF(L7:L27,T12) -> 0 | V12: =U12/(W4-U20) -> 0 | W12: =IF(V12=0,0,(V12*((LOG(V12))/LOG(2)))) -> 0 | Y12: =N12 -> 1212 | Z12: =COUNTIF(L28:L48,Y12) -> 0 | AA12: =Z12/(AB4-Z20) -> 0 | AB12: =IF(AA12=0,0,(AA12*((LOG(AA12))/LOG(2)))) -> 0 | AD12: =N12 -> 1212 | AE12: =COUNTIF(L49:L69,AD12) -> 0 | AF12: =AE12/(AG4-AE20) -> 0 | AG12: =IF(AF12=0,0,(AF12*((LOG(AF12))/LOG(2)))) -> 0 | AI12: =N12 -> 1212 | AJ12: =COUNTIF(L70:L90,AI12) -> 0 | AK12: =AJ12/(AL4-AJ20) -> 0 | AL12: =IF(AK12=0,0,(AK12*((LOG(AK12))/LOG(2)))) -> 0 | AN12: =N12 -> 1212 | AO12: =COUNTIF(L91:L111,AN12) -> 1 | AP12: =AO12/(AQ4-AO20) -> 0.05 | AQ12: =IF(AP12=0,0,(AP12*((LOG(AP12))/LOG(2)))) -> -0.2160964047 | AS12: =N12 -> 1212 | AT12: =COUNTIF(L112:L132,AS12) -> 1 | AU12: =AT12/(AV4-AT20) -> 0.05 | AV12: =IF(AU12=0,0,(AU12*((LOG(AU12))/LOG(2)))) -> -0.2160964047
A13: 12 | B13: 930 | C13: 23 | D13: 938 | E13: 24 | F13: 951 | G13: 14 | H13: 963 | K13: 0 | L13: 1221 | N13: 1221 | O13: =COUNTIF($L$7:$L$500,N13) -> 1 | P13: =O13/$Q$4 -> 0.007936507937 | Q13: =IF(P13=0,0,(P13*((LOG(P13))/LOG(2)))) -> -0.05537523749 | T13: =N13 -> 1221 | U13: =COUNTIF(L7:L27,T13) -> 1 | V13: =U13/(W4-U20) -> 0.05 | W13: =IF(V13=0,0,(V13*((LOG(V13))/LOG(2)))) -> -0.2160964047 | Y13: =N13 -> 1221 | Z13: =COUNTIF(L28:L48,Y13) -> 0 | AA13: =Z13/(AB4-Z20) -> 0 | AB13: =IF(AA13=0,0,(AA13*((LOG(AA13))/LOG(2)))) -> 0 | AD13: =N13 -> 1221 | AE13: =COUNTIF(L49:L69,AD13) -> 0 | AF13: =AE13/(AG4-AE20) -> 0 | AG13: =IF(AF13=0,0,(AF13*((LOG(AF13))/LOG(2)))) -> 0 | AI13: =N13 -> 1221 | AJ13: =COUNTIF(L70:L90,AI13) -> 0 | AK13: =AJ13/(AL4-AJ20) -> 0 | AL13: =IF(AK13=0,0,(AK13*((LOG(AK13))/LOG(2)))) -> 0 | AN13: =N13 -> 1221 | AO13: =COUNTIF(L91:L111,AN13) -> 0 | AP13: =AO13/(AQ4-AO20) -> 0 | AQ13: =IF(AP13=0,0,(AP13*((LOG(AP13))/LOG(2)))) -> 0 | AS13: =N13 -> 1221 | AT13: =COUNTIF(L112:L132,AS13) -> 0 | AU13: =AT13/(AV4-AT20) -> 0 | AV13: =IF(AU13=0,0,(AU13*((LOG(AU13))/LOG(2)))) -> 0
A14: 21 | B14: 1127 | C14: 12 | D14: 1138 | E14: 13 | F14: 1143 | G14: 14 | H14: 1150 | K14: 0 | L14: 2111 | N14: 1222 | O14: =COUNTIF($L$7:$L$500,N14) -> 1 | P14: =O14/$Q$4 -> 0.007936507937 | Q14: =IF(P14=0,0,(P14*((LOG(P14))/LOG(2)))) -> -0.05537523749 | T14: =N14 -> 1222 | U14: =COUNTIF(L7:L27,T14) -> 0 | V14: =U14/(W4-U20) -> 0 | W14: =IF(V14=0,0,(V14*((LOG(V14))/LOG(2)))) -> 0 | Y14: =N14 -> 1222 | Z14: =COUNTIF(L28:L48,Y14) -> 1 | AA14: =Z14/(AB4-Z20) -> 0.04761904762 | AB14: =IF(AA14=0,0,(AA14*((LOG(AA14))/LOG(2)))) -> -0.2091579725 | AD14: =N14 -> 1222 | AE14: =COUNTIF(L49:L69,AD14) -> 0 | AF14: =AE14/(AG4-AE20) -> 0 | AG14: =IF(AF14=0,0,(AF14*((LOG(AF14))/LOG(2)))) -> 0 | AI14: =N14 -> 1222 | AJ14: =COUNTIF(L70:L90,AI14) -> 0 | AK14: =AJ14/(AL4-AJ20) -> 0 | AL14: =IF(AK14=0,0,(AK14*((LOG(AK14))/LOG(2)))) -> 0 | AN14: =N14 -> 1222 | AO14: =COUNTIF(L91:L111,AN14) -> 0 | AP14: =AO14/(AQ4-AO20) -> 0 | AQ14: =IF(AP14=0,0,(AP14*((LOG(AP14))/LOG(2)))) -> 0 | AS14: =N14 -> 1222 | AT14: =COUNTIF(L112:L132,AS14) -> 0 | AU14: =AT14/(AV4-AT20) -> 0 | AV14: =IF(AU14=0,0,(AU14*((LOG(AU14))/LOG(2)))) -> 0
A15: 21 | B15: 1269 | C15: 21 | D15: 1288 | E15: 11 | F15: 1299 | G15: 12 | H15: 1303 | K15: 0 | L15: 2211 | N15: 2111 | O15: =COUNTIF($L$7:$L$500,N15) -> 7 | P15: =O15/$Q$4 -> 0.05555555556 | Q15: =IF(P15=0,0,(P15*((LOG(P15))/LOG(2)))) -> -0.2316625001 | T15: =N15 -> 2111 | U15: =COUNTIF(L7:L27,T15) -> 2 | V15: =U15/(W4-U20) -> 0.1 | W15: =IF(V15=0,0,(V15*((LOG(V15))/LOG(2)))) -> -0.3321928095 | Y15: =N15 -> 2111 | Z15: =COUNTIF(L28:L48,Y15) -> 1 | AA15: =Z15/(AB4-Z20) -> 0.04761904762 | AB15: =IF(AA15=0,0,(AA15*((LOG(AA15))/LOG(2)))) -> -0.2091579725 | AD15: =N15 -> 2111 | AE15: =COUNTIF(L49:L69,AD15) -> 2 | AF15: =AE15/(AG4-AE20) -> 0.09523809524 | AG15: =IF(AF15=0,0,(AF15*((LOG(AF15))/LOG(2)))) -> -0.3230778498 | AI15: =N15 -> 2111 | AJ15: =COUNTIF(L70:L90,AI15) -> 0 | AK15: =AJ15/(AL4-AJ20) -> 0 | AL15: =IF(AK15=0,0,(AK15*((LOG(AK15))/LOG(2)))) -> 0 | AN15: =N15 -> 2111 | AO15: =COUNTIF(L91:L111,AN15) -> 0 | AP15: =AO15/(AQ4-AO20) -> 0 | AQ15: =IF(AP15=0,0,(AP15*((LOG(AP15))/LOG(2)))) -> 0 | AS15: =N15 -> 2111 | AT15: =COUNTIF(L112:L132,AS15) -> 2 | AU15: =AT15/(AV4-AT20) -> 0.1 | AV15: =IF(AU15=0,0,(AU15*((LOG(AU15))/LOG(2)))) -> -0.3321928095
A16: 21 | B16: 1413 | C16: 21 | D16: 1430 | E16: 22 | F16: 1458 | G16: 23 | H16: 1481 | K16: 0 | L16: 2222 | N16: 2112 | O16: =COUNTIF($L$7:$L$500,N16) -> 5 | P16: =O16/$Q$4 -> 0.03968253968 | Q16: =IF(P16=0,0,(P16*((LOG(P16))/LOG(2)))) -> -0.1847361837 | T16: =N16 -> 2112 | U16: =COUNTIF(L7:L27,T16) -> 1 | V16: =U16/(W4-U20) -> 0.05 | W16: =IF(V16=0,0,(V16*((LOG(V16))/LOG(2)))) -> -0.2160964047 | Y16: =N16 -> 2112 | Z16: =COUNTIF(L28:L48,Y16) -> 1 | AA16: =Z16/(AB4-Z20) -> 0.04761904762 | AB16: =IF(AA16=0,0,(AA16*((LOG(AA16))/LOG(2)))) -> -0.2091579725 | AD16: =N16 -> 2112 | AE16: =COUNTIF(L49:L69,AD16) -> 0 | AF16: =AE16/(AG4-AE20) -> 0 | AG16: =IF(AF16=0,0,(AF16*((LOG(AF16))/LOG(2)))) -> 0 | AI16: =N16 -> 2112 | AJ16: =COUNTIF(L70:L90,AI16) -> 1 | AK16: =AJ16/(AL4-AJ20) -> 0.05 | AL16: =IF(AK16=0,0,(AK16*((LOG(AK16))/LOG(2)))) -> -0.2160964047 | AN16: =N16 -> 2112 | AO16: =COUNTIF(L91:L111,AN16) -> 0 | AP16: =AO16/(AQ4-AO20) -> 0 | AQ16: =IF(AP16=0,0,(AP16*((LOG(AP16))/LOG(2)))) -> 0 | AS16: =N16 -> 2112 | AT16: =COUNTIF(L112:L132,AS16) -> 2 | AU16: =AT16/(AV4-AT20) -> 0.1 | AV16: =IF(AU16=0,0,(AU16*((LOG(AU16))/LOG(2)))) -> -0.3321928095
A17: 21 | B17: 1646 | C17: 21 | D17: 1657 | E17: 11 | F17: 1675 | G17: 21 | H17: 1699 | K17: 0 | L17: 2212 | N17: 2121 | O17: =COUNTIF($L$7:$L$500,N17) -> 4 | P17: =O17/$Q$4 -> 0.03174603175 | Q17: =IF(P17=0,0,(P17*((LOG(P17))/LOG(2)))) -> -0.1580088865 | T17: =N17 -> 2121 | U17: =COUNTIF(L7:L27,T17) -> 0 | V17: =U17/(W4-U20) -> 0 | W17: =IF(V17=0,0,(V17*((LOG(V17))/LOG(2)))) -> 0 | Y17: =N17 -> 2121 | Z17: =COUNTIF(L28:L48,Y17) -> 0 | AA17: =Z17/(AB4-Z20) -> 0 | AB17: =IF(AA17=0,0,(AA17*((LOG(AA17))/LOG(2)))) -> 0 | AD17: =N17 -> 2121 | AE17: =COUNTIF(L49:L69,AD17) -> 1 | AF17: =AE17/(AG4-AE20) -> 0.04761904762 | AG17: =IF(AF17=0,0,(AF17*((LOG(AF17))/LOG(2)))) -> -0.2091579725 | AI17: =N17 -> 2121 | AJ17: =COUNTIF(L70:L90,AI17) -> 1 | AK17: =AJ17/(AL4-AJ20) -> 0.05 | AL17: =IF(AK17=0,0,(AK17*((LOG(AK17))/LOG(2)))) -> -0.2160964047 | AN17: =N17 -> 2121 | AO17: =COUNTIF(L91:L111,AN17) -> 2 | AP17: =AO17/(AQ4-AO20) -> 0.1 | AQ17: =IF(AP17=0,0,(AP17*((LOG(AP17))/LOG(2)))) -> -0.3321928095 | AS17: =N17 -> 2121 | AT17: =COUNTIF(L112:L132,AS17) -> 0 | AU17: =AT17/(AV4-AT20) -> 0 | AV17: =IF(AU17=0,0,(AU17*((LOG(AU17))/LOG(2)))) -> 0
A18: 21 | B18: 1834 | C18: 21 | D18: 1881 | E18: 11 | F18: 1905 | G18: 12 | H18: 1910 | K18: 0 | L18: 2211 | N18: 2122 | O18: =COUNTIF($L$7:$L$500,N18) -> 1 | P18: =O18/$Q$4 -> 0.007936507937 | Q18: =IF(P18=0,0,(P18*((LOG(P18))/LOG(2)))) -> -0.05537523749 | T18: =N18 -> 2122 | U18: =COUNTIF(L7:L27,T18) -> 0 | V18: =U18/(W4-U20) -> 0 | W18: =IF(V18=0,0,(V18*((LOG(V18))/LOG(2)))) -> 0 | Y18: =N18 -> 2122 | Z18: =COUNTIF(L28:L48,Y18) -> 0 | AA18: =Z18/(AB4-Z20) -> 0 | AB18: =IF(AA18=0,0,(AA18*((LOG(AA18))/LOG(2)))) -> 0 | AD18: =N18 -> 2122 | AE18: =COUNTIF(L49:L69,AD18) -> 0 | AF18: =AE18/(AG4-AE20) -> 0 | AG18: =IF(AF18=0,0,(AF18*((LOG(AF18))/LOG(2)))) -> 0 | AI18: =N18 -> 2122 | AJ18: =COUNTIF(L70:L90,AI18) -> 1 | AK18: =AJ18/(AL4-AJ20) -> 0.05 | AL18: =IF(AK18=0,0,(AK18*((LOG(AK18))/LOG(2)))) -> -0.2160964047 | AN18: =N18 -> 2122 | AO18: =COUNTIF(L91:L111,AN18) -> 0 | AP18: =AO18/(AQ4-AO20) -> 0 | AQ18: =IF(AP18=0,0,(AP18*((LOG(AP18))/LOG(2)))) -> 0 | AS18: =N18 -> 2122 | AT18: =COUNTIF(L112:L132,AS18) -> 0 | AU18: =AT18/(AV4-AT20) -> 0 | AV18: =IF(AU18=0,0,(AU18*((LOG(AU18))/LOG(2)))) -> 0
A19: 12 | B19: 2009 | C19: 14 | D19: 2016 | E19: 24 | F19: 2029 | G19: 14 | H19: 2046 | K19: 0 | L19: 1121 | N19: 2211 | O19: =COUNTIF($L$7:$L$500,N19) -> 5 | P19: =O19/$Q$4 -> 0.03968253968 | Q19: =IF(P19=0,0,(P19*((LOG(P19))/LOG(2)))) -> -0.1847361837 | T19: =N19 -> 2211 | U19: =COUNTIF(L7:L27,T19) -> 3 | V19: =U19/(W4-U20) -> 0.15 | W19: =IF(V19=0,0,(V19*((LOG(V19))/LOG(2)))) -> -0.4105448391 | Y19: =N19 -> 2211 | Z19: =COUNTIF(L28:L48,Y19) -> 0 | AA19: =Z19/(AB4-Z20) -> 0 | AB19: =IF(AA19=0,0,(AA19*((LOG(AA19))/LOG(2)))) -> 0 | AD19: =N19 -> 2211 | AE19: =COUNTIF(L49:L69,AD19) -> 2 | AF19: =AE19/(AG4-AE20) -> 0.09523809524 | AG19: =IF(AF19=0,0,(AF19*((LOG(AF19))/LOG(2)))) -> -0.3230778498 | AI19: =N19 -> 2211 | AJ19: =COUNTIF(L70:L90,AI19) -> 0 | AK19: =AJ19/(AL4-AJ20) -> 0 | AL19: =IF(AK19=0,0,(AK19*((LOG(AK19))/LOG(2)))) -> 0 | AN19: =N19 -> 2211 | AO19: =COUNTIF(L91:L111,AN19) -> 0 | AP19: =AO19/(AQ4-AO20) -> 0 | AQ19: =IF(AP19=0,0,(AP19*((LOG(AP19))/LOG(2)))) -> 0 | AS19: =N19 -> 2211 | AT19: =COUNTIF(L112:L132,AS19) -> 0 | AU19: =AT19/(AV4-AT20) -> 0 | AV19: =IF(AU19=0,0,(AU19*((LOG(AU19))/LOG(2)))) -> 0
A20: 21 | B20: 2183 | C20: 12 | D20: 2192 | E20: 13 | F20: 2201 | G20: 23 | H20: 2212 | K20: 0 | L20: 2112 | N20: 2212 | O20: =COUNTIF($L$7:$L$500,N20) -> 4 | P20: =O20/$Q$4 -> 0.03174603175 | Q20: =IF(P20=0,0,(P20*((LOG(P20))/LOG(2)))) -> -0.1580088865 | T20: =N20 -> 2212 | U20: =COUNTIF(L7:L27,T20) -> 1 | Y20: =N20 -> 2212 | Z20: =COUNTIF(L28:L48,Y20) -> 0 | AD20: =N20 -> 2212 | AE20: =COUNTIF(L49:L69,AD20) -> 0 | AI20: =N20 -> 2212 | AJ20: =COUNTIF(L70:L90,AI20) -> 1 | AN20: =N20 -> 2212 | AO20: =COUNTIF(L91:L111,AN20) -> 1 | AS20: =N20 -> 2212 | AT20: =COUNTIF(L112:L132,AS20) -> 1
A21: 21 | B21: 2354 | C21: 21 | D21: 2363 | E21: 22 | F21: 2372 | G21: 23 | H21: 2381 | K21: 0 | L21: 2222 | N21: 2221 | O21: =COUNTIF($L$7:$L$500,N21) -> 6 | P21: =O21/$Q$4 -> 0.04761904762 | Q21: =IF(P21=0,0,(P21*((LOG(P21))/LOG(2)))) -> -0.2091579725 | T21: =N21 -> 2221 | U21: =COUNTIF(L7:L27,T21) -> 0 | V21: =U21/(W4-U20) -> 0 | W21: =IF(V21=0,0,(V21*((LOG(V21))/LOG(2)))) -> 0 | Y21: =N21 -> 2221 | Z21: =COUNTIF(L28:L48,Y21) -> 0 | AA21: =Z21/(AB4-Z20) -> 0 | AB21: =IF(AA21=0,0,(AA21*((LOG(AA21))/LOG(2)))) -> 0 | AD21: =N21 -> 2221 | AE21: =COUNTIF(L49:L69,AD21) -> 3 | AF21: =AE21/(AG4-AE20) -> 0.1428571429 | AG21: =IF(AF21=0,0,(AF21*((LOG(AF21))/LOG(2)))) -> -0.4010507032 | AI21: =N21 -> 2221 | AJ21: =COUNTIF(L70:L90,AI21) -> 0 | AK21: =AJ21/(AL4-AJ20) -> 0 | AL21: =IF(AK21=0,0,(AK21*((LOG(AK21))/LOG(2)))) -> 0 | AN21: =N21 -> 2221 | AO21: =COUNTIF(L91:L111,AN21) -> 3 | AP21: =AO21/(AQ4-AO20) -> 0.15 | AQ21: =IF(AP21=0,0,(AP21*((LOG(AP21))/LOG(2)))) -> -0.4105448391 | AS21: =N21 -> 2221 | AT21: =COUNTIF(L112:L132,AS21) -> 0 | AU21: =AT21/(AV4-AT20) -> 0 | AV21: =IF(AU21=0,0,(AU21*((LOG(AU21))/LOG(2)))) -> 0
A22: 21 | B22: 2508 | C22: 21 | D22: 2515 | E22: 11 | F22: 2575 | G22: 12 | H22: 2583 | K22: 0 | L22: 2211 | N22: 2222 | O22: =COUNTIF($L$7:$L$500,N22) -> 6 | P22: =O22/$Q$4 -> 0.04761904762 | Q22: =IF(P22=0,0,(P22*((LOG(P22))/LOG(2)))) -> -0.2091579725 | T22: =N22 -> 2222 | U22: =COUNTIF(L7:L27,T22) -> 3 | V22: =U22/(W4-U20) -> 0.15 | W22: =IF(V22=0,0,(V22*((LOG(V22))/LOG(2)))) -> -0.4105448391 | Y22: =N22 -> 2222 | Z22: =COUNTIF(L28:L48,Y22) -> 0 | AA22: =Z22/(AB4-Z20) -> 0 | AB22: =IF(AA22=0,0,(AA22*((LOG(AA22))/LOG(2)))) -> 0 | AD22: =N22 -> 2222 | AE22: =COUNTIF(L49:L69,AD22) -> 2 | AF22: =AE22/(AG4-AE20) -> 0.09523809524 | AG22: =IF(AF22=0,0,(AF22*((LOG(AF22))/LOG(2)))) -> -0.3230778498 | AI22: =N22 -> 2222 | AJ22: =COUNTIF(L70:L90,AI22) -> 0 | AK22: =AJ22/(AL4-AJ20) -> 0 | AL22: =IF(AK22=0,0,(AK22*((LOG(AK22))/LOG(2)))) -> 0 | AN22: =N22 -> 2222 | AO22: =COUNTIF(L91:L111,AN22) -> 1 | AP22: =AO22/(AQ4-AO20) -> 0.05 | AQ22: =IF(AP22=0,0,(AP22*((LOG(AP22))/LOG(2)))) -> -0.2160964047 | AS22: =N22 -> 2222 | AT22: =COUNTIF(L112:L132,AS22) -> 0 | AU22: =AT22/(AV4-AT20) -> 0 | AV22: =IF(AU22=0,0,(AU22*((LOG(AU22))/LOG(2)))) -> 0
A23: 21 | B23: 2727 | C23: 21 | D23: 2736 | E23: 22 | F23: 2743 | G23: 23 | H23: 2753 | K23: 0 | L23: 2222 | P23: =SUM(P7:P22) -> 1 | Q23: =-SUM(Q7:Q22) -> 3.118644439 | V23: =SUM(V7:V22) -> 1 | W23: =-SUM(W7:W22) -> 2.870950594 | AA23: =SUM(AA7:AA22) -> 1 | AB23: =-SUM(AB7:AB22) -> 1.911092835 | AF23: =SUM(AF7:AF22) -> 1 | AG23: =-SUM(AG7:AG22) -> 3.00567859 | AK23: =SUM(AK7:AK22) -> 1 | AL23: =-SUM(AL7:AL22) -> 2.185475297 | AP23: =SUM(AP7:AP22) -> 1 | AQ23: =-SUM(AQ7:AQ22) -> 2.501609497 | AU23: =SUM(AU7:AU22) -> 1 | AV23: =-SUM(AV7:AV22) -> 2.60869497
A24: 12 | B24: 2874 | C24: 14 | D24: 2892 | E24: 13 | F24: 2897 | G24: 23 | H24: 2908 | K24: 0 | L24: 1112 | P24: U= | Q24: =Q23/(LOG(Q4)/LOG(2)) -> 0.4469713804 | V24: U1= | W24: =W23/(LOG(W4)/LOG(2)) -> 0.6536300358 | AA24: U2= | AB24: =AB23/(LOG(AB4)/LOG(2)) -> 0.4350989811 | AF24: U3= | AG24: =AG23/(LOG(AG4)/LOG(2)) -> 0.6843035922 | AK24: U4= | AL24: =AL23/(LOG(AL4)/LOG(2)) -> 0.4975677044 | AP24: U5= | AQ24: =AQ23/(LOG(AQ4)/LOG(2)) -> 0.5695420563 | AU24: U6= | AV24: =AV23/(LOG(AV4)/LOG(2)) -> 0.5939222325
A25: 12 | B25: 3042 | C25: 14 | D25: 3058 | E25: 13 | F25: 3063 | G25: 14 | H25: 3095 | K25: 0 | L25: 1111
A26: 21 | B26: 3275 | C26: 12 | D26: 3289 | E26: 13 | F26: 3294 | G26: 14 | H26: 3298 | K26: 0 | L26: 2111
A27: 12 | B27: 3433 | C27: 23 | D27: 3447 | E27: 13 | F27: 3458 | G27: 14 | H27: 3465 | K27: 0 | L27: 1211 | N27: Total Target Seq
A28: 12 | B28: 3592 | C28: 23 | D28: 3615 | E28: 24 | F28: 3623 | G28: 23 | H28: 3634 | K28: 0 | L28: 1222 | N28: =COUNTIF(L7:L132,G3) -> 4 | P28: 21 | Q28: 21 | R28: 21 | S28: 21 | T28: 21 | U28: 21
A29: 12 | B29: 3734 | C29: 14 | D29: 3751 | E29: 13 | F29: 3756 | G29: 23 | H29: 3767 | K29: 0 | L29: 1112 | P29: % of reinforcement given in 6 equal intervals based on number of trials
A30: 12 | B30: 3875 | C30: 14 | D30: 3882 | E30: 13 | F30: 3886 | G30: 23 | H30: 3899 | K30: 0 | L30: 1112 | P30: %_1 | Q30: %_2 | R30: %_3 | S30: %_4 | T30: %_5 | U30: %_6
A31: 21 | B31: 4030 | C31: 12 | D31: 4048 | E31: 13 | F31: 4053 | G31: 23 | H31: 4065 | K31: 0 | L31: 2112 | O31: target sequence | P31: =$G$3 -> 2212 | Q31: =$G$3 -> 2212 | R31: =$G$3 -> 2212 | S31: =$G$3 -> 2212 | T31: =$G$3 -> 2212 | U31: =$G$3 -> 2212
A32: 12 | B32: 4165 | C32: 14 | D32: 4169 | E32: 13 | F32: 4180 | G32: 14 | H32: 4185 | K32: 0 | L32: 1111 | O32: total reinforcement | P32: =U20 -> 1 | Q32: =Z20 -> 0 | R32: =AE20 -> 0 | S32: =AJ20 -> 1 | T32: =AO20 -> 1 | U32: =AT20 -> 1
A33: 12 | B33: 4285 | C33: 14 | D33: 4289 | E33: 13 | F33: 4302 | G33: 14 | H33: 4306 | K33: 0 | L33: 1111 | O33: % target
A34: 12 | B34: 4445 | C34: 14 | D34: 4464 | E34: 13 | F34: 4472 | G34: 14 | H34: 4482 | K34: 0 | L34: 1111 | O34: CCRF
A35: 12 | B35: 4597 | C35: 14 | D35: 4617 | E35: 13 | F35: 4625 | G35: 14 | H35: 4632 | K35: 0 | L35: 1111 | O35: % CCRf
A36: 12 | B36: 4730 | C36: 14 | D36: 4734 | E36: 13 | F36: 4745 | G36: 14 | H36: 4749 | K36: 0 | L36: 1111 | O36: average response rate | P36: =H27/P28 -> 165 | Q36: =(H48-H27)/Q28 -> 145.4285714 | R36: =(H69-H48)/R28 -> 251.5714286 | S36: =(H90-H69)/S28 -> 201.3809524 | T36: =(H111-H90)/T28 -> 189.5714286 | U36: =(H132-H111)/U28 -> 185.047619
A37: 12 | B37: 4851 | C37: 14 | D37: 4864 | E37: 13 | F37: 4872 | G37: 14 | H37: 4884 | K37: 0 | L37: 1111
A38: 12 | B38: 4987 | C38: 14 | D38: 5001 | E38: 24 | F38: 5016 | G38: 14 | H38: 5027 | K38: 0 | L38: 1121
A39: 12 | B39: 5127 | C39: 14 | D39: 5131 | E39: 13 | F39: 5139 | G39: 14 | H39: 5144 | K39: 0 | L39: 1111
A40: 12 | B40: 5240 | C40: 14 | D40: 5244 | E40: 13 | F40: 5261 | G40: 14 | H40: 5265 | K40: 0 | L40: 1111
A41: 12 | B41: 5371 | C41: 14 | D41: 5380 | E41: 13 | F41: 5395 | G41: 14 | H41: 5400 | K41: 0 | L41: 1111
A42: 12 | B42: 5499 | C42: 14 | D42: 5504 | E42: 13 | F42: 5516 | G42: 14 | H42: 5521 | K42: 0 | L42: 1111
A43: 12 | B43: 5627 | C43: 14 | D43: 5637 | E43: 13 | F43: 5660 | G43: 14 | H43: 5668 | K43: 0 | L43: 1111
A44: 12 | B44: 5817 | C44: 14 | D44: 5838 | E44: 13 | F44: 5845 | G44: 14 | H44: 5874 | K44: 0 | L44: 1111
A45: 12 | B45: 5973 | C45: 14 | D45: 5986 | E45: 24 | F45: 5998 | G45: 14 | H45: 6011 | K45: 0 | L45: 1121
A46: 12 | B46: 6153 | C46: 23 | D46: 6169 | E46: 13 | F46: 6180 | G46: 14 | H46: 6184 | K46: 0 | L46: 1211
A47: 12 | B47: 6281 | C47: 14 | D47: 6305 | E47: 13 | F47: 6309 | G47: 14 | H47: 6327 | K47: 0 | L47: 1111
A48: 21 | B48: 6485 | C48: 12 | D48: 6495 | E48: 13 | F48: 6500 | G48: 14 | H48: 6519 | K48: 0 | L48: 2111
A49: 12 | B49: 6667 | C49: 14 | D49: 6672 | E49: 13 | F49: 6688 | G49: 14 | H49: 6694 | K49: 0 | L49: 1111
A50: 21 | B50: 6837 | C50: 12 | D50: 6848 | E50: 13 | F50: 6860 | G50: 14 | H50: 6870 | K50: 0 | L50: 2111
A51: 12 | B51: 7027 | C51: 14 | D51: 7055 | E51: 24 | F51: 7067 | G51: 14 | H51: 7087 | K51: 0 | L51: 1121
A52: 12 | B52: 7213 | C52: 23 | D52: 7241 | E52: 13 | F52: 7251 | G52: 14 | H52: 7256 | K52: 0 | L52: 1211
A53: 12 | B53: 7451 | C53: 14 | D53: 7486 | E53: 13 | F53: 7490 | G53: 23 | H53: 7505 | K53: 0 | L53: 1112
A54: 21 | B54: 7803 | C54: 12 | D54: 7831 | E54: 13 | F54: 7857 | G54: 14 | H54: 7862 | K54: 0 | L54: 2111
A55: 21 | B55: 8026 | C55: 21 | D55: 8061 | E55: 22 | F55: 8076 | G55: 14 | H55: 8087 | K55: 0 | L55: 2221
A56: 12 | B56: 8302 | C56: 14 | D56: 8408 | E56: 13 | F56: 8423 | G56: 14 | H56: 8435 | K56: 0 | L56: 1111
A57: 21 | B57: 8598 | C57: 21 | D57: 8607 | E57: 22 | F57: 8638 | G57: 14 | H57: 8650 | K57: 0 | L57: 2221
A58: 21 | B58: 8897 | C58: 21 | D58: 8916 | E58: 11 | F58: 8928 | G58: 12 | H58: 8933 | K58: 0 | L58: 2211
A59: 21 | B59: 9079 | C59: 21 | D59: 9095 | E59: 22 | F59: 9200 | G59: 14 | H59: 9210 | K59: 0 | L59: 2221
A60: 12 | B60: 9321 | C60: 14 | D60: 9326 | E60: 24 | F60: 9340 | G60: 14 | H60: 9356 | K60: 0 | L60: 1121
A61: 12 | B61: 9505 | C61: 14 | D61: 9510 | E61: 24 | F61: 9523 | G61: 14 | H61: 9536 | K61: 0 | L61: 1121
A62: 21 | B62: 9699 | C62: 21 | D62: 9712 | E62: 11 | F62: 9729 | G62: 12 | H62: 9736 | K62: 0 | L62: 2211
A63: 21 | B63: 10164 | C63: 12 | D63: 10177 | E63: 24 | F63: 10194 | G63: 14 | H63: 10206 | K63: 0 | L63: 2121
A64: 12 | B64: 10391 | C64: 14 | D64: 10396 | E64: 24 | F64: 10407 | G64: 14 | H64: 10422 | K64: 0 | L64: 1121
A65: 21 | B65: 10564 | C65: 21 | D65: 10585 | E65: 22 | F65: 10605 | G65: 23 | H65: 10648 | K65: 0 | L65: 2222
A66: 12 | B66: 10835 | C66: 14 | D66: 10863 | E66: 13 | F66: 10867 | G66: 23 | H66: 10895 | K66: 0 | L66: 1112
A67: 12 | B67: 11007 | C67: 14 | D67: 11032 | E67: 13 | F67: 11036 | G67: 14 | H67: 11041 | K67: 0 | L67: 1111
A68: 21 | B68: 11187 | C68: 21 | D68: 11201 | E68: 22 | F68: 11278 | G68: 23 | H68: 11301 | K68: 0 | L68: 2222
A69: 12 | B69: 11754 | C69: 14 | D69: 11759 | E69: 24 | F69: 11788 | G69: 14 | H69: 11802 | K69: 0 | L69: 1121
A70: 12 | B70: 11931 | C70: 14 | D70: 11938 | E70: 13 | F70: 11999 | G70: 14 | H70: 12004 | K70: 0 | L70: 1111
A71: 12 | B71: 12114 | C71: 14 | D71: 12118 | E71: 13 | F71: 12131 | G71: 14 | H71: 12149 | K71: 0 | L71: 1111
A72: 12 | B72: 12294 | C72: 14 | D72: 12299 | E72: 24 | F72: 12318 | G72: 14 | H72: 12328 | K72: 0 | L72: 1121
A73: 12 | B73: 12536 | C73: 14 | D73: 12553 | E73: 13 | F73: 12563 | G73: 14 | H73: 12583 | K73: 0 | L73: 1111
A74: 12 | B74: 12870 | C74: 14 | D74: 12882 | E74: 13 | F74: 12888 | G74: 14 | H74: 12906 | K74: 0 | L74: 1111
A75: 12 | B75: 13093 | C75: 14 | D75: 13116 | E75: 13 | F75: 13121 | G75: 14 | H75: 13125 | K75: 0 | L75: 1111
A76: 21 | B76: 13664 | C76: 21 | D76: 13681 | E76: 11 | F76: 13692 | G76: 21 | H76: 13709 | K76: 0 | L76: 2212
A77: 12 | B77: 13871 | C77: 23 | D77: 13888 | E77: 13 | F77: 13899 | G77: 14 | H77: 13908 | K77: 0 | L77: 1211
A78: 21 | B78: 14044 | C78: 12 | D78: 14054 | E78: 13 | F78: 14062 | G78: 23 | H78: 14075 | K78: 0 | L78: 2112
A79: 12 | B79: 14174 | C79: 14 | D79: 14196 | E79: 13 | F79: 14200 | G79: 23 | H79: 14213 | K79: 0 | L79: 1112
A80: 12 | B80: 14323 | C80: 14 | D80: 14339 | E80: 13 | F80: 14343 | G80: 23 | H80: 14367 | K80: 0 | L80: 1112
A81: 12 | B81: 14475 | C81: 14 | D81: 14486 | E81: 13 | F81: 14505 | G81: 14 | H81: 14509 | K81: 0 | L81: 1111
A82: 12 | B82: 14625 | C82: 14 | D82: 14651 | E82: 13 | F82: 14655 | G82: 23 | H82: 14687 | K82: 0 | L82: 1112
A83: 21 | B83: 14792 | C83: 12 | D83: 14816 | E83: 24 | F83: 14827 | G83: 14 | H83: 14837 | K83: 0 | L83: 2121
A84: 12 | B84: 14961 | C84: 14 | D84: 14966 | E84: 13 | F84: 14980 | G84: 14 | H84: 14988 | K84: 0 | L84: 1111
A85: 12 | B85: 15106 | C85: 14 | D85: 15123 | E85: 13 | F85: 15127 | G85: 14 | H85: 15133 | K85: 0 | L85: 1111
A86: 12 | B86: 15254 | C86: 14 | D86: 15279 | E86: 13 | F86: 15284 | G86: 14 | H86: 15289 | K86: 0 | L86: 1111
A87: 12 | B87: 15395 | C87: 14 | D87: 15404 | E87: 13 | F87: 15422 | G87: 14 | H87: 15431 | K87: 0 | L87: 1111
A88: 12 | B88: 15542 | C88: 14 | D88: 15570 | E88: 24 | F88: 15583 | G88: 14 | H88: 15594 | K88: 0 | L88: 1121
A89: 21 | B89: 15761 | C89: 12 | D89: 15779 | E89: 24 | F89: 15846 | G89: 23 | H89: 15866 | K89: 0 | L89: 2122
A90: 12 | B90: 15967 | C90: 14 | D90: 15983 | E90: 24 | F90: 16001 | G90: 14 | H90: 16031 | K90: 0 | L90: 1121
A91: 12 | B91: 16145 | C91: 14 | D91: 16180 | E91: 13 | F91: 16202 | G91: 14 | H91: 16215 | K91: 0 | L91: 1111
A92: 21 | B92: 16374 | C92: 21 | D92: 16388 | E92: 22 | F92: 16422 | G92: 14 | H92: 16439 | K92: 0 | L92: 2221
A93: 12 | B93: 16555 | C93: 23 | D93: 16586 | E93: 13 | F93: 16596 | G93: 14 | H93: 16603 | K93: 0 | L93: 1211
A94: 21 | B94: 16741 | C94: 12 | D94: 16755 | E94: 24 | F94: 16775 | G94: 14 | H94: 16797 | K94: 0 | L94: 2121
A95: 21 | B95: 16942 | C95: 12 | D95: 16954 | E95: 24 | F95: 16965 | G95: 14 | H95: 16981 | K95: 0 | L95: 2121
A96: 12 | B96: 17111 | C96: 14 | D96: 17138 | E96: 24 | F96: 17155 | G96: 14 | H96: 17166 | K96: 0 | L96: 1121
A97: 12 | B97: 17299 | C97: 14 | D97: 17351 | E97: 13 | F97: 17358 | G97: 14 | H97: 17365 | K97: 0 | L97: 1111
A98: 21 | B98: 17517 | C98: 21 | D98: 17526 | E98: 22 | F98: 17561 | G98: 14 | H98: 17571 | K98: 0 | L98: 2221
A99: 12 | B99: 17709 | C99: 14 | D99: 17732 | E99: 13 | F99: 17736 | G99: 14 | H99: 17760 | K99: 0 | L99: 1111
A100: 12 | B100: 17882 | C100: 14 | D100: 17887 | E100: 24 | F100: 17904 | G100: 14 | H100: 17914 | K100: 0 | L100: 1121
A101: 12 | B101: 18022 | C101: 14 | D101: 18030 | E101: 24 | F101: 18051 | G101: 14 | H101: 18064 | K101: 0 | L101: 1121
A102: 21 | B102: 18205 | C102: 21 | D102: 18223 | E102: 22 | F102: 18233 | G102: 14 | H102: 18273 | K102: 0 | L102: 2221
A103: 12 | B103: 18453 | C103: 23 | D103: 18465 | E103: 13 | F103: 18504 | G103: 23 | H103: 18525 | K103: 0 | L103: 1212
A104: 12 | B104: 18679 | C104: 23 | D104: 18716 | E104: 13 | F104: 18726 | G104: 14 | H104: 18731 | K104: 0 | L104: 1211
A105: 21 | B105: 18945 | C105: 21 | D105: 18974 | E105: 22 | F105: 18982 | G105: 23 | H105: 19008 | K105: 0 | L105: 2222
A106: 21 | B106: 19175 | C106: 21 | D106: 19191 | E106: 11 | F106: 19218 | G106: 21 | H106: 19236 | K106: 0 | L106: 2212
A107: 12 | B107: 19367 | C107: 14 | D107: 19379 | E107: 13 | F107: 19384 | G107: 14 | H107: 19390 | K107: 0 | L107: 1111
A108: 12 | B108: 19497 | C108: 14 | D108: 19509 | E108: 13 | F108: 19539 | G108: 14 | H108: 19544 | K108: 0 | L108: 1111
A109: 12 | B109: 19652 | C109: 14 | D109: 19673 | E109: 13 | F109: 19682 | G109: 14 | H109: 19705 | K109: 0 | L109: 1111
A110: 12 | B110: 19811 | C110: 14 | D110: 19832 | E110: 24 | F110: 19852 | G110: 14 | H110: 19862 | K110: 0 | L110: 1121
A111: 12 | B111: 19983 | C111: 14 | D111: 20002 | E111: 13 | F111: 20007 | G111: 14 | H111: 20012 | K111: 0 | L111: 1111
A112: 12 | B112: 20160 | C112: 14 | D112: 20177 | E112: 13 | F112: 20182 | G112: 14 | H112: 20189 | K112: 0 | L112: 1111
A113: 12 | B113: 20287 | C113: 14 | D113: 20347 | E113: 13 | F113: 20351 | G113: 14 | H113: 20374 | K113: 0 | L113: 1111
A114: 21 | B114: 20518 | C114: 12 | D114: 20528 | E114: 13 | F114: 20540 | G114: 14 | H114: 20544 | K114: 0 | L114: 2111
A115: 12 | B115: 20647 | C115: 14 | D115: 20659 | E115: 24 | F115: 20677 | G115: 14 | H115: 20689 | K115: 0 | L115: 1121
A116: 21 | B116: 20851 | C116: 12 | D116: 20863 | E116: 13 | F116: 20868 | G116: 14 | H116: 20873 | K116: 0 | L116: 2111
A117: 21 | B117: 21016 | C117: 12 | D117: 21052 | E117: 13 | F117: 21058 | G117: 23 | H117: 21072 | K117: 0 | L117: 2112
A118: 12 | B118: 21204 | C118: 14 | D118: 21222 | E118: 13 | F118: 21227 | G118: 14 | H118: 21250 | K118: 0 | L118: 1111
A119: 21 | B119: 21413 | C119: 21 | D119: 21425 | E119: 11 | F119: 21437 | G119: 21 | H119: 21457 | K119: 0 | L119: 2212
A120: 12 | B120: 21569 | C120: 14 | D120: 21603 | E120: 13 | F120: 21617 | G120: 14 | H120: 21634 | K120: 0 | L120: 1111
A121: 12 | B121: 21764 | C121: 14 | D121: 21791 | E121: 13 | F121: 21803 | G121: 23 | H121: 21819 | K121: 0 | L121: 1112
A122: 12 | B122: 21982 | C122: 14 | D122: 21987 | E122: 24 | F122: 22005 | G122: 14 | H122: 22017 | K122: 0 | L122: 1121
A123: 12 | B123: 22130 | C123: 14 | D123: 22166 | E123: 13 | F123: 22170 | G123: 23 | H123: 22182 | K123: 0 | L123: 1112
A124: 12 | B124: 22301 | C124: 23 | D124: 22325 | E124: 13 | F124: 22335 | G124: 14 | H124: 22345 | K124: 0 | L124: 1211
A125: 21 | B125: 22476 | C125: 12 | D125: 22515 | E125: 13 | F125: 22525 | G125: 23 | H125: 22545 | K125: 0 | L125: 2112
A126: 12 | B126: 22658 | C126: 14 | D126: 22663 | E126: 13 | F126: 22682 | G126: 14 | H126: 22689 | K126: 0 | L126: 1111
A127: 12 | B127: 22866 | C127: 14 | D127: 22871 | E127: 24 | F127: 22889 | G127: 14 | H127: 22900 | K127: 0 | L127: 1121
A128: 12 | B128: 23087 | C128: 14 | D128: 23093 | E128: 13 | F128: 23098 | G128: 23 | H128: 23110 | K128: 0 | L128: 1112
A129: 12 | B129: 23246 | C129: 23 | D129: 23271 | E129: 13 | F129: 23281 | G129: 14 | H129: 23290 | K129: 0 | L129: 1211
A130: 12 | B130: 23437 | C130: 14 | D130: 23469 | E130: 13 | F130: 23487 | G130: 14 | H130: 23519 | K130: 0 | L130: 1111
A131: 12 | B131: 23650 | C131: 14 | D131: 23655 | E131: 13 | F131: 23673 | G131: 23 | H131: 23691 | K131: 0 | L131: 1112
A132: 12 | B132: 23833 | C132: 23 | D132: 23867 | E132: 13 | F132: 23883 | G132: 23 | H132: 23898 | K132: 0 | L132: 1212

Sheet !MA16B50.096
A1: Report for:!MA16B50.096
A2: Date: | B2: <date>
A3: Hen: | B3: <hen> | F3: Correct Sequence | G3: =Start!J2 -> 2212 | P3: Total Sequences in Data | Q3: =4994-COUNTBLANK(L7:L5000) -> 117 | V3: Total Sequences in Block Data | W3: =COUNTA(L7:L26) -> 20 | AA3: Total Sequences in Block Data | AB3: =COUNTA(L27:L45) -> 19 | AF3: Total Sequences in Block Data | AG3: =COUNTA(L46:L65) -> 20 | AK3: Total Sequences in Block Data | AL3: =COUNTA(L66:L84) -> 19 | AP3: Total Sequences in Block Data | AQ3: =COUNTA(L85:L104) -> 20 | AU3: Total Sequences in Block Data | AV3: =COUNTA(L105:L123) -> 19
P4: Total Sequences in Summary | Q4: =SUM(O7:O22) -> 117 | V4: Total Sequences in Block Summary | W4: =SUM(U7:U22) -> 20 | AA4: Total Sequences in Block Summary | AB4: =SUM(Z7:Z22) -> 19 | AF4: Total Sequences in Block Summary | AG4: =SUM(AE7:AE22) -> 20 | AK4: Total Sequences in Block Summary | AL4: =SUM(AJ7:AJ22) -> 19 | AP4: Total Sequences in Block Summary | AQ4: =SUM(AO7:AO22) -> 20 | AU4: Total Sequences in Block Summary | AV4: =SUM(AT7:AT22) -> 19
T5: Block 1 | Y5: Block 2 | AD5: Block 3 | AI5: Block 4 | AN5: Block 5 | AS5: Block 6
A6: Sequence Component 1 | B6: Time 1 | C6: Sequence Component 2 | D6: Time 2 | E6: Sequence Component 3 | F6: Time 3 | G6: Sequence Component 4 | H6: Time 4 | I6: Sequence Component 5 | J6: Time 5 | K6: Correct? 0=No 1=Yes | L6: Sequence | N6: Frequency | P6: Relative Frequency | Q6: Variability | T6: Frequency | V6: Relative Frequency | W6: Variability | Y6: Frequency | AA6: Relative Frequency | AB6: Variability | AD6: Frequency | AF6: Relative Frequency | AG6: Variability | AI6: Frequency | AK6: Relative Frequency | AL6: Variability | AN6: Frequency | AP6: Relative Frequency | AQ6: Variability | AS6: Frequency | AU6: Relative Frequency | AV6: Variability
A7: 12 | B7: 10 | C7: 14 | D7: 15 | E7: 24 | F7: 26 | G7: 14 | H7: 40 | K7: 0 | L7: 1121 | N7: 1111 | O7: =COUNTIF($L$7:$L$500,N7) -> 12 | P7: =O7/$Q$4 -> 0.1025641026 | Q7: =IF(P7=0,0,(P7*((LOG(P7))/LOG(2)))) -> -0.3369643301 | T7: =N7 -> 1111 | U7: =COUNTIF(L7:L26,T7) -> 6 | V7: =U7/(W4-U20) -> 0.3 | W7: =IF(V7=0,0,(V7*((LOG(V7))/LOG(2)))) -> -0.5210896782 | Y7: =N7 -> 1111 | Z7: =COUNTIF(L27:L45,Y7) -> 1 | AA7: =Z7/(AB4-Z20) -> 0.05555555556 | AB7: =IF(AA7=0,0,(AA7*((LOG(AA7))/LOG(2)))) -> -0.2316625001 | AD7: =N7 -> 1111 | AE7: =COUNTIF(L46:L65,AD7) -> 1 | AF7: =AE7/(AG4-AE20) -> 0.05882352941 | AG7: =IF(AF7=0,0,(AF7*((LOG(AF7))/LOG(2)))) -> -0.2404389907 | AI7: =N7 -> 1111 | AJ7: =COUNTIF(L66:L84,AI7) -> 2 | AK7: =AJ7/(AL4-AJ20) -> 0.1111111111 | AL7: =IF(AK7=0,0,(AK7*((LOG(AK7))/LOG(2)))) -> -0.352213889 | AN7: =N7 -> 1111 | AO7: =COUNTIF(L85:L104,AN7) -> 1 | AP7: =AO7/(AQ4-AO20) -> 0.05263157895 | AQ7: =IF(AP7=0,0,(AP7*((LOG(AP7))/LOG(2)))) -> -0.2235751323 | AS7: =N7 -> 1111 | AT7: =COUNTIF(L105:L123,AS7) -> 1 | AU7: =AT7/(AV4-AT20) -> 0.05555555556 | AV7: =IF(AU7=0,0,(AU7*((LOG(AU7))/LOG(2)))) -> -0.2316625001
A8: 12 | B8: 140 | C8: 14 | D8: 146 | E8: 24 | F8: 160 | G8: 14 | H8: 173 | K8: 0 | L8: 1121 | N8: 1112 | O8: =COUNTIF($L$7:$L$500,N8) -> 7 | P8: =O8/$Q$4 -> 0.05982905983 | Q8: =IF(P8=0,0,(P8*((LOG(P8))/LOG(2)))) -> -0.2430860563 | T8: =N8 -> 1112 | U8: =COUNTIF(L7:L26,T8) -> 2 | V8: =U8/(W4-U20) -> 0.1 | W8: =IF(V8=0,0,(V8*((LOG(V8))/LOG(2)))) -> -0.3321928095 | Y8: =N8 -> 1112 | Z8: =COUNTIF(L27:L45,Y8) -> 0 | AA8: =Z8/(AB4-Z20) -> 0 | AB8: =IF(AA8=0,0,(AA8*((LOG(AA8))/LOG(2)))) -> 0 | AD8: =N8 -> 1112 | AE8: =COUNTIF(L46:L65,AD8) -> 0 | AF8: =AE8/(AG4-AE20) -> 0 | AG8: =IF(AF8=0,0,(AF8*((LOG(AF8))/LOG(2)))) -> 0 | AI8: =N8 -> 1112 | AJ8: =COUNTIF(L66:L84,AI8) -> 1 | AK8: =AJ8/(AL4-AJ20) -> 0.05555555556 | AL8: =IF(AK8=0,0,(AK8*((LOG(AK8))/LOG(2)))) -> -0.2316625001 | AN8: =N8 -> 1112 | AO8: =COUNTIF(L85:L104,AN8) -> 3 | AP8: =AO8/(AQ4-AO20) -> 0.1578947368 | AQ8: =IF(AP8=0,0,(AP8*((LOG(AP8))/LOG(2)))) -> -0.4204681599 | AS8: =N8 -> 1112 | AT8: =COUNTIF(L105:L123,AS8) -> 1 | AU8: =AT8/(AV4-AT20) -> 0.05555555556 | AV8: =IF(AU8=0,0,(AU8*((LOG(AU8))/LOG(2)))) -> -0.2316625001
A9: 12 | B9: 286 | C9: 14 | D9: 294 | E9: 13 | F9: 302 | G9: 14 | H9: 331 | K9: 0 | L9: 1111 | N9: 1121 | O9: =COUNTIF($L$7:$L$500,N9) -> 18 | P9: =O9/$Q$4 -> 0.1538461538 | Q9: =IF(P9=0,0,(P9*((LOG(P9))/LOG(2)))) -> -0.4154522643 | T9: =N9 -> 1121 | U9: =COUNTIF(L7:L26,T9) -> 6 | V9: =U9/(W4-U20) -> 0.3 | W9: =IF(V9=0,0,(V9*((LOG(V9))/LOG(2)))) -> -0.5210896782 | Y9: =N9 -> 1121 | Z9: =COUNTIF(L27:L45,Y9) -> 3 | AA9: =Z9/(AB4-Z20) -> 0.1666666667 | AB9: =IF(AA9=0,0,(AA9*((LOG(AA9))/LOG(2)))) -> -0.4308270835 | AD9: =N9 -> 1121 | AE9: =COUNTIF(L46:L65,AD9) -> 1 | AF9: =AE9/(AG4-AE20) -> 0.05882352941 | AG9: =IF(AF9=0,0,(AF9*((LOG(AF9))/LOG(2)))) -> -0.2404389907 | AI9: =N9 -> 1121 | AJ9: =COUNTIF(L66:L84,AI9) -> 3 | AK9: =AJ9/(AL4-AJ20) -> 0.1666666667 | AL9: =IF(AK9=0,0,(AK9*((LOG(AK9))/LOG(2)))) -> -0.4308270835 | AN9: =N9 -> 1121 | AO9: =COUNTIF(L85:L104,AN9) -> 3 | AP9: =AO9/(AQ4-AO20) -> 0.1578947368 | AQ9: =IF(AP9=0,0,(AP9*((LOG(AP9))/LOG(2)))) -> -0.4204681599 | AS9: =N9 -> 1121 | AT9: =COUNTIF(L105:L123,AS9) -> 2 | AU9: =AT9/(AV4-AT20) -> 0.1111111111 | AV9: =IF(AU9=0,0,(AU9*((LOG(AU9))/LOG(2)))) -> -0.352213889
A10: 12 | B10: 426 | C10: 14 | D10: 444 | E10: 13 | F10: 448 | G10: 14 | H10: 453 | K10: 0 | L10: 1111 | N10: 1122 | O10: =COUNTIF($L$7:$L$500,N10) -> 4 | P10: =O10/$Q$4 -> 0.03418803419 | Q10: =IF(P10=0,0,(P10*((LOG(P10))/LOG(2)))) -> -0.1665081955 | T10: =N10 -> 1122 | U10: =COUNTIF(L7:L26,T10) -> 0 | V10: =U10/(W4-U20) -> 0 | W10: =IF(V10=0,0,(V10*((LOG(V10))/LOG(2)))) -> 0 | Y10: =N10 -> 1122 | Z10: =COUNTIF(L27:L45,Y10) -> 1 | AA10: =Z10/(AB4-Z20) -> 0.05555555556 | AB10: =IF(AA10=0,0,(AA10*((LOG(AA10))/LOG(2)))) -> -0.2316625001 | AD10: =N10 -> 1122 | AE10: =COUNTIF(L46:L65,AD10) -> 1 | AF10: =AE10/(AG4-AE20) -> 0.05882352941 | AG10: =IF(AF10=0,0,(AF10*((LOG(AF10))/LOG(2)))) -> -0.2404389907 | AI10: =N10 -> 1122 | AJ10: =COUNTIF(L66:L84,AI10) -> 0 | AK10: =AJ10/(AL4-AJ20) -> 0 | AL10: =IF(AK10=0,0,(AK10*((LOG(AK10))/LOG(2)))) -> 0 | AN10: =N10 -> 1122 | AO10: =COUNTIF(L85:L104,AN10) -> 2 | AP10: =AO10/(AQ4-AO20) -> 0.1052631579 | AQ10: =IF(AP10=0,0,(AP10*((LOG(AP10))/LOG(2)))) -> -0.3418871067 | AS10: =N10 -> 1122 | AT10: =COUNTIF(L105:L123,AS10) -> 0 | AU10: =AT10/(AV4-AT20) -> 0 | AV10: =IF(AU10=0,0,(AU10*((LOG(AU10))/LOG(2)))) -> 0
A11: 12 | B11: 554 | C11: 23 | D11: 574 | E11: 13 | F11: 584 | G11: 14 | H11: 589 | K11: 0 | L11: 1211 | N11: 1211 | O11: =COUNTIF($L$7:$L$500,N11) -> 11 | P11: =O11/$Q$4 -> 0.09401709402 | Q11: =IF(P11=0,0,(P11*((LOG(P11))/LOG(2)))) -> -0.320686018 | T11: =N11 -> 1211 | U11: =COUNTIF(L7:L26,T11) -> 6 | V11: =U11/(W4-U20) -> 0.3 | W11: =IF(V11=0,0,(V11*((LOG(V11))/LOG(2)))) -> -0.5210896782 | Y11: =N11 -> 1211 | Z11: =COUNTIF(L27:L45,Y11) -> 1 | AA11: =Z11/(AB4-Z20) -> 0.05555555556 | AB11: =IF(AA11=0,0,(AA11*((LOG(AA11))/LOG(2)))) -> -0.2316625001 | AD11: =N11 -> 1211 | AE11: =COUNTIF(L46:L65,AD11) -> 0 | AF11: =AE11/(AG4-AE20) -> 0 | AG11: =IF(AF11=0,0,(AF11*((LOG(AF11))/LOG(2)))) -> 0 | AI11: =N11 -> 1211 | AJ11: =COUNTIF(L66:L84,AI11) -> 1 | AK11: =AJ11/(AL4-AJ20) -> 0.05555555556 | AL11: =IF(AK11=0,0,(AK11*((LOG(AK11))/LOG(2)))) -> -0.2316625001 | AN11: =N11 -> 1211 | AO11: =COUNTIF(L85:L104,AN11) -> 1 | AP11: =AO11/(AQ4-AO20) -> 0.05263157895 | AQ11: =IF(AP11=0,0,(AP11*((LOG(AP11))/LOG(2)))) -> -0.2235751323 | AS11: =N11 -> 1211 | AT11: =COUNTIF(L105:L123,AS11) -> 2 | AU11: =AT11/(AV4-AT20) -> 0.1111111111 | AV11: =IF(AU11=0,0,(AU11*((LOG(AU11))/LOG(2)))) -> -0.352213889
A12: 12 | B12: 711 | C12: 23 | D12: 724 | E12: 13 | F12: 735 | G12: 14 | H12: 740 | K12: 0 | L12: 1211 | N12: 1212 | O12: =COUNTIF($L$7:$L$500,N12) -> 5 | P12: =O12/$Q$4 -> 0.04273504274 | Q12: =IF(P12=0,0,(P12*((LOG(P12))/LOG(2)))) -> -0.1943776335 | T12: =N12 -> 1212 | U12: =COUNTIF(L7:L26,T12) -> 0 | V12: =U12/(W4-U20) -> 0 | W12: =IF(V12=0,0,(V12*((LOG(V12))/LOG(2)))) -> 0 | Y12: =N12 -> 1212 | Z12: =COUNTIF(L27:L45,Y12) -> 0 | AA12: =Z12/(AB4-Z20) -> 0 | AB12: =IF(AA12=0,0,(AA12*((LOG(AA12))/LOG(2)))) -> 0 | AD12: =N12 -> 1212 | AE12: =COUNTIF(L46:L65,AD12) -> 1 | AF12: =AE12/(AG4-AE20) -> 0.05882352941 | AG12: =IF(AF12=0,0,(AF12*((LOG(AF12))/LOG(2)))) -> -0.2404389907 | AI12: =N12 -> 1212 | AJ12: =COUNTIF(L66:L84,AI12) -> 1 | AK12: =AJ12/(AL4-AJ20) -> 0.05555555556 | AL12: =IF(AK12=0,0,(AK12*((LOG(AK12))/LOG(2)))) -> -0.2316625001 | AN12: =N12 -> 1212 | AO12: =COUNTIF(L85:L104,AN12) -> 2 | AP12: =AO12/(AQ4-AO20) -> 0.1052631579 | AQ12: =IF(AP12=0,0,(AP12*((LOG(AP12))/LOG(2)))) -> -0.3418871067 | AS12: =N12 -> 1212 | AT12: =COUNTIF(L105:L123,AS12) -> 1 | AU12: =AT12/(AV4-AT20) -> 0.05555555556 | AV12: =IF(AU12=0,0,(AU12*((LOG(AU12))/LOG(2)))) -> -0.2316625001
A13: 12 | B13: 862 | C13: 23 | D13: 875 | E13: 13 | F13: 891 | G13: 14 | H13: 896 | K13: 0 | L13: 1211 | N13: 1221 | O13: =COUNTIF($L$7:$L$500,N13) -> 7 | P13: =O13/$Q$4 -> 0.05982905983 | Q13: =IF(P13=0,0,(P13*((LOG(P13))/LOG(2)))) -> -0.2430860563 | T13: =N13 -> 1221 | U13: =COUNTIF(L7:L26,T13) -> 0 | V13: =U13/(W4-U20) -> 0 | W13: =IF(V13=0,0,(V13*((LOG(V13))/LOG(2)))) -> 0 | Y13: =N13 -> 1221 | Z13: =COUNTIF(L27:L45,Y13) -> 1 | AA13: =Z13/(AB4-Z20) -> 0.05555555556 | AB13: =IF(AA13=0,0,(AA13*((LOG(AA13))/LOG(2)))) -> -0.2316625001 | AD13: =N13 -> 1221 | AE13: =COUNTIF(L46:L65,AD13) -> 3 | AF13: =AE13/(AG4-AE20) -> 0.1764705882 | AG13: =IF(AF13=0,0,(AF13*((LOG(AF13))/LOG(2)))) -> -0.4416177072 | AI13: =N13 -> 1221 | AJ13: =COUNTIF(L66:L84,AI13) -> 1 | AK13: =AJ13/(AL4-AJ20) -> 0.05555555556 | AL13: =IF(AK13=0,0,(AK13*((LOG(AK13))/LOG(2)))) -> -0.2316625001 | AN13: =N13 -> 1221 | AO13: =COUNTIF(L85:L104,AN13) -> 1 | AP13: =AO13/(AQ4-AO20) -> 0.05263157895 | AQ13: =IF(AP13=0,0,(AP13*((LOG(AP13))/LOG(2)))) -> -0.2235751323 | AS13: =N13 -> 1221 | AT13: =COUNTIF(L105:L123,AS13) -> 1 | AU13: =AT13/(AV4-AT20) -> 0.05555555556 | AV13: =IF(AU13=0,0,(AU13*((LOG(AU13))/LOG(2)))) -> -0.2316625001
A14: 12 | B14: 999 | C14: 14 | D14: 1008 | E14: 13 | F14: 1028 | G14: 23 | H14: 1040 | K14: 0 | L14: 1112 | N14: 1222 | O14: =COUNTIF($L$7:$L$500,N14) -> 2 | P14: =O14/$Q$4 -> 0.01709401709 | Q14: =IF(P14=0,0,(P14*((LOG(P14))/LOG(2)))) -> -0.1003481149 | T14: =N14 -> 1222 | U14: =COUNTIF(L7:L26,T14) -> 0 | V14: =U14/(W4-U20) -> 0 | W14: =IF(V14=0,0,(V14*((LOG(V14))/LOG(2)))) -> 0 | Y14: =N14 -> 1222 | Z14: =COUNTIF(L27:L45,Y14) -> 0 | AA14: =Z14/(AB4-Z20) -> 0 | AB14: =IF(AA14=0,0,(AA14*((LOG(AA14))/LOG(2)))) -> 0 | AD14: =N14 -> 1222 | AE14: =COUNTIF(L46:L65,AD14) -> 0 | AF14: =AE14/(AG4-AE20) -> 0 | AG14: =IF(AF14=0,0,(AF14*((LOG(AF14))/LOG(2)))) -> 0 | AI14: =N14 -> 1222 | AJ14: =COUNTIF(L66:L84,AI14) -> 2 | AK14: =AJ14/(AL4-AJ20) -> 0.1111111111 | AL14: =IF(AK14=0,0,(AK14*((LOG(AK14))/LOG(2)))) -> -0.352213889 | AN14: =N14 -> 1222 | AO14: =COUNTIF(L85:L104,AN14) -> 0 | AP14: =AO14/(AQ4-AO20) -> 0 | AQ14: =IF(AP14=0,0,(AP14*((LOG(AP14))/LOG(2)))) -> 0 | AS14: =N14 -> 1222 | AT14: =COUNTIF(L105:L123,AS14) -> 0 | AU14: =AT14/(AV4-AT20) -> 0 | AV14: =IF(AU14=0,0,(AU14*((LOG(AU14))/LOG(2)))) -> 0
A15: 12 | B15: 1137 | C15: 14 | D15: 1151 | E15: 13 | F15: 1156 | G15: 23 | H15: 1164 | K15: 0 | L15: 1112 | N15: 2111 | O15: =COUNTIF($L$7:$L$500,N15) -> 3 | P15: =O15/$Q$4 -> 0.02564102564 | Q15: =IF(P15=0,0,(P15*((LOG(P15))/LOG(2)))) -> -0.1355231338 | T15: =N15 -> 2111 | U15: =COUNTIF(L7:L26,T15) -> 0 | V15: =U15/(W4-U20) -> 0 | W15: =IF(V15=0,0,(V15*((LOG(V15))/LOG(2)))) -> 0 | Y15: =N15 -> 2111 | Z15: =COUNTIF(L27:L45,Y15) -> 0 | AA15: =Z15/(AB4-Z20) -> 0 | AB15: =IF(AA15=0,0,(AA15*((LOG(AA15))/LOG(2)))) -> 0 | AD15: =N15 -> 2111 | AE15: =COUNTIF(L46:L65,AD15) -> 0 | AF15: =AE15/(AG4-AE20) -> 0 | AG15: =IF(AF15=0,0,(AF15*((LOG(AF15))/LOG(2)))) -> 0 | AI15: =N15 -> 2111 | AJ15: =COUNTIF(L66:L84,AI15) -> 1 | AK15: =AJ15/(AL4-AJ20) -> 0.05555555556 | AL15: =IF(AK15=0,0,(AK15*((LOG(AK15))/LOG(2)))) -> -0.2316625001 | AN15: =N15 -> 2111 | AO15: =COUNTIF(L85:L104,AN15) -> 0 | AP15: =AO15/(AQ4-AO20) -> 0 | AQ15: =IF(AP15=0,0,(AP15*((LOG(AP15))/LOG(2)))) -> 0 | AS15: =N15 -> 2111 | AT15: =COUNTIF(L105:L123,AS15) -> 2 | AU15: =AT15/(AV4-AT20) -> 0.1111111111 | AV15: =IF(AU15=0,0,(AU15*((LOG(AU15))/LOG(2)))) -> -0.352213889
A16: 12 | B16: 1263 | C16: 14 | D16: 1267 | E16: 24 | F16: 1277 | G16: 14 | H16: 1289 | K16: 0 | L16: 1121 | N16: 2112 | O16: =COUNTIF($L$7:$L$500,N16) -> 3 | P16: =O16/$Q$4 -> 0.02564102564 | Q16: =IF(P16=0,0,(P16*((LOG(P16))/LOG(2)))) -> -0.1355231338 | T16: =N16 -> 2112 | U16: =COUNTIF(L7:L26,T16) -> 0 | V16: =U16/(W4-U20) -> 0 | W16: =IF(V16=0,0,(V16*((LOG(V16))/LOG(2)))) -> 0 | Y16: =N16 -> 2112 | Z16: =COUNTIF(L27:L45,Y16) -> 1 | AA16: =Z16/(AB4-Z20) -> 0.05555555556 | AB16: =IF(AA16=0,0,(AA16*((LOG(AA16))/LOG(2)))) -> -0.2316625001 | AD16: =N16 -> 2112 | AE16: =COUNTIF(L46:L65,AD16) -> 0 | AF16: =AE16/(AG4-AE20) -> 0 | AG16: =IF(AF16=0,0,(AF16*((LOG(AF16))/LOG(2)))) -> 0 | AI16: =N16 -> 2112 | AJ16: =COUNTIF(L66:L84,AI16) -> 1 | AK16: =AJ16/(AL4-AJ20) -> 0.05555555556 | AL16: =IF(AK16=0,0,(AK16*((LOG(AK16))/LOG(2)))) -> -0.2316625001 | AN16: =N16 -> 2112 | AO16: =COUNTIF(L85:L104,AN16) -> 1 | AP16: =AO16/(AQ4-AO20) -> 0.05263157895 | AQ16: =IF(AP16=0,0,(AP16*((LOG(AP16))/LOG(2)))) -> -0.2235751323 | AS16: =N16 -> 2112 | AT16: =COUNTIF(L105:L123,AS16) -> 0 | AU16: =AT16/(AV4-AT20) -> 0 | AV16: =IF(AU16=0,0,(AU16*((LOG(AU16))/LOG(2)))) -> 0
A17: 12 | B17: 1406 | C17: 23 | D17: 1421 | E17: 13 | F17: 1433 | G17: 14 | H17: 1442 | K17: 0 | L17: 1211 | N17: 2121 | O17: =COUNTIF($L$7:$L$500,N17) -> 3 | P17: =O17/$Q$4 -> 0.02564102564 | Q17: =IF(P17=0,0,(P17*((LOG(P17))/LOG(2)))) -> -0.1355231338 | T17: =N17 -> 2121 | U17: =COUNTIF(L7:L26,T17) -> 0 | V17: =U17/(W4-U20) -> 0 | W17: =IF(V17=0,0,(V17*((LOG(V17))/LOG(2)))) -> 0 | Y17: =N17 -> 2121 | Z17: =COUNTIF(L27:L45,Y17) -> 1 | AA17: =Z17/(AB4-Z20) -> 0.05555555556 | AB17: =IF(AA17=0,0,(AA17*((LOG(AA17))/LOG(2)))) -> -0.2316625001 | AD17: =N17 -> 2121 | AE17: =COUNTIF(L46:L65,AD17) -> 0 | AF17: =AE17/(AG4-AE20) -> 0 | AG17: =IF(AF17=0,0,(AF17*((LOG(AF17))/LOG(2)))) -> 0 | AI17: =N17 -> 2121 | AJ17: =COUNTIF(L66:L84,AI17) -> 0 | AK17: =AJ17/(AL4-AJ20) -> 0 | AL17: =IF(AK17=0,0,(AK17*((LOG(AK17))/LOG(2)))) -> 0 | AN17: =N17 -> 2121 | AO17: =COUNTIF(L85:L104,AN17) -> 0 | AP17: =AO17/(AQ4-AO20) -> 0 | AQ17: =IF(AP17=0,0,(AP17*((LOG(AP17))/LOG(2)))) -> 0 | AS17: =N17 -> 2121 | AT17: =COUNTIF(L105:L123,AS17) -> 2 | AU17: =AT17/(AV4-AT20) -> 0.1111111111 | AV17: =IF(AU17=0,0,(AU17*((LOG(AU17))/LOG(2)))) -> -0.352213889
A18: 12 | B18: 1542 | C18: 14 | D18: 1555 | E18: 13 | F18: 1575 | G18: 14 | H18: 1580 | K18: 0 | L18: 1111 | N18: 2122 | O18: =COUNTIF($L$7:$L$500,N18) -> 1 | P18: =O18/$Q$4 -> 0.008547008547 | Q18: =IF(P18=0,0,(P18*((LOG(P18))/LOG(2)))) -> -0.05872106598 | T18: =N18 -> 2122 | U18: =COUNTIF(L7:L26,T18) -> 0 | V18: =U18/(W4-U20) -> 0 | W18: =IF(V18=0,0,(V18*((LOG(V18))/LOG(2)))) -> 0 | Y18: =N18 -> 2122 | Z18: =COUNTIF(L27:L45,Y18) -> 0 | AA18: =Z18/(AB4-Z20) -> 0 | AB18: =IF(AA18=0,0,(AA18*((LOG(AA18))/LOG(2)))) -> 0 | AD18: =N18 -> 2122 | AE18: =COUNTIF(L46:L65,AD18) -> 0 | AF18: =AE18/(AG4-AE20) -> 0 | AG18: =IF(AF18=0,0,(AF18*((LOG(AF18))/LOG(2)))) -> 0 | AI18: =N18 -> 2122 | AJ18: =COUNTIF(L66:L84,AI18) -> 0 | AK18: =AJ18/(AL4-AJ20) -> 0 | AL18: =IF(AK18=0,0,(AK18*((LOG(AK18))/LOG(2)))) -> 0 | AN18: =N18 -> 2122 | AO18: =COUNTIF(L85:L104,AN18) -> 1 | AP18: =AO18/(AQ4-AO20) -> 0.05263157895 | AQ18: =IF(AP18=0,0,(AP18*((LOG(AP18))/LOG(2)))) -> -0.2235751323 | AS18: =N18 -> 2122 | AT18: =COUNTIF(L105:L123,AS18) -> 0 | AU18: =AT18/(AV4-AT20) -> 0 | AV18: =IF(AU18=0,0,(AU18*((LOG(AU18))/LOG(2)))) -> 0
A19: 12 | B19: 1678 | C19: 14 | D19: 1688 | E19: 13 | F19: 1692 | G19: 14 | H19: 1715 | K19: 0 | L19: 1111 | N19: 2211 | O19: =COUNTIF($L$7:$L$500,N19) -> 9 | P19: =O19/$Q$4 -> 0.07692307692 | Q19: =IF(P19=0,0,(P19*((LOG(P19))/LOG(2)))) -> -0.2846492091 | T19: =N19 -> 2211 | U19: =COUNTIF(L7:L26,T19) -> 0 | V19: =U19/(W4-U20) -> 0 | W19: =IF(V19=0,0,(V19*((LOG(V19))/LOG(2)))) -> 0 | Y19: =N19 -> 2211 | Z19: =COUNTIF(L27:L45,Y19) -> 6 | AA19: =Z19/(AB4-Z20) -> 0.3333333333 | AB19: =IF(AA19=0,0,(AA19*((LOG(AA19))/LOG(2)))) -> -0.5283208336 | AD19: =N19 -> 2211 | AE19: =COUNTIF(L46:L65,AD19) -> 2 | AF19: =AE19/(AG4-AE20) -> 0.1176470588 | AG19: =IF(AF19=0,0,(AF19*((LOG(AF19))/LOG(2)))) -> -0.3632309225 | AI19: =N19 -> 2211 | AJ19: =COUNTIF(L66:L84,AI19) -> 0 | AK19: =AJ19/(AL4-AJ20) -> 0 | AL19: =IF(AK19=0,0,(AK19*((LOG(AK19))/LOG(2)))) -> 0 | AN19: =N19 -> 2211 | AO19: =COUNTIF(L85:L104,AN19) -> 0 | AP19: =AO19/(AQ4-AO20) -> 0 | AQ19: =IF(AP19=0,0,(AP19*((LOG(AP19))/LOG(2)))) -> 0 | AS19: =N19 -> 2211 | AT19: =COUNTIF(L105:L123,AS19) -> 1 | AU19: =AT19/(AV4-AT20) -> 0.05555555556 | AV19: =IF(AU19=0,0,(AU19*((LOG(AU19))/LOG(2)))) -> -0.2316625001
A20: 12 | B20: 1828 | C20: 14 | D20: 1832 | E20: 13 | F20: 1852 | G20: 14 | H20: 1860 | K20: 0 | L20: 1111 | N20: 2212 | O20: =COUNTIF($L$7:$L$500,N20) -> 7 | P20: =O20/$Q$4 -> 0.05982905983 | Q20: =IF(P20=0,0,(P20*((LOG(P20))/LOG(2)))) -> -0.2430860563 | T20: =N20 -> 2212 | U20: =COUNTIF(L7:L26,T20) -> 0 | Y20: =N20 -> 2212 | Z20: =COUNTIF(L27:L45,Y20) -> 1 | AD20: =N20 -> 2212 | AE20: =COUNTIF(L46:L65,AD20) -> 3 | AI20: =N20 -> 2212 | AJ20: =COUNTIF(L66:L84,AI20) -> 1 | AN20: =N20 -> 2212 | AO20: =COUNTIF(L85:L104,AN20) -> 1 | AS20: =N20 -> 2212 | AT20: =COUNTIF(L105:L123,AS20) -> 1
A21: 12 | B21: 1994 | C21: 14 | D21: 1999 | E21: 24 | F21: 2011 | G21: 14 | H21: 2026 | K21: 0 | L21: 1121 | N21: 2221 | O21: =COUNTIF($L$7:$L$500,N21) -> 13 | P21: =O21/$Q$4 -> 0.1111111111 | Q21: =IF(P21=0,0,(P21*((LOG(P21))/LOG(2)))) -> -0.352213889 | T21: =N21 -> 2221 | U21: =COUNTIF(L7:L26,T21) -> 0 | V21: =U21/(W4-U20) -> 0 | W21: =IF(V21=0,0,(V21*((LOG(V21))/LOG(2)))) -> 0 | Y21: =N21 -> 2221 | Z21: =COUNTIF(L27:L45,Y21) -> 2 | AA21: =Z21/(AB4-Z20) -> 0.1111111111 | AB21: =IF(AA21=0,0,(AA21*((LOG(AA21))/LOG(2)))) -> -0.352213889 | AD21: =N21 -> 2221 | AE21: =COUNTIF(L46:L65,AD21) -> 3 | AF21: =AE21/(AG4-AE20) -> 0.1764705882 | AG21: =IF(AF21=0,0,(AF21*((LOG(AF21))/LOG(2)))) -> -0.4416177072 | AI21: =N21 -> 2221 | AJ21: =COUNTIF(L66:L84,AI21) -> 2 | AK21: =AJ21/(AL4-AJ20) -> 0.1111111111 | AL21: =IF(AK21=0,0,(AK21*((LOG(AK21))/LOG(2)))) -> -0.352213889 | AN21: =N21 -> 2221 | AO21: =COUNTIF(L85:L104,AN21) -> 3 | AP21: =AO21/(AQ4-AO20) -> 0.1578947368 | AQ21: =IF(AP21=0,0,(AP21*((LOG(AP21))/LOG(2)))) -> -0.4204681599 | AS21: =N21 -> 2221 | AT21: =COUNTIF(L105:L123,AS21) -> 3 | AU21: =AT21/(AV4-AT20) -> 0.1666666667 | AV21: =IF(AU21=0,0,(AU21*((LOG(AU21))/LOG(2)))) -> -0.4308270835
A22: 12 | B22: 2142 | C22: 14 | D22: 2149 | E22: 13 | F22: 2169 | G22: 14 | H22: 2178 | K22: 0 | L22: 1111 | N22: 2222 | O22: =COUNTIF($L$7:$L$500,N22) -> 12 | P22: =O22/$Q$4 -> 0.1025641026 | Q22: =IF(P22=0,0,(P22*((LOG(P22))/LOG(2)))) -> -0.3369643301 | T22: =N22 -> 2222 | U22: =COUNTIF(L7:L26,T22) -> 0 | V22: =U22/(W4-U20) -> 0 | W22: =IF(V22=0,0,(V22*((LOG(V22))/LOG(2)))) -> 0 | Y22: =N22 -> 2222 | Z22: =COUNTIF(L27:L45,Y22) -> 1 | AA22: =Z22/(AB4-Z20) -> 0.05555555556 | AB22: =IF(AA22=0,0,(AA22*((LOG(AA22))/LOG(2)))) -> -0.2316625001 | AD22: =N22 -> 2222 | AE22: =COUNTIF(L46:L65,AD22) -> 5 | AF22: =AE22/(AG4-AE20) -> 0.2941176471 | AG22: =IF(AF22=0,0,(AF22*((LOG(AF22))/LOG(2)))) -> -0.5192749254 | AI22: =N22 -> 2222 | AJ22: =COUNTIF(L66:L84,AI22) -> 3 | AK22: =AJ22/(AL4-AJ20) -> 0.1666666667 | AL22: =IF(AK22=0,0,(AK22*((LOG(AK22))/LOG(2)))) -> -0.4308270835 | AN22: =N22 -> 2222 | AO22: =COUNTIF(L85:L104,AN22) -> 1 | AP22: =AO22/(AQ4-AO20) -> 0.05263157895 | AQ22: =IF(AP22=0,0,(AP22*((LOG(AP22))/LOG(2)))) -> -0.2235751323 | AS22: =N22 -> 2222 | AT22: =COUNTIF(L105:L123,AS22) -> 2 | AU22: =AT22/(AV4-AT20) -> 0.1111111111 | AV22: =IF(AU22=0,0,(AU22*((LOG(AU22))/LOG(2)))) -> -0.352213889
A23: 12 | B23: 2281 | C23: 14 | D23: 2289 | E23: 24 | F23: 2301 | G23: 14 | H23: 2312 | K23: 0 | L23: 1121 | P23: =SUM(P7:P22) -> 1 | Q23: =-SUM(Q7:Q22) -> 3.702712621 | V23: =SUM(V7:V22) -> 1 | W23: =-SUM(W7:W22) -> 1.895461844 | AA23: =SUM(AA7:AA22) -> 1 | AB23: =-SUM(AB7:AB22) -> 2.932999307 | AF23: =SUM(AF7:AF22) -> 1 | AG23: =-SUM(AG7:AG22) -> 2.727497225 | AK23: =SUM(AK7:AK22) -> 1 | AL23: =-SUM(AL7:AL22) -> 3.308270835 | AP23: =SUM(AP7:AP22) -> 1 | AQ23: =-SUM(AQ7:AQ22) -> 3.286629487 | AU23: =SUM(AU7:AU22) -> 1 | AV23: =-SUM(AV7:AV22) -> 3.350209029
A24: 12 | B24: 2429 | C24: 23 | D24: 2438 | E24: 13 | F24: 2449 | G24: 14 | H24: 2459 | K24: 0 | L24: 1211 | P24: U= | Q24: =Q23/(LOG(Q4)/LOG(2)) -> 0.5389397466 | V24: U1= | W24: =W23/(LOG(W4)/LOG(2)) -> 0.4385685746 | AA24: U2= | AB24: =AB23/(LOG(AB4)/LOG(2)) -> 0.6904541797 | AF24: U3= | AG24: =AG23/(LOG(AG4)/LOG(2)) -> 0.6310834343 | AK24: U4= | AL24: =AL23/(LOG(AL4)/LOG(2)) -> 0.7787964423 | AP24: U5= | AQ24: =AQ23/(LOG(AQ4)/LOG(2)) -> 0.760454458 | AU24: U6= | AV24: =AV23/(LOG(AV4)/LOG(2)) -> 0.7886690671
A25: 12 | B25: 2571 | C25: 14 | D25: 2588 | E25: 24 | F25: 2601 | G25: 14 | H25: 2616 | K25: 0 | L25: 1121
A26: 12 | B26: 2724 | C26: 23 | D26: 2741 | E26: 13 | F26: 2756 | G26: 14 | H26: 2761 | K26: 0 | L26: 1211
A27: 12 | B27: 2895 | C27: 23 | D27: 2910 | E27: 13 | F27: 2922 | G27: 14 | H27: 2929 | K27: 0 | L27: 1211 | N27: Total Target Seq
A28: 12 | B28: 3034 | C28: 14 | D28: 3049 | E28: 13 | F28: 3075 | G28: 14 | H28: 3080 | K28: 0 | L28: 1111 | N28: =COUNTIF(L7:L123,G3) -> 7 | P28: 20 | Q28: 19 | R28: 20 | S28: 19 | T28: 20 | U28: 19
A29: 12 | B29: 3196 | C29: 14 | D29: 3224 | E29: 24 | F29: 3232 | G29: 14 | H29: 3243 | K29: 0 | L29: 1121 | P29: % of reinforcement given in 6 equal intervals based on number of trials
A30: 12 | B30: 3443 | C30: 14 | D30: 3448 | E30: 24 | F30: 3461 | G30: 14 | H30: 3471 | K30: 0 | L30: 1121 | P30: %_1 | Q30: %_2 | R30: %_3 | S30: %_4 | T30: %_5 | U30: %_6
A31: 21 | B31: 3591 | C31: 21 | D31: 3610 | E31: 11 | F31: 3621 | G31: 12 | H31: 3630 | K31: 0 | L31: 2211 | O31: target sequence | P31: =$G$3 -> 2212 | Q31: =$G$3 -> 2212 | R31: =$G$3 -> 2212 | S31: =$G$3 -> 2212 | T31: =$G$3 -> 2212 | U31: =$G$3 -> 2212
A32: 21 | B32: 3733 | C32: 21 | D32: 3748 | E32: 11 | F32: 3761 | G32: 21 | H32: 3780 | K32: 0 | L32: 2212 | O32: total reinforcement | P32: =U20 -> 0 | Q32: =Z20 -> 1 | R32: =AE20 -> 3 | S32: =AJ20 -> 1 | T32: =AO20 -> 1 | U32: =AT20 -> 1
A33: 21 | B33: 3890 | C33: 21 | D33: 3915 | E33: 22 | F33: 3932 | G33: 14 | H33: 3958 | K33: 0 | L33: 2221 | O33: % target
A34: 21 | B34: 4106 | C34: 21 | D34: 4124 | E34: 11 | F34: 4135 | G34: 12 | H34: 4140 | K34: 0 | L34: 2211 | O34: CCRF
A35: 21 | B35: 4272 | C35: 12 | D35: 4283 | E35: 24 | F35: 4294 | G35: 14 | H35: 4305 | K35: 0 | L35: 2121 | O35: % CCRf
A36: 21 | B36: 4448 | C36: 21 | D36: 4460 | E36: 11 | F36: 4470 | G36: 12 | H36: 4475 | K36: 0 | L36: 2211 | O36: average response rate | P36: =H26/P28 -> 138.05 | Q36: =(H45-H26)/Q28 -> 180.3684211 | R36: =(H65-H45)/R28 -> 194.5 | S36: =(H84-H65)/S28 -> 224.8947368 | T36: =(H104-H84)/T28 -> 269.55 | U36: =(H123-H104)/U28 -> 219.8947368
A37: 21 | B37: 4596 | C37: 21 | D37: 4616 | E37: 11 | F37: 4629 | G37: 12 | H37: 4633 | K37: 0 | L37: 2211
A38: 12 | B38: 4748 | C38: 23 | D38: 4757 | E38: 24 | F38: 4766 | G38: 14 | H38: 4776 | K38: 0 | L38: 1221
A39: 21 | B39: 4947 | C39: 12 | D39: 4961 | E39: 13 | F39: 4965 | G39: 23 | H39: 4980 | K39: 0 | L39: 2112
A40: 12 | B40: 5124 | C40: 14 | D40: 5128 | E40: 24 | F40: 5143 | G40: 23 | H40: 5159 | K40: 0 | L40: 1122
A41: 21 | B41: 5280 | C41: 21 | D41: 5289 | E41: 11 | F41: 5304 | G41: 12 | H41: 5309 | K41: 0 | L41: 2211
A42: 21 | B42: 5591 | C42: 21 | D42: 5610 | E42: 11 | F42: 5626 | G42: 12 | H42: 5631 | K42: 0 | L42: 2211
A43: 12 | B43: 5760 | C43: 14 | D43: 5765 | E43: 24 | F43: 5775 | G43: 14 | H43: 5794 | K43: 0 | L43: 1121
A44: 21 | B44: 5971 | C44: 21 | D44: 5983 | E44: 22 | F44: 5993 | G44: 14 | H44: 6005 | K44: 0 | L44: 2221
A45: 21 | B45: 6135 | C45: 21 | D45: 6143 | E45: 22 | F45: 6165 | G45: 23 | H45: 6188 | K45: 0 | L45: 2222
A46: 12 | B46: 6320 | C46: 23 | D46: 6337 | E46: 24 | F46: 6361 | G46: 14 | H46: 6376 | K46: 0 | L46: 1221
A47: 21 | B47: 6581 | C47: 21 | D47: 6594 | E47: 22 | F47: 6601 | G47: 23 | H47: 6645 | K47: 0 | L47: 2222
A48: 21 | B48: 6829 | C48: 21 | D48: 6840 | E48: 22 | F48: 6876 | G48: 14 | H48: 6889 | K48: 0 | L48: 2221
A49: 21 | B49: 7056 | C49: 21 | D49: 7084 | E49: 11 | F49: 7096 | G49: 21 | H49: 7114 | K49: 0 | L49: 2212
A50: 12 | B50: 7271 | C50: 14 | D50: 7277 | E50: 24 | F50: 7288 | G50: 14 | H50: 7302 | K50: 0 | L50: 1121
A51: 12 | B51: 7408 | C51: 23 | D51: 7436 | E51: 13 | F51: 7448 | G51: 23 | H51: 7460 | K51: 0 | L51: 1212
A52: 21 | B52: 7642 | C52: 21 | D52: 7653 | E52: 22 | F52: 7677 | G52: 14 | H52: 7702 | K52: 0 | L52: 2221
A53: 21 | B53: 7836 | C53: 21 | D53: 7852 | E53: 11 | F53: 7865 | G53: 21 | H53: 7876 | K53: 0 | L53: 2212
A54: 21 | B54: 8002 | C54: 21 | D54: 8025 | E54: 22 | F54: 8056 | G54: 23 | H54: 8077 | K54: 0 | L54: 2222
A55: 12 | B55: 8174 | C55: 14 | D55: 8212 | E55: 13 | F55: 8219 | G55: 14 | H55: 8227 | K55: 0 | L55: 1111
A56: 12 | B56: 8373 | C56: 23 | D56: 8382 | E56: 24 | F56: 8399 | G56: 14 | H56: 8409 | K56: 0 | L56: 1221
A57: 21 | B57: 8534 | C57: 21 | D57: 8557 | E57: 22 | F57: 8565 | G57: 23 | H57: 8573 | K57: 0 | L57: 2222
A58: 21 | B58: 8710 | C58: 21 | D58: 8723 | E58: 11 | F58: 8750 | G58: 12 | H58: 8755 | K58: 0 | L58: 2211
A59: 21 | B59: 8878 | C59: 21 | D59: 8917 | E59: 11 | F59: 8942 | G59: 12 | H59: 8949 | K59: 0 | L59: 2211
A60: 21 | B60: 9090 | C60: 21 | D60: 9105 | E60: 11 | F60: 9119 | G60: 21 | H60: 9140 | K60: 0 | L60: 2212
A61: 12 | B61: 9264 | C61: 23 | D61: 9274 | E61: 24 | F61: 9282 | G61: 14 | H61: 9298 | K61: 0 | L61: 1221
A62: 12 | B62: 9417 | C62: 14 | D62: 9442 | E62: 24 | F62: 9451 | G62: 23 | H62: 9462 | K62: 0 | L62: 1122
A63: 21 | B63: 9608 | C63: 21 | D63: 9624 | E63: 22 | F63: 9638 | G63: 14 | H63: 9671 | K63: 0 | L63: 2221
A64: 21 | B64: 9839 | C64: 21 | D64: 9847 | E64: 22 | F64: 9864 | G64: 23 | H64: 9888 | K64: 0 | L64: 2222
A65: 21 | B65: 10029 | C65: 21 | D65: 10050 | E65: 22 | F65: 10070 | G65: 23 | H65: 10078 | K65: 0 | L65: 2222
A66: 21 | B66: 10226 | C66: 21 | D66: 10241 | E66: 22 | F66: 10249 | G66: 14 | H66: 10274 | K66: 0 | L66: 2221
A67: 21 | B67: 10460 | C67: 21 | D67: 10476 | E67: 22 | F67: 10496 | G67: 23 | H67: 10513 | K67: 0 | L67: 2222
A68: 21 | B68: 10666 | C68: 21 | D68: 10683 | E68: 22 | F68: 10701 | G68: 23 | H68: 10729 | K68: 0 | L68: 2222
A69: 12 | B69: 10884 | C69: 23 | D69: 10896 | E69: 24 | F69: 10907 | G69: 23 | H69: 10930 | K69: 0 | L69: 1222
A70: 12 | B70: 11045 | C70: 23 | D70: 11077 | E70: 24 | F70: 11095 | G70: 23 | H70: 11108 | K70: 0 | L70: 1222
A71: 12 | B71: 11299 | C71: 23 | D71: 11326 | E71: 13 | F71: 11341 | G71: 14 | H71: 11347 | K71: 0 | L71: 1211
A72: 12 | B72: 11508 | C72: 23 | D72: 11521 | E72: 24 | F72: 11546 | G72: 14 | H72: 11562 | K72: 0 | L72: 1221
A73: 12 | B73: 11703 | C73: 14 | D73: 11708 | E73: 24 | F73: 11722 | G73: 14 | H73: 11733 | K73: 0 | L73: 1121
A74: 12 | B74: 11910 | C74: 23 | D74: 11952 | E74: 13 | F74: 11965 | G74: 23 | H74: 11983 | K74: 0 | L74: 1212
A75: 12 | B75: 12121 | C75: 14 | D75: 12147 | E75: 24 | F75: 12156 | G75: 14 | H75: 12178 | K75: 0 | L75: 1121
A76: 21 | B76: 12468 | C76: 21 | D76: 12492 | E76: 22 | F76: 12505 | G76: 23 | H76: 12527 | K76: 0 | L76: 2222
A77: 21 | B77: 12648 | C77: 21 | D77: 12719 | E77: 22 | F77: 12776 | G77: 14 | H77: 12787 | K77: 0 | L77: 2221
A78: 21 | B78: 12956 | C78: 12 | D78: 12971 | E78: 13 | F78: 13010 | G78: 23 | H78: 13021 | K78: 0 | L78: 2112
A79: 12 | B79: 13248 | C79: 14 | D79: 13257 | E79: 13 | F79: 13360 | G79: 14 | H79: 13364 | K79: 0 | L79: 1111
A80: 21 | B80: 13494 | C80: 12 | D80: 13511 | E80: 13 | F80: 13539 | G80: 14 | H80: 13544 | K80: 0 | L80: 2111
A81: 21 | B81: 13676 | C81: 21 | D81: 13753 | E81: 11 | F81: 13802 | G81: 21 | H81: 13810 | K81: 0 | L81: 2212
A82: 12 | B82: 13901 | C82: 14 | D82: 13927 | E82: 13 | F82: 13932 | G82: 14 | H82: 13960 | K82: 0 | L82: 1111
A83: 12 | B83: 14059 | C83: 14 | D83: 14081 | E83: 13 | F83: 14085 | G83: 23 | H83: 14094 | K83: 0 | L83: 1112
A84: 12 | B84: 14324 | C84: 14 | D84: 14329 | E84: 24 | F84: 14337 | G84: 14 | H84: 14351 | K84: 0 | L84: 1121
A85: 12 | B85: 14521 | C85: 14 | D85: 14526 | E85: 24 | F85: 14549 | G85: 14 | H85: 14563 | K85: 0 | L85: 1121
A86: 12 | B86: 14772 | C86: 23 | D86: 14781 | E86: 24 | F86: 14809 | G86: 14 | H86: 14820 | K86: 0 | L86: 1221
A87: 12 | B87: 15047 | C87: 14 | D87: 15064 | E87: 13 | F87: 15072 | G87: 23 | H87: 15082 | K87: 0 | L87: 1112
A88: 21 | B88: 15277 | C88: 21 | D88: 15296 | E88: 22 | F88: 15331 | G88: 14 | H88: 15351 | K88: 0 | L88: 2221
A89: 12 | B89: 15525 | C89: 23 | D89: 15539 | E89: 13 | F89: 15565 | G89: 14 | H89: 15568 | K89: 0 | L89: 1211
A90: 12 | B90: 15709 | C90: 14 | D90: 15720 | E90: 13 | F90: 15725 | G90: 14 | H90: 15758 | K90: 0 | L90: 1111
A91: 12 | B91: 16050 | C91: 14 | D91: 16060 | E91: 13 | F91: 16065 | G91: 23 | H91: 16075 | K91: 0 | L91: 1112
A92: 21 | B92: 16273 | C92: 21 | D92: 16314 | E92: 22 | F92: 16331 | G92: 14 | H92: 16346 | K92: 0 | L92: 2221
A93: 12 | B93: 16722 | C93: 14 | D93: 16735 | E93: 24 | F93: 16747 | G93: 23 | H93: 16765 | K93: 0 | L93: 1122
A94: 12 | B94: 16947 | C94: 14 | D94: 16957 | E94: 24 | F94: 16966 | G94: 23 | H94: 16977 | K94: 0 | L94: 1122
A95: 21 | B95: 17118 | C95: 12 | D95: 17233 | E95: 13 | F95: 17241 | G95: 23 | H95: 17250 | K95: 0 | L95: 2112
A96: 12 | B96: 17507 | C96: 23 | D96: 17519 | E96: 13 | F96: 17536 | G96: 23 | H96: 17552 | K96: 0 | L96: 1212
A97: 12 | B97: 17660 | C97: 14 | D97: 17673 | E97: 24 | F97: 17685 | G97: 14 | H97: 17716 | K97: 0 | L97: 1121
A98: 21 | B98: 17995 | C98: 12 | D98: 18047 | E98: 24 | F98: 18085 | G98: 23 | H98: 18100 | K98: 0 | L98: 2122
A99: 12 | B99: 18273 | C99: 14 | D99: 18286 | E99: 13 | F99: 18300 | G99: 23 | H99: 18312 | K99: 0 | L99: 1112
A100: 21 | B100: 18731 | C100: 21 | D100: 18759 | E100: 22 | F100: 18769 | G100: 23 | H100: 18791 | K100: 0 | L100: 2222
A101: 21 | B101: 18998 | C101: 21 | D101: 19015 | E101: 22 | F101: 19028 | G101: 14 | H101: 19075 | K101: 0 | L101: 2221
A102: 12 | B102: 19282 | C102: 14 | D102: 19294 | E102: 24 | F102: 19303 | G102: 14 | H102: 19322 | K102: 0 | L102: 1121
A103: 21 | B103: 19512 | C103: 21 | D103: 19563 | E103: 11 | F103: 19575 | G103: 21 | H103: 19583 | K103: 0 | L103: 2212
A104: 12 | B104: 19696 | C104: 23 | D104: 19714 | E104: 13 | F104: 19725 | G104: 23 | H104: 19742 | K104: 0 | L104: 1212
A105: 12 | B105: 19870 | C105: 14 | D105: 19882 | E105: 13 | F105: 19905 | G105: 14 | H105: 19910 | K105: 0 | L105: 1111
A106: 21 | B106: 20048 | C106: 21 | D106: 20069 | E106: 11 | F106: 20087 | G106: 21 | H106: 20100 | K106: 0 | L106: 2212
A107: 12 | B107: 20223 | C107: 23 | D107: 20238 | E107: 13 | F107: 20264 | G107: 14 | H107: 20269 | K107: 0 | L107: 1211
A108: 21 | B108: 20448 | C108: 12 | D108: 20460 | E108: 24 | F108: 20468 | G108: 14 | H108: 20483 | K108: 0 | L108: 2121
A109: 21 | B109: 20597 | C109: 12 | D109: 20739 | E109: 13 | F109: 20744 | G109: 14 | H109: 20780 | K109: 0 | L109: 2111
A110: 12 | B110: 20951 | C110: 14 | D110: 20956 | E110: 24 | F110: 20965 | G110: 14 | H110: 20987 | K110: 0 | L110: 1121
A111: 12 | B111: 21209 | C111: 23 | D111: 21217 | E111: 13 | F111: 21270 | G111: 23 | H111: 21307 | K111: 0 | L111: 1212
A112: 12 | B112: 21486 | C112: 14 | D112: 21497 | E112: 13 | F112: 21500 | G112: 23 | H112: 21509 | K112: 0 | L112: 1112
A113: 21 | B113: 21641 | C113: 21 | D113: 21672 | E113: 11 | F113: 21689 | G113: 12 | H113: 21721 | K113: 0 | L113: 2211
A114: 12 | B114: 21913 | C114: 23 | D114: 21928 | E114: 13 | F114: 21957 | G114: 14 | H114: 21969 | K114: 0 | L114: 1211
A115: 12 | B115: 22110 | C115: 14 | D115: 22125 | E115: 24 | F115: 22143 | G115: 14 | H115: 22155 | K115: 0 | L115: 1121
A116: 21 | B116: 22338 | C116: 12 | D116: 22351 | E116: 13 | F116: 22355 | G116: 14 | H116: 22366 | K116: 0 | L116: 2111
A117: 21 | B117: 22544 | C117: 21 | D117: 22575 | E117: 22 | F117: 22594 | G117: 14 | H117: 22607 | K117: 0 | L117: 2221
A118: 21 | B118: 22717 | C118: 21 | D118: 22769 | E118: 22 | F118: 22781 | G118: 14 | H118: 22794 | K118: 0 | L118: 2221
A119: 21 | B119: 22924 | C119: 12 | D119: 22950 | E119: 24 | F119: 22959 | G119: 14 | H119: 22979 | K119: 0 | L119: 2121
A120: 21 | B120: 23161 | C120: 21 | D120: 23177 | E120: 22 | F120: 23189 | G120: 14 | H120: 23201 | K120: 0 | L120: 2221
A121: 21 | B121: 23368 | C121: 21 | D121: 23390 | E121: 22 | F121: 23404 | G121: 23 | H121: 23468 | K121: 0 | L121: 2222
A122: 21 | B122: 23639 | C122: 21 | D122: 23648 | E122: 22 | F122: 23680 | G122: 23 | H122: 23729 | K122: 0 | L122: 2222
A123: 12 | B123: 23878 | C123: 23 | D123: 23891 | E123: 24 | F123: 23899 | G123: 14 | H123: 23920 | L123: 1221

Sheet !MA17F00.096
A1: Report for:!MA17F00.096
A2: Date: | B2: <date>
A3: Hen: | B3: <hen> | F3: Correct Sequence | G3: =Start!J2 -> 2212 | P3: Total Sequences in Data | Q3: =4994-COUNTBLANK(L7:L5000) -> 117 | V3: Total Sequences in Block Data | W3: =COUNTA(L7:L26) -> 20 | AA3: Total Sequences in Block Data | AB3: =COUNTA(L27:L45) -> 19 | AF3: Total Sequences in Block Data | AG3: =COUNTA(L46:L65) -> 20 | AK3: Total Sequences in Block Data | AL3: =COUNTA(L66:L84) -> 19 | AP3: Total Sequences in Block Data | AQ3: =COUNTA(L85:L104) -> 20 | AU3: Total Sequences in Block Data | AV3: =COUNTA(L105:L123) -> 19
P4: Total Sequences in Summary | Q4: =SUM(O7:O22) -> 117 | V4: Total Sequences in Block Summary | W4: =SUM(U7:U22) -> 20 | AA4: Total Sequences in Block Summary | AB4: =SUM(Z7:Z22) -> 19 | AF4: Total Sequences in Block Summary | AG4: =SUM(AE7:AE22) -> 20 | AK4: Total Sequences in Block Summary | AL4: =SUM(AJ7:AJ22) -> 19 | AP4: Total Sequences in Block Summary | AQ4: =SUM(AO7:AO22) -> 20 | AU4: Total Sequences in Block Summary | AV4: =SUM(AT7:AT22) -> 19
T5: Block 1 | Y5: Block 2 | AD5: Block 3 | AI5: Block 4 | AN5: Block 5 | AS5: Block 6
A6: Sequence Component 1 | B6: Time 1 | C6: Sequence Component 2 | D6: Time 2 | E6: Sequence Component 3 | F6: Time 3 | G6: Sequence Component 4 | H6: Time 4 | I6: Sequence Component 5 | J6: Time 5 | K6: Correct? 0=No 1=Yes | L6: Sequence | N6: Frequency | P6: Relative Frequency | Q6: Variability | T6: Frequency | V6: Relative Frequency | W6: Variability | Y6: Frequency | AA6: Relative Frequency | AB6: Variability | AD6: Frequency | AF6: Relative Frequency | AG6: Variability | AI6: Frequency | AK6: Relative Frequency | AL6: Variability | AN6: Frequency | AP6: Relative Frequency | AQ6: Variability | AS6: Frequency | AU6: Relative Frequency | AV6: Variability
A7: 12 | B7: 11 | C7: 14 | D7: 16 | E7: 24 | F7: 27 | G7: 23 | H7: 66 | K7: 0 | L7: 1122 | N7: 1111 | O7: =COUNTIF($L$7:$L$500,N7) -> 17 | P7: =O7/$Q$4 -> 0.1452991453 | Q7: =IF(P7=0,0,(P7*((LOG(P7))/LOG(2)))) -> -0.4043532644 | T7: =N7 -> 1111 | U7: =COUNTIF(L7:L26,T7) -> 3 | V7: =U7/(W4-U20) -> 0.15 | W7: =IF(V7=0,0,(V7*((LOG(V7))/LOG(2)))) -> -0.4105448391 | Y7: =N7 -> 1111 | Z7: =COUNTIF(L27:L45,Y7) -> 4 | AA7: =Z7/(AB4-Z20) -> 0.2105263158 | AB7: =IF(AA7=0,0,(AA7*((LOG(AA7))/LOG(2)))) -> -0.4732478976 | AD7: =N7 -> 1111 | AE7: =COUNTIF(L46:L65,AD7) -> 3 | AF7: =AE7/(AG4-AE20) -> 0.1578947368 | AG7: =IF(AF7=0,0,(AF7*((LOG(AF7))/LOG(2)))) -> -0.4204681599 | AI7: =N7 -> 1111 | AJ7: =COUNTIF(L66:L84,AI7) -> 3 | AK7: =AJ7/(AL4-AJ20) -> 0.1666666667 | AL7: =IF(AK7=0,0,(AK7*((LOG(AK7))/LOG(2)))) -> -0.4308270835 | AN7: =N7 -> 1111 | AO7: =COUNTIF(L85:L104,AN7) -> 2 | AP7: =AO7/(AQ4-AO20) -> 0.1176470588 | AQ7: =IF(AP7=0,0,(AP7*((LOG(AP7))/LOG(2)))) -> -0.3632309225 | AS7: =N7 -> 1111 | AT7: =COUNTIF(L105:L123,AS7) -> 2 | AU7: =AT7/(AV4-AT20) -> 0.1333333333 | AV7: =IF(AU7=0,0,(AU7*((LOG(AU7))/LOG(2)))) -> -0.3875854127
A8: 12 | B8: 173 | C8: 14 | D8: 178 | E8: 24 | F8: 186 | G8: 23 | H8: 197 | K8: 0 | L8: 1122 | N8: 1112 | O8: =COUNTIF($L$7:$L$500,N8) -> 13 | P8: =O8/$Q$4 -> 0.1111111111 | Q8: =IF(P8=0,0,(P8*((LOG(P8))/LOG(2)))) -> -0.352213889 | T8: =N8 -> 1112 | U8: =COUNTIF(L7:L26,T8) -> 6 | V8: =U8/(W4-U20) -> 0.3 | W8: =IF(V8=0,0,(V8*((LOG(V8))/LOG(2)))) -> -0.5210896782 | Y8: =N8 -> 1112 | Z8: =COUNTIF(L27:L45,Y8) -> 1 | AA8: =Z8/(AB4-Z20) -> 0.05263157895 | AB8: =IF(AA8=0,0,(AA8*((LOG(AA8))/LOG(2)))) -> -0.2235751323 | AD8: =N8 -> 1112 | AE8: =COUNTIF(L46:L65,AD8) -> 2 | AF8: =AE8/(AG4-AE20) -> 0.1052631579 | AG8: =IF(AF8=0,0,(AF8*((LOG(AF8))/LOG(2)))) -> -0.3418871067 | AI8: =N8 -> 1112 | AJ8: =COUNTIF(L66:L84,AI8) -> 2 | AK8: =AJ8/(AL4-AJ20) -> 0.1111111111 | AL8: =IF(AK8=0,0,(AK8*((LOG(AK8))/LOG(2)))) -> -0.352213889 | AN8: =N8 -> 1112 | AO8: =COUNTIF(L85:L104,AN8) -> 1 | AP8: =AO8/(AQ4-AO20) -> 0.05882352941 | AQ8: =IF(AP8=0,0,(AP8*((LOG(AP8))/LOG(2)))) -> -0.2404389907 | AS8: =N8 -> 1112 | AT8: =COUNTIF(L105:L123,AS8) -> 1 | AU8: =AT8/(AV4-AT20) -> 0.06666666667 | AV8: =IF(AU8=0,0,(AU8*((LOG(AU8))/LOG(2)))) -> -0.260459373
A9: 12 | B9: 295 | C9: 23 | D9: 311 | E9: 13 | F9: 336 | G9: 14 | H9: 344 | K9: 0 | L9: 1211 | N9: 1121 | O9: =COUNTIF($L$7:$L$500,N9) -> 21 | P9: =O9/$Q$4 -> 0.1794871795 | Q9: =IF(P9=0,0,(P9*((LOG(P9))/LOG(2)))) -> -0.4447777199 | T9: =N9 -> 1121 | U9: =COUNTIF(L7:L26,T9) -> 6 | V9: =U9/(W4-U20) -> 0.3 | W9: =IF(V9=0,0,(V9*((LOG(V9))/LOG(2)))) -> -0.5210896782 | Y9: =N9 -> 1121 | Z9: =COUNTIF(L27:L45,Y9) -> 3 | AA9: =Z9/(AB4-Z20) -> 0.1578947368 | AB9: =IF(AA9=0,0,(AA9*((LOG(AA9))/LOG(2)))) -> -0.4204681599 | AD9: =N9 -> 1121 | AE9: =COUNTIF(L46:L65,AD9) -> 3 | AF9: =AE9/(AG4-AE20) -> 0.1578947368 | AG9: =IF(AF9=0,0,(AF9*((LOG(AF9))/LOG(2)))) -> -0.4204681599 | AI9: =N9 -> 1121 | AJ9: =COUNTIF(L66:L84,AI9) -> 3 | AK9: =AJ9/(AL4-AJ20) -> 0.1666666667 | AL9: =IF(AK9=0,0,(AK9*((LOG(AK9))/LOG(2)))) -> -0.4308270835 | AN9: =N9 -> 1121 | AO9: =COUNTIF(L85:L104,AN9) -> 1 | AP9: =AO9/(AQ4-AO20) -> 0.05882352941 | AQ9: =IF(AP9=0,0,(AP9*((LOG(AP9))/LOG(2)))) -> -0.2404389907 | AS9: =N9 -> 1121 | AT9: =COUNTIF(L105:L123,AS9) -> 5 | AU9: =AT9/(AV4-AT20) -> 0.3333333333 | AV9: =IF(AU9=0,0,(AU9*((LOG(AU9))/LOG(2)))) -> -0.5283208336
A10: 12 | B10: 446 | C10: 14 | D10: 454 | E10: 13 | F10: 459 | G10: 23 | H10: 470 | K10: 0 | L10: 1112 | N10: 1122 | O10: =COUNTIF($L$7:$L$500,N10) -> 5 | P10: =O10/$Q$4 -> 0.04273504274 | Q10: =IF(P10=0,0,(P10*((LOG(P10))/LOG(2)))) -> -0.1943776335 | T10: =N10 -> 1122 | U10: =COUNTIF(L7:L26,T10) -> 3 | V10: =U10/(W4-U20) -> 0.15 | W10: =IF(V10=0,0,(V10*((LOG(V10))/LOG(2)))) -> -0.4105448391 | Y10: =N10 -> 1122 | Z10: =COUNTIF(L27:L45,Y10) -> 1 | AA10: =Z10/(AB4-Z20) -> 0.05263157895 | AB10: =IF(AA10=0,0,(AA10*((LOG(AA10))/LOG(2)))) -> -0.2235751323 | AD10: =N10 -> 1122 | AE10: =COUNTIF(L46:L65,AD10) -> 1 | AF10: =AE10/(AG4-AE20) -> 0.05263157895 | AG10: =IF(AF10=0,0,(AF10*((LOG(AF10))/LOG(2)))) -> -0.2235751323 | AI10: =N10 -> 1122 | AJ10: =COUNTIF(L66:L84,AI10) -> 0 | AK10: =AJ10/(AL4-AJ20) -> 0 | AL10: =IF(AK10=0,0,(AK10*((LOG(AK10))/LOG(2)))) -> 0 | AN10: =N10 -> 1122 | AO10: =COUNTIF(L85:L104,AN10) -> 0 | AP10: =AO10/(AQ4-AO20) -> 0 | AQ10: =IF(AP10=0,0,(AP10*((LOG(AP10))/LOG(2)))) -> 0 | AS10: =N10 -> 1122 | AT10: =COUNTIF(L105:L123,AS10) -> 0 | AU10: =AT10/(AV4-AT20) -> 0 | AV10: =IF(AU10=0,0,(AU10*((LOG(AU10))/LOG(2)))) -> 0
A11: 12 | B11: 566 | C11: 14 | D11: 571 | E11: 13 | F11: 576 | G11: 23 | H11: 587 | K11: 0 | L11: 1112 | N11: 1211 | O11: =COUNTIF($L$7:$L$500,N11) -> 7 | P11: =O11/$Q$4 -> 0.05982905983 | Q11: =IF(P11=0,0,(P11*((LOG(P11))/LOG(2)))) -> -0.2430860563 | T11: =N11 -> 1211 | U11: =COUNTIF(L7:L26,T11) -> 2 | V11: =U11/(W4-U20) -> 0.1 | W11: =IF(V11=0,0,(V11*((LOG(V11))/LOG(2)))) -> -0.3321928095 | Y11: =N11 -> 1211 | Z11: =COUNTIF(L27:L45,Y11) -> 2 | AA11: =Z11/(AB4-Z20) -> 0.1052631579 | AB11: =IF(AA11=0,0,(AA11*((LOG(AA11))/LOG(2)))) -> -0.3418871067 | AD11: =N11 -> 1211 | AE11: =COUNTIF(L46:L65,AD11) -> 1 | AF11: =AE11/(AG4-AE20) -> 0.05263157895 | AG11: =IF(AF11=0,0,(AF11*((LOG(AF11))/LOG(2)))) -> -0.2235751323 | AI11: =N11 -> 1211 | AJ11: =COUNTIF(L66:L84,AI11) -> 0 | AK11: =AJ11/(AL4-AJ20) -> 0 | AL11: =IF(AK11=0,0,(AK11*((LOG(AK11))/LOG(2)))) -> 0 | AN11: =N11 -> 1211 | AO11: =COUNTIF(L85:L104,AN11) -> 2 | AP11: =AO11/(AQ4-AO20) -> 0.1176470588 | AQ11: =IF(AP11=0,0,(AP11*((LOG(AP11))/LOG(2)))) -> -0.3632309225 | AS11: =N11 -> 1211 | AT11: =COUNTIF(L105:L123,AS11) -> 0 | AU11: =AT11/(AV4-AT20) -> 0 | AV11: =IF(AU11=0,0,(AU11*((LOG(AU11))/LOG(2)))) -> 0
A12: 12 | B12: 685 | C12: 14 | D12: 689 | E12: 24 | F12: 698 | G12: 14 | H12: 708 | K12: 0 | L12: 1121 | N12: 1212 | O12: =COUNTIF($L$7:$L$500,N12) -> 6 | P12: =O12/$Q$4 -> 0.05128205128 | Q12: =IF(P12=0,0,(P12*((LOG(P12))/LOG(2)))) -> -0.2197642164 | T12: =N12 -> 1212 | U12: =COUNTIF(L7:L26,T12) -> 0 | V12: =U12/(W4-U20) -> 0 | W12: =IF(V12=0,0,(V12*((LOG(V12))/LOG(2)))) -> 0 | Y12: =N12 -> 1212 | Z12: =COUNTIF(L27:L45,Y12) -> 2 | AA12: =Z12/(AB4-Z20) -> 0.1052631579 | AB12: =IF(AA12=0,0,(AA12*((LOG(AA12))/LOG(2)))) -> -0.3418871067 | AD12: =N12 -> 1212 | AE12: =COUNTIF(L46:L65,AD12) -> 2 | AF12: =AE12/(AG4-AE20) -> 0.1052631579 | AG12: =IF(AF12=0,0,(AF12*((LOG(AF12))/LOG(2)))) -> -0.3418871067 | AI12: =N12 -> 1212 | AJ12: =COUNTIF(L66:L84,AI12) -> 1 | AK12: =AJ12/(AL4-AJ20) -> 0.05555555556 | AL12: =IF(AK12=0,0,(AK12*((LOG(AK12))/LOG(2)))) -> -0.2316625001 | AN12: =N12 -> 1212 | AO12: =COUNTIF(L85:L104,AN12) -> 1 | AP12: =AO12/(AQ4-AO20) -> 0.05882352941 | AQ12: =IF(AP12=0,0,(AP12*((LOG(AP12))/LOG(2)))) -> -0.2404389907 | AS12: =N12 -> 1212 | AT12: =COUNTIF(L105:L123,AS12) -> 0 | AU12: =AT12/(AV4-AT20) -> 0 | AV12: =IF(AU12=0,0,(AU12*((LOG(AU12))/LOG(2)))) -> 0
A13: 12 | B13: 809 | C13: 14 | D13: 813 | E13: 24 | F13: 823 | G13: 14 | H13: 836 | K13: 0 | L13: 1121 | N13: 1221 | O13: =COUNTIF($L$7:$L$500,N13) -> 3 | P13: =O13/$Q$4 -> 0.02564102564 | Q13: =IF(P13=0,0,(P13*((LOG(P13))/LOG(2)))) -> -0.1355231338 | T13: =N13 -> 1221 | U13: =COUNTIF(L7:L26,T13) -> 0 | V13: =U13/(W4-U20) -> 0 | W13: =IF(V13=0,0,(V13*((LOG(V13))/LOG(2)))) -> 0 | Y13: =N13 -> 1221 | Z13: =COUNTIF(L27:L45,Y13) -> 0 | AA13: =Z13/(AB4-Z20) -> 0 | AB13: =IF(AA13=0,0,(AA13*((LOG(AA13))/LOG(2)))) -> 0 | AD13: =N13 -> 1221 | AE13: =COUNTIF(L46:L65,AD13) -> 0 | AF13: =AE13/(AG4-AE20) -> 0 | AG13: =IF(AF13=0,0,(AF13*((LOG(AF13))/LOG(2)))) -> 0 | AI13: =N13 -> 1221 | AJ13: =COUNTIF(L66:L84,AI13) -> 2 | AK13: =AJ13/(AL4-AJ20) -> 0.1111111111 | AL13: =IF(AK13=0,0,(AK13*((LOG(AK13))/LOG(2)))) -> -0.352213889 | AN13: =N13 -> 1221 | AO13: =COUNTIF(L85:L104,AN13) -> 0 | AP13: =AO13/(AQ4-AO20) -> 0 | AQ13: =IF(AP13=0,0,(AP13*((LOG(AP13))/LOG(2)))) -> 0 | AS13: =N13 -> 1221 | AT13: =COUNTIF(L105:L123,AS13) -> 1 | AU13: =AT13/(AV4-AT20) -> 0.06666666667 | AV13: =IF(AU13=0,0,(AU13*((LOG(AU13))/LOG(2)))) -> -0.260459373
A14: 12 | B14: 933 | C14: 14 | D14: 952 | E14: 24 | F14: 961 | G14: 14 | H14: 971 | K14: 0 | L14: 1121 | N14: 1222 | O14: =COUNTIF($L$7:$L$500,N14) -> 1 | P14: =O14/$Q$4 -> 0.008547008547 | Q14: =IF(P14=0,0,(P14*((LOG(P14))/LOG(2)))) -> -0.05872106598 | T14: =N14 -> 1222 | U14: =COUNTIF(L7:L26,T14) -> 0 | V14: =U14/(W4-U20) -> 0 | W14: =IF(V14=0,0,(V14*((LOG(V14))/LOG(2)))) -> 0 | Y14: =N14 -> 1222 | Z14: =COUNTIF(L27:L45,Y14) -> 0 | AA14: =Z14/(AB4-Z20) -> 0 | AB14: =IF(AA14=0,0,(AA14*((LOG(AA14))/LOG(2)))) -> 0 | AD14: =N14 -> 1222 | AE14: =COUNTIF(L46:L65,AD14) -> 0 | AF14: =AE14/(AG4-AE20) -> 0 | AG14: =IF(AF14=0,0,(AF14*((LOG(AF14))/LOG(2)))) -> 0 | AI14: =N14 -> 1222 | AJ14: =COUNTIF(L66:L84,AI14) -> 0 | AK14: =AJ14/(AL4-AJ20) -> 0 | AL14: =IF(AK14=0,0,(AK14*((LOG(AK14))/LOG(2)))) -> 0 | AN14: =N14 -> 1222 | AO14: =COUNTIF(L85:L104,AN14) -> 0 | AP14: =AO14/(AQ4-AO20) -> 0 | AQ14: =IF(AP14=0,0,(AP14*((LOG(AP14))/LOG(2)))) -> 0 | AS14: =N14 -> 1222 | AT14: =COUNTIF(L105:L123,AS14) -> 1 | AU14: =AT14/(AV4-AT20) -> 0.06666666667 | AV14: =IF(AU14=0,0,(AU14*((LOG(AU14))/LOG(2)))) -> -0.260459373
A15: 12 | B15: 1076 | C15: 14 | D15: 1086 | E15: 13 | F15: 1091 | G15: 23 | H15: 1101 | K15: 0 | L15: 1112 | N15: 2111 | O15: =COUNTIF($L$7:$L$500,N15) -> 2 | P15: =O15/$Q$4 -> 0.01709401709 | Q15: =IF(P15=0,0,(P15*((LOG(P15))/LOG(2)))) -> -0.1003481149 | T15: =N15 -> 2111 | U15: =COUNTIF(L7:L26,T15) -> 0 | V15: =U15/(W4-U20) -> 0 | W15: =IF(V15=0,0,(V15*((LOG(V15))/LOG(2)))) -> 0 | Y15: =N15 -> 2111 | Z15: =COUNTIF(L27:L45,Y15) -> 1 | AA15: =Z15/(AB4-Z20) -> 0.05263157895 | AB15: =IF(AA15=0,0,(AA15*((LOG(AA15))/LOG(2)))) -> -0.2235751323 | AD15: =N15 -> 2111 | AE15: =COUNTIF(L46:L65,AD15) -> 0 | AF15: =AE15/(AG4-AE20) -> 0 | AG15: =IF(AF15=0,0,(AF15*((LOG(AF15))/LOG(2)))) -> 0 | AI15: =N15 -> 2111 | AJ15: =COUNTIF(L66:L84,AI15) -> 1 | AK15: =AJ15/(AL4-AJ20) -> 0.05555555556 | AL15: =IF(AK15=0,0,(AK15*((LOG(AK15))/LOG(2)))) -> -0.2316625001 | AN15: =N15 -> 2111 | AO15: =COUNTIF(L85:L104,AN15) -> 0 | AP15: =AO15/(AQ4-AO20) -> 0 | AQ15: =IF(AP15=0,0,(AP15*((LOG(AP15))/LOG(2)))) -> 0 | AS15: =N15 -> 2111 | AT15: =COUNTIF(L105:L123,AS15) -> 0 | AU15: =AT15/(AV4-AT20) -> 0 | AV15: =IF(AU15=0,0,(AU15*((LOG(AU15))/LOG(2)))) -> 0
A16: 12 | B16: 1202 | C16: 14 | D16: 1206 | E16: 24 | F16: 1218 | G16: 14 | H16: 1228 | K16: 0 | L16: 1121 | N16: 2112 | O16: =COUNTIF($L$7:$L$500,N16) -> 7 | P16: =O16/$Q$4 -> 0.05982905983 | Q16: =IF(P16=0,0,(P16*((LOG(P16))/LOG(2)))) -> -0.2430860563 | T16: =N16 -> 2112 | U16: =COUNTIF(L7:L26,T16) -> 0 | V16: =U16/(W4-U20) -> 0 | W16: =IF(V16=0,0,(V16*((LOG(V16))/LOG(2)))) -> 0 | Y16: =N16 -> 2112 | Z16: =COUNTIF(L27:L45,Y16) -> 3 | AA16: =Z16/(AB4-Z20) -> 0.1578947368 | AB16: =IF(AA16=0,0,(AA16*((LOG(AA16))/LOG(2)))) -> -0.4204681599 | AD16: =N16 -> 2112 | AE16: =COUNTIF(L46:L65,AD16) -> 1 | AF16: =AE16/(AG4-AE20) -> 0.05263157895 | AG16: =IF(AF16=0,0,(AF16*((LOG(AF16))/LOG(2)))) -> -0.2235751323 | AI16: =N16 -> 2112 | AJ16: =COUNTIF(L66:L84,AI16) -> 0 | AK16: =AJ16/(AL4-AJ20) -> 0 | AL16: =IF(AK16=0,0,(AK16*((LOG(AK16))/LOG(2)))) -> 0 | AN16: =N16 -> 2112 | AO16: =COUNTIF(L85:L104,AN16) -> 1 | AP16: =AO16/(AQ4-AO20) -> 0.05882352941 | AQ16: =IF(AP16=0,0,(AP16*((LOG(AP16))/LOG(2)))) -> -0.2404389907 | AS16: =N16 -> 2112 | AT16: =COUNTIF(L105:L123,AS16) -> 2 | AU16: =AT16/(AV4-AT20) -> 0.1333333333 | AV16: =IF(AU16=0,0,(AU16*((LOG(AU16))/LOG(2)))) -> -0.3875854127
A17: 12 | B17: 1328 | C17: 23 | D17: 1350 | E17: 13 | F17: 1360 | G17: 14 | H17: 1364 | K17: 0 | L17: 1211 | N17: 2121 | O17: =COUNTIF($L$7:$L$500,N17) -> 6 | P17: =O17/$Q$4 -> 0.05128205128 | Q17: =IF(P17=0,0,(P17*((LOG(P17))/LOG(2)))) -> -0.2197642164 | T17: =N17 -> 2121 | U17: =COUNTIF(L7:L26,T17) -> 0 | V17: =U17/(W4-U20) -> 0 | W17: =IF(V17=0,0,(V17*((LOG(V17))/LOG(2)))) -> 0 | Y17: =N17 -> 2121 | Z17: =COUNTIF(L27:L45,Y17) -> 0 | AA17: =Z17/(AB4-Z20) -> 0 | AB17: =IF(AA17=0,0,(AA17*((LOG(AA17))/LOG(2)))) -> 0 | AD17: =N17 -> 2121 | AE17: =COUNTIF(L46:L65,AD17) -> 2 | AF17: =AE17/(AG4-AE20) -> 0.1052631579 | AG17: =IF(AF17=0,0,(AF17*((LOG(AF17))/LOG(2)))) -> -0.3418871067 | AI17: =N17 -> 2121 | AJ17: =COUNTIF(L66:L84,AI17) -> 1 | AK17: =AJ17/(AL4-AJ20) -> 0.05555555556 | AL17: =IF(AK17=0,0,(AK17*((LOG(AK17))/LOG(2)))) -> -0.2316625001 | AN17: =N17 -> 2121 | AO17: =COUNTIF(L85:L104,AN17) -> 1 | AP17: =AO17/(AQ4-AO20) -> 0.05882352941 | AQ17: =IF(AP17=0,0,(AP17*((LOG(AP17))/LOG(2)))) -> -0.2404389907 | AS17: =N17 -> 2121 | AT17: =COUNTIF(L105:L123,AS17) -> 2 | AU17: =AT17/(AV4-AT20) -> 0.1333333333 | AV17: =IF(AU17=0,0,(AU17*((LOG(AU17))/LOG(2)))) -> -0.3875854127
A18: 12 | B18: 1467 | C18: 14 | D18: 1471 | E18: 13 | F18: 1501 | G18: 23 | H18: 1508 | K18: 0 | L18: 1112 | N18: 2122 | O18: =COUNTIF($L$7:$L$500,N18) -> 1 | P18: =O18/$Q$4 -> 0.008547008547 | Q18: =IF(P18=0,0,(P18*((LOG(P18))/LOG(2)))) -> -0.05872106598 | T18: =N18 -> 2122 | U18: =COUNTIF(L7:L26,T18) -> 0 | V18: =U18/(W4-U20) -> 0 | W18: =IF(V18=0,0,(V18*((LOG(V18))/LOG(2)))) -> 0 | Y18: =N18 -> 2122 | Z18: =COUNTIF(L27:L45,Y18) -> 0 | AA18: =Z18/(AB4-Z20) -> 0 | AB18: =IF(AA18=0,0,(AA18*((LOG(AA18))/LOG(2)))) -> 0 | AD18: =N18 -> 2122 | AE18: =COUNTIF(L46:L65,AD18) -> 0 | AF18: =AE18/(AG4-AE20) -> 0 | AG18: =IF(AF18=0,0,(AF18*((LOG(AF18))/LOG(2)))) -> 0 | AI18: =N18 -> 2122 | AJ18: =COUNTIF(L66:L84,AI18) -> 0 | AK18: =AJ18/(AL4-AJ20) -> 0 | AL18: =IF(AK18=0,0,(AK18*((LOG(AK18))/LOG(2)))) -> 0 | AN18: =N18 -> 2122 | AO18: =COUNTIF(L85:L104,AN18) -> 1 | AP18: =AO18/(AQ4-AO20) -> 0.05882352941 | AQ18: =IF(AP18=0,0,(AP18*((LOG(AP18))/LOG(2)))) -> -0.2404389907 | AS18: =N18 -> 2122 | AT18: =COUNTIF(L105:L123,AS18) -> 0 | AU18: =AT18/(AV4-AT20) -> 0 | AV18: =IF(AU18=0,0,(AU18*((LOG(AU18))/LOG(2)))) -> 0
A19: 12 | B19: 1618 | C19: 14 | D19: 1632 | E19: 13 | F19: 1647 | G19: 23 | H19: 1660 | K19: 0 | L19: 1112 | N19: 2211 | O19: =COUNTIF($L$7:$L$500,N19) -> 6 | P19: =O19/$Q$4 -> 0.05128205128 | Q19: =IF(P19=0,0,(P19*((LOG(P19))/LOG(2)))) -> -0.2197642164 | T19: =N19 -> 2211 | U19: =COUNTIF(L7:L26,T19) -> 0 | V19: =U19/(W4-U20) -> 0 | W19: =IF(V19=0,0,(V19*((LOG(V19))/LOG(2)))) -> 0 | Y19: =N19 -> 2211 | Z19: =COUNTIF(L27:L45,Y19) -> 1 | AA19: =Z19/(AB4-Z20) -> 0.05263157895 | AB19: =IF(AA19=0,0,(AA19*((LOG(AA19))/LOG(2)))) -> -0.2235751323 | AD19: =N19 -> 2211 | AE19: =COUNTIF(L46:L65,AD19) -> 2 | AF19: =AE19/(AG4-AE20) -> 0.1052631579 | AG19: =IF(AF19=0,0,(AF19*((LOG(AF19))/LOG(2)))) -> -0.3418871067 | AI19: =N19 -> 2211 | AJ19: =COUNTIF(L66:L84,AI19) -> 0 | AK19: =AJ19/(AL4-AJ20) -> 0 | AL19: =IF(AK19=0,0,(AK19*((LOG(AK19))/LOG(2)))) -> 0 | AN19: =N19 -> 2211 | AO19: =COUNTIF(L85:L104,AN19) -> 2 | AP19: =AO19/(AQ4-AO20) -> 0.1176470588 | AQ19: =IF(AP19=0,0,(AP19*((LOG(AP19))/LOG(2)))) -> -0.3632309225 | AS19: =N19 -> 2211 | AT19: =COUNTIF(L105:L123,AS19) -> 1 | AU19: =AT19/(AV4-AT20) -> 0.06666666667 | AV19: =IF(AU19=0,0,(AU19*((LOG(AU19))/LOG(2)))) -> -0.260459373
A20: 12 | B20: 1759 | C20: 14 | D20: 1763 | E20: 13 | F20: 1790 | G20: 23 | H20: 1798 | K20: 0 | L20: 1112 | N20: 2212 | O20: =COUNTIF($L$7:$L$500,N20) -> 9 | P20: =O20/$Q$4 -> 0.07692307692 | Q20: =IF(P20=0,0,(P20*((LOG(P20))/LOG(2)))) -> -0.2846492091 | T20: =N20 -> 2212 | U20: =COUNTIF(L7:L26,T20) -> 0 | Y20: =N20 -> 2212 | Z20: =COUNTIF(L27:L45,Y20) -> 0 | AD20: =N20 -> 2212 | AE20: =COUNTIF(L46:L65,AD20) -> 1 | AI20: =N20 -> 2212 | AJ20: =COUNTIF(L66:L84,AI20) -> 1 | AN20: =N20 -> 2212 | AO20: =COUNTIF(L85:L104,AN20) -> 3 | AS20: =N20 -> 2212 | AT20: =COUNTIF(L105:L123,AS20) -> 4
A21: 12 | B21: 1897 | C21: 14 | D21: 1901 | E21: 13 | F21: 1945 | G21: 14 | H21: 1949 | K21: 0 | L21: 1111 | N21: 2221 | O21: =COUNTIF($L$7:$L$500,N21) -> 5 | P21: =O21/$Q$4 -> 0.04273504274 | Q21: =IF(P21=0,0,(P21*((LOG(P21))/LOG(2)))) -> -0.1943776335 | T21: =N21 -> 2221 | U21: =COUNTIF(L7:L26,T21) -> 0 | V21: =U21/(W4-U20) -> 0 | W21: =IF(V21=0,0,(V21*((LOG(V21))/LOG(2)))) -> 0 | Y21: =N21 -> 2221 | Z21: =COUNTIF(L27:L45,Y21) -> 1 | AA21: =Z21/(AB4-Z20) -> 0.05263157895 | AB21: =IF(AA21=0,0,(AA21*((LOG(AA21))/LOG(2)))) -> -0.2235751323 | AD21: =N21 -> 2221 | AE21: =COUNTIF(L46:L65,AD21) -> 0 | AF21: =AE21/(AG4-AE20) -> 0 | AG21: =IF(AF21=0,0,(AF21*((LOG(AF21))/LOG(2)))) -> 0 | AI21: =N21 -> 2221 | AJ21: =COUNTIF(L66:L84,AI21) -> 2 | AK21: =AJ21/(AL4-AJ20) -> 0.1111111111 | AL21: =IF(AK21=0,0,(AK21*((LOG(AK21))/LOG(2)))) -> -0.352213889 | AN21: =N21 -> 2221 | AO21: =COUNTIF(L85:L104,AN21) -> 2 | AP21: =AO21/(AQ4-AO20) -> 0.1176470588 | AQ21: =IF(AP21=0,0,(AP21*((LOG(AP21))/LOG(2)))) -> -0.3632309225 | AS21: =N21 -> 2221 | AT21: =COUNTIF(L105:L123,AS21) -> 0 | AU21: =AT21/(AV4-AT20) -> 0 | AV21: =IF(AU21=0,0,(AU21*((LOG(AU21))/LOG(2)))) -> 0
A22: 12 | B22: 2048 | C22: 14 | D22: 2052 | E22: 13 | F22: 2074 | G22: 14 | H22: 2078 | K22: 0 | L22: 1111 | N22: 2222 | O22: =COUNTIF($L$7:$L$500,N22) -> 8 | P22: =O22/$Q$4 -> 0.06837606838 | Q22: =IF(P22=0,0,(P22*((LOG(P22))/LOG(2)))) -> -0.2646403227 | T22: =N22 -> 2222 | U22: =COUNTIF(L7:L26,T22) -> 0 | V22: =U22/(W4-U20) -> 0 | W22: =IF(V22=0,0,(V22*((LOG(V22))/LOG(2)))) -> 0 | Y22: =N22 -> 2222 | Z22: =COUNTIF(L27:L45,Y22) -> 0 | AA22: =Z22/(AB4-Z20) -> 0 | AB22: =IF(AA22=0,0,(AA22*((LOG(AA22))/LOG(2)))) -> 0 | AD22: =N22 -> 2222 | AE22: =COUNTIF(L46:L65,AD22) -> 2 | AF22: =AE22/(AG4-AE20) -> 0.1052631579 | AG22: =IF(AF22=0,0,(AF22*((LOG(AF22))/LOG(2)))) -> -0.3418871067 | AI22: =N22 -> 2222 | AJ22: =COUNTIF(L66:L84,AI22) -> 3 | AK22: =AJ22/(AL4-AJ20) -> 0.1666666667 | AL22: =IF(AK22=0,0,(AK22*((LOG(AK22))/LOG(2)))) -> -0.4308270835 | AN22: =N22 -> 2222 | AO22: =COUNTIF(L85:L104,AN22) -> 3 | AP22: =AO22/(AQ4-AO20) -> 0.1764705882 | AQ22: =IF(AP22=0,0,(AP22*((LOG(AP22))/LOG(2)))) -> -0.4416177072 | AS22: =N22 -> 2222 | AT22: =COUNTIF(L105:L123,AS22) -> 0 | AU22: =AT22/(AV4-AT20) -> 0 | AV22: =IF(AU22=0,0,(AU22*((LOG(AU22))/LOG(2)))) -> 0
A23: 12 | B23: 2196 | C23: 14 | D23: 2203 | E23: 24 | F23: 2214 | G23: 14 | H23: 2227 | K23: 0 | L23: 1121 | P23: =SUM(P7:P22) -> 1 | Q23: =-SUM(Q7:Q22) -> 3.638167814 | V23: =SUM(V7:V22) -> 1 | W23: =-SUM(W7:W22) -> 2.195461844 | AA23: =SUM(AA7:AA22) -> 1 | AB23: =-SUM(AB7:AB22) -> 3.115834092 | AF23: =SUM(AF7:AF22) -> 1 | AG23: =-SUM(AG7:AG22) -> 3.22109725 | AK23: =SUM(AK7:AK22) -> 1 | AL23: =-SUM(AL7:AL22) -> 3.044110418 | AP23: =SUM(AP7:AP22) -> 1 | AQ23: =-SUM(AQ7:AQ22) -> 3.337175341 | AU23: =SUM(AU7:AU22) -> 1 | AV23: =-SUM(AV7:AV22) -> 2.732914564
A24: 12 | B24: 2372 | C24: 14 | D24: 2376 | E24: 13 | F24: 2403 | G24: 14 | H24: 2411 | K24: 0 | L24: 1111 | P24: U= | Q24: =Q23/(LOG(Q4)/LOG(2)) -> 0.529545077 | V24: U1= | W24: =W23/(LOG(W4)/LOG(2)) -> 0.5079820386 | AA24: U2= | AB24: =AB23/(LOG(AB4)/LOG(2)) -> 0.7334951179 | AF24: U3= | AG24: =AG23/(LOG(AG4)/LOG(2)) -> 0.7452917261 | AK24: U4= | AL24: =AL23/(LOG(AL4)/LOG(2)) -> 0.7166107256 | AP24: U5= | AQ24: =AQ23/(LOG(AQ4)/LOG(2)) -> 0.7721496674 | AU24: U6= | AV24: =AV23/(LOG(AV4)/LOG(2)) -> 0.6433524478
A25: 12 | B25: 2577 | C25: 14 | D25: 2586 | E25: 24 | F25: 2594 | G25: 23 | H25: 2605 | K25: 0 | L25: 1122
A26: 12 | B26: 2763 | C26: 14 | D26: 2767 | E26: 24 | F26: 2791 | G26: 14 | H26: 2803 | K26: 0 | L26: 1121
A27: 21 | B27: 2955 | C27: 21 | D27: 2971 | E27: 22 | F27: 2982 | G27: 14 | H27: 2996 | K27: 0 | L27: 2221 | N27: Total Target Seq
A28: 21 | B28: 3134 | C28: 12 | D28: 3146 | E28: 13 | F28: 3150 | G28: 14 | H28: 3154 | K28: 0 | L28: 2111 | N28: =COUNTIF(L7:L123,G3) -> 9 | P28: 20 | Q28: 19 | R28: 20 | S28: 19 | T28: 20 | U28: 19
A29: 12 | B29: 3271 | C29: 14 | D29: 3275 | E29: 24 | F29: 3288 | G29: 23 | H29: 3298 | K29: 0 | L29: 1122 | P29: % of reinforcement given in 6 equal intervals based on number of trials
A30: 21 | B30: 3426 | C30: 12 | D30: 3444 | E30: 13 | F30: 3448 | G30: 23 | H30: 3461 | K30: 0 | L30: 2112 | P30: %_1 | Q30: %_2 | R30: %_3 | S30: %_4 | T30: %_5 | U30: %_6
A31: 12 | B31: 3598 | C31: 14 | D31: 3602 | E31: 13 | F31: 3621 | G31: 14 | H31: 3628 | K31: 0 | L31: 1111 | O31: target sequence | P31: =$G$3 -> 2212 | Q31: =$G$3 -> 2212 | R31: =$G$3 -> 2212 | S31: =$G$3 -> 2212 | T31: =$G$3 -> 2212 | U31: =$G$3 -> 2212
A32: 21 | B32: 3746 | C32: 12 | D32: 3756 | E32: 13 | F32: 3760 | G32: 23 | H32: 3767 | K32: 0 | L32: 2112 | O32: total reinforcement | P32: =U20 -> 0 | Q32: =Z20 -> 0 | R32: =AE20 -> 1 | S32: =AJ20 -> 1 | T32: =AO20 -> 3 | U32: =AT20 -> 4
A33: 12 | B33: 3940 | C33: 14 | D33: 3947 | E33: 24 | F33: 3955 | G33: 14 | H33: 3969 | K33: 0 | L33: 1121 | O33: % target
A34: 12 | B34: 4107 | C34: 23 | D34: 4115 | E34: 13 | F34: 4125 | G34: 14 | H34: 4148 | K34: 0 | L34: 1211 | O34: CCRF
A35: 12 | B35: 4247 | C35: 14 | D35: 4266 | E35: 13 | F35: 4270 | G35: 23 | H35: 4278 | K35: 0 | L35: 1112 | O35: % CCRf
A36: 12 | B36: 4411 | C36: 14 | D36: 4415 | E36: 13 | F36: 4419 | G36: 14 | H36: 4441 | K36: 0 | L36: 1111 | O36: average response rate | P36: =H26/P28 -> 140.15 | Q36: =(H45-H26)/Q28 -> 168.5263158 | R36: =(H65-H45)/R28 -> 201.75 | S36: =(H84-H65)/S28 -> 223.8947368 | T36: =(H104-H84)/T28 -> 238.6 | U36: =(H123-H104)/U28 -> 252.1052632
A37: 12 | B37: 4576 | C37: 23 | D37: 4584 | E37: 13 | F37: 4595 | G37: 14 | H37: 4602 | K37: 0 | L37: 1211
A38: 12 | B38: 4730 | C38: 14 | D38: 4737 | E38: 24 | F38: 4745 | G38: 14 | H38: 4755 | K38: 0 | L38: 1121
A39: 12 | B39: 4884 | C39: 14 | D39: 4888 | E39: 13 | F39: 4908 | G39: 14 | H39: 4914 | K39: 0 | L39: 1111
A40: 21 | B40: 5018 | C40: 21 | D40: 5050 | E40: 11 | F40: 5060 | G40: 12 | H40: 5065 | K40: 0 | L40: 2211
A41: 12 | B41: 5166 | C41: 14 | D41: 5170 | E41: 13 | F41: 5189 | G41: 14 | H41: 5195 | K41: 0 | L41: 1111
A42: 12 | B42: 5307 | C42: 14 | D42: 5310 | E42: 24 | F42: 5320 | G42: 14 | H42: 5338 | K42: 0 | L42: 1121
A43: 12 | B43: 5536 | C43: 23 | D43: 5550 | E43: 13 | F43: 5565 | G43: 23 | H43: 5573 | K43: 0 | L43: 1212
A44: 21 | B44: 5748 | C44: 12 | D44: 5762 | E44: 13 | F44: 5766 | G44: 23 | H44: 5796 | K44: 0 | L44: 2112
A45: 12 | B45: 5948 | C45: 23 | D45: 5960 | E45: 13 | F45: 5994 | G45: 23 | H45: 6005 | K45: 0 | L45: 1212
A46: 21 | B46: 6137 | C46: 12 | D46: 6180 | E46: 24 | F46: 6188 | G46: 14 | H46: 6200 | K46: 0 | L46: 2121
A47: 12 | B47: 6318 | C47: 14 | D47: 6337 | E47: 24 | F47: 6346 | G47: 14 | H47: 6357 | K47: 0 | L47: 1121
A48: 12 | B48: 6529 | C48: 23 | D48: 6557 | E48: 13 | F48: 6574 | G48: 23 | H48: 6601 | K48: 0 | L48: 1212
A49: 12 | B49: 6705 | C49: 14 | D49: 6713 | E49: 13 | F49: 6716 | G49: 14 | H49: 6738 | K49: 0 | L49: 1111
A50: 12 | B50: 6868 | C50: 23 | D50: 6915 | E50: 13 | F50: 6924 | G50: 14 | H50: 6928 | K50: 0 | L50: 1211
A51: 12 | B51: 7070 | C51: 14 | D51: 7074 | E51: 24 | F51: 7087 | G51: 14 | H51: 7096 | K51: 0 | L51: 1121
A52: 21 | B52: 7263 | C52: 21 | D52: 7296 | E52: 22 | F52: 7314 | G52: 23 | H52: 7354 | K52: 0 | L52: 2222
A53: 21 | B53: 7490 | C53: 21 | D53: 7504 | E53: 22 | F53: 7524 | G53: 23 | H53: 7549 | K53: 0 | L53: 2222
A54: 21 | B54: 7686 | C54: 21 | D54: 7708 | E54: 11 | F54: 7724 | G54: 12 | H54: 7728 | K54: 0 | L54: 2211
A55: 21 | B55: 7855 | C55: 21 | D55: 7875 | E55: 11 | F55: 7890 | G55: 12 | H55: 7896 | K55: 0 | L55: 2211
A56: 12 | B56: 8138 | C56: 23 | D56: 8155 | E56: 13 | F56: 8167 | G56: 23 | H56: 8178 | K56: 0 | L56: 1212
A57: 12 | B57: 8420 | C57: 14 | D57: 8430 | E57: 13 | F57: 8441 | G57: 23 | H57: 8449 | K57: 0 | L57: 1112
A58: 21 | B58: 8597 | C58: 21 | D58: 8615 | E58: 11 | F58: 8628 | G58: 21 | H58: 8636 | K58: 0 | L58: 2212
A59: 12 | B59: 8762 | C59: 14 | D59: 8766 | E59: 24 | F59: 8775 | G59: 23 | H59: 8793 | K59: 0 | L59: 1122
A60: 12 | B60: 8986 | C60: 14 | D60: 9022 | E60: 13 | F60: 9056 | G60: 14 | H60: 9066 | K60: 0 | L60: 1111
A61: 12 | B61: 9195 | C61: 14 | D61: 9212 | E61: 13 | F61: 9217 | G61: 14 | H61: 9221 | K61: 0 | L61: 1111
A62: 21 | B62: 9456 | C62: 12 | D62: 9470 | E62: 13 | F62: 9477 | G62: 23 | H62: 9489 | K62: 0 | L62: 2112
A63: 21 | B63: 9624 | C63: 12 | D63: 9661 | E63: 24 | F63: 9672 | G63: 14 | H63: 9684 | K63: 0 | L63: 2121
A64: 12 | B64: 9807 | C64: 14 | D64: 9811 | E64: 13 | F64: 9839 | G64: 23 | H64: 9848 | K64: 0 | L64: 1112
A65: 12 | B65: 9999 | C65: 14 | D65: 10020 | E65: 24 | F65: 10028 | G65: 14 | H65: 10040 | K65: 0 | L65: 1121
A66: 21 | B66: 10171 | C66: 21 | D66: 10197 | E66: 22 | F66: 10221 | G66: 14 | H66: 10239 | K66: 0 | L66: 2221
A67: 21 | B67: 10514 | C67: 21 | D67: 10548 | E67: 22 | F67: 10575 | G67: 23 | H67: 10597 | K67: 0 | L67: 2222
A68: 21 | B68: 10720 | C68: 21 | D68: 10729 | E68: 22 | F68: 10753 | G68: 23 | H68: 10765 | K68: 0 | L68: 2222
A69: 12 | B69: 10897 | C69: 23 | D69: 10921 | E69: 13 | F69: 10937 | G69: 23 | H69: 10959 | K69: 0 | L69: 1212
A70: 12 | B70: 11248 | C70: 23 | D70: 11267 | E70: 24 | F70: 11304 | G70: 14 | H70: 11329 | K70: 0 | L70: 1221
A71: 21 | B71: 11541 | C71: 21 | D71: 11554 | E71: 22 | F71: 11589 | G71: 14 | H71: 11601 | K71: 0 | L71: 2221
A72: 12 | B72: 11875 | C72: 14 | D72: 11906 | E72: 13 | F72: 11915 | G72: 14 | H72: 11919 | K72: 0 | L72: 1111
A73: 21 | B73: 12053 | C73: 21 | D73: 12067 | E73: 22 | F73: 12075 | G73: 23 | H73: 12089 | K73: 0 | L73: 2222
A74: 12 | B74: 12223 | C74: 14 | D74: 12230 | E74: 13 | F74: 12234 | G74: 23 | H74: 12244 | K74: 0 | L74: 1112
A75: 12 | B75: 12358 | C75: 23 | D75: 12394 | E75: 24 | F75: 12405 | G75: 14 | H75: 12415 | K75: 0 | L75: 1221
A76: 12 | B76: 12542 | C76: 14 | D76: 12590 | E76: 13 | F76: 12597 | G76: 14 | H76: 12602 | K76: 0 | L76: 1111
A77: 12 | B77: 12713 | C77: 14 | D77: 12720 | E77: 13 | F77: 12727 | G77: 23 | H77: 12737 | K77: 0 | L77: 1112
A78: 12 | B78: 12987 | C78: 14 | D78: 12994 | E78: 24 | F78: 13006 | G78: 14 | H78: 13018 | K78: 0 | L78: 1121
A79: 12 | B79: 13151 | C79: 14 | D79: 13155 | E79: 13 | F79: 13174 | G79: 14 | H79: 13179 | K79: 0 | L79: 1111
A80: 21 | B80: 13315 | C80: 21 | D80: 13328 | E80: 11 | F80: 13340 | G80: 21 | H80: 13351 | K80: 0 | L80: 2212
A81: 12 | B81: 13563 | C81: 14 | D81: 13589 | E81: 24 | F81: 13598 | G81: 14 | H81: 13610 | K81: 0 | L81: 1121
A82: 21 | B82: 13753 | C82: 12 | D82: 13798 | E82: 13 | F82: 13805 | G82: 14 | H82: 13834 | K82: 0 | L82: 2111
A83: 21 | B83: 14092 | C83: 12 | D83: 14107 | E83: 24 | F83: 14116 | G83: 14 | H83: 14129 | K83: 0 | L83: 2121
A84: 12 | B84: 14243 | C84: 14 | D84: 14273 | E84: 24 | F84: 14284 | G84: 14 | H84: 14294 | K84: 0 | L84: 1121
A85: 21 | B85: 14414 | C85: 21 | D85: 14422 | E85: 22 | F85: 14432 | G85: 23 | H85: 14453 | K85: 0 | L85: 2222
A86: 21 | B86: 14587 | C86: 21 | D86: 14601 | E86: 11 | F86: 14615 | G86: 12 | H86: 14619 | K86: 0 | L86: 2211
A87: 12 | B87: 14726 | C87: 14 | D87: 14736 | E87: 13 | F87: 14750 | G87: 14 | H87: 14779 | K87: 0 | L87: 1111
A88: 21 | B88: 14915 | C88: 21 | D88: 14941 | E88: 11 | F88: 14956 | G88: 21 | H88: 14965 | K88: 0 | L88: 2212
A89: 21 | B89: 15110 | C89: 21 | D89: 15129 | E89: 11 | F89: 15141 | G89: 21 | H89: 15149 | K89: 0 | L89: 2212
A90: 21 | B90: 15264 | C90: 12 | D90: 15285 | E90: 13 | F90: 15299 | G90: 23 | H90: 15316 | K90: 0 | L90: 2112
A91: 12 | B91: 15436 | C91: 23 | D91: 15447 | E91: 13 | F91: 15464 | G91: 14 | H91: 15485 | K91: 0 | L91: 1211
A92: 12 | B92: 15664 | C92: 23 | D92: 15672 | E92: 13 | F92: 15689 | G92: 23 | H92: 15718 | K92: 0 | L92: 1212
A93: 12 | B93: 15889 | C93: 14 | D93: 15893 | E93: 24 | F93: 15917 | G93: 14 | H93: 15933 | K93: 0 | L93: 1121
A94: 21 | B94: 16360 | C94: 21 | D94: 16373 | E94: 11 | F94: 16395 | G94: 12 | H94: 16403 | K94: 0 | L94: 2211
A95: 21 | B95: 16513 | C95: 21 | D95: 16528 | E95: 22 | F95: 16542 | G95: 23 | H95: 16573 | K95: 0 | L95: 2222
A96: 21 | B96: 16702 | C96: 12 | D96: 16735 | E96: 24 | F96: 16749 | G96: 14 | H96: 16762 | K96: 0 | L96: 2121
A97: 21 | B97: 16904 | C97: 21 | D97: 16925 | E97: 22 | F97: 16932 | G97: 14 | H97: 16953 | K97: 0 | L97: 2221
A98: 12 | B98: 17389 | C98: 14 | D98: 17397 | E98: 13 | F98: 17409 | G98: 14 | H98: 17413 | K98: 0 | L98: 1111
A99: 21 | B99: 17954 | C99: 12 | D99: 17967 | E99: 24 | F99: 17976 | G99: 23 | H99: 17989 | K99: 0 | L99: 2122
A100: 21 | B100: 18219 | C100: 21 | D100: 18234 | E100: 22 | F100: 18247 | G100: 14 | H100: 18262 | K100: 0 | L100: 2221
A101: 21 | B101: 18437 | C101: 21 | D101: 18446 | E101: 22 | F101: 18453 | G101: 23 | H101: 18464 | K101: 0 | L101: 2222
A102: 21 | B102: 18617 | C102: 21 | D102: 18677 | E102: 11 | F102: 18701 | G102: 21 | H102: 18709 | K102: 0 | L102: 2212
A103: 12 | B103: 18847 | C103: 14 | D103: 18850 | E103: 13 | F103: 18877 | G103: 23 | H103: 18888 | K103: 0 | L103: 1112
A104: 12 | B104: 19040 | C104: 23 | D104: 19048 | E104: 13 | F104: 19059 | G104: 14 | H104: 19066 | K104: 0 | L104: 1211
A105: 12 | B105: 19228 | C105: 23 | D105: 19236 | E105: 24 | F105: 19293 | G105: 23 | H105: 19304 | K105: 0 | L105: 1222
A106: 21 | B106: 19550 | C106: 21 | D106: 19574 | E106: 11 | F106: 19621 | G106: 21 | H106: 19630 | K106: 0 | L106: 2212
A107: 12 | B107: 19753 | C107: 14 | D107: 19758 | E107: 24 | F107: 19766 | G107: 14 | H107: 19779 | K107: 0 | L107: 1121
A108: 21 | B108: 19908 | C108: 12 | D108: 20002 | E108: 24 | F108: 20009 | G108: 14 | H108: 20035 | K108: 0 | L108: 2121
A109: 12 | B109: 20354 | C109: 23 | D109: 20364 | E109: 24 | F109: 20390 | G109: 14 | H109: 20409 | K109: 0 | L109: 1221
A110: 21 | B110: 20619 | C110: 12 | D110: 20688 | E110: 13 | F110: 20698 | G110: 23 | H110: 20706 | K110: 0 | L110: 2112
A111: 12 | B111: 20902 | C111: 14 | D111: 20918 | E111: 24 | F111: 20972 | G111: 14 | H111: 20991 | K111: 0 | L111: 1121
A112: 21 | B112: 21225 | C112: 12 | D112: 21237 | E112: 24 | F112: 21244 | G112: 14 | H112: 21273 | K112: 0 | L112: 2121
A113: 21 | B113: 21465 | C113: 21 | D113: 21551 | E113: 11 | F113: 21576 | G113: 21 | H113: 21596 | K113: 0 | L113: 2212
A114: 21 | B114: 21737 | C114: 21 | D114: 21776 | E114: 11 | F114: 21817 | G114: 21 | H114: 21827 | K114: 0 | L114: 2212
A115: 12 | B115: 22087 | C115: 14 | D115: 22092 | E115: 13 | F115: 22145 | G115: 23 | H115: 22153 | K115: 0 | L115: 1112
A116: 12 | B116: 22301 | C116: 14 | D116: 22329 | E116: 24 | F116: 22336 | G116: 14 | H116: 22349 | K116: 0 | L116: 1121
A117: 21 | B117: 22515 | C117: 12 | D117: 22561 | E117: 13 | F117: 22662 | G117: 23 | H117: 22690 | K117: 0 | L117: 2112
A118: 21 | B118: 22835 | C118: 21 | D118: 22878 | E118: 11 | F118: 22917 | G118: 21 | H118: 22932 | K118: 0 | L118: 2212
A119: 12 | B119: 23037 | C119: 14 | D119: 23041 | E119: 13 | F119: 23062 | G119: 14 | H119: 23079 | K119: 0 | L119: 1111
A120: 21 | B120: 23215 | C120: 21 | D120: 23226 | E120: 11 | F120: 23238 | G120: 12 | H120: 23277 | K120: 0 | L120: 2211
A121: 12 | B121: 23420 | C121: 14 | D121: 23453 | E121: 24 | F121: 23470 | G121: 14 | H121: 23513 | K121: 0 | L121: 1121
A122: 12 | B122: 23626 | C122: 14 | D122: 23638 | E122: 13 | F122: 23647 | G122: 14 | H122: 23701 | K122: 0 | L122: 1111
A123: 12 | B123: 23816 | C123: 14 | D123: 23821 | E123: 24 | F123: 23830 | G123: 14 | H123: 23856 | K123: 0 | L123: 1121

Sheet !MA18C30.096
A1: Report for:!MA18C30.096
A2: Date: | B2: <date>
A3: Hen: | B3: <hen> | F3: Correct Sequence | G3: =Start!J2 -> 2212 | P3: Total Sequences in Data | Q3: =4994-COUNTBLANK(L7:L5000) -> 85 | V3: Total Sequences in Block Data | W3: =COUNTA(L7:L20) -> 14 | AA3: Total Sequences in Block Data | AB3: =COUNTA(L21:L34) -> 14 | AF3: Total Sequences in Block Data | AG3: =COUNTA(L35:L49) -> 15 | AK3: Total Sequences in Block Data | AL3: =COUNTA(L50:L63) -> 14 | AP3: Total Sequences in Block Data | AQ3: =COUNTA(L64:L77) -> 14 | AU3: Total Sequences in Block Data | AV3: =COUNTA(L78:L91) -> 14
P4: Total Sequences in Summary | Q4: =SUM(O7:O22) -> 84 | V4: Total Sequences in Block Summary | W4: =SUM(U7:U22) -> 14 | AA4: Total Sequences in Block Summary | AB4: =SUM(Z7:Z22) -> 14 | AF4: Total Sequences in Block Summary | AG4: =SUM(AE7:AE22) -> 15 | AK4: Total Sequences in Block Summary | AL4: =SUM(AJ7:AJ22) -> 14 | AP4: Total Sequences in Block Summary | AQ4: =SUM(AO7:AO22) -> 14 | AU4: Total Sequences in Block Summary | AV4: =SUM(AT7:AT22) -> 13
T5: Block 1 | Y5: Block 2 | AD5: Block 3 | AI5: Block 4 | AN5: Block 5 | AS5: Block 6
A6: Sequence Component 1 | B6: Time 1 | C6: Sequence Component 2 | D6: Time 2 | E6: Sequence Component 3 | F6: Time 3 | G6: Sequence Component 4 | H6: Time 4 | I6: Sequence Component 5 | J6: Time 5 | K6: Correct? 0=No 1=Yes | L6: Sequence | N6: Frequency | P6: Relative Frequency | Q6: Variability | T6: Frequency | V6: Relative Frequency | W6: Variability | Y6: Frequency | AA6: Relative Frequency | AB6: Variability | AD6: Frequency | AF6: Relative Frequency | AG6: Variability | AI6: Frequency | AK6: Relative Frequency | AL6: Variability | AN6: Frequency | AP6: Relative Frequency | AQ6: Variability | AS6: Frequency | AU6: Relative Frequency | AV6: Variability
A7: 12 | B7: 9 | C7: 14 | D7: 14 | E7: 13 | F7: 22 | G7: 14 | H7: 27 | K7: 0 | L7: 1111 | N7: 1111 | O7: =COUNTIF($L$7:$L$500,N7) -> 12 | P7: =O7/$Q$4 -> 0.1428571429 | Q7: =IF(P7=0,0,(P7*((LOG(P7))/LOG(2)))) -> -0.4010507032 | T7: =N7 -> 1111 | U7: =COUNTIF(L7:L20,T7) -> 2 | V7: =U7/(W4-U20) -> 0.1428571429 | W7: =IF(V7=0,0,(V7*((LOG(V7))/LOG(2)))) -> -0.4010507032 | Y7: =N7 -> 1111 | Z7: =COUNTIF(L21:L34,Y7) -> 1 | AA7: =Z7/(AB4-Z20) -> 0.07142857143 | AB7: =IF(AA7=0,0,(AA7*((LOG(AA7))/LOG(2)))) -> -0.271953923 | AD7: =N7 -> 1111 | AE7: =COUNTIF(L35:L49,AD7) -> 4 | AF7: =AE7/(AG4-AE20) -> 0.2857142857 | AG7: =IF(AF7=0,0,(AF7*((LOG(AF7))/LOG(2)))) -> -0.5163871206 | AI7: =N7 -> 1111 | AJ7: =COUNTIF(L50:L63,AI7) -> 3 | AK7: =AJ7/(AL4-AJ20) -> 0.2142857143 | AL7: =IF(AK7=0,0,(AK7*((LOG(AK7))/LOG(2)))) -> -0.4762269474 | AN7: =N7 -> 1111 | AO7: =COUNTIF(L64:L77,AN7) -> 1 | AP7: =AO7/(AQ4-AO20) -> 0.07692307692 | AQ7: =IF(AP7=0,0,(AP7*((LOG(AP7))/LOG(2)))) -> -0.2846492091 | AS7: =N7 -> 1111 | AT7: =COUNTIF(L78:L91,AS7) -> 1 | AU7: =AT7/(AV4-AT20) -> 0.08333333333 | AV7: =IF(AU7=0,0,(AU7*((LOG(AU7))/LOG(2)))) -> -0.2987468751
A8: 12 | B8: 126 | C8: 14 | D8: 130 | E8: 24 | F8: 142 | G8: 14 | H8: 161 | K8: 0 | L8: 1121 | N8: 1112 | O8: =COUNTIF($L$7:$L$500,N8) -> 10 | P8: =O8/$Q$4 -> 0.119047619 | Q8: =IF(P8=0,0,(P8*((LOG(P8))/LOG(2)))) -> -0.365522539 | T8: =N8 -> 1112 | U8: =COUNTIF(L7:L20,T8) -> 2 | V8: =U8/(W4-U20) -> 0.1428571429 | W8: =IF(V8=0,0,(V8*((LOG(V8))/LOG(2)))) -> -0.4010507032 | Y8: =N8 -> 1112 | Z8: =COUNTIF(L21:L34,Y8) -> 3 | AA8: =Z8/(AB4-Z20) -> 0.2142857143 | AB8: =IF(AA8=0,0,(AA8*((LOG(AA8))/LOG(2)))) -> -0.4762269474 | AD8: =N8 -> 1112 | AE8: =COUNTIF(L35:L49,AD8) -> 1 | AF8: =AE8/(AG4-AE20) -> 0.07142857143 | AG8: =IF(AF8=0,0,(AF8*((LOG(AF8))/LOG(2)))) -> -0.271953923 | AI8: =N8 -> 1112 | AJ8: =COUNTIF(L50:L63,AI8) -> 2 | AK8: =AJ8/(AL4-AJ20) -> 0.1428571429 | AL8: =IF(AK8=0,0,(AK8*((LOG(AK8))/LOG(2)))) -> -0.4010507032 | AN8: =N8 -> 1112 | AO8: =COUNTIF(L64:L77,AN8) -> 2 | AP8: =AO8/(AQ4-AO20) -> 0.1538461538 | AQ8: =IF(AP8=0,0,(AP8*((LOG(AP8))/LOG(2)))) -> -0.4154522643 | AS8: =N8 -> 1112 | AT8: =COUNTIF(L78:L91,AS8) -> 0 | AU8: =AT8/(AV4-AT20) -> 0 | AV8: =IF(AU8=0,0,(AU8*((LOG(AU8))/LOG(2)))) -> 0
A9: 12 | B9: 264 | C9: 14 | D9: 268 | E9: 24 | F9: 280 | G9: 14 | H9: 298 | K9: 0 | L9: 1121 | N9: 1121 | O9: =COUNTIF($L$7:$L$500,N9) -> 16 | P9: =O9/$Q$4 -> 0.1904761905 | Q9: =IF(P9=0,0,(P9*((LOG(P9))/LOG(2)))) -> -0.4556795091 | T9: =N9 -> 1121 | U9: =COUNTIF(L7:L20,T9) -> 8 | V9: =U9/(W4-U20) -> 0.5714285714 | W9: =IF(V9=0,0,(V9*((LOG(V9))/LOG(2)))) -> -0.4613456697 | Y9: =N9 -> 1121 | Z9: =COUNTIF(L21:L34,Y9) -> 4 | AA9: =Z9/(AB4-Z20) -> 0.2857142857 | AB9: =IF(AA9=0,0,(AA9*((LOG(AA9))/LOG(2)))) -> -0.5163871206 | AD9: =N9 -> 1121 | AE9: =COUNTIF(L35:L49,AD9) -> 3 | AF9: =AE9/(AG4-AE20) -> 0.2142857143 | AG9: =IF(AF9=0,0,(AF9*((LOG(AF9))/LOG(2)))) -> -0.4762269474 | AI9: =N9 -> 1121 | AJ9: =COUNTIF(L50:L63,AI9) -> 1 | AK9: =AJ9/(AL4-AJ20) -> 0.07142857143 | AL9: =IF(AK9=0,0,(AK9*((LOG(AK9))/LOG(2)))) -> -0.271953923 | AN9: =N9 -> 1121 | AO9: =COUNTIF(L64:L77,AN9) -> 0 | AP9: =AO9/(AQ4-AO20) -> 0 | AQ9: =IF(AP9=0,0,(AP9*((LOG(AP9))/LOG(2)))) -> 0 | AS9: =N9 -> 1121 | AT9: =COUNTIF(L78:L91,AS9) -> 0 | AU9: =AT9/(AV4-AT20) -> 0 | AV9: =IF(AU9=0,0,(AU9*((LOG(AU9))/LOG(2)))) -> 0
A10: 12 | B10: 395 | C10: 14 | D10: 410 | E10: 13 | F10: 414 | G10: 23 | H10: 423 | K10: 0 | L10: 1112 | N10: 1122 | O10: =COUNTIF($L$7:$L$500,N10) -> 3 | P10: =O10/$Q$4 -> 0.03571428571 | Q10: =IF(P10=0,0,(P10*((LOG(P10))/LOG(2)))) -> -0.1716912472 | T10: =N10 -> 1122 | U10: =COUNTIF(L7:L20,T10) -> 0 | V10: =U10/(W4-U20) -> 0 | W10: =IF(V10=0,0,(V10*((LOG(V10))/LOG(2)))) -> 0 | Y10: =N10 -> 1122 | Z10: =COUNTIF(L21:L34,Y10) -> 0 | AA10: =Z10/(AB4-Z20) -> 0 | AB10: =IF(AA10=0,0,(AA10*((LOG(AA10))/LOG(2)))) -> 0 | AD10: =N10 -> 1122 | AE10: =COUNTIF(L35:L49,AD10) -> 1 | AF10: =AE10/(AG4-AE20) -> 0.07142857143 | AG10: =IF(AF10=0,0,(AF10*((LOG(AF10))/LOG(2)))) -> -0.271953923 | AI10: =N10 -> 1122 | AJ10: =COUNTIF(L50:L63,AI10) -> 0 | AK10: =AJ10/(AL4-AJ20) -> 0 | AL10: =IF(AK10=0,0,(AK10*((LOG(AK10))/LOG(2)))) -> 0 | AN10: =N10 -> 1122 | AO10: =COUNTIF(L64:L77,AN10) -> 1 | AP10: =AO10/(AQ4-AO20) -> 0.07692307692 | AQ10: =IF(AP10=0,0,(AP10*((LOG(AP10))/LOG(2)))) -> -0.2846492091 | AS10: =N10 -> 1122 | AT10: =COUNTIF(L78:L91,AS10) -> 1 | AU10: =AT10/(AV4-AT20) -> 0.08333333333 | AV10: =IF(AU10=0,0,(AU10*((LOG(AU10))/LOG(2)))) -> -0.2987468751
A11: 12 | B11: 526 | C11: 14 | D11: 530 | E11: 24 | F11: 551 | G11: 14 | H11: 563 | K11: 0 | L11: 1121 | N11: 1211 | O11: =COUNTIF($L$7:$L$500,N11) -> 3 | P11: =O11/$Q$4 -> 0.03571428571 | Q11: =IF(P11=0,0,(P11*((LOG(P11))/LOG(2)))) -> -0.1716912472 | T11: =N11 -> 1211 | U11: =COUNTIF(L7:L20,T11) -> 0 | V11: =U11/(W4-U20) -> 0 | W11: =IF(V11=0,0,(V11*((LOG(V11))/LOG(2)))) -> 0 | Y11: =N11 -> 1211 | Z11: =COUNTIF(L21:L34,Y11) -> 0 | AA11: =Z11/(AB4-Z20) -> 0 | AB11: =IF(AA11=0,0,(AA11*((LOG(AA11))/LOG(2)))) -> 0 | AD11: =N11 -> 1211 | AE11: =COUNTIF(L35:L49,AD11) -> 1 | AF11: =AE11/(AG4-AE20) -> 0.07142857143 | AG11: =IF(AF11=0,0,(AF11*((LOG(AF11))/LOG(2)))) -> -0.271953923 | AI11: =N11 -> 1211 | AJ11: =COUNTIF(L50:L63,AI11) -> 1 | AK11: =AJ11/(AL4-AJ20) -> 0.07142857143 | AL11: =IF(AK11=0,0,(AK11*((LOG(AK11))/LOG(2)))) -> -0.271953923 | AN11: =N11 -> 1211 | AO11: =COUNTIF(L64:L77,AN11) -> 1 | AP11: =AO11/(AQ4-AO20) -> 0.07692307692 | AQ11: =IF(AP11=0,0,(AP11*((LOG(AP11))/LOG(2)))) -> -0.2846492091 | AS11: =N11 -> 1211 | AT11: =COUNTIF(L78:L91,AS11) -> 0 | AU11: =AT11/(AV4-AT20) -> 0 | AV11: =IF(AU11=0,0,(AU11*((LOG(AU11))/LOG(2)))) -> 0
A12: 12 | B12: 666 | C12: 14 | D12: 670 | E12: 24 | F12: 684 | G12: 14 | H12: 697 | K12: 0 | L12: 1121 | N12: 1212 | O12: =COUNTIF($L$7:$L$500,N12) -> 6 | P12: =O12/$Q$4 -> 0.07142857143 | Q12: =IF(P12=0,0,(P12*((LOG(P12))/LOG(2)))) -> -0.271953923 | T12: =N12 -> 1212 | U12: =COUNTIF(L7:L20,T12) -> 1 | V12: =U12/(W4-U20) -> 0.07142857143 | W12: =IF(V12=0,0,(V12*((LOG(V12))/LOG(2)))) -> -0.271953923 | Y12: =N12 -> 1212 | Z12: =COUNTIF(L21:L34,Y12) -> 2 | AA12: =Z12/(AB4-Z20) -> 0.1428571429 | AB12: =IF(AA12=0,0,(AA12*((LOG(AA12))/LOG(2)))) -> -0.4010507032 | AD12: =N12 -> 1212 | AE12: =COUNTIF(L35:L49,AD12) -> 0 | AF12: =AE12/(AG4-AE20) -> 0 | AG12: =IF(AF12=0,0,(AF12*((LOG(AF12))/LOG(2)))) -> 0 | AI12: =N12 -> 1212 | AJ12: =COUNTIF(L50:L63,AI12) -> 0 | AK12: =AJ12/(AL4-AJ20) -> 0 | AL12: =IF(AK12=0,0,(AK12*((LOG(AK12))/LOG(2)))) -> 0 | AN12: =N12 -> 1212 | AO12: =COUNTIF(L64:L77,AN12) -> 1 | AP12: =AO12/(AQ4-AO20) -> 0.07692307692 | AQ12: =IF(AP12=0,0,(AP12*((LOG(AP12))/LOG(2)))) -> -0.2846492091 | AS12: =N12 -> 1212 | AT12: =COUNTIF(L78:L91,AS12) -> 2 | AU12: =AT12/(AV4-AT20) -> 0.1666666667 | AV12: =IF(AU12=0,0,(AU12*((LOG(AU12))/LOG(2)))) -> -0.4308270835
A13: 12 | B13: 801 | C13: 14 | D13: 811 | E13: 24 | F13: 822 | G13: 14 | H13: 837 | K13: 0 | L13: 1121 | N13: 1221 | O13: =COUNTIF($L$7:$L$500,N13) -> 2 | P13: =O13/$Q$4 -> 0.02380952381 | Q13: =IF(P13=0,0,(P13*((LOG(P13))/LOG(2)))) -> -0.1283885101 | T13: =N13 -> 1221 | U13: =COUNTIF(L7:L20,T13) -> 0 | V13: =U13/(W4-U20) -> 0 | W13: =IF(V13=0,0,(V13*((LOG(V13))/LOG(2)))) -> 0 | Y13: =N13 -> 1221 | Z13: =COUNTIF(L21:L34,Y13) -> 2 | AA13: =Z13/(AB4-Z20) -> 0.1428571429 | AB13: =IF(AA13=0,0,(AA13*((LOG(AA13))/LOG(2)))) -> -0.4010507032 | AD13: =N13 -> 1221 | AE13: =COUNTIF(L35:L49,AD13) -> 0 | AF13: =AE13/(AG4-AE20) -> 0 | AG13: =IF(AF13=0,0,(AF13*((LOG(AF13))/LOG(2)))) -> 0 | AI13: =N13 -> 1221 | AJ13: =COUNTIF(L50:L63,AI13) -> 0 | AK13: =AJ13/(AL4-AJ20) -> 0 | AL13: =IF(AK13=0,0,(AK13*((LOG(AK13))/LOG(2)))) -> 0 | AN13: =N13 -> 1221 | AO13: =COUNTIF(L64:L77,AN13) -> 0 | AP13: =AO13/(AQ4-AO20) -> 0 | AQ13: =IF(AP13=0,0,(AP13*((LOG(AP13))/LOG(2)))) -> 0 | AS13: =N13 -> 1221 | AT13: =COUNTIF(L78:L91,AS13) -> 0 | AU13: =AT13/(AV4-AT20) -> 0 | AV13: =IF(AU13=0,0,(AU13*((LOG(AU13))/LOG(2)))) -> 0
A14: 12 | B14: 936 | C14: 14 | D14: 941 | E14: 13 | F14: 951 | G14: 14 | H14: 956 | K14: 0 | L14: 1111 | N14: 1222 | O14: =COUNTIF($L$7:$L$500,N14) -> 2 | P14: =O14/$Q$4 -> 0.02380952381 | Q14: =IF(P14=0,0,(P14*((LOG(P14))/LOG(2)))) -> -0.1283885101 | T14: =N14 -> 1222 | U14: =COUNTIF(L7:L20,T14) -> 0 | V14: =U14/(W4-U20) -> 0 | W14: =IF(V14=0,0,(V14*((LOG(V14))/LOG(2)))) -> 0 | Y14: =N14 -> 1222 | Z14: =COUNTIF(L21:L34,Y14) -> 0 | AA14: =Z14/(AB4-Z20) -> 0 | AB14: =IF(AA14=0,0,(AA14*((LOG(AA14))/LOG(2)))) -> 0 | AD14: =N14 -> 1222 | AE14: =COUNTIF(L35:L49,AD14) -> 0 | AF14: =AE14/(AG4-AE20) -> 0 | AG14: =IF(AF14=0,0,(AF14*((LOG(AF14))/LOG(2)))) -> 0 | AI14: =N14 -> 1222 | AJ14: =COUNTIF(L50:L63,AI14) -> 1 | AK14: =AJ14/(AL4-AJ20) -> 0.07142857143 | AL14: =IF(AK14=0,0,(AK14*((LOG(AK14))/LOG(2)))) -> -0.271953923 | AN14: =N14 -> 1222 | AO14: =COUNTIF(L64:L77,AN14) -> 0 | AP14: =AO14/(AQ4-AO20) -> 0 | AQ14: =IF(AP14=0,0,(AP14*((LOG(AP14))/LOG(2)))) -> 0 | AS14: =N14 -> 1222 | AT14: =COUNTIF(L78:L91,AS14) -> 1 | AU14: =AT14/(AV4-AT20) -> 0.08333333333 | AV14: =IF(AU14=0,0,(AU14*((LOG(AU14))/LOG(2)))) -> -0.2987468751
A15: 12 | B15: 1056 | C15: 14 | D15: 1069 | E15: 24 | F15: 1082 | G15: 14 | H15: 1093 | K15: 0 | L15: 1121 | N15: 2111 | O15: =COUNTIF($L$7:$L$500,N15) -> 3 | P15: =O15/$Q$4 -> 0.03571428571 | Q15: =IF(P15=0,0,(P15*((LOG(P15))/LOG(2)))) -> -0.1716912472 | T15: =N15 -> 2111 | U15: =COUNTIF(L7:L20,T15) -> 0 | V15: =U15/(W4-U20) -> 0 | W15: =IF(V15=0,0,(V15*((LOG(V15))/LOG(2)))) -> 0 | Y15: =N15 -> 2111 | Z15: =COUNTIF(L21:L34,Y15) -> 0 | AA15: =Z15/(AB4-Z20) -> 0 | AB15: =IF(AA15=0,0,(AA15*((LOG(AA15))/LOG(2)))) -> 0 | AD15: =N15 -> 2111 | AE15: =COUNTIF(L35:L49,AD15) -> 1 | AF15: =AE15/(AG4-AE20) -> 0.07142857143 | AG15: =IF(AF15=0,0,(AF15*((LOG(AF15))/LOG(2)))) -> -0.271953923 | AI15: =N15 -> 2111 | AJ15: =COUNTIF(L50:L63,AI15) -> 0 | AK15: =AJ15/(AL4-AJ20) -> 0 | AL15: =IF(AK15=0,0,(AK15*((LOG(AK15))/LOG(2)))) -> 0 | AN15: =N15 -> 2111 | AO15: =COUNTIF(L64:L77,AN15) -> 1 | AP15: =AO15/(AQ4-AO20) -> 0.07692307692 | AQ15: =IF(AP15=0,0,(AP15*((LOG(AP15))/LOG(2)))) -> -0.2846492091 | AS15: =N15 -> 2111 | AT15: =COUNTIF(L78:L91,AS15) -> 1 | AU15: =AT15/(AV4-AT20) -> 0.08333333333 | AV15: =IF(AU15=0,0,(AU15*((LOG(AU15))/LOG(2)))) -> -0.2987468751
A16: 12 | B16: 1197 | C16: 14 | D16: 1201 | E16: 24 | F16: 1213 | G16: 14 | H16: 1224 | K16: 0 | L16: 1121 | N16: 2112 | O16: =COUNTIF($L$7:$L$500,N16) -> 9 | P16: =O16/$Q$4 -> 0.1071428571 | Q16: =IF(P16=0,0,(P16*((LOG(P16))/LOG(2)))) -> -0.3452563309 | T16: =N16 -> 2112 | U16: =COUNTIF(L7:L20,T16) -> 1 | V16: =U16/(W4-U20) -> 0.07142857143 | W16: =IF(V16=0,0,(V16*((LOG(V16))/LOG(2)))) -> -0.271953923 | Y16: =N16 -> 2112 | Z16: =COUNTIF(L21:L34,Y16) -> 2 | AA16: =Z16/(AB4-Z20) -> 0.1428571429 | AB16: =IF(AA16=0,0,(AA16*((LOG(AA16))/LOG(2)))) -> -0.4010507032 | AD16: =N16 -> 2112 | AE16: =COUNTIF(L35:L49,AD16) -> 2 | AF16: =AE16/(AG4-AE20) -> 0.1428571429 | AG16: =IF(AF16=0,0,(AF16*((LOG(AF16))/LOG(2)))) -> -0.4010507032 | AI16: =N16 -> 2112 | AJ16: =COUNTIF(L50:L63,AI16) -> 2 | AK16: =AJ16/(AL4-AJ20) -> 0.1428571429 | AL16: =IF(AK16=0,0,(AK16*((LOG(AK16))/LOG(2)))) -> -0.4010507032 | AN16: =N16 -> 2112 | AO16: =COUNTIF(L64:L77,AN16) -> 1 | AP16: =AO16/(AQ4-AO20) -> 0.07692307692 | AQ16: =IF(AP16=0,0,(AP16*((LOG(AP16))/LOG(2)))) -> -0.2846492091 | AS16: =N16 -> 2112 | AT16: =COUNTIF(L78:L91,AS16) -> 1 | AU16: =AT16/(AV4-AT20) -> 0.08333333333 | AV16: =IF(AU16=0,0,(AU16*((LOG(AU16))/LOG(2)))) -> -0.2987468751
A17: 12 | B17: 1335 | C17: 14 | D17: 1343 | E17: 13 | F17: 1354 | G17: 23 | H17: 1366 | K17: 0 | L17: 1112 | N17: 2121 | O17: =COUNTIF($L$7:$L$500,N17) -> 4 | P17: =O17/$Q$4 -> 0.04761904762 | Q17: =IF(P17=0,0,(P17*((LOG(P17))/LOG(2)))) -> -0.2091579725 | T17: =N17 -> 2121 | U17: =COUNTIF(L7:L20,T17) -> 0 | V17: =U17/(W4-U20) -> 0 | W17: =IF(V17=0,0,(V17*((LOG(V17))/LOG(2)))) -> 0 | Y17: =N17 -> 2121 | Z17: =COUNTIF(L21:L34,Y17) -> 0 | AA17: =Z17/(AB4-Z20) -> 0 | AB17: =IF(AA17=0,0,(AA17*((LOG(AA17))/LOG(2)))) -> 0 | AD17: =N17 -> 2121 | AE17: =COUNTIF(L35:L49,AD17) -> 0 | AF17: =AE17/(AG4-AE20) -> 0 | AG17: =IF(AF17=0,0,(AF17*((LOG(AF17))/LOG(2)))) -> 0 | AI17: =N17 -> 2121 | AJ17: =COUNTIF(L50:L63,AI17) -> 0 | AK17: =AJ17/(AL4-AJ20) -> 0 | AL17: =IF(AK17=0,0,(AK17*((LOG(AK17))/LOG(2)))) -> 0 | AN17: =N17 -> 2121 | AO17: =COUNTIF(L64:L77,AN17) -> 3 | AP17: =AO17/(AQ4-AO20) -> 0.2307692308 | AQ17: =IF(AP17=0,0,(AP17*((LOG(AP17))/LOG(2)))) -> -0.4881870502 | AS17: =N17 -> 2121 | AT17: =COUNTIF(L78:L91,AS17) -> 1 | AU17: =AT17/(AV4-AT20) -> 0.08333333333 | AV17: =IF(AU17=0,0,(AU17*((LOG(AU17))/LOG(2)))) -> -0.2987468751
A18: 12 | B18: 1475 | C18: 14 | D18: 1479 | E18: 24 | F18: 1494 | G18: 14 | H18: 1505 | K18: 0 | L18: 1121 | N18: 2122 | O18: =COUNTIF($L$7:$L$500,N18) -> 2 | P18: =O18/$Q$4 -> 0.02380952381 | Q18: =IF(P18=0,0,(P18*((LOG(P18))/LOG(2)))) -> -0.1283885101 | T18: =N18 -> 2122 | U18: =COUNTIF(L7:L20,T18) -> 0 | V18: =U18/(W4-U20) -> 0 | W18: =IF(V18=0,0,(V18*((LOG(V18))/LOG(2)))) -> 0 | Y18: =N18 -> 2122 | Z18: =COUNTIF(L21:L34,Y18) -> 0 | AA18: =Z18/(AB4-Z20) -> 0 | AB18: =IF(AA18=0,0,(AA18*((LOG(AA18))/LOG(2)))) -> 0 | AD18: =N18 -> 2122 | AE18: =COUNTIF(L35:L49,AD18) -> 0 | AF18: =AE18/(AG4-AE20) -> 0 | AG18: =IF(AF18=0,0,(AF18*((LOG(AF18))/LOG(2)))) -> 0 | AI18: =N18 -> 2122 | AJ18: =COUNTIF(L50:L63,AI18) -> 2 | AK18: =AJ18/(AL4-AJ20) -> 0.1428571429 | AL18: =IF(AK18=0,0,(AK18*((LOG(AK18))/LOG(2)))) -> -0.4010507032 | AN18: =N18 -> 2122 | AO18: =COUNTIF(L64:L77,AN18) -> 0 | AP18: =AO18/(AQ4-AO20) -> 0 | AQ18: =IF(AP18=0,0,(AP18*((LOG(AP18))/LOG(2)))) -> 0 | AS18: =N18 -> 2122 | AT18: =COUNTIF(L78:L91,AS18) -> 0 | AU18: =AT18/(AV4-AT20) -> 0 | AV18: =IF(AU18=0,0,(AU18*((LOG(AU18))/LOG(2)))) -> 0
A19: 12 | B19: 1628 | C19: 23 | D19: 1640 | E19: 13 | F19: 1659 | G19: 23 | H19: 1668 | K19: 0 | L19: 1212 | N19: 2211 | O19: =COUNTIF($L$7:$L$500,N19) -> 4 | P19: =O19/$Q$4 -> 0.04761904762 | Q19: =IF(P19=0,0,(P19*((LOG(P19))/LOG(2)))) -> -0.2091579725 | T19: =N19 -> 2211 | U19: =COUNTIF(L7:L20,T19) -> 0 | V19: =U19/(W4-U20) -> 0 | W19: =IF(V19=0,0,(V19*((LOG(V19))/LOG(2)))) -> 0 | Y19: =N19 -> 2211 | Z19: =COUNTIF(L21:L34,Y19) -> 0 | AA19: =Z19/(AB4-Z20) -> 0 | AB19: =IF(AA19=0,0,(AA19*((LOG(AA19))/LOG(2)))) -> 0 | AD19: =N19 -> 2211 | AE19: =COUNTIF(L35:L49,AD19) -> 1 | AF19: =AE19/(AG4-AE20) -> 0.07142857143 | AG19: =IF(AF19=0,0,(AF19*((LOG(AF19))/LOG(2)))) -> -0.271953923 | AI19: =N19 -> 2211 | AJ19: =COUNTIF(L50:L63,AI19) -> 1 | AK19: =AJ19/(AL4-AJ20) -> 0.07142857143 | AL19: =IF(AK19=0,0,(AK19*((LOG(AK19))/LOG(2)))) -> -0.271953923 | AN19: =N19 -> 2211 | AO19: =COUNTIF(L64:L77,AN19) -> 2 | AP19: =AO19/(AQ4-AO20) -> 0.1538461538 | AQ19: =IF(AP19=0,0,(AP19*((LOG(AP19))/LOG(2)))) -> -0.4154522643 | AS19: =N19 -> 2211 | AT19: =COUNTIF(L78:L91,AS19) -> 0 | AU19: =AT19/(AV4-AT20) -> 0 | AV19: =IF(AU19=0,0,(AU19*((LOG(AU19))/LOG(2)))) -> 0
A20: 21 | B20: 1800 | C20: 12 | D20: 1814 | E20: 13 | F20: 1819 | G20: 23 | H20: 1829 | K20: 0 | L20: 2112 | N20: 2212 | O20: =COUNTIF($L$7:$L$500,N20) -> 3 | P20: =O20/$Q$4 -> 0.03571428571 | Q20: =IF(P20=0,0,(P20*((LOG(P20))/LOG(2)))) -> -0.1716912472 | T20: =N20 -> 2212 | U20: =COUNTIF(L7:L20,T20) -> 0 | Y20: =N20 -> 2212 | Z20: =COUNTIF(L21:L34,Y20) -> 0 | AD20: =N20 -> 2212 | AE20: =COUNTIF(L35:L49,AD20) -> 1 | AI20: =N20 -> 2212 | AJ20: =COUNTIF(L50:L63,AI20) -> 0 | AN20: =N20 -> 2212 | AO20: =COUNTIF(L64:L77,AN20) -> 1 | AS20: =N20 -> 2212 | AT20: =COUNTIF(L78:L91,AS20) -> 1
A21: 12 | B21: 1939 | C21: 14 | D21: 1946 | E21: 24 | F21: 1957 | G21: 14 | H21: 1969 | K21: 0 | L21: 1121 | N21: 2221 | O21: =COUNTIF($L$7:$L$500,N21) -> 1 | P21: =O21/$Q$4 -> 0.0119047619 | Q21: =IF(P21=0,0,(P21*((LOG(P21))/LOG(2)))) -> -0.07609901694 | T21: =N21 -> 2221 | U21: =COUNTIF(L7:L20,T21) -> 0 | V21: =U21/(W4-U20) -> 0 | W21: =IF(V21=0,0,(V21*((LOG(V21))/LOG(2)))) -> 0 | Y21: =N21 -> 2221 | Z21: =COUNTIF(L21:L34,Y21) -> 0 | AA21: =Z21/(AB4-Z20) -> 0 | AB21: =IF(AA21=0,0,(AA21*((LOG(AA21))/LOG(2)))) -> 0 | AD21: =N21 -> 2221 | AE21: =COUNTIF(L35:L49,AD21) -> 0 | AF21: =AE21/(AG4-AE20) -> 0 | AG21: =IF(AF21=0,0,(AF21*((LOG(AF21))/LOG(2)))) -> 0 | AI21: =N21 -> 2221 | AJ21: =COUNTIF(L50:L63,AI21) -> 1 | AK21: =AJ21/(AL4-AJ20) -> 0.07142857143 | AL21: =IF(AK21=0,0,(AK21*((LOG(AK21))/LOG(2)))) -> -0.271953923 | AN21: =N21 -> 2221 | AO21: =COUNTIF(L64:L77,AN21) -> 0 | AP21: =AO21/(AQ4-AO20) -> 0 | AQ21: =IF(AP21=0,0,(AP21*((LOG(AP21))/LOG(2)))) -> 0 | AS21: =N21 -> 2221 | AT21: =COUNTIF(L78:L91,AS21) -> 0 | AU21: =AT21/(AV4-AT20) -> 0 | AV21: =IF(AU21=0,0,(AU21*((LOG(AU21))/LOG(2)))) -> 0
A22: 12 | B22: 2081 | C22: 14 | D22: 2085 | E22: 24 | F22: 2095 | G22: 14 | H22: 2112 | K22: 0 | L22: 1121 | N22: 2222 | O22: =COUNTIF($L$7:$L$500,N22) -> 4 | P22: =O22/$Q$4 -> 0.04761904762 | Q22: =IF(P22=0,0,(P22*((LOG(P22))/LOG(2)))) -> -0.2091579725 | T22: =N22 -> 2222 | U22: =COUNTIF(L7:L20,T22) -> 0 | V22: =U22/(W4-U20) -> 0 | W22: =IF(V22=0,0,(V22*((LOG(V22))/LOG(2)))) -> 0 | Y22: =N22 -> 2222 | Z22: =COUNTIF(L21:L34,Y22) -> 0 | AA22: =Z22/(AB4-Z20) -> 0 | AB22: =IF(AA22=0,0,(AA22*((LOG(AA22))/LOG(2)))) -> 0 | AD22: =N22 -> 2222 | AE22: =COUNTIF(L35:L49,AD22) -> 0 | AF22: =AE22/(AG4-AE20) -> 0 | AG22: =IF(AF22=0,0,(AF22*((LOG(AF22))/LOG(2)))) -> 0 | AI22: =N22 -> 2222 | AJ22: =COUNTIF(L50:L63,AI22) -> 0 | AK22: =AJ22/(AL4-AJ20) -> 0 | AL22: =IF(AK22=0,0,(AK22*((LOG(AK22))/LOG(2)))) -> 0 | AN22: =N22 -> 2222 | AO22: =COUNTIF(L64:L77,AN22) -> 0 | AP22: =AO22/(AQ4-AO20) -> 0 | AQ22: =IF(AP22=0,0,(AP22*((LOG(AP22))/LOG(2)))) -> 0 | AS22: =N22 -> 2222 | AT22: =COUNTIF(L78:L91,AS22) -> 4 | AU22: =AT22/(AV4-AT20) -> 0.3333333333 | AV22: =IF(AU22=0,0,(AU22*((LOG(AU22))/LOG(2)))) -> -0.5283208336
A23: 12 | B23: 2245 | C23: 14 | D23: 2250 | E23: 24 | F23: 2259 | G23: 14 | H23: 2320 | K23: 0 | L23: 1121 | P23: =SUM(P7:P22) -> 1 | Q23: =-SUM(Q7:Q22) -> 3.614966459 | V23: =SUM(V7:V22) -> 1 | W23: =-SUM(W7:W22) -> 1.807354922 | AA23: =SUM(AA7:AA22) -> 1 | AB23: =-SUM(AB7:AB22) -> 2.4677201 | AF23: =SUM(AF7:AF22) -> 1 | AG23: =-SUM(AG7:AG22) -> 2.753434386 | AK23: =SUM(AK7:AK22) -> 1 | AL23: =-SUM(AL7:AL22) -> 3.039148672 | AP23: =SUM(AP7:AP22) -> 1 | AQ23: =-SUM(AQ7:AQ22) -> 3.026986833 | AU23: =SUM(AU7:AU22) -> 1 | AV23: =-SUM(AV7:AV22) -> 2.751629167
A24: 12 | B24: 2421 | C24: 14 | D24: 2437 | E24: 24 | F24: 2446 | G24: 14 | H24: 2462 | K24: 0 | L24: 1121 | P24: U= | Q24: =Q23/(LOG(Q4)/LOG(2)) -> 0.5655173577 | V24: U1= | W24: =W23/(LOG(W4)/LOG(2)) -> 0.4747009299 | AA24: U2= | AB24: =AB23/(LOG(AB4)/LOG(2)) -> 0.648145537 | AF24: U3= | AG24: =AG23/(LOG(AG4)/LOG(2)) -> 0.7047636269 | AK24: U4= | AL24: =AL23/(LOG(AL4)/LOG(2)) -> 0.7982309856 | AP24: U5= | AQ24: =AQ23/(LOG(AQ4)/LOG(2)) -> 0.7950366843 | AU24: U6= | AV24: =AV23/(LOG(AV4)/LOG(2)) -> 0.7435951879
A25: 12 | B25: 2610 | C25: 23 | D25: 2619 | E25: 13 | F25: 2632 | G25: 23 | H25: 2643 | K25: 0 | L25: 1212
A26: 12 | B26: 2777 | C26: 14 | D26: 2804 | E26: 13 | F26: 2831 | G26: 23 | H26: 2842 | K26: 0 | L26: 1112
A27: 21 | B27: 2966 | C27: 12 | D27: 2984 | E27: 13 | F27: 2988 | G27: 23 | H27: 2997 | K27: 0 | L27: 2112 | N27: Total Target Seq
A28: 12 | B28: 3101 | C28: 14 | D28: 3107 | E28: 13 | F28: 3125 | G28: 14 | H28: 3133 | K28: 0 | L28: 1111 | N28: =COUNTIF(L7:L91,G3) -> 3 | P28: 14 | Q28: 14 | R28: 15 | S28: 14 | T28: 14 | U28: 14
A29: 12 | B29: 3312 | C29: 23 | D29: 3323 | E29: 24 | F29: 3355 | G29: 14 | H29: 3372 | K29: 0 | L29: 1221 | P29: % of reinforcement given in 6 equal intervals based on number of trials
A30: 12 | B30: 3472 | C30: 14 | D30: 3480 | E30: 13 | F30: 3487 | G30: 23 | H30: 3500 | K30: 0 | L30: 1112 | P30: %_1 | Q30: %_2 | R30: %_3 | S30: %_4 | T30: %_5 | U30: %_6
A31: 21 | B31: 3636 | C31: 12 | D31: 3649 | E31: 13 | F31: 3669 | G31: 23 | H31: 3677 | K31: 0 | L31: 2112 | O31: target sequence | P31: =$G$3 -> 2212 | Q31: =$G$3 -> 2212 | R31: =$G$3 -> 2212 | S31: =$G$3 -> 2212 | T31: =$G$3 -> 2212 | U31: =$G$3 -> 2212
A32: 12 | B32: 3848 | C32: 23 | D32: 3856 | E32: 13 | F32: 3879 | G32: 23 | H32: 3911 | K32: 0 | L32: 1212 | O32: total reinforcement | P32: =U20 -> 0 | Q32: =Z20 -> 0 | R32: =AE20 -> 1 | S32: =AJ20 -> 0 | T32: =AO20 -> 1 | U32: =AT20 -> 1
A33: 12 | B33: 4080 | C33: 23 | D33: 4094 | E33: 24 | F33: 4102 | G33: 14 | H33: 4117 | K33: 0 | L33: 1221 | O33: % target
A34: 12 | B34: 4256 | C34: 14 | D34: 4284 | E34: 13 | F34: 4288 | G34: 23 | H34: 4298 | K34: 0 | L34: 1112 | O34: CCRF
A35: 21 | B35: 4534 | C35: 12 | D35: 4562 | E35: 13 | F35: 4566 | G35: 23 | H35: 4579 | K35: 0 | L35: 2112 | O35: % CCRf
A36: 12 | B36: 4789 | C36: 14 | D36: 4816 | E36: 24 | F36: 4844 | G36: 14 | H36: 4857 | K36: 0 | L36: 1121 | O36: average response rate | P36: =H20/P28 -> 130.6428571 | Q36: =(H34-H20)/Q28 -> 176.3571429 | R36: =(H49-H34)/R28 -> 271.9333333 | S36: =(H63-H49)/S28 -> 279.8571429 | T36: =(H77-H63)/T28 -> 328.9285714 | U36: =(H91-H77)/U28 -> -1207.142857
A37: 12 | B37: 5106 | C37: 14 | D37: 5142 | E37: 24 | F37: 5156 | G37: 14 | H37: 5190 | K37: 0 | L37: 1121
A38: 12 | B38: 5312 | C38: 14 | D38: 5316 | E38: 13 | F38: 5348 | G38: 14 | H38: 5381 | K38: 0 | L38: 1111
A39: 21 | B39: 5708 | C39: 21 | D39: 5747 | E39: 11 | F39: 5777 | G39: 21 | H39: 5834 | K39: 0 | L39: 2212
A40: 12 | B40: 5964 | C40: 14 | D40: 5968 | E40: 13 | F40: 5980 | G40: 14 | H40: 6016 | K40: 0 | L40: 1111
A41: 12 | B41: 6203 | C41: 14 | D41: 6214 | E41: 24 | F41: 6228 | G41: 23 | H41: 6256 | K41: 0 | L41: 1122
A42: 21 | B42: 6471 | C42: 12 | D42: 6532 | E42: 13 | F42: 6540 | G42: 14 | H42: 6580 | K42: 0 | L42: 2111
A43: 12 | B43: 6698 | C43: 14 | D43: 6732 | E43: 13 | F43: 6794 | G43: 23 | H43: 6812 | K43: 0 | L43: 1112
A44: 21 | B44: 7051 | C44: 12 | D44: 7063 | E44: 13 | F44: 7068 | G44: 23 | H44: 7094 | K44: 0 | L44: 2112
A45: 12 | B45: 7285 | C45: 14 | D45: 7338 | E45: 24 | F45: 7349 | G45: 14 | H45: 7375 | K45: 0 | L45: 1121
A46: 12 | B46: 7515 | C46: 23 | D46: 7531 | E46: 13 | F46: 7542 | G46: 14 | H46: 7546 | K46: 0 | L46: 1211
A47: 12 | B47: 7760 | C47: 14 | D47: 7783 | E47: 13 | F47: 7792 | G47: 14 | H47: 7809 | K47: 0 | L47: 1111
A48: 21 | B48: 8012 | C48: 21 | D48: 8037 | E48: 11 | F48: 8048 | G48: 12 | H48: 8052 | K48: 0 | L48: 2211
A49: 12 | B49: 8338 | C49: 14 | D49: 8342 | E49: 13 | F49: 8371 | G49: 14 | H49: 8377 | K49: 0 | L49: 1111
A50: 21 | B50: 8544 | C50: 12 | D50: 8558 | E50: 13 | F50: 8581 | G50: 23 | H50: 8611 | K50: 0 | L50: 2112
A51: 12 | B51: 8885 | C51: 23 | D51: 8897 | E51: 13 | F51: 8942 | G51: 14 | H51: 8970 | K51: 0 | L51: 1211
A52: 12 | B52: 9195 | C52: 14 | D52: 9204 | E52: 13 | F52: 9247 | G52: 14 | H52: 9252 | K52: 0 | L52: 1111
A53: 12 | B53: 9393 | C53: 14 | D53: 9407 | E53: 13 | F53: 9442 | G53: 14 | H53: 9447 | K53: 0 | L53: 1111
A54: 12 | B54: 9591 | C54: 23 | D54: 9608 | E54: 24 | F54: 9624 | G54: 23 | H54: 9640 | K54: 0 | L54: 1222
A55: 21 | B55: 9790 | C55: 12 | D55: 9842 | E55: 24 | F55: 9877 | G55: 23 | H55: 9912 | K55: 0 | L55: 2122
A56: 12 | B56: 10456 | C56: 14 | D56: 10460 | E56: 13 | F56: 10474 | G56: 23 | H56: 10483 | K56: 0 | L56: 1112
A57: 12 | B57: 10681 | C57: 14 | D57: 10685 | E57: 13 | F57: 10708 | G57: 23 | H57: 10720 | K57: 0 | L57: 1112
A58: 12 | B58: 11021 | C58: 14 | D58: 11025 | E58: 24 | F58: 11038 | G58: 14 | H58: 11115 | K58: 0 | L58: 1121
A59: 21 | B59: 11397 | C59: 12 | D59: 11413 | E59: 24 | F59: 11446 | G59: 23 | H59: 11476 | K59: 0 | L59: 2122
A60: 21 | B60: 11646 | C60: 21 | D60: 11698 | E60: 11 | F60: 11718 | G60: 12 | H60: 11723 | K60: 0 | L60: 2211
A61: 12 | B61: 11848 | C61: 14 | D61: 11855 | E61: 13 | F61: 11878 | G61: 14 | H61: 11886 | K61: 0 | L61: 1111
A62: 21 | B62: 12019 | C62: 21 | D62: 12025 | E62: 22 | F62: 12036 | G62: 14 | H62: 12054 | K62: 0 | L62: 2221
A63: 21 | B63: 12240 | C63: 12 | D63: 12254 | E63: 13 | F63: 12259 | G63: 23 | H63: 12295 | K63: 0 | L63: 2112
A64: 12 | B64: 12474 | C64: 23 | D64: 12548 | E64: 13 | F64: 12584 | G64: 14 | H64: 12612 | K64: 0 | L64: 1211
A65: 21 | B65: 12783 | C65: 12 | D65: 12795 | E65: 24 | F65: 12821 | G65: 14 | H65: 12832 | K65: 0 | L65: 2121
A66: 12 | B66: 13080 | C66: 14 | D66: 13124 | E66: 13 | F66: 13156 | G66: 23 | H66: 13184 | K66: 0 | L66: 1112
A67: 21 | B67: 13378 | C67: 21 | D67: 13418 | E67: 11 | F67: 13431 | G67: 12 | H67: 13459 | K67: 0 | L67: 2211
A68: 21 | B68: 13674 | C68: 12 | D68: 13691 | E68: 24 | F68: 13710 | G68: 14 | H68: 13738 | K68: 0 | L68: 2121
A69: 21 | B69: 13900 | C69: 12 | D69: 13915 | E69: 13 | F69: 13936 | G69: 23 | H69: 13950 | K69: 0 | L69: 2112
A70: 12 | B70: 14317 | C70: 14 | D70: 14324 | E70: 13 | F70: 14342 | G70: 23 | H70: 14401 | K70: 0 | L70: 1112
A71: 12 | B71: 14676 | C71: 14 | D71: 14684 | E71: 13 | F71: 14718 | G71: 14 | H71: 14745 | K71: 0 | L71: 1111
A72: 21 | B72: 14874 | C72: 12 | D72: 14943 | E72: 13 | F72: 15001 | G72: 14 | H72: 15019 | K72: 0 | L72: 2111
A73: 21 | B73: 15163 | C73: 21 | D73: 15206 | E73: 11 | F73: 15227 | G73: 21 | H73: 15276 | K73: 0 | L73: 2212
A74: 12 | B74: 15446 | C74: 23 | D74: 15459 | E74: 13 | F74: 15493 | G74: 23 | H74: 15505 | K74: 0 | L74: 1212
A75: 21 | B75: 15758 | C75: 12 | D75: 15771 | E75: 24 | F75: 15780 | G75: 14 | H75: 15804 | K75: 0 | L75: 2121
A76: 12 | B76: 16399 | C76: 14 | D76: 16426 | E76: 24 | F76: 16439 | G76: 23 | H76: 16458 | K76: 0 | L76: 1122
A77: 21 | B77: 16770 | C77: 21 | D77: 16824 | E77: 11 | F77: 16872 | G77: 12 | H77: 16900 | K77: 0 | L77: 2211
A78: 12 | B78: 17125 | C78: 23 | D78: 17142 | E78: 24 | F78: 17208 | G78: 23 | H78: 17233 | K78: 0 | L78: 1222
A79: 12 | B79: 17471 | C79: 14 | D79: 17499 | E79: 24 | F79: 17531 | G79: 23 | H79: 17553 | K79: 0 | L79: 1122
A80: 12 | B80: 17709 | C80: 14 | D80: 17715 | E80: 13 | F80: 17720 | G80: 14 | H80: 17740 | K80: 0 | L80: 1111
A81: 12 | B81: 18218 | C81: 23 | D81: 18226 | E81: 13 | F81: 18240 | G81: 23 | H81: 18287 | K81: 0 | L81: 1212
A82: 21 | B82: 18437 | C82: 12 | D82: 18454 | E82: 13 | F82: 18487 | G82: 14 | H82: 18517 | K82: 0 | L82: 2111
A83: 12 | B83: 18831 | C83: 23 | D83: 18853 | E83: 13 | F83: 18866 | G83: 23 | H83: 18885 | K83: 0 | L83: 1212
A84: 21 | B84: 19088 | C84: 21 | D84: 19116 | E84: 22 | F84: 19121 | G84: 23 | H84: 19138 | K84: 0 | L84: 2222
A85: 21 | B85: 19664 | C85: 21 | D85: 19718 | E85: 22 | F85: 19733 | G85: 23 | H85: 19750 | K85: 0 | L85: 2222
A86: 21 | B86: 20222 | C86: 21 | D86: 20277 | E86: 11 | F86: 20291 | G86: 21 | H86: 20298 | K86: 0 | L86: 2212
A87: 21 | B87: 21154 | C87: 12 | D87: 21171 | E87: 13 | F87: 21176 | G87: 23 | H87: 21198 | K87: 0 | L87: 2112
A88: 21 | B88: 21691 | C88: 12 | D88: 21703 | E88: 24 | F88: 21712 | G88: 14 | H88: 21733 | K88: 0 | L88: 2121
A89: 21 | B89: 21865 | C89: 21 | D89: 21915 | E89: 22 | F89: 21945 | G89: 23 | H89: 21959 | K89: 0 | L89: 2222
A90: 21 | B90: 22182 | C90: 21 | D90: 22208 | E90: 22 | F90: 22229 | G90: 23 | H90: 22242 | K90: 0 | L90: 2222
A91: 21 | B91: 23549 | L91: 2

Sheet !MA19C00.096
A1: Report for:!MA19C00.096
A2: Date: | B2: <date>
A3: Hen: | B3: <hen> | F3: Correct Sequence | G3: =Start!J2 -> 2212 | P3: Total Sequences in Data | Q3: =4994-COUNTBLANK(L7:L5000) -> 69 | V3: Total Sequences in Block Data | W3: =COUNTA(L7:L18) -> 12 | AA3: Total Sequences in Block Data | AB3: =COUNTA(L19:L29) -> 11 | AF3: Total Sequences in Block Data | AG3: =COUNTA(L30:L41) -> 12 | AK3: Total Sequences in Block Data | AL3: =COUNTA(L42:L52) -> 11 | AP3: Total Sequences in Block Data | AQ3: =COUNTA(L53:L64) -> 12 | AU3: Total Sequences in Block Data | AV3: =COUNTA(L65:L75) -> 11
P4: Total Sequences in Summary | Q4: =SUM(O7:O22) -> 68 | V4: Total Sequences in Block Summary | W4: =SUM(U7:U22) -> 12 | AA4: Total Sequences in Block Summary | AB4: =SUM(Z7:Z22) -> 11 | AF4: Total Sequences in Block Summary | AG4: =SUM(AE7:AE22) -> 12 | AK4: Total Sequences in Block Summary | AL4: =SUM(AJ7:AJ22) -> 11 | AP4: Total Sequences in Block Summary | AQ4: =SUM(AO7:AO22) -> 12 | AU4: Total Sequences in Block Summary | AV4: =SUM(AT7:AT22) -> 10
T5: Block 1 | Y5: Block 2 | AD5: Block 3 | AI5: Block 4 | AN5: Block 5 | AS5: Block 6
A6: Sequence Component 1 | B6: Time 1 | C6: Sequence Component 2 | D6: Time 2 | E6: Sequence Component 3 | F6: Time 3 | G6: Sequence Component 4 | H6: Time 4 | I6: Sequence Component 5 | J6: Time 5 | K6: Correct? 0=No 1=Yes | L6: Sequence | N6: Frequency | P6: Relative Frequency | Q6: Variability | T6: Frequency | V6: Relative Frequency | W6: Variability | Y6: Frequency | AA6: Relative Frequency | AB6: Variability | AD6: Frequency | AF6: Relative Frequency | AG6: Variability | AI6: Frequency | AK6: Relative Frequency | AL6: Variability | AN6: Frequency | AP6: Relative Frequency | AQ6: Variability | AS6: Frequency | AU6: Relative Frequency | AV6: Variability
A7: 12 | B7: 9 | C7: 14 | D7: 23 | E7: 13 | F7: 35 | G7: 14 | H7: 40 | K7: 0 | L7: 1111 | N7: 1111 | O7: =COUNTIF($L$7:$L$500,N7) -> 6 | P7: =O7/$Q$4 -> 0.08823529412 | Q7: =IF(P7=0,0,(P7*((LOG(P7))/LOG(2)))) -> -0.3090441477 | T7: =N7 -> 1111 | U7: =COUNTIF(L7:L18,T7) -> 3 | V7: =U7/(W4-U20) -> 0.25 | W7: =IF(V7=0,0,(V7*((LOG(V7))/LOG(2)))) -> -0.5 | Y7: =N7 -> 1111 | Z7: =COUNTIF(L19:L29,Y7) -> 0 | AA7: =Z7/(AB4-Z20) -> 0 | AB7: =IF(AA7=0,0,(AA7*((LOG(AA7))/LOG(2)))) -> 0 | AD7: =N7 -> 1111 | AE7: =COUNTIF(L30:L41,AD7) -> 2 | AF7: =AE7/(AG4-AE20) -> 0.1818181818 | AG7: =IF(AF7=0,0,(AF7*((LOG(AF7))/LOG(2)))) -> -0.4471693852 | AI7: =N7 -> 1111 | AJ7: =COUNTIF(L42:L52,AI7) -> 0 | AK7: =AJ7/(AL4-AJ20) -> 0 | AL7: =IF(AK7=0,0,(AK7*((LOG(AK7))/LOG(2)))) -> 0 | AN7: =N7 -> 1111 | AO7: =COUNTIF(L53:L64,AN7) -> 1 | AP7: =AO7/(AQ4-AO20) -> 0.09090909091 | AQ7: =IF(AP7=0,0,(AP7*((LOG(AP7))/LOG(2)))) -> -0.3144937835 | AS7: =N7 -> 1111 | AT7: =COUNTIF(L65:L75,AS7) -> 0 | AU7: =AT7/(AV4-AT20) -> 0 | AV7: =IF(AU7=0,0,(AU7*((LOG(AU7))/LOG(2)))) -> 0
A8: 12 | B8: 149 | C8: 14 | D8: 160 | E8: 24 | F8: 173 | G8: 14 | H8: 183 | K8: 0 | L8: 1121 | N8: 1112 | O8: =COUNTIF($L$7:$L$500,N8) -> 10 | P8: =O8/$Q$4 -> 0.1470588235 | Q8: =IF(P8=0,0,(P8*((LOG(P8))/LOG(2)))) -> -0.4066962862 | T8: =N8 -> 1112 | U8: =COUNTIF(L7:L18,T8) -> 2 | V8: =U8/(W4-U20) -> 0.1666666667 | W8: =IF(V8=0,0,(V8*((LOG(V8))/LOG(2)))) -> -0.4308270835 | Y8: =N8 -> 1112 | Z8: =COUNTIF(L19:L29,Y8) -> 1 | AA8: =Z8/(AB4-Z20) -> 0.1111111111 | AB8: =IF(AA8=0,0,(AA8*((LOG(AA8))/LOG(2)))) -> -0.352213889 | AD8: =N8 -> 1112 | AE8: =COUNTIF(L30:L41,AD8) -> 0 | AF8: =AE8/(AG4-AE20) -> 0 | AG8: =IF(AF8=0,0,(AF8*((LOG(AF8))/LOG(2)))) -> 0 | AI8: =N8 -> 1112 | AJ8: =COUNTIF(L42:L52,AI8) -> 2 | AK8: =AJ8/(AL4-AJ20) -> 0.2222222222 | AL8: =IF(AK8=0,0,(AK8*((LOG(AK8))/LOG(2)))) -> -0.4822055559 | AN8: =N8 -> 1112 | AO8: =COUNTIF(L53:L64,AN8) -> 4 | AP8: =AO8/(AQ4-AO20) -> 0.3636363636 | AQ8: =IF(AP8=0,0,(AP8*((LOG(AP8))/LOG(2)))) -> -0.5307024068 | AS8: =N8 -> 1112 | AT8: =COUNTIF(L65:L75,AS8) -> 1 | AU8: =AT8/(AV4-AT20) -> 0.1 | AV8: =IF(AU8=0,0,(AU8*((LOG(AU8))/LOG(2)))) -> -0.3321928095
A9: 12 | B9: 282 | C9: 14 | D9: 287 | E9: 13 | F9: 309 | G9: 23 | H9: 322 | K9: 0 | L9: 1112 | N9: 1121 | O9: =COUNTIF($L$7:$L$500,N9) -> 9 | P9: =O9/$Q$4 -> 0.1323529412 | Q9: =IF(P9=0,0,(P9*((LOG(P9))/LOG(2)))) -> -0.3861447141 | T9: =N9 -> 1121 | U9: =COUNTIF(L7:L18,T9) -> 3 | V9: =U9/(W4-U20) -> 0.25 | W9: =IF(V9=0,0,(V9*((LOG(V9))/LOG(2)))) -> -0.5 | Y9: =N9 -> 1121 | Z9: =COUNTIF(L19:L29,Y9) -> 2 | AA9: =Z9/(AB4-Z20) -> 0.2222222222 | AB9: =IF(AA9=0,0,(AA9*((LOG(AA9))/LOG(2)))) -> -0.4822055559 | AD9: =N9 -> 1121 | AE9: =COUNTIF(L30:L41,AD9) -> 1 | AF9: =AE9/(AG4-AE20) -> 0.09090909091 | AG9: =IF(AF9=0,0,(AF9*((LOG(AF9))/LOG(2)))) -> -0.3144937835 | AI9: =N9 -> 1121 | AJ9: =COUNTIF(L42:L52,AI9) -> 0 | AK9: =AJ9/(AL4-AJ20) -> 0 | AL9: =IF(AK9=0,0,(AK9*((LOG(AK9))/LOG(2)))) -> 0 | AN9: =N9 -> 1121 | AO9: =COUNTIF(L53:L64,AN9) -> 2 | AP9: =AO9/(AQ4-AO20) -> 0.1818181818 | AQ9: =IF(AP9=0,0,(AP9*((LOG(AP9))/LOG(2)))) -> -0.4471693852 | AS9: =N9 -> 1121 | AT9: =COUNTIF(L65:L75,AS9) -> 1 | AU9: =AT9/(AV4-AT20) -> 0.1 | AV9: =IF(AU9=0,0,(AU9*((LOG(AU9))/LOG(2)))) -> -0.3321928095
A10: 12 | B10: 438 | C10: 14 | D10: 465 | E10: 13 | F10: 470 | G10: 14 | H10: 477 | K10: 0 | L10: 1111 | N10: 1122 | O10: =COUNTIF($L$7:$L$500,N10) -> 1 | P10: =O10/$Q$4 -> 0.01470588235 | Q10: =IF(P10=0,0,(P10*((LOG(P10))/LOG(2)))) -> -0.08952151237 | T10: =N10 -> 1122 | U10: =COUNTIF(L7:L18,T10) -> 0 | V10: =U10/(W4-U20) -> 0 | W10: =IF(V10=0,0,(V10*((LOG(V10))/LOG(2)))) -> 0 | Y10: =N10 -> 1122 | Z10: =COUNTIF(L19:L29,Y10) -> 0 | AA10: =Z10/(AB4-Z20) -> 0 | AB10: =IF(AA10=0,0,(AA10*((LOG(AA10))/LOG(2)))) -> 0 | AD10: =N10 -> 1122 | AE10: =COUNTIF(L30:L41,AD10) -> 1 | AF10: =AE10/(AG4-AE20) -> 0.09090909091 | AG10: =IF(AF10=0,0,(AF10*((LOG(AF10))/LOG(2)))) -> -0.3144937835 | AI10: =N10 -> 1122 | AJ10: =COUNTIF(L42:L52,AI10) -> 0 | AK10: =AJ10/(AL4-AJ20) -> 0 | AL10: =IF(AK10=0,0,(AK10*((LOG(AK10))/LOG(2)))) -> 0 | AN10: =N10 -> 1122 | AO10: =COUNTIF(L53:L64,AN10) -> 0 | AP10: =AO10/(AQ4-AO20) -> 0 | AQ10: =IF(AP10=0,0,(AP10*((LOG(AP10))/LOG(2)))) -> 0 | AS10: =N10 -> 1122 | AT10: =COUNTIF(L65:L75,AS10) -> 0 | AU10: =AT10/(AV4-AT20) -> 0 | AV10: =IF(AU10=0,0,(AU10*((LOG(AU10))/LOG(2)))) -> 0
A11: 12 | B11: 588 | C11: 14 | D11: 600 | E11: 24 | F11: 620 | G11: 14 | H11: 639 | K11: 0 | L11: 1121 | N11: 1211 | O11: =COUNTIF($L$7:$L$500,N11) -> 7 | P11: =O11/$Q$4 -> 0.1029411765 | Q11: =IF(P11=0,0,(P11*((LOG(P11))/LOG(2)))) -> -0.3376581682 | T11: =N11 -> 1211 | U11: =COUNTIF(L7:L18,T11) -> 3 | V11: =U11/(W4-U20) -> 0.25 | W11: =IF(V11=0,0,(V11*((LOG(V11))/LOG(2)))) -> -0.5 | Y11: =N11 -> 1211 | Z11: =COUNTIF(L19:L29,Y11) -> 0 | AA11: =Z11/(AB4-Z20) -> 0 | AB11: =IF(AA11=0,0,(AA11*((LOG(AA11))/LOG(2)))) -> 0 | AD11: =N11 -> 1211 | AE11: =COUNTIF(L30:L41,AD11) -> 3 | AF11: =AE11/(AG4-AE20) -> 0.2727272727 | AG11: =IF(AF11=0,0,(AF11*((LOG(AF11))/LOG(2)))) -> -0.5112188503 | AI11: =N11 -> 1211 | AJ11: =COUNTIF(L42:L52,AI11) -> 1 | AK11: =AJ11/(AL4-AJ20) -> 0.1111111111 | AL11: =IF(AK11=0,0,(AK11*((LOG(AK11))/LOG(2)))) -> -0.352213889 | AN11: =N11 -> 1211 | AO11: =COUNTIF(L53:L64,AN11) -> 0 | AP11: =AO11/(AQ4-AO20) -> 0 | AQ11: =IF(AP11=0,0,(AP11*((LOG(AP11))/LOG(2)))) -> 0 | AS11: =N11 -> 1211 | AT11: =COUNTIF(L65:L75,AS11) -> 0 | AU11: =AT11/(AV4-AT20) -> 0 | AV11: =IF(AU11=0,0,(AU11*((LOG(AU11))/LOG(2)))) -> 0
A12: 12 | B12: 749 | C12: 23 | D12: 759 | E12: 13 | F12: 769 | G12: 14 | H12: 774 | K12: 0 | L12: 1211 | N12: 1212 | O12: =COUNTIF($L$7:$L$500,N12) -> 0 | P12: =O12/$Q$4 -> 0 | Q12: =IF(P12=0,0,(P12*((LOG(P12))/LOG(2)))) -> 0 | T12: =N12 -> 1212 | U12: =COUNTIF(L7:L18,T12) -> 0 | V12: =U12/(W4-U20) -> 0 | W12: =IF(V12=0,0,(V12*((LOG(V12))/LOG(2)))) -> 0 | Y12: =N12 -> 1212 | Z12: =COUNTIF(L19:L29,Y12) -> 0 | AA12: =Z12/(AB4-Z20) -> 0 | AB12: =IF(AA12=0,0,(AA12*((LOG(AA12))/LOG(2)))) -> 0 | AD12: =N12 -> 1212 | AE12: =COUNTIF(L30:L41,AD12) -> 0 | AF12: =AE12/(AG4-AE20) -> 0 | AG12: =IF(AF12=0,0,(AF12*((LOG(AF12))/LOG(2)))) -> 0 | AI12: =N12 -> 1212 | AJ12: =COUNTIF(L42:L52,AI12) -> 0 | AK12: =AJ12/(AL4-AJ20) -> 0 | AL12: =IF(AK12=0,0,(AK12*((LOG(AK12))/LOG(2)))) -> 0 | AN12: =N12 -> 1212 | AO12: =COUNTIF(L53:L64,AN12) -> 0 | AP12: =AO12/(AQ4-AO20) -> 0 | AQ12: =IF(AP12=0,0,(AP12*((LOG(AP12))/LOG(2)))) -> 0 | AS12: =N12 -> 1212 | AT12: =COUNTIF(L65:L75,AS12) -> 0 | AU12: =AT12/(AV4-AT20) -> 0 | AV12: =IF(AU12=0,0,(AU12*((LOG(AU12))/LOG(2)))) -> 0
A13: 12 | B13: 861 | C13: 14 | D13: 866 | E13: 13 | F13: 888 | G13: 14 | H13: 896 | K13: 0 | L13: 1111 | N13: 1221 | O13: =COUNTIF($L$7:$L$500,N13) -> 2 | P13: =O13/$Q$4 -> 0.02941176471 | Q13: =IF(P13=0,0,(P13*((LOG(P13))/LOG(2)))) -> -0.14963126 | T13: =N13 -> 1221 | U13: =COUNTIF(L7:L18,T13) -> 0 | V13: =U13/(W4-U20) -> 0 | W13: =IF(V13=0,0,(V13*((LOG(V13))/LOG(2)))) -> 0 | Y13: =N13 -> 1221 | Z13: =COUNTIF(L19:L29,Y13) -> 0 | AA13: =Z13/(AB4-Z20) -> 0 | AB13: =IF(AA13=0,0,(AA13*((LOG(AA13))/LOG(2)))) -> 0 | AD13: =N13 -> 1221 | AE13: =COUNTIF(L30:L41,AD13) -> 0 | AF13: =AE13/(AG4-AE20) -> 0 | AG13: =IF(AF13=0,0,(AF13*((LOG(AF13))/LOG(2)))) -> 0 | AI13: =N13 -> 1221 | AJ13: =COUNTIF(L42:L52,AI13) -> 0 | AK13: =AJ13/(AL4-AJ20) -> 0 | AL13: =IF(AK13=0,0,(AK13*((LOG(AK13))/LOG(2)))) -> 0 | AN13: =N13 -> 1221 | AO13: =COUNTIF(L53:L64,AN13) -> 2 | AP13: =AO13/(AQ4-AO20) -> 0.1818181818 | AQ13: =IF(AP13=0,0,(AP13*((LOG(AP13))/LOG(2)))) -> -0.4471693852 | AS13: =N13 -> 1221 | AT13: =COUNTIF(L65:L75,AS13) -> 0 | AU13: =AT13/(AV4-AT20) -> 0 | AV13: =IF(AU13=0,0,(AU13*((LOG(AU13))/LOG(2)))) -> 0
A14: 12 | B14: 1007 | C14: 14 | D14: 1014 | E14: 13 | F14: 1019 | G14: 23 | H14: 1039 | K14: 0 | L14: 1112 | N14: 1222 | O14: =COUNTIF($L$7:$L$500,N14) -> 0 | P14: =O14/$Q$4 -> 0 | Q14: =IF(P14=0,0,(P14*((LOG(P14))/LOG(2)))) -> 0 | T14: =N14 -> 1222 | U14: =COUNTIF(L7:L18,T14) -> 0 | V14: =U14/(W4-U20) -> 0 | W14: =IF(V14=0,0,(V14*((LOG(V14))/LOG(2)))) -> 0 | Y14: =N14 -> 1222 | Z14: =COUNTIF(L19:L29,Y14) -> 0 | AA14: =Z14/(AB4-Z20) -> 0 | AB14: =IF(AA14=0,0,(AA14*((LOG(AA14))/LOG(2)))) -> 0 | AD14: =N14 -> 1222 | AE14: =COUNTIF(L30:L41,AD14) -> 0 | AF14: =AE14/(AG4-AE20) -> 0 | AG14: =IF(AF14=0,0,(AF14*((LOG(AF14))/LOG(2)))) -> 0 | AI14: =N14 -> 1222 | AJ14: =COUNTIF(L42:L52,AI14) -> 0 | AK14: =AJ14/(AL4-AJ20) -> 0 | AL14: =IF(AK14=0,0,(AK14*((LOG(AK14))/LOG(2)))) -> 0 | AN14: =N14 -> 1222 | AO14: =COUNTIF(L53:L64,AN14) -> 0 | AP14: =AO14/(AQ4-AO20) -> 0 | AQ14: =IF(AP14=0,0,(AP14*((LOG(AP14))/LOG(2)))) -> 0 | AS14: =N14 -> 1222 | AT14: =COUNTIF(L65:L75,AS14) -> 0 | AU14: =AT14/(AV4-AT20) -> 0 | AV14: =IF(AU14=0,0,(AU14*((LOG(AU14))/LOG(2)))) -> 0
A15: 12 | B15: 1142 | C15: 14 | D15: 1146 | E15: 24 | F15: 1162 | G15: 14 | H15: 1176 | K15: 0 | L15: 1121 | N15: 2111 | O15: =COUNTIF($L$7:$L$500,N15) -> 3 | P15: =O15/$Q$4 -> 0.04411764706 | Q15: =IF(P15=0,0,(P15*((LOG(P15))/LOG(2)))) -> -0.1986397209 | T15: =N15 -> 2111 | U15: =COUNTIF(L7:L18,T15) -> 0 | V15: =U15/(W4-U20) -> 0 | W15: =IF(V15=0,0,(V15*((LOG(V15))/LOG(2)))) -> 0 | Y15: =N15 -> 2111 | Z15: =COUNTIF(L19:L29,Y15) -> 1 | AA15: =Z15/(AB4-Z20) -> 0.1111111111 | AB15: =IF(AA15=0,0,(AA15*((LOG(AA15))/LOG(2)))) -> -0.352213889 | AD15: =N15 -> 2111 | AE15: =COUNTIF(L30:L41,AD15) -> 0 | AF15: =AE15/(AG4-AE20) -> 0 | AG15: =IF(AF15=0,0,(AF15*((LOG(AF15))/LOG(2)))) -> 0 | AI15: =N15 -> 2111 | AJ15: =COUNTIF(L42:L52,AI15) -> 1 | AK15: =AJ15/(AL4-AJ20) -> 0.1111111111 | AL15: =IF(AK15=0,0,(AK15*((LOG(AK15))/LOG(2)))) -> -0.352213889 | AN15: =N15 -> 2111 | AO15: =COUNTIF(L53:L64,AN15) -> 0 | AP15: =AO15/(AQ4-AO20) -> 0 | AQ15: =IF(AP15=0,0,(AP15*((LOG(AP15))/LOG(2)))) -> 0 | AS15: =N15 -> 2111 | AT15: =COUNTIF(L65:L75,AS15) -> 1 | AU15: =AT15/(AV4-AT20) -> 0.1 | AV15: =IF(AU15=0,0,(AU15*((LOG(AU15))/LOG(2)))) -> -0.3321928095
A16: 21 | B16: 1297 | C16: 12 | D16: 1318 | E16: 24 | F16: 1330 | G16: 23 | H16: 1348 | K16: 0 | L16: 2122 | N16: 2112 | O16: =COUNTIF($L$7:$L$500,N16) -> 2 | P16: =O16/$Q$4 -> 0.02941176471 | Q16: =IF(P16=0,0,(P16*((LOG(P16))/LOG(2)))) -> -0.14963126 | T16: =N16 -> 2112 | U16: =COUNTIF(L7:L18,T16) -> 0 | V16: =U16/(W4-U20) -> 0 | W16: =IF(V16=0,0,(V16*((LOG(V16))/LOG(2)))) -> 0 | Y16: =N16 -> 2112 | Z16: =COUNTIF(L19:L29,Y16) -> 0 | AA16: =Z16/(AB4-Z20) -> 0 | AB16: =IF(AA16=0,0,(AA16*((LOG(AA16))/LOG(2)))) -> 0 | AD16: =N16 -> 2112 | AE16: =COUNTIF(L30:L41,AD16) -> 0 | AF16: =AE16/(AG4-AE20) -> 0 | AG16: =IF(AF16=0,0,(AF16*((LOG(AF16))/LOG(2)))) -> 0 | AI16: =N16 -> 2112 | AJ16: =COUNTIF(L42:L52,AI16) -> 1 | AK16: =AJ16/(AL4-AJ20) -> 0.1111111111 | AL16: =IF(AK16=0,0,(AK16*((LOG(AK16))/LOG(2)))) -> -0.352213889 | AN16: =N16 -> 2112 | AO16: =COUNTIF(L53:L64,AN16) -> 0 | AP16: =AO16/(AQ4-AO20) -> 0 | AQ16: =IF(AP16=0,0,(AP16*((LOG(AP16))/LOG(2)))) -> 0 | AS16: =N16 -> 2112 | AT16: =COUNTIF(L65:L75,AS16) -> 1 | AU16: =AT16/(AV4-AT20) -> 0.1 | AV16: =IF(AU16=0,0,(AU16*((LOG(AU16))/LOG(2)))) -> -0.3321928095
A17: 12 | B17: 1470 | C17: 23 | D17: 1486 | E17: 13 | F17: 1497 | G17: 14 | H17: 1501 | K17: 0 | L17: 1211 | N17: 2121 | O17: =COUNTIF($L$7:$L$500,N17) -> 8 | P17: =O17/$Q$4 -> 0.1176470588 | Q17: =IF(P17=0,0,(P17*((LOG(P17))/LOG(2)))) -> -0.3632309225 | T17: =N17 -> 2121 | U17: =COUNTIF(L7:L18,T17) -> 0 | V17: =U17/(W4-U20) -> 0 | W17: =IF(V17=0,0,(V17*((LOG(V17))/LOG(2)))) -> 0 | Y17: =N17 -> 2121 | Z17: =COUNTIF(L19:L29,Y17) -> 1 | AA17: =Z17/(AB4-Z20) -> 0.1111111111 | AB17: =IF(AA17=0,0,(AA17*((LOG(AA17))/LOG(2)))) -> -0.352213889 | AD17: =N17 -> 2121 | AE17: =COUNTIF(L30:L41,AD17) -> 1 | AF17: =AE17/(AG4-AE20) -> 0.09090909091 | AG17: =IF(AF17=0,0,(AF17*((LOG(AF17))/LOG(2)))) -> -0.3144937835 | AI17: =N17 -> 2121 | AJ17: =COUNTIF(L42:L52,AI17) -> 3 | AK17: =AJ17/(AL4-AJ20) -> 0.3333333333 | AL17: =IF(AK17=0,0,(AK17*((LOG(AK17))/LOG(2)))) -> -0.5283208336 | AN17: =N17 -> 2121 | AO17: =COUNTIF(L53:L64,AN17) -> 1 | AP17: =AO17/(AQ4-AO20) -> 0.09090909091 | AQ17: =IF(AP17=0,0,(AP17*((LOG(AP17))/LOG(2)))) -> -0.3144937835 | AS17: =N17 -> 2121 | AT17: =COUNTIF(L65:L75,AS17) -> 2 | AU17: =AT17/(AV4-AT20) -> 0.2 | AV17: =IF(AU17=0,0,(AU17*((LOG(AU17))/LOG(2)))) -> -0.464385619
A18: 12 | B18: 1635 | C18: 23 | D18: 1644 | E18: 13 | F18: 1655 | G18: 14 | H18: 1660 | K18: 0 | L18: 1211 | N18: 2122 | O18: =COUNTIF($L$7:$L$500,N18) -> 3 | P18: =O18/$Q$4 -> 0.04411764706 | Q18: =IF(P18=0,0,(P18*((LOG(P18))/LOG(2)))) -> -0.1986397209 | T18: =N18 -> 2122 | U18: =COUNTIF(L7:L18,T18) -> 1 | V18: =U18/(W4-U20) -> 0.08333333333 | W18: =IF(V18=0,0,(V18*((LOG(V18))/LOG(2)))) -> -0.2987468751 | Y18: =N18 -> 2122 | Z18: =COUNTIF(L19:L29,Y18) -> 1 | AA18: =Z18/(AB4-Z20) -> 0.1111111111 | AB18: =IF(AA18=0,0,(AA18*((LOG(AA18))/LOG(2)))) -> -0.352213889 | AD18: =N18 -> 2122 | AE18: =COUNTIF(L30:L41,AD18) -> 0 | AF18: =AE18/(AG4-AE20) -> 0 | AG18: =IF(AF18=0,0,(AF18*((LOG(AF18))/LOG(2)))) -> 0 | AI18: =N18 -> 2122 | AJ18: =COUNTIF(L42:L52,AI18) -> 1 | AK18: =AJ18/(AL4-AJ20) -> 0.1111111111 | AL18: =IF(AK18=0,0,(AK18*((LOG(AK18))/LOG(2)))) -> -0.352213889 | AN18: =N18 -> 2122 | AO18: =COUNTIF(L53:L64,AN18) -> 0 | AP18: =AO18/(AQ4-AO20) -> 0 | AQ18: =IF(AP18=0,0,(AP18*((LOG(AP18))/LOG(2)))) -> 0 | AS18: =N18 -> 2122 | AT18: =COUNTIF(L65:L75,AS18) -> 0 | AU18: =AT18/(AV4-AT20) -> 0 | AV18: =IF(AU18=0,0,(AU18*((LOG(AU18))/LOG(2)))) -> 0
A19: 12 | B19: 1776 | C19: 14 | D19: 1780 | E19: 24 | F19: 1792 | G19: 14 | H19: 1807 | K19: 0 | L19: 1121 | N19: 2211 | O19: =COUNTIF($L$7:$L$500,N19) -> 3 | P19: =O19/$Q$4 -> 0.04411764706 | Q19: =IF(P19=0,0,(P19*((LOG(P19))/LOG(2)))) -> -0.1986397209 | T19: =N19 -> 2211 | U19: =COUNTIF(L7:L18,T19) -> 0 | V19: =U19/(W4-U20) -> 0 | W19: =IF(V19=0,0,(V19*((LOG(V19))/LOG(2)))) -> 0 | Y19: =N19 -> 2211 | Z19: =COUNTIF(L19:L29,Y19) -> 0 | AA19: =Z19/(AB4-Z20) -> 0 | AB19: =IF(AA19=0,0,(AA19*((LOG(AA19))/LOG(2)))) -> 0 | AD19: =N19 -> 2211 | AE19: =COUNTIF(L30:L41,AD19) -> 2 | AF19: =AE19/(AG4-AE20) -> 0.1818181818 | AG19: =IF(AF19=0,0,(AF19*((LOG(AF19))/LOG(2)))) -> -0.4471693852 | AI19: =N19 -> 2211 | AJ19: =COUNTIF(L42:L52,AI19) -> 0 | AK19: =AJ19/(AL4-AJ20) -> 0 | AL19: =IF(AK19=0,0,(AK19*((LOG(AK19))/LOG(2)))) -> 0 | AN19: =N19 -> 2211 | AO19: =COUNTIF(L53:L64,AN19) -> 0 | AP19: =AO19/(AQ4-AO20) -> 0 | AQ19: =IF(AP19=0,0,(AP19*((LOG(AP19))/LOG(2)))) -> 0 | AS19: =N19 -> 2211 | AT19: =COUNTIF(L65:L75,AS19) -> 1 | AU19: =AT19/(AV4-AT20) -> 0.1 | AV19: =IF(AU19=0,0,(AU19*((LOG(AU19))/LOG(2)))) -> -0.3321928095
A20: 21 | B20: 1914 | C20: 12 | D20: 1927 | E20: 24 | F20: 1935 | G20: 14 | H20: 1945 | K20: 0 | L20: 2121 | N20: 2212 | O20: =COUNTIF($L$7:$L$500,N20) -> 6 | P20: =O20/$Q$4 -> 0.08823529412 | Q20: =IF(P20=0,0,(P20*((LOG(P20))/LOG(2)))) -> -0.3090441477 | T20: =N20 -> 2212 | U20: =COUNTIF(L7:L18,T20) -> 0 | Y20: =N20 -> 2212 | Z20: =COUNTIF(L19:L29,Y20) -> 2 | AD20: =N20 -> 2212 | AE20: =COUNTIF(L30:L41,AD20) -> 1 | AI20: =N20 -> 2212 | AJ20: =COUNTIF(L42:L52,AI20) -> 2 | AN20: =N20 -> 2212 | AO20: =COUNTIF(L53:L64,AN20) -> 1 | AS20: =N20 -> 2212 | AT20: =COUNTIF(L65:L75,AS20) -> 0
A21: 21 | B21: 2124 | C21: 21 | D21: 2156 | E21: 22 | F21: 2179 | G21: 23 | H21: 2194 | K21: 0 | L21: 2222 | N21: 2221 | O21: =COUNTIF($L$7:$L$500,N21) -> 2 | P21: =O21/$Q$4 -> 0.02941176471 | Q21: =IF(P21=0,0,(P21*((LOG(P21))/LOG(2)))) -> -0.14963126 | T21: =N21 -> 2221 | U21: =COUNTIF(L7:L18,T21) -> 0 | V21: =U21/(W4-U20) -> 0 | W21: =IF(V21=0,0,(V21*((LOG(V21))/LOG(2)))) -> 0 | Y21: =N21 -> 2221 | Z21: =COUNTIF(L19:L29,Y21) -> 1 | AA21: =Z21/(AB4-Z20) -> 0.1111111111 | AB21: =IF(AA21=0,0,(AA21*((LOG(AA21))/LOG(2)))) -> -0.352213889 | AD21: =N21 -> 2221 | AE21: =COUNTIF(L30:L41,AD21) -> 0 | AF21: =AE21/(AG4-AE20) -> 0 | AG21: =IF(AF21=0,0,(AF21*((LOG(AF21))/LOG(2)))) -> 0 | AI21: =N21 -> 2221 | AJ21: =COUNTIF(L42:L52,AI21) -> 0 | AK21: =AJ21/(AL4-AJ20) -> 0 | AL21: =IF(AK21=0,0,(AK21*((LOG(AK21))/LOG(2)))) -> 0 | AN21: =N21 -> 2221 | AO21: =COUNTIF(L53:L64,AN21) -> 0 | AP21: =AO21/(AQ4-AO20) -> 0 | AQ21: =IF(AP21=0,0,(AP21*((LOG(AP21))/LOG(2)))) -> 0 | AS21: =N21 -> 2221 | AT21: =COUNTIF(L65:L75,AS21) -> 1 | AU21: =AT21/(AV4-AT20) -> 0.1 | AV21: =IF(AU21=0,0,(AU21*((LOG(AU21))/LOG(2)))) -> -0.3321928095
A22: 21 | B22: 2399 | C22: 12 | D22: 2412 | E22: 13 | F22: 2476 | G22: 14 | H22: 2480 | K22: 0 | L22: 2111 | N22: 2222 | O22: =COUNTIF($L$7:$L$500,N22) -> 6 | P22: =O22/$Q$4 -> 0.08823529412 | Q22: =IF(P22=0,0,(P22*((LOG(P22))/LOG(2)))) -> -0.3090441477 | T22: =N22 -> 2222 | U22: =COUNTIF(L7:L18,T22) -> 0 | V22: =U22/(W4-U20) -> 0 | W22: =IF(V22=0,0,(V22*((LOG(V22))/LOG(2)))) -> 0 | Y22: =N22 -> 2222 | Z22: =COUNTIF(L19:L29,Y22) -> 2 | AA22: =Z22/(AB4-Z20) -> 0.2222222222 | AB22: =IF(AA22=0,0,(AA22*((LOG(AA22))/LOG(2)))) -> -0.4822055559 | AD22: =N22 -> 2222 | AE22: =COUNTIF(L30:L41,AD22) -> 1 | AF22: =AE22/(AG4-AE20) -> 0.09090909091 | AG22: =IF(AF22=0,0,(AF22*((LOG(AF22))/LOG(2)))) -> -0.3144937835 | AI22: =N22 -> 2222 | AJ22: =COUNTIF(L42:L52,AI22) -> 0 | AK22: =AJ22/(AL4-AJ20) -> 0 | AL22: =IF(AK22=0,0,(AK22*((LOG(AK22))/LOG(2)))) -> 0 | AN22: =N22 -> 2222 | AO22: =COUNTIF(L53:L64,AN22) -> 1 | AP22: =AO22/(AQ4-AO20) -> 0.09090909091 | AQ22: =IF(AP22=0,0,(AP22*((LOG(AP22))/LOG(2)))) -> -0.3144937835 | AS22: =N22 -> 2222 | AT22: =COUNTIF(L65:L75,AS22) -> 2 | AU22: =AT22/(AV4-AT20) -> 0.2 | AV22: =IF(AU22=0,0,(AU22*((LOG(AU22))/LOG(2)))) -> -0.464385619
A23: 12 | B23: 2615 | C23: 14 | D23: 2619 | E23: 13 | F23: 2679 | G23: 23 | H23: 2702 | K23: 0 | L23: 1112 | P23: =SUM(P7:P22) -> 1 | Q23: =-SUM(Q7:Q22) -> 3.555196989 | V23: =SUM(V7:V22) -> 1 | W23: =-SUM(W7:W22) -> 2.229573959 | AA23: =SUM(AA7:AA22) -> 1 | AB23: =-SUM(AB7:AB22) -> 2.725480557 | AF23: =SUM(AF7:AF22) -> 1 | AG23: =-SUM(AG7:AG22) -> 2.663532755 | AK23: =SUM(AK7:AK22) -> 1 | AL23: =-SUM(AL7:AL22) -> 2.419381946 | AP23: =SUM(AP7:AP22) -> 1 | AQ23: =-SUM(AQ7:AQ22) -> 2.368522528 | AU23: =SUM(AU7:AU22) -> 1 | AV23: =-SUM(AV7:AV22) -> 2.921928095
A24: 21 | B24: 2877 | C24: 21 | D24: 2902 | E24: 11 | F24: 2914 | G24: 21 | H24: 2924 | K24: 0 | L24: 2212 | P24: U= | Q24: =Q23/(LOG(Q4)/LOG(2)) -> 0.5840194974 | V24: U1= | W24: =W23/(LOG(W4)/LOG(2)) -> 0.6219239275 | AA24: U2= | AB24: =AB23/(LOG(AB4)/LOG(2)) -> 0.7878405638 | AF24: U3= | AG24: =AG23/(LOG(AG4)/LOG(2)) -> 0.7429736725 | AK24: U4= | AL24: =AL23/(LOG(AL4)/LOG(2)) -> 0.6993582219 | AP24: U5= | AQ24: =AQ23/(LOG(AQ4)/LOG(2)) -> 0.6606826507 | AU24: U6= | AV24: =AV23/(LOG(AV4)/LOG(2)) -> 0.8795880017
A25: 12 | B25: 3074 | C25: 14 | D25: 3107 | E25: 24 | F25: 3119 | G25: 14 | H25: 3130 | K25: 0 | L25: 1121
A26: 21 | B26: 3256 | C26: 21 | D26: 3321 | E26: 22 | F26: 3336 | G26: 14 | H26: 3347 | K26: 0 | L26: 2221
A27: 21 | B27: 3460 | C27: 12 | D27: 3471 | E27: 24 | F27: 3478 | G27: 23 | H27: 3491 | K27: 0 | L27: 2122 | N27: Total Target Seq
A28: 21 | B28: 3632 | C28: 21 | D28: 3645 | E28: 11 | F28: 3671 | G28: 21 | H28: 3681 | K28: 0 | L28: 2212 | N28: =COUNTIF(L7:L75,G3) -> 6 | P28: 12 | Q28: 11 | R28: 12 | S28: 11 | T28: 12 | U28: 11
A29: 21 | B29: 3805 | C29: 21 | D29: 3815 | E29: 22 | F29: 3823 | G29: 23 | H29: 3833 | K29: 0 | L29: 2222 | P29: % of reinforcement given in 6 equal intervals based on number of trials
A30: 12 | B30: 3967 | C30: 14 | D30: 3975 | E30: 24 | F30: 4016 | G30: 23 | H30: 4031 | K30: 0 | L30: 1122 | P30: %_1 | Q30: %_2 | R30: %_3 | S30: %_4 | T30: %_5 | U30: %_6
A31: 12 | B31: 4159 | C31: 23 | D31: 4201 | E31: 13 | F31: 4219 | G31: 14 | H31: 4224 | K31: 0 | L31: 1211 | O31: target sequence | P31: =$G$3 -> 2212 | Q31: =$G$3 -> 2212 | R31: =$G$3 -> 2212 | S31: =$G$3 -> 2212 | T31: =$G$3 -> 2212 | U31: =$G$3 -> 2212
A32: 21 | B32: 4362 | C32: 21 | D32: 4368 | E32: 22 | F32: 4373 | G32: 23 | H32: 4393 | K32: 0 | L32: 2222 | O32: total reinforcement | P32: =U20 -> 0 | Q32: =Z20 -> 2 | R32: =AE20 -> 1 | S32: =AJ20 -> 2 | T32: =AO20 -> 1 | U32: =AT20 -> 0
A33: 12 | B33: 4567 | C33: 23 | D33: 4591 | E33: 13 | F33: 4604 | G33: 14 | H33: 4611 | K33: 0 | L33: 1211 | O33: % target
A34: 21 | B34: 4790 | C34: 21 | D34: 4808 | E34: 11 | F34: 4836 | G34: 12 | H34: 4840 | K34: 0 | L34: 2211 | O34: CCRF
A35: 12 | B35: 4975 | C35: 14 | D35: 5021 | E35: 24 | F35: 5042 | G35: 14 | H35: 5057 | K35: 0 | L35: 1121 | O35: % CCRf
A36: 21 | B36: 5190 | C36: 21 | D36: 5206 | E36: 11 | F36: 5224 | G36: 12 | H36: 5255 | K36: 0 | L36: 2211 | O36: average response rate | P36: =H18/P28 -> 138.3333333 | Q36: =(H29-H18)/Q28 -> 197.5454545 | R36: =(H41-H29)/R28 -> 216.6666667 | S36: =(H52-H41)/S28 -> 219.9090909 | T36: =(H64-H52)/T28 -> 285.4166667 | U36: =(H75-H64)/U28 -> -1116.090909
A37: 21 | B37: 5404 | C37: 12 | D37: 5431 | E37: 24 | F37: 5452 | G37: 14 | H37: 5468 | K37: 0 | L37: 2121
A38: 21 | B38: 5751 | C38: 21 | D38: 5779 | E38: 11 | F38: 5790 | G38: 21 | H38: 5799 | K38: 0 | L38: 2212
A39: 12 | B39: 5934 | C39: 14 | D39: 5942 | E39: 13 | F39: 5947 | G39: 14 | H39: 5956 | K39: 0 | L39: 1111
A40: 12 | B40: 6125 | C40: 23 | D40: 6137 | E40: 13 | F40: 6148 | G40: 14 | H40: 6156 | K40: 0 | L40: 1211
A41: 12 | B41: 6381 | C41: 14 | D41: 6396 | E41: 13 | F41: 6403 | G41: 14 | H41: 6433 | K41: 0 | L41: 1111
A42: 21 | B42: 6588 | C42: 12 | D42: 6607 | E42: 13 | F42: 6611 | G42: 14 | H42: 6630 | K42: 0 | L42: 2111
A43: 21 | B43: 6758 | C43: 12 | D43: 6773 | E43: 13 | F43: 6778 | G43: 23 | H43: 6792 | K43: 0 | L43: 2112
A44: 21 | B44: 6972 | C44: 12 | D44: 6989 | E44: 24 | F44: 6998 | G44: 14 | H44: 7013 | K44: 0 | L44: 2121
A45: 12 | B45: 7321 | C45: 14 | D45: 7325 | E45: 13 | F45: 7331 | G45: 23 | H45: 7344 | K45: 0 | L45: 1112
A46: 21 | B46: 7510 | C46: 12 | D46: 7521 | E46: 24 | F46: 7533 | G46: 14 | H46: 7547 | K46: 0 | L46: 2121
A47: 21 | B47: 7760 | C47: 12 | D47: 7770 | E47: 24 | F47: 7782 | G47: 14 | H47: 7793 | K47: 0 | L47: 2121
A48: 21 | B48: 7986 | C48: 21 | D48: 8003 | E48: 11 | F48: 8015 | G48: 21 | H48: 8026 | K48: 0 | L48: 2212
A49: 21 | B49: 8164 | C49: 21 | D49: 8188 | E49: 11 | F49: 8200 | G49: 21 | H49: 8209 | K49: 0 | L49: 2212
A50: 12 | B50: 8343 | C50: 23 | D50: 8353 | E50: 13 | F50: 8364 | G50: 14 | H50: 8368 | K50: 0 | L50: 1211
A51: 12 | B51: 8536 | C51: 14 | D51: 8541 | E51: 13 | F51: 8561 | G51: 23 | H51: 8589 | K51: 0 | L51: 1112
A52: 21 | B52: 8795 | C52: 12 | D52: 8822 | E52: 24 | F52: 8831 | G52: 23 | H52: 8852 | K52: 0 | L52: 2122
A53: 12 | B53: 9018 | C53: 14 | D53: 9067 | E53: 24 | F53: 9077 | G53: 14 | H53: 9088 | K53: 0 | L53: 1121
A54: 12 | B54: 9281 | C54: 23 | D54: 9306 | E54: 24 | F54: 9315 | G54: 14 | H54: 9336 | K54: 0 | L54: 1221
A55: 12 | B55: 9485 | C55: 14 | D55: 9502 | E55: 13 | F55: 9531 | G55: 23 | H55: 9543 | K55: 0 | L55: 1112
A56: 12 | B56: 9762 | C56: 14 | D56: 9771 | E56: 13 | F56: 9799 | G56: 23 | H56: 9816 | K56: 0 | L56: 1112
A57: 12 | B57: 10067 | C57: 14 | D57: 10074 | E57: 24 | F57: 10084 | G57: 14 | H57: 10100 | K57: 0 | L57: 1121
A58: 12 | B58: 10285 | C58: 14 | D58: 10290 | E58: 13 | F58: 10295 | G58: 23 | H58: 10305 | K58: 0 | L58: 1112
A59: 12 | B59: 10487 | C59: 14 | D59: 10496 | E59: 13 | F59: 10501 | G59: 23 | H59: 10520 | K59: 0 | L59: 1112
A60: 12 | B60: 10671 | C60: 14 | D60: 10676 | E60: 13 | F60: 10686 | G60: 14 | H60: 10721 | K60: 0 | L60: 1111
A61: 21 | B61: 11110 | C61: 21 | D61: 11139 | E61: 22 | F61: 11150 | G61: 23 | H61: 11186 | K61: 0 | L61: 2222
A62: 21 | B62: 11655 | C62: 12 | D62: 11668 | E62: 24 | F62: 11703 | G62: 14 | H62: 11714 | K62: 0 | L62: 2121
A63: 12 | B63: 11878 | C63: 23 | D63: 11888 | E63: 24 | F63: 11909 | G63: 14 | H63: 11953 | K63: 0 | L63: 1221
A64: 21 | B64: 12200 | C64: 21 | D64: 12245 | E64: 11 | F64: 12262 | G64: 21 | H64: 12277 | K64: 0 | L64: 2212
A65: 12 | B65: 12422 | C65: 14 | D65: 12439 | E65: 13 | F65: 12476 | G65: 23 | H65: 12484 | K65: 0 | L65: 1112
A66: 21 | B66: 12707 | C66: 21 | D66: 12730 | E66: 22 | F66: 12746 | G66: 14 | H66: 12758 | K66: 0 | L66: 2221
A67: 21 | B67: 13007 | C67: 12 | D67: 13021 | E67: 13 | F67: 13028 | G67: 23 | H67: 13035 | K67: 0 | L67: 2112
A68: 21 | B68: 13311 | C68: 12 | D68: 13326 | E68: 13 | F68: 13330 | G68: 14 | H68: 13358 | K68: 0 | L68: 2111
A69: 21 | B69: 13639 | C69: 21 | D69: 13657 | E69: 11 | F69: 13669 | G69: 12 | H69: 13674 | K69: 0 | L69: 2211
A70: 21 | B70: 13854 | C70: 21 | D70: 13896 | E70: 22 | F70: 13908 | G70: 23 | H70: 17560 | K70: 0 | L70: 2222
A71: 21 | B71: 17944 | C71: 12 | D71: 17954 | E71: 24 | F71: 17975 | G71: 14 | H71: 17990 | K71: 0 | L71: 2121
A72: 21 | B72: 18242 | C72: 21 | D72: 18252 | E72: 22 | F72: 18264 | G72: 23 | H72: 18276 | K72: 0 | L72: 2222
A73: 21 | B73: 18659 | C73: 12 | D73: 18838 | E73: 24 | F73: 18865 | G73: 14 | H73: 18879 | K73: 0 | L73: 2121
A74: 12 | B74: 20258 | C74: 14 | D74: 20263 | E74: 24 | F74: 20279 | G74: 14 | H74: 20349 | K74: 0 | L74: 1121
A75: 12 | B75: 20546 | L75: 1

Sheet !MA20B30.096
A1: Report for:!MA20B30.096
A2: Date: | B2: <date>
A3: Hen: | B3: <hen> | F3: Correct Sequence | G3: =Start!J2 -> 2212 | P3: Total Sequences in Data | Q3: =4994-COUNTBLANK(L7:L5000) -> 52 | V3: Total Sequences in Block Data | W3: =COUNTA(L7:L15) -> 9 | AA3: Total Sequences in Block Data | AB3: =COUNTA(L16:L23) -> 8 | AF3: Total Sequences in Block Data | AG3: =COUNTA(L24:L32) -> 9 | AK3: Total Sequences in Block Data | AL3: =COUNTA(L33:L41) -> 9 | AP3: Total Sequences in Block Data | AQ3: =COUNTA(L42:L49) -> 8 | AU3: Total Sequences in Block Data | AV3: =COUNTA(L50:L58) -> 9
P4: Total Sequences in Summary | Q4: =SUM(O7:O22) -> 51 | V4: Total Sequences in Block Summary | W4: =SUM(U7:U22) -> 9 | AA4: Total Sequences in Block Summary | AB4: =SUM(Z7:Z22) -> 8 | AF4: Total Sequences in Block Summary | AG4: =SUM(AE7:AE22) -> 9 | AK4: Total Sequences in Block Summary | AL4: =SUM(AJ7:AJ22) -> 9 | AP4: Total Sequences in Block Summary | AQ4: =SUM(AO7:AO22) -> 8 | AU4: Total Sequences in Block Summary | AV4: =SUM(AT7:AT22) -> 8
T5: Block 1 | Y5: Block 2 | AD5: Block 3 | AI5: Block 4 | AN5: Block 5 | AS5: Block 6
A6: Sequence Component 1 | B6: Time 1 | C6: Sequence Component 2 | D6: Time 2 | E6: Sequence Component 3 | F6: Time 3 | G6: Sequence Component 4 | H6: Time 4 | I6: Sequence Component 5 | J6: Time 5 | K6: Correct? 0=No 1=Yes | L6: Sequence | N6: Frequency | P6: Relative Frequency | Q6: Variability | T6: Frequency | V6: Relative Frequency | W6: Variability | Y6: Frequency | AA6: Relative Frequency | AB6: Variability | AD6: Frequency | AF6: Relative Frequency | AG6: Variability | AI6: Frequency | AK6: Relative Frequency | AL6: Variability | AN6: Frequency | AP6: Relative Frequency | AQ6: Variability | AS6: Frequency | AU6: Relative Frequency | AV6: Variability
A7: 21 | B7: 37 | C7: 12 | D7: 53 | E7: 24 | F7: 78 | G7: 14 | H7: 91 | K7: 0 | L7: 2121 | N7: 1111 | O7: =COUNTIF($L$7:$L$500,N7) -> 9 | P7: =O7/$Q$4 -> 0.1764705882 | Q7: =IF(P7=0,0,(P7*((LOG(P7))/LOG(2)))) -> -0.4416177072 | T7: =N7 -> 1111 | U7: =COUNTIF(L7:L15,T7) -> 5 | V7: =U7/(W4-U20) -> 0.5555555556 | W7: =IF(V7=0,0,(V7*((LOG(V7))/LOG(2)))) -> -0.4711093925 | Y7: =N7 -> 1111 | Z7: =COUNTIF(L16:L23,Y7) -> 0 | AA7: =Z7/(AB4-Z20) -> 0 | AB7: =IF(AA7=0,0,(AA7*((LOG(AA7))/LOG(2)))) -> 0 | AD7: =N7 -> 1111 | AE7: =COUNTIF(L24:L32,AD7) -> 3 | AF7: =AE7/(AG4-AE20) -> 0.375 | AG7: =IF(AF7=0,0,(AF7*((LOG(AF7))/LOG(2)))) -> -0.5306390622 | AI7: =N7 -> 1111 | AJ7: =COUNTIF(L33:L41,AI7) -> 1 | AK7: =AJ7/(AL4-AJ20) -> 0.125 | AL7: =IF(AK7=0,0,(AK7*((LOG(AK7))/LOG(2)))) -> -0.375 | AN7: =N7 -> 1111 | AO7: =COUNTIF(L42:L49,AN7) -> 0 | AP7: =AO7/(AQ4-AO20) -> 0 | AQ7: =IF(AP7=0,0,(AP7*((LOG(AP7))/LOG(2)))) -> 0 | AS7: =N7 -> 1111 | AT7: =COUNTIF(L50:L58,AS7) -> 0 | AU7: =AT7/(AV4-AT20) -> 0 | AV7: =IF(AU7=0,0,(AU7*((LOG(AU7))/LOG(2)))) -> 0
A8: 12 | B8: 209 | C8: 14 | D8: 214 | E8: 24 | F8: 223 | G8: 14 | H8: 235 | K8: 0 | L8: 1121 | N8: 1112 | O8: =COUNTIF($L$7:$L$500,N8) -> 3 | P8: =O8/$Q$4 -> 0.05882352941 | Q8: =IF(P8=0,0,(P8*((LOG(P8))/LOG(2)))) -> -0.2404389907 | T8: =N8 -> 1112 | U8: =COUNTIF(L7:L15,T8) -> 2 | V8: =U8/(W4-U20) -> 0.2222222222 | W8: =IF(V8=0,0,(V8*((LOG(V8))/LOG(2)))) -> -0.4822055559 | Y8: =N8 -> 1112 | Z8: =COUNTIF(L16:L23,Y8) -> 1 | AA8: =Z8/(AB4-Z20) -> 0.125 | AB8: =IF(AA8=0,0,(AA8*((LOG(AA8))/LOG(2)))) -> -0.375 | AD8: =N8 -> 1112 | AE8: =COUNTIF(L24:L32,AD8) -> 0 | AF8: =AE8/(AG4-AE20) -> 0 | AG8: =IF(AF8=0,0,(AF8*((LOG(AF8))/LOG(2)))) -> 0 | AI8: =N8 -> 1112 | AJ8: =COUNTIF(L33:L41,AI8) -> 0 | AK8: =AJ8/(AL4-AJ20) -> 0 | AL8: =IF(AK8=0,0,(AK8*((LOG(AK8))/LOG(2)))) -> 0 | AN8: =N8 -> 1112 | AO8: =COUNTIF(L42:L49,AN8) -> 0 | AP8: =AO8/(AQ4-AO20) -> 0 | AQ8: =IF(AP8=0,0,(AP8*((LOG(AP8))/LOG(2)))) -> 0 | AS8: =N8 -> 1112 | AT8: =COUNTIF(L50:L58,AS8) -> 0 | AU8: =AT8/(AV4-AT20) -> 0 | AV8: =IF(AU8=0,0,(AU8*((LOG(AU8))/LOG(2)))) -> 0
A9: 12 | B9: 334 | C9: 14 | D9: 342 | E9: 13 | F9: 346 | G9: 14 | H9: 367 | K9: 0 | L9: 1111 | N9: 1121 | O9: =COUNTIF($L$7:$L$500,N9) -> 7 | P9: =O9/$Q$4 -> 0.137254902 | Q9: =IF(P9=0,0,(P9*((LOG(P9))/LOG(2)))) -> -0.3932449596 | T9: =N9 -> 1121 | U9: =COUNTIF(L7:L15,T9) -> 1 | V9: =U9/(W4-U20) -> 0.1111111111 | W9: =IF(V9=0,0,(V9*((LOG(V9))/LOG(2)))) -> -0.352213889 | Y9: =N9 -> 1121 | Z9: =COUNTIF(L16:L23,Y9) -> 2 | AA9: =Z9/(AB4-Z20) -> 0.25 | AB9: =IF(AA9=0,0,(AA9*((LOG(AA9))/LOG(2)))) -> -0.5 | AD9: =N9 -> 1121 | AE9: =COUNTIF(L24:L32,AD9) -> 2 | AF9: =AE9/(AG4-AE20) -> 0.25 | AG9: =IF(AF9=0,0,(AF9*((LOG(AF9))/LOG(2)))) -> -0.5 | AI9: =N9 -> 1121 | AJ9: =COUNTIF(L33:L41,AI9) -> 1 | AK9: =AJ9/(AL4-AJ20) -> 0.125 | AL9: =IF(AK9=0,0,(AK9*((LOG(AK9))/LOG(2)))) -> -0.375 | AN9: =N9 -> 1121 | AO9: =COUNTIF(L42:L49,AN9) -> 1 | AP9: =AO9/(AQ4-AO20) -> 0.2 | AQ9: =IF(AP9=0,0,(AP9*((LOG(AP9))/LOG(2)))) -> -0.464385619 | AS9: =N9 -> 1121 | AT9: =COUNTIF(L50:L58,AS9) -> 0 | AU9: =AT9/(AV4-AT20) -> 0 | AV9: =IF(AU9=0,0,(AU9*((LOG(AU9))/LOG(2)))) -> 0
A10: 12 | B10: 539 | C10: 14 | D10: 553 | E10: 13 | F10: 561 | G10: 14 | H10: 585 | K10: 0 | L10: 1111 | N10: 1122 | O10: =COUNTIF($L$7:$L$500,N10) -> 2 | P10: =O10/$Q$4 -> 0.03921568627 | Q10: =IF(P10=0,0,(P10*((LOG(P10))/LOG(2)))) -> -0.1832323664 | T10: =N10 -> 1122 | U10: =COUNTIF(L7:L15,T10) -> 0 | V10: =U10/(W4-U20) -> 0 | W10: =IF(V10=0,0,(V10*((LOG(V10))/LOG(2)))) -> 0 | Y10: =N10 -> 1122 | Z10: =COUNTIF(L16:L23,Y10) -> 0 | AA10: =Z10/(AB4-Z20) -> 0 | AB10: =IF(AA10=0,0,(AA10*((LOG(AA10))/LOG(2)))) -> 0 | AD10: =N10 -> 1122 | AE10: =COUNTIF(L24:L32,AD10) -> 1 | AF10: =AE10/(AG4-AE20) -> 0.125 | AG10: =IF(AF10=0,0,(AF10*((LOG(AF10))/LOG(2)))) -> -0.375 | AI10: =N10 -> 1122 | AJ10: =COUNTIF(L33:L41,AI10) -> 0 | AK10: =AJ10/(AL4-AJ20) -> 0 | AL10: =IF(AK10=0,0,(AK10*((LOG(AK10))/LOG(2)))) -> 0 | AN10: =N10 -> 1122 | AO10: =COUNTIF(L42:L49,AN10) -> 1 | AP10: =AO10/(AQ4-AO20) -> 0.2 | AQ10: =IF(AP10=0,0,(AP10*((LOG(AP10))/LOG(2)))) -> -0.464385619 | AS10: =N10 -> 1122 | AT10: =COUNTIF(L50:L58,AS10) -> 0 | AU10: =AT10/(AV4-AT20) -> 0 | AV10: =IF(AU10=0,0,(AU10*((LOG(AU10))/LOG(2)))) -> 0
A11: 12 | B11: 704 | C11: 14 | D11: 729 | E11: 13 | F11: 753 | G11: 14 | H11: 766 | K11: 0 | L11: 1111 | N11: 1211 | O11: =COUNTIF($L$7:$L$500,N11) -> 0 | P11: =O11/$Q$4 -> 0 | Q11: =IF(P11=0,0,(P11*((LOG(P11))/LOG(2)))) -> 0 | T11: =N11 -> 1211 | U11: =COUNTIF(L7:L15,T11) -> 0 | V11: =U11/(W4-U20) -> 0 | W11: =IF(V11=0,0,(V11*((LOG(V11))/LOG(2)))) -> 0 | Y11: =N11 -> 1211 | Z11: =COUNTIF(L16:L23,Y11) -> 0 | AA11: =Z11/(AB4-Z20) -> 0 | AB11: =IF(AA11=0,0,(AA11*((LOG(AA11))/LOG(2)))) -> 0 | AD11: =N11 -> 1211 | AE11: =COUNTIF(L24:L32,AD11) -> 0 | AF11: =AE11/(AG4-AE20) -> 0 | AG11: =IF(AF11=0,0,(AF11*((LOG(AF11))/LOG(2)))) -> 0 | AI11: =N11 -> 1211 | AJ11: =COUNTIF(L33:L41,AI11) -> 0 | AK11: =AJ11/(AL4-AJ20) -> 0 | AL11: =IF(AK11=0,0,(AK11*((LOG(AK11))/LOG(2)))) -> 0 | AN11: =N11 -> 1211 | AO11: =COUNTIF(L42:L49,AN11) -> 0 | AP11: =AO11/(AQ4-AO20) -> 0 | AQ11: =IF(AP11=0,0,(AP11*((LOG(AP11))/LOG(2)))) -> 0 | AS11: =N11 -> 1211 | AT11: =COUNTIF(L50:L58,AS11) -> 0 | AU11: =AT11/(AV4-AT20) -> 0 | AV11: =IF(AU11=0,0,(AU11*((LOG(AU11))/LOG(2)))) -> 0
A12: 12 | B12: 881 | C12: 14 | D12: 898 | E12: 13 | F12: 925 | G12: 14 | H12: 961 | K12: 0 | L12: 1111 | N12: 1212 | O12: =COUNTIF($L$7:$L$500,N12) -> 2 | P12: =O12/$Q$4 -> 0.03921568627 | Q12: =IF(P12=0,0,(P12*((LOG(P12))/LOG(2)))) -> -0.1832323664 | T12: =N12 -> 1212 | U12: =COUNTIF(L7:L15,T12) -> 0 | V12: =U12/(W4-U20) -> 0 | W12: =IF(V12=0,0,(V12*((LOG(V12))/LOG(2)))) -> 0 | Y12: =N12 -> 1212 | Z12: =COUNTIF(L16:L23,Y12) -> 1 | AA12: =Z12/(AB4-Z20) -> 0.125 | AB12: =IF(AA12=0,0,(AA12*((LOG(AA12))/LOG(2)))) -> -0.375 | AD12: =N12 -> 1212 | AE12: =COUNTIF(L24:L32,AD12) -> 1 | AF12: =AE12/(AG4-AE20) -> 0.125 | AG12: =IF(AF12=0,0,(AF12*((LOG(AF12))/LOG(2)))) -> -0.375 | AI12: =N12 -> 1212 | AJ12: =COUNTIF(L33:L41,AI12) -> 0 | AK12: =AJ12/(AL4-AJ20) -> 0 | AL12: =IF(AK12=0,0,(AK12*((LOG(AK12))/LOG(2)))) -> 0 | AN12: =N12 -> 1212 | AO12: =COUNTIF(L42:L49,AN12) -> 0 | AP12: =AO12/(AQ4-AO20) -> 0 | AQ12: =IF(AP12=0,0,(AP12*((LOG(AP12))/LOG(2)))) -> 0 | AS12: =N12 -> 1212 | AT12: =COUNTIF(L50:L58,AS12) -> 0 | AU12: =AT12/(AV4-AT20) -> 0 | AV12: =IF(AU12=0,0,(AU12*((LOG(AU12))/LOG(2)))) -> 0
A13: 12 | B13: 1067 | C13: 14 | D13: 1075 | E13: 13 | F13: 1087 | G13: 23 | H13: 1095 | K13: 0 | L13: 1112 | N13: 1221 | O13: =COUNTIF($L$7:$L$500,N13) -> 0 | P13: =O13/$Q$4 -> 0 | Q13: =IF(P13=0,0,(P13*((LOG(P13))/LOG(2)))) -> 0 | T13: =N13 -> 1221 | U13: =COUNTIF(L7:L15,T13) -> 0 | V13: =U13/(W4-U20) -> 0 | W13: =IF(V13=0,0,(V13*((LOG(V13))/LOG(2)))) -> 0 | Y13: =N13 -> 1221 | Z13: =COUNTIF(L16:L23,Y13) -> 0 | AA13: =Z13/(AB4-Z20) -> 0 | AB13: =IF(AA13=0,0,(AA13*((LOG(AA13))/LOG(2)))) -> 0 | AD13: =N13 -> 1221 | AE13: =COUNTIF(L24:L32,AD13) -> 0 | AF13: =AE13/(AG4-AE20) -> 0 | AG13: =IF(AF13=0,0,(AF13*((LOG(AF13))/LOG(2)))) -> 0 | AI13: =N13 -> 1221 | AJ13: =COUNTIF(L33:L41,AI13) -> 0 | AK13: =AJ13/(AL4-AJ20) -> 0 | AL13: =IF(AK13=0,0,(AK13*((LOG(AK13))/LOG(2)))) -> 0 | AN13: =N13 -> 1221 | AO13: =COUNTIF(L42:L49,AN13) -> 0 | AP13: =AO13/(AQ4-AO20) -> 0 | AQ13: =IF(AP13=0,0,(AP13*((LOG(AP13))/LOG(2)))) -> 0 | AS13: =N13 -> 1221 | AT13: =COUNTIF(L50:L58,AS13) -> 0 | AU13: =AT13/(AV4-AT20) -> 0 | AV13: =IF(AU13=0,0,(AU13*((LOG(AU13))/LOG(2)))) -> 0
A14: 12 | B14: 1208 | C14: 14 | D14: 1212 | E14: 13 | F14: 1248 | G14: 14 | H14: 1252 | K14: 0 | L14: 1111 | N14: 1222 | O14: =COUNTIF($L$7:$L$500,N14) -> 1 | P14: =O14/$Q$4 -> 0.01960784314 | Q14: =IF(P14=0,0,(P14*((LOG(P14))/LOG(2)))) -> -0.1112240263 | T14: =N14 -> 1222 | U14: =COUNTIF(L7:L15,T14) -> 0 | V14: =U14/(W4-U20) -> 0 | W14: =IF(V14=0,0,(V14*((LOG(V14))/LOG(2)))) -> 0 | Y14: =N14 -> 1222 | Z14: =COUNTIF(L16:L23,Y14) -> 0 | AA14: =Z14/(AB4-Z20) -> 0 | AB14: =IF(AA14=0,0,(AA14*((LOG(AA14))/LOG(2)))) -> 0 | AD14: =N14 -> 1222 | AE14: =COUNTIF(L24:L32,AD14) -> 0 | AF14: =AE14/(AG4-AE20) -> 0 | AG14: =IF(AF14=0,0,(AF14*((LOG(AF14))/LOG(2)))) -> 0 | AI14: =N14 -> 1222 | AJ14: =COUNTIF(L33:L41,AI14) -> 1 | AK14: =AJ14/(AL4-AJ20) -> 0.125 | AL14: =IF(AK14=0,0,(AK14*((LOG(AK14))/LOG(2)))) -> -0.375 | AN14: =N14 -> 1222 | AO14: =COUNTIF(L42:L49,AN14) -> 0 | AP14: =AO14/(AQ4-AO20) -> 0 | AQ14: =IF(AP14=0,0,(AP14*((LOG(AP14))/LOG(2)))) -> 0 | AS14: =N14 -> 1222 | AT14: =COUNTIF(L50:L58,AS14) -> 0 | AU14: =AT14/(AV4-AT20) -> 0 | AV14: =IF(AU14=0,0,(AU14*((LOG(AU14))/LOG(2)))) -> 0
A15: 12 | B15: 1365 | C15: 14 | D15: 1374 | E15: 13 | F15: 1381 | G15: 23 | H15: 1389 | K15: 0 | L15: 1112 | N15: 2111 | O15: =COUNTIF($L$7:$L$500,N15) -> 1 | P15: =O15/$Q$4 -> 0.01960784314 | Q15: =IF(P15=0,0,(P15*((LOG(P15))/LOG(2)))) -> -0.1112240263 | T15: =N15 -> 2111 | U15: =COUNTIF(L7:L15,T15) -> 0 | V15: =U15/(W4-U20) -> 0 | W15: =IF(V15=0,0,(V15*((LOG(V15))/LOG(2)))) -> 0 | Y15: =N15 -> 2111 | Z15: =COUNTIF(L16:L23,Y15) -> 1 | AA15: =Z15/(AB4-Z20) -> 0.125 | AB15: =IF(AA15=0,0,(AA15*((LOG(AA15))/LOG(2)))) -> -0.375 | AD15: =N15 -> 2111 | AE15: =COUNTIF(L24:L32,AD15) -> 0 | AF15: =AE15/(AG4-AE20) -> 0 | AG15: =IF(AF15=0,0,(AF15*((LOG(AF15))/LOG(2)))) -> 0 | AI15: =N15 -> 2111 | AJ15: =COUNTIF(L33:L41,AI15) -> 0 | AK15: =AJ15/(AL4-AJ20) -> 0 | AL15: =IF(AK15=0,0,(AK15*((LOG(AK15))/LOG(2)))) -> 0 | AN15: =N15 -> 2111 | AO15: =COUNTIF(L42:L49,AN15) -> 0 | AP15: =AO15/(AQ4-AO20) -> 0 | AQ15: =IF(AP15=0,0,(AP15*((LOG(AP15))/LOG(2)))) -> 0 | AS15: =N15 -> 2111 | AT15: =COUNTIF(L50:L58,AS15) -> 0 | AU15: =AT15/(AV4-AT20) -> 0 | AV15: =IF(AU15=0,0,(AU15*((LOG(AU15))/LOG(2)))) -> 0
A16: 12 | B16: 1498 | C16: 14 | D16: 1508 | E16: 13 | F16: 1535 | G16: 23 | H16: 1546 | K16: 0 | L16: 1112 | N16: 2112 | O16: =COUNTIF($L$7:$L$500,N16) -> 2 | P16: =O16/$Q$4 -> 0.03921568627 | Q16: =IF(P16=0,0,(P16*((LOG(P16))/LOG(2)))) -> -0.1832323664 | T16: =N16 -> 2112 | U16: =COUNTIF(L7:L15,T16) -> 0 | V16: =U16/(W4-U20) -> 0 | W16: =IF(V16=0,0,(V16*((LOG(V16))/LOG(2)))) -> 0 | Y16: =N16 -> 2112 | Z16: =COUNTIF(L16:L23,Y16) -> 1 | AA16: =Z16/(AB4-Z20) -> 0.125 | AB16: =IF(AA16=0,0,(AA16*((LOG(AA16))/LOG(2)))) -> -0.375 | AD16: =N16 -> 2112 | AE16: =COUNTIF(L24:L32,AD16) -> 0 | AF16: =AE16/(AG4-AE20) -> 0 | AG16: =IF(AF16=0,0,(AF16*((LOG(AF16))/LOG(2)))) -> 0 | AI16: =N16 -> 2112 | AJ16: =COUNTIF(L33:L41,AI16) -> 0 | AK16: =AJ16/(AL4-AJ20) -> 0 | AL16: =IF(AK16=0,0,(AK16*((LOG(AK16))/LOG(2)))) -> 0 | AN16: =N16 -> 2112 | AO16: =COUNTIF(L42:L49,AN16) -> 1 | AP16: =AO16/(AQ4-AO20) -> 0.2 | AQ16: =IF(AP16=0,0,(AP16*((LOG(AP16))/LOG(2)))) -> -0.464385619 | AS16: =N16 -> 2112 | AT16: =COUNTIF(L50:L58,AS16) -> 0 | AU16: =AT16/(AV4-AT20) -> 0 | AV16: =IF(AU16=0,0,(AU16*((LOG(AU16))/LOG(2)))) -> 0
A17: 21 | B17: 1747 | C17: 12 | D17: 1780 | E17: 24 | F17: 1812 | G17: 23 | H17: 1833 | K17: 0 | L17: 2122 | N17: 2121 | O17: =COUNTIF($L$7:$L$500,N17) -> 3 | P17: =O17/$Q$4 -> 0.05882352941 | Q17: =IF(P17=0,0,(P17*((LOG(P17))/LOG(2)))) -> -0.2404389907 | T17: =N17 -> 2121 | U17: =COUNTIF(L7:L15,T17) -> 1 | V17: =U17/(W4-U20) -> 0.1111111111 | W17: =IF(V17=0,0,(V17*((LOG(V17))/LOG(2)))) -> -0.352213889 | Y17: =N17 -> 2121 | Z17: =COUNTIF(L16:L23,Y17) -> 0 | AA17: =Z17/(AB4-Z20) -> 0 | AB17: =IF(AA17=0,0,(AA17*((LOG(AA17))/LOG(2)))) -> 0 | AD17: =N17 -> 2121 | AE17: =COUNTIF(L24:L32,AD17) -> 0 | AF17: =AE17/(AG4-AE20) -> 0 | AG17: =IF(AF17=0,0,(AF17*((LOG(AF17))/LOG(2)))) -> 0 | AI17: =N17 -> 2121 | AJ17: =COUNTIF(L33:L41,AI17) -> 1 | AK17: =AJ17/(AL4-AJ20) -> 0.125 | AL17: =IF(AK17=0,0,(AK17*((LOG(AK17))/LOG(2)))) -> -0.375 | AN17: =N17 -> 2121 | AO17: =COUNTIF(L42:L49,AN17) -> 1 | AP17: =AO17/(AQ4-AO20) -> 0.2 | AQ17: =IF(AP17=0,0,(AP17*((LOG(AP17))/LOG(2)))) -> -0.464385619 | AS17: =N17 -> 2121 | AT17: =COUNTIF(L50:L58,AS17) -> 0 | AU17: =AT17/(AV4-AT20) -> 0 | AV17: =IF(AU17=0,0,(AU17*((LOG(AU17))/LOG(2)))) -> 0
A18: 21 | B18: 1962 | C18: 12 | D18: 1980 | E18: 13 | F18: 1986 | G18: 23 | H18: 1994 | K18: 0 | L18: 2112 | N18: 2122 | O18: =COUNTIF($L$7:$L$500,N18) -> 4 | P18: =O18/$Q$4 -> 0.07843137255 | Q18: =IF(P18=0,0,(P18*((LOG(P18))/LOG(2)))) -> -0.2880333602 | T18: =N18 -> 2122 | U18: =COUNTIF(L7:L15,T18) -> 0 | V18: =U18/(W4-U20) -> 0 | W18: =IF(V18=0,0,(V18*((LOG(V18))/LOG(2)))) -> 0 | Y18: =N18 -> 2122 | Z18: =COUNTIF(L16:L23,Y18) -> 1 | AA18: =Z18/(AB4-Z20) -> 0.125 | AB18: =IF(AA18=0,0,(AA18*((LOG(AA18))/LOG(2)))) -> -0.375 | AD18: =N18 -> 2122 | AE18: =COUNTIF(L24:L32,AD18) -> 0 | AF18: =AE18/(AG4-AE20) -> 0 | AG18: =IF(AF18=0,0,(AF18*((LOG(AF18))/LOG(2)))) -> 0 | AI18: =N18 -> 2122 | AJ18: =COUNTIF(L33:L41,AI18) -> 1 | AK18: =AJ18/(AL4-AJ20) -> 0.125 | AL18: =IF(AK18=0,0,(AK18*((LOG(AK18))/LOG(2)))) -> -0.375 | AN18: =N18 -> 2122 | AO18: =COUNTIF(L42:L49,AN18) -> 1 | AP18: =AO18/(AQ4-AO20) -> 0.2 | AQ18: =IF(AP18=0,0,(AP18*((LOG(AP18))/LOG(2)))) -> -0.464385619 | AS18: =N18 -> 2122 | AT18: =COUNTIF(L50:L58,AS18) -> 1 | AU18: =AT18/(AV4-AT20) -> 0.125 | AV18: =IF(AU18=0,0,(AU18*((LOG(AU18))/LOG(2)))) -> -0.375
A19: 12 | B19: 2210 | C19: 14 | D19: 2239 | E19: 24 | F19: 2284 | G19: 14 | H19: 2320 | K19: 0 | L19: 1121 | N19: 2211 | O19: =COUNTIF($L$7:$L$500,N19) -> 3 | P19: =O19/$Q$4 -> 0.05882352941 | Q19: =IF(P19=0,0,(P19*((LOG(P19))/LOG(2)))) -> -0.2404389907 | T19: =N19 -> 2211 | U19: =COUNTIF(L7:L15,T19) -> 0 | V19: =U19/(W4-U20) -> 0 | W19: =IF(V19=0,0,(V19*((LOG(V19))/LOG(2)))) -> 0 | Y19: =N19 -> 2211 | Z19: =COUNTIF(L16:L23,Y19) -> 1 | AA19: =Z19/(AB4-Z20) -> 0.125 | AB19: =IF(AA19=0,0,(AA19*((LOG(AA19))/LOG(2)))) -> -0.375 | AD19: =N19 -> 2211 | AE19: =COUNTIF(L24:L32,AD19) -> 1 | AF19: =AE19/(AG4-AE20) -> 0.125 | AG19: =IF(AF19=0,0,(AF19*((LOG(AF19))/LOG(2)))) -> -0.375 | AI19: =N19 -> 2211 | AJ19: =COUNTIF(L33:L41,AI19) -> 0 | AK19: =AJ19/(AL4-AJ20) -> 0 | AL19: =IF(AK19=0,0,(AK19*((LOG(AK19))/LOG(2)))) -> 0 | AN19: =N19 -> 2211 | AO19: =COUNTIF(L42:L49,AN19) -> 0 | AP19: =AO19/(AQ4-AO20) -> 0 | AQ19: =IF(AP19=0,0,(AP19*((LOG(AP19))/LOG(2)))) -> 0 | AS19: =N19 -> 2211 | AT19: =COUNTIF(L50:L58,AS19) -> 1 | AU19: =AT19/(AV4-AT20) -> 0.125 | AV19: =IF(AU19=0,0,(AU19*((LOG(AU19))/LOG(2)))) -> -0.375
A20: 12 | B20: 2479 | C20: 23 | D20: 2500 | E20: 13 | F20: 2514 | G20: 23 | H20: 2541 | K20: 0 | L20: 1212 | N20: 2212 | O20: =COUNTIF($L$7:$L$500,N20) -> 5 | P20: =O20/$Q$4 -> 0.09803921569 | Q20: =IF(P20=0,0,(P20*((LOG(P20))/LOG(2)))) -> -0.3284801223 | T20: =N20 -> 2212 | U20: =COUNTIF(L7:L15,T20) -> 0 | Y20: =N20 -> 2212 | Z20: =COUNTIF(L16:L23,Y20) -> 0 | AD20: =N20 -> 2212 | AE20: =COUNTIF(L24:L32,AD20) -> 1 | AI20: =N20 -> 2212 | AJ20: =COUNTIF(L33:L41,AI20) -> 1 | AN20: =N20 -> 2212 | AO20: =COUNTIF(L42:L49,AN20) -> 3 | AS20: =N20 -> 2212 | AT20: =COUNTIF(L50:L58,AS20) -> 0
A21: 21 | B21: 2683 | C21: 21 | D21: 2708 | E21: 11 | F21: 2733 | G21: 12 | H21: 2741 | K21: 0 | L21: 2211 | N21: 2221 | O21: =COUNTIF($L$7:$L$500,N21) -> 3 | P21: =O21/$Q$4 -> 0.05882352941 | Q21: =IF(P21=0,0,(P21*((LOG(P21))/LOG(2)))) -> -0.2404389907 | T21: =N21 -> 2221 | U21: =COUNTIF(L7:L15,T21) -> 0 | V21: =U21/(W4-U20) -> 0 | W21: =IF(V21=0,0,(V21*((LOG(V21))/LOG(2)))) -> 0 | Y21: =N21 -> 2221 | Z21: =COUNTIF(L16:L23,Y21) -> 0 | AA21: =Z21/(AB4-Z20) -> 0 | AB21: =IF(AA21=0,0,(AA21*((LOG(AA21))/LOG(2)))) -> 0 | AD21: =N21 -> 2221 | AE21: =COUNTIF(L24:L32,AD21) -> 0 | AF21: =AE21/(AG4-AE20) -> 0 | AG21: =IF(AF21=0,0,(AF21*((LOG(AF21))/LOG(2)))) -> 0 | AI21: =N21 -> 2221 | AJ21: =COUNTIF(L33:L41,AI21) -> 0 | AK21: =AJ21/(AL4-AJ20) -> 0 | AL21: =IF(AK21=0,0,(AK21*((LOG(AK21))/LOG(2)))) -> 0 | AN21: =N21 -> 2221 | AO21: =COUNTIF(L42:L49,AN21) -> 0 | AP21: =AO21/(AQ4-AO20) -> 0 | AQ21: =IF(AP21=0,0,(AP21*((LOG(AP21))/LOG(2)))) -> 0 | AS21: =N21 -> 2221 | AT21: =COUNTIF(L50:L58,AS21) -> 3 | AU21: =AT21/(AV4-AT20) -> 0.375 | AV21: =IF(AU21=0,0,(AU21*((LOG(AU21))/LOG(2)))) -> -0.5306390622
A22: 12 | B22: 2894 | C22: 14 | D22: 2989 | E22: 24 | F22: 3034 | G22: 14 | H22: 3060 | K22: 0 | L22: 1121 | N22: 2222 | O22: =COUNTIF($L$7:$L$500,N22) -> 6 | P22: =O22/$Q$4 -> 0.1176470588 | Q22: =IF(P22=0,0,(P22*((LOG(P22))/LOG(2)))) -> -0.3632309225 | T22: =N22 -> 2222 | U22: =COUNTIF(L7:L15,T22) -> 0 | V22: =U22/(W4-U20) -> 0 | W22: =IF(V22=0,0,(V22*((LOG(V22))/LOG(2)))) -> 0 | Y22: =N22 -> 2222 | Z22: =COUNTIF(L16:L23,Y22) -> 0 | AA22: =Z22/(AB4-Z20) -> 0 | AB22: =IF(AA22=0,0,(AA22*((LOG(AA22))/LOG(2)))) -> 0 | AD22: =N22 -> 2222 | AE22: =COUNTIF(L24:L32,AD22) -> 0 | AF22: =AE22/(AG4-AE20) -> 0 | AG22: =IF(AF22=0,0,(AF22*((LOG(AF22))/LOG(2)))) -> 0 | AI22: =N22 -> 2222 | AJ22: =COUNTIF(L33:L41,AI22) -> 3 | AK22: =AJ22/(AL4-AJ20) -> 0.375 | AL22: =IF(AK22=0,0,(AK22*((LOG(AK22))/LOG(2)))) -> -0.5306390622 | AN22: =N22 -> 2222 | AO22: =COUNTIF(L42:L49,AN22) -> 0 | AP22: =AO22/(AQ4-AO20) -> 0 | AQ22: =IF(AP22=0,0,(AP22*((LOG(AP22))/LOG(2)))) -> 0 | AS22: =N22 -> 2222 | AT22: =COUNTIF(L50:L58,AS22) -> 3 | AU22: =AT22/(AV4-AT20) -> 0.375 | AV22: =IF(AU22=0,0,(AU22*((LOG(AU22))/LOG(2)))) -> -0.5306390622
A23: 21 | B23: 3236 | C23: 12 | D23: 3248 | E23: 13 | F23: 3252 | G23: 14 | H23: 3307 | K23: 0 | L23: 2111 | P23: =SUM(P7:P22) -> 1 | Q23: =-SUM(Q7:Q22) -> 3.548508186 | V23: =SUM(V7:V22) -> 1 | W23: =-SUM(W7:W22) -> 1.657742727 | AA23: =SUM(AA7:AA22) -> 1 | AB23: =-SUM(AB7:AB22) -> 2.75 | AF23: =SUM(AF7:AF22) -> 1 | AG23: =-SUM(AG7:AG22) -> 2.155639062 | AK23: =SUM(AK7:AK22) -> 1 | AL23: =-SUM(AL7:AL22) -> 2.405639062 | AP23: =SUM(AP7:AP22) -> 1 | AQ23: =-SUM(AQ7:AQ22) -> 2.321928095 | AU23: =SUM(AU7:AU22) -> 1 | AV23: =-SUM(AV7:AV22) -> 1.811278124
A24: 12 | B24: 3459 | C24: 23 | D24: 3484 | E24: 13 | F24: 3497 | G24: 23 | H24: 3506 | K24: 0 | L24: 1212 | P24: U= | Q24: =Q23/(LOG(Q4)/LOG(2)) -> 0.625571598 | V24: U1= | W24: =W23/(LOG(W4)/LOG(2)) -> 0.522959605 | AA24: U2= | AB24: =AB23/(LOG(AB4)/LOG(2)) -> 0.9166666667 | AF24: U3= | AG24: =AG23/(LOG(AG4)/LOG(2)) -> 0.6800284112 | AK24: U4= | AL24: =AL23/(LOG(AL4)/LOG(2)) -> 0.7588946304 | AP24: U5= | AQ24: =AQ23/(LOG(AQ4)/LOG(2)) -> 0.7739760316 | AU24: U6= | AV24: =AV23/(LOG(AV4)/LOG(2)) -> 0.6037593748
A25: 12 | B25: 3612 | C25: 14 | D25: 3617 | E25: 24 | F25: 3631 | G25: 14 | H25: 3643 | K25: 0 | L25: 1121
A26: 21 | B26: 3923 | C26: 21 | D26: 3960 | E26: 11 | F26: 3982 | G26: 12 | H26: 4006 | K26: 0 | L26: 2211
A27: 12 | B27: 4154 | C27: 14 | D27: 4159 | E27: 13 | F27: 4163 | G27: 14 | H27: 4213 | K27: 0 | L27: 1111 | N27: Total Target Seq
A28: 12 | B28: 4349 | C28: 14 | D28: 4362 | E28: 13 | F28: 4367 | G28: 14 | H28: 4391 | K28: 0 | L28: 1111 | N28: =COUNTIF(L7:L58,G3) -> 5 | P28: 9 | Q28: 8 | R28: 9 | S28: 9 | T28: 8 | U28: 9
A29: 12 | B29: 4638 | C29: 14 | D29: 4643 | E29: 13 | F29: 4668 | G29: 14 | H29: 4723 | K29: 0 | L29: 1111 | P29: % of reinforcement given in 6 equal intervals based on number of trials
A30: 12 | B30: 4908 | C30: 14 | D30: 4915 | E30: 24 | F30: 4939 | G30: 14 | H30: 4950 | K30: 0 | L30: 1121 | P30: %_1 | Q30: %_2 | R30: %_3 | S30: %_4 | T30: %_5 | U30: %_6
A31: 12 | B31: 5150 | C31: 14 | D31: 5155 | E31: 24 | F31: 5166 | G31: 23 | H31: 5173 | K31: 0 | L31: 1122 | O31: target sequence | P31: =$G$3 -> 2212 | Q31: =$G$3 -> 2212 | R31: =$G$3 -> 2212 | S31: =$G$3 -> 2212 | T31: =$G$3 -> 2212 | U31: =$G$3 -> 2212
A32: 21 | B32: 5520 | C32: 21 | D32: 5554 | E32: 11 | F32: 5567 | G32: 21 | H32: 5589 | K32: 0 | L32: 2212 | O32: total reinforcement | P32: =U20 -> 0 | Q32: =Z20 -> 0 | R32: =AE20 -> 1 | S32: =AJ20 -> 1 | T32: =AO20 -> 3 | U32: =AT20 -> 0
A33: 12 | B33: 6362 | C33: 23 | D33: 6371 | E33: 24 | F33: 6425 | G33: 23 | H33: 6440 | K33: 0 | L33: 1222 | O33: % target
A34: 21 | B34: 9728 | C34: 21 | D34: 9763 | E34: 22 | F34: 9784 | G34: 23 | H34: 9823 | K34: 0 | L34: 2222 | O34: CCRF
A35: 12 | B35: 10397 | C35: 14 | D35: 10422 | E35: 13 | F35: 10438 | G35: 14 | H35: 10451 | K35: 0 | L35: 1111 | O35: % CCRf
A36: 21 | B36: 12934 | C36: 21 | D36: 12955 | E36: 22 | F36: 13395 | G36: 23 | H36: 13414 | K36: 0 | L36: 2222 | O36: average response rate | P36: =H15/P28 -> 154.3333333 | Q36: =(H23-H15)/Q28 -> 239.75 | R36: =(H32-H23)/R28 -> 253.5555556 | S36: =(H41-H32)/S28 -> 1421.888889 | T36: =(H49-H41)/T28 -> 306.125 | U36: =(H58-H49)/U28 -> -2315
A37: 21 | B37: 16724 | C37: 21 | D37: 16738 | E37: 22 | F37: 16757 | G37: 23 | H37: 16775 | K37: 0 | L37: 2222
A38: 12 | B38: 17029 | C38: 14 | D38: 17034 | E38: 24 | F38: 17058 | G38: 14 | H38: 17070 | K38: 0 | L38: 1121
A39: 21 | B39: 17499 | C39: 21 | D39: 17507 | E39: 11 | F39: 17524 | G39: 21 | H39: 17536 | K39: 0 | L39: 2212
A40: 21 | B40: 17758 | C40: 12 | D40: 17770 | E40: 24 | F40: 17782 | G40: 14 | H40: 17798 | K40: 0 | L40: 2121
A41: 21 | B41: 18339 | C41: 12 | D41: 18355 | E41: 24 | F41: 18366 | G41: 23 | H41: 18386 | K41: 0 | L41: 2122
A42: 21 | B42: 18633 | C42: 12 | D42: 18644 | E42: 13 | F42: 18672 | G42: 23 | H42: 18681 | K42: 0 | L42: 2112
A43: 21 | B43: 19103 | C43: 21 | D43: 19136 | E43: 11 | F43: 19157 | G43: 21 | H43: 19171 | K43: 0 | L43: 2212
A44: 21 | B44: 19364 | C44: 12 | D44: 19383 | E44: 24 | F44: 19395 | G44: 23 | H44: 19417 | K44: 0 | L44: 2122
A45: 12 | B45: 19630 | C45: 14 | D45: 19642 | E45: 24 | F45: 19680 | G45: 14 | H45: 19706 | K45: 0 | L45: 1121
A46: 12 | B46: 19903 | C46: 14 | D46: 19924 | E46: 24 | F46: 19937 | G46: 23 | H46: 19951 | K46: 0 | L46: 1122
A47: 21 | B47: 20282 | C47: 21 | D47: 20317 | E47: 11 | F47: 20333 | G47: 21 | H47: 20362 | K47: 0 | L47: 2212
A48: 21 | B48: 20540 | C48: 21 | D48: 20564 | E48: 11 | F48: 20577 | G48: 21 | H48: 20594 | K48: 0 | L48: 2212
A49: 21 | B49: 20793 | C49: 12 | D49: 20803 | E49: 24 | F49: 20820 | G49: 14 | H49: 20835 | K49: 0 | L49: 2121
A50: 21 | B50: 21107 | C50: 21 | D50: 21145 | E50: 22 | F50: 21168 | G50: 14 | H50: 21181 | K50: 0 | L50: 2221
A51: 21 | B51: 21323 | C51: 21 | D51: 21364 | E51: 22 | F51: 21382 | G51: 23 | H51: 21411 | K51: 0 | L51: 2222
A52: 21 | B52: 21545 | C52: 21 | D52: 21558 | E52: 22 | F52: 21599 | G52: 23 | H52: 21645 | K52: 0 | L52: 2222
A53: 21 | B53: 21897 | C53: 12 | D53: 21911 | E53: 24 | F53: 21939 | G53: 23 | H53: 21951 | K53: 0 | L53: 2122
A54: 21 | B54: 22189 | C54: 21 | D54: 22252 | E54: 22 | F54: 22264 | G54: 14 | H54: 22279 | K54: 0 | L54: 2221
A55: 21 | B55: 23091 | C55: 21 | D55: 23108 | E55: 22 | F55: 23130 | G55: 14 | H55: 23145 | K55: 0 | L55: 2221
A56: 21 | B56: 23342 | C56: 21 | D56: 23365 | E56: 11 | F56: 23379 | G56: 12 | H56: 23394 | K56: 0 | L56: 2211
A57: 21 | B57: 23532 | C57: 21 | D57: 23562 | E57: 22 | F57: 23591 | G57: 23 | H57: 23647 | K57: 0 | L57: 2222
A58: 21 | B58: 23987 | L58: 2

Sheet !MA21B50.096
A1: Report for:!MA21B50.096
A2: Date: | B2: <date>
A3: Hen: | B3: <hen> | F3: Correct Sequence | G3: =Start!J2 -> 2212 | P3: Total Sequences in Data | Q3: =4994-COUNTBLANK(L7:L5000) -> 64 | V3: Total Sequences in Block Data | W3: =COUNTA(L7:L17) -> 11 | AA3: Total Sequences in Block Data | AB3: =COUNTA(L18:L27) -> 10 | AF3: Total Sequences in Block Data | AG3: =COUNTA(L28:L38) -> 11 | AK3: Total Sequences in Block Data | AL3: =COUNTA(L39:L49) -> 11 | AP3: Total Sequences in Block Data | AQ3: =COUNTA(L50:L59) -> 10 | AU3: Total Sequences in Block Data | AV3: =COUNTA(L60:L70) -> 11
P4: Total Sequences in Summary | Q4: =SUM(O7:O22) -> 63 | V4: Total Sequences in Block Summary | W4: =SUM(U7:U22) -> 11 | AA4: Total Sequences in Block Summary | AB4: =SUM(Z7:Z22) -> 10 | AF4: Total Sequences in Block Summary | AG4: =SUM(AE7:AE22) -> 11 | AK4: Total Sequences in Block Summary | AL4: =SUM(AJ7:AJ22) -> 11 | AP4: Total Sequences in Block Summary | AQ4: =SUM(AO7:AO22) -> 10 | AU4: Total Sequences in Block Summary | AV4: =SUM(AT7:AT22) -> 10
T5: Block 1 | Y5: Block 2 | AD5: Block 3 | AI5: Block 4 | AN5: Block 5 | AS5: Block 6
A6: Sequence Component 1 | B6: Time 1 | C6: Sequence Component 2 | D6: Time 2 | E6: Sequence Component 3 | F6: Time 3 | G6: Sequence Component 4 | H6: Time 4 | I6: Sequence Component 5 | J6: Time 5 | K6: Correct? 0=No 1=Yes | L6: Sequence | N6: Frequency | P6: Relative Frequency | Q6: Variability | T6: Frequency | V6: Relative Frequency | W6: Variability | Y6: Frequency | AA6: Relative Frequency | AB6: Variability | AD6: Frequency | AF6: Relative Frequency | AG6: Variability | AI6: Frequency | AK6: Relative Frequency | AL6: Variability | AN6: Frequency | AP6: Relative Frequency | AQ6: Variability | AS6: Frequency | AU6: Relative Frequency | AV6: Variability
A7: 12 | B7: 15 | C7: 14 | D7: 24 | E7: 13 | F7: 33 | G7: 14 | H7: 38 | K7: 0 | L7: 1111 | N7: 1111 | O7: =COUNTIF($L$7:$L$500,N7) -> 8 | P7: =O7/$Q$4 -> 0.126984127 | Q7: =IF(P7=0,0,(P7*((LOG(P7))/LOG(2)))) -> -0.3780672919 | T7: =N7 -> 1111 | U7: =COUNTIF(L7:L17,T7) -> 1 | V7: =U7/(W4-U20) -> 0.09090909091 | W7: =IF(V7=0,0,(V7*((LOG(V7))/LOG(2)))) -> -0.3144937835 | Y7: =N7 -> 1111 | Z7: =COUNTIF(L18:L27,Y7) -> 3 | AA7: =Z7/(AB4-Z20) -> 0.3 | AB7: =IF(AA7=0,0,(AA7*((LOG(AA7))/LOG(2)))) -> -0.5210896782 | AD7: =N7 -> 1111 | AE7: =COUNTIF(L28:L38,AD7) -> 3 | AF7: =AE7/(AG4-AE20) -> 0.2727272727 | AG7: =IF(AF7=0,0,(AF7*((LOG(AF7))/LOG(2)))) -> -0.5112188503 | AI7: =N7 -> 1111 | AJ7: =COUNTIF(L39:L49,AI7) -> 1 | AK7: =AJ7/(AL4-AJ20) -> 0.09090909091 | AL7: =IF(AK7=0,0,(AK7*((LOG(AK7))/LOG(2)))) -> -0.3144937835 | AN7: =N7 -> 1111 | AO7: =COUNTIF(L50:L59,AN7) -> 0 | AP7: =AO7/(AQ4-AO20) -> 0 | AQ7: =IF(AP7=0,0,(AP7*((LOG(AP7))/LOG(2)))) -> 0 | AS7: =N7 -> 1111 | AT7: =COUNTIF(L60:L70,AS7) -> 0 | AU7: =AT7/(AV4-AT20) -> 0 | AV7: =IF(AU7=0,0,(AU7*((LOG(AU7))/LOG(2)))) -> 0
A8: 21 | B8: 142 | C8: 12 | D8: 161 | E8: 24 | F8: 169 | G8: 23 | H8: 193 | K8: 0 | L8: 2122 | N8: 1112 | O8: =COUNTIF($L$7:$L$500,N8) -> 6 | P8: =O8/$Q$4 -> 0.09523809524 | Q8: =IF(P8=0,0,(P8*((LOG(P8))/LOG(2)))) -> -0.3230778498 | T8: =N8 -> 1112 | U8: =COUNTIF(L7:L17,T8) -> 1 | V8: =U8/(W4-U20) -> 0.09090909091 | W8: =IF(V8=0,0,(V8*((LOG(V8))/LOG(2)))) -> -0.3144937835 | Y8: =N8 -> 1112 | Z8: =COUNTIF(L18:L27,Y8) -> 1 | AA8: =Z8/(AB4-Z20) -> 0.1 | AB8: =IF(AA8=0,0,(AA8*((LOG(AA8))/LOG(2)))) -> -0.3321928095 | AD8: =N8 -> 1112 | AE8: =COUNTIF(L28:L38,AD8) -> 3 | AF8: =AE8/(AG4-AE20) -> 0.2727272727 | AG8: =IF(AF8=0,0,(AF8*((LOG(AF8))/LOG(2)))) -> -0.5112188503 | AI8: =N8 -> 1112 | AJ8: =COUNTIF(L39:L49,AI8) -> 0 | AK8: =AJ8/(AL4-AJ20) -> 0 | AL8: =IF(AK8=0,0,(AK8*((LOG(AK8))/LOG(2)))) -> 0 | AN8: =N8 -> 1112 | AO8: =COUNTIF(L50:L59,AN8) -> 0 | AP8: =AO8/(AQ4-AO20) -> 0 | AQ8: =IF(AP8=0,0,(AP8*((LOG(AP8))/LOG(2)))) -> 0 | AS8: =N8 -> 1112 | AT8: =COUNTIF(L60:L70,AS8) -> 1 | AU8: =AT8/(AV4-AT20) -> 0.1111111111 | AV8: =IF(AU8=0,0,(AU8*((LOG(AU8))/LOG(2)))) -> -0.352213889
A9: 12 | B9: 306 | C9: 23 | D9: 319 | E9: 13 | F9: 334 | G9: 23 | H9: 349 | K9: 0 | L9: 1212 | N9: 1121 | O9: =COUNTIF($L$7:$L$500,N9) -> 5 | P9: =O9/$Q$4 -> 0.07936507937 | Q9: =IF(P9=0,0,(P9*((LOG(P9))/LOG(2)))) -> -0.290107288 | T9: =N9 -> 1121 | U9: =COUNTIF(L7:L17,T9) -> 1 | V9: =U9/(W4-U20) -> 0.09090909091 | W9: =IF(V9=0,0,(V9*((LOG(V9))/LOG(2)))) -> -0.3144937835 | Y9: =N9 -> 1121 | Z9: =COUNTIF(L18:L27,Y9) -> 2 | AA9: =Z9/(AB4-Z20) -> 0.2 | AB9: =IF(AA9=0,0,(AA9*((LOG(AA9))/LOG(2)))) -> -0.464385619 | AD9: =N9 -> 1121 | AE9: =COUNTIF(L28:L38,AD9) -> 0 | AF9: =AE9/(AG4-AE20) -> 0 | AG9: =IF(AF9=0,0,(AF9*((LOG(AF9))/LOG(2)))) -> 0 | AI9: =N9 -> 1121 | AJ9: =COUNTIF(L39:L49,AI9) -> 2 | AK9: =AJ9/(AL4-AJ20) -> 0.1818181818 | AL9: =IF(AK9=0,0,(AK9*((LOG(AK9))/LOG(2)))) -> -0.4471693852 | AN9: =N9 -> 1121 | AO9: =COUNTIF(L50:L59,AN9) -> 0 | AP9: =AO9/(AQ4-AO20) -> 0 | AQ9: =IF(AP9=0,0,(AP9*((LOG(AP9))/LOG(2)))) -> 0 | AS9: =N9 -> 1121 | AT9: =COUNTIF(L60:L70,AS9) -> 0 | AU9: =AT9/(AV4-AT20) -> 0 | AV9: =IF(AU9=0,0,(AU9*((LOG(AU9))/LOG(2)))) -> 0
A10: 21 | B10: 481 | C10: 12 | D10: 493 | E10: 13 | F10: 497 | G10: 23 | H10: 511 | K10: 0 | L10: 2112 | N10: 1122 | O10: =COUNTIF($L$7:$L$500,N10) -> 0 | P10: =O10/$Q$4 -> 0 | Q10: =IF(P10=0,0,(P10*((LOG(P10))/LOG(2)))) -> 0 | T10: =N10 -> 1122 | U10: =COUNTIF(L7:L17,T10) -> 0 | V10: =U10/(W4-U20) -> 0 | W10: =IF(V10=0,0,(V10*((LOG(V10))/LOG(2)))) -> 0 | Y10: =N10 -> 1122 | Z10: =COUNTIF(L18:L27,Y10) -> 0 | AA10: =Z10/(AB4-Z20) -> 0 | AB10: =IF(AA10=0,0,(AA10*((LOG(AA10))/LOG(2)))) -> 0 | AD10: =N10 -> 1122 | AE10: =COUNTIF(L28:L38,AD10) -> 0 | AF10: =AE10/(AG4-AE20) -> 0 | AG10: =IF(AF10=0,0,(AF10*((LOG(AF10))/LOG(2)))) -> 0 | AI10: =N10 -> 1122 | AJ10: =COUNTIF(L39:L49,AI10) -> 0 | AK10: =AJ10/(AL4-AJ20) -> 0 | AL10: =IF(AK10=0,0,(AK10*((LOG(AK10))/LOG(2)))) -> 0 | AN10: =N10 -> 1122 | AO10: =COUNTIF(L50:L59,AN10) -> 0 | AP10: =AO10/(AQ4-AO20) -> 0 | AQ10: =IF(AP10=0,0,(AP10*((LOG(AP10))/LOG(2)))) -> 0 | AS10: =N10 -> 1122 | AT10: =COUNTIF(L60:L70,AS10) -> 0 | AU10: =AT10/(AV4-AT20) -> 0 | AV10: =IF(AU10=0,0,(AU10*((LOG(AU10))/LOG(2)))) -> 0
A11: 21 | B11: 616 | C11: 12 | D11: 629 | E11: 24 | F11: 640 | G11: 14 | H11: 652 | K11: 0 | L11: 2121 | N11: 1211 | O11: =COUNTIF($L$7:$L$500,N11) -> 2 | P11: =O11/$Q$4 -> 0.03174603175 | Q11: =IF(P11=0,0,(P11*((LOG(P11))/LOG(2)))) -> -0.1580088865 | T11: =N11 -> 1211 | U11: =COUNTIF(L7:L17,T11) -> 0 | V11: =U11/(W4-U20) -> 0 | W11: =IF(V11=0,0,(V11*((LOG(V11))/LOG(2)))) -> 0 | Y11: =N11 -> 1211 | Z11: =COUNTIF(L18:L27,Y11) -> 0 | AA11: =Z11/(AB4-Z20) -> 0 | AB11: =IF(AA11=0,0,(AA11*((LOG(AA11))/LOG(2)))) -> 0 | AD11: =N11 -> 1211 | AE11: =COUNTIF(L28:L38,AD11) -> 1 | AF11: =AE11/(AG4-AE20) -> 0.09090909091 | AG11: =IF(AF11=0,0,(AF11*((LOG(AF11))/LOG(2)))) -> -0.3144937835 | AI11: =N11 -> 1211 | AJ11: =COUNTIF(L39:L49,AI11) -> 1 | AK11: =AJ11/(AL4-AJ20) -> 0.09090909091 | AL11: =IF(AK11=0,0,(AK11*((LOG(AK11))/LOG(2)))) -> -0.3144937835 | AN11: =N11 -> 1211 | AO11: =COUNTIF(L50:L59,AN11) -> 0 | AP11: =AO11/(AQ4-AO20) -> 0 | AQ11: =IF(AP11=0,0,(AP11*((LOG(AP11))/LOG(2)))) -> 0 | AS11: =N11 -> 1211 | AT11: =COUNTIF(L60:L70,AS11) -> 0 | AU11: =AT11/(AV4-AT20) -> 0 | AV11: =IF(AU11=0,0,(AU11*((LOG(AU11))/LOG(2)))) -> 0
A12: 21 | B12: 749 | C12: 12 | D12: 770 | E12: 13 | F12: 781 | G12: 23 | H12: 790 | K12: 0 | L12: 2112 | N12: 1212 | O12: =COUNTIF($L$7:$L$500,N12) -> 2 | P12: =O12/$Q$4 -> 0.03174603175 | Q12: =IF(P12=0,0,(P12*((LOG(P12))/LOG(2)))) -> -0.1580088865 | T12: =N12 -> 1212 | U12: =COUNTIF(L7:L17,T12) -> 1 | V12: =U12/(W4-U20) -> 0.09090909091 | W12: =IF(V12=0,0,(V12*((LOG(V12))/LOG(2)))) -> -0.3144937835 | Y12: =N12 -> 1212 | Z12: =COUNTIF(L18:L27,Y12) -> 0 | AA12: =Z12/(AB4-Z20) -> 0 | AB12: =IF(AA12=0,0,(AA12*((LOG(AA12))/LOG(2)))) -> 0 | AD12: =N12 -> 1212 | AE12: =COUNTIF(L28:L38,AD12) -> 1 | AF12: =AE12/(AG4-AE20) -> 0.09090909091 | AG12: =IF(AF12=0,0,(AF12*((LOG(AF12))/LOG(2)))) -> -0.3144937835 | AI12: =N12 -> 1212 | AJ12: =COUNTIF(L39:L49,AI12) -> 0 | AK12: =AJ12/(AL4-AJ20) -> 0 | AL12: =IF(AK12=0,0,(AK12*((LOG(AK12))/LOG(2)))) -> 0 | AN12: =N12 -> 1212 | AO12: =COUNTIF(L50:L59,AN12) -> 0 | AP12: =AO12/(AQ4-AO20) -> 0 | AQ12: =IF(AP12=0,0,(AP12*((LOG(AP12))/LOG(2)))) -> 0 | AS12: =N12 -> 1212 | AT12: =COUNTIF(L60:L70,AS12) -> 0 | AU12: =AT12/(AV4-AT20) -> 0 | AV12: =IF(AU12=0,0,(AU12*((LOG(AU12))/LOG(2)))) -> 0
A13: 21 | B13: 891 | C13: 12 | D13: 901 | E13: 13 | F13: 909 | G13: 23 | H13: 918 | K13: 0 | L13: 2112 | N13: 1221 | O13: =COUNTIF($L$7:$L$500,N13) -> 2 | P13: =O13/$Q$4 -> 0.03174603175 | Q13: =IF(P13=0,0,(P13*((LOG(P13))/LOG(2)))) -> -0.1580088865 | T13: =N13 -> 1221 | U13: =COUNTIF(L7:L17,T13) -> 0 | V13: =U13/(W4-U20) -> 0 | W13: =IF(V13=0,0,(V13*((LOG(V13))/LOG(2)))) -> 0 | Y13: =N13 -> 1221 | Z13: =COUNTIF(L18:L27,Y13) -> 1 | AA13: =Z13/(AB4-Z20) -> 0.1 | AB13: =IF(AA13=0,0,(AA13*((LOG(AA13))/LOG(2)))) -> -0.3321928095 | AD13: =N13 -> 1221 | AE13: =COUNTIF(L28:L38,AD13) -> 0 | AF13: =AE13/(AG4-AE20) -> 0 | AG13: =IF(AF13=0,0,(AF13*((LOG(AF13))/LOG(2)))) -> 0 | AI13: =N13 -> 1221 | AJ13: =COUNTIF(L39:L49,AI13) -> 0 | AK13: =AJ13/(AL4-AJ20) -> 0 | AL13: =IF(AK13=0,0,(AK13*((LOG(AK13))/LOG(2)))) -> 0 | AN13: =N13 -> 1221 | AO13: =COUNTIF(L50:L59,AN13) -> 0 | AP13: =AO13/(AQ4-AO20) -> 0 | AQ13: =IF(AP13=0,0,(AP13*((LOG(AP13))/LOG(2)))) -> 0 | AS13: =N13 -> 1221 | AT13: =COUNTIF(L60:L70,AS13) -> 1 | AU13: =AT13/(AV4-AT20) -> 0.1111111111 | AV13: =IF(AU13=0,0,(AU13*((LOG(AU13))/LOG(2)))) -> -0.352213889
A14: 12 | B14: 1046 | C14: 14 | D14: 1057 | E14: 24 | F14: 1065 | G14: 14 | H14: 1089 | K14: 0 | L14: 1121 | N14: 1222 | O14: =COUNTIF($L$7:$L$500,N14) -> 0 | P14: =O14/$Q$4 -> 0 | Q14: =IF(P14=0,0,(P14*((LOG(P14))/LOG(2)))) -> 0 | T14: =N14 -> 1222 | U14: =COUNTIF(L7:L17,T14) -> 0 | V14: =U14/(W4-U20) -> 0 | W14: =IF(V14=0,0,(V14*((LOG(V14))/LOG(2)))) -> 0 | Y14: =N14 -> 1222 | Z14: =COUNTIF(L18:L27,Y14) -> 0 | AA14: =Z14/(AB4-Z20) -> 0 | AB14: =IF(AA14=0,0,(AA14*((LOG(AA14))/LOG(2)))) -> 0 | AD14: =N14 -> 1222 | AE14: =COUNTIF(L28:L38,AD14) -> 0 | AF14: =AE14/(AG4-AE20) -> 0 | AG14: =IF(AF14=0,0,(AF14*((LOG(AF14))/LOG(2)))) -> 0 | AI14: =N14 -> 1222 | AJ14: =COUNTIF(L39:L49,AI14) -> 0 | AK14: =AJ14/(AL4-AJ20) -> 0 | AL14: =IF(AK14=0,0,(AK14*((LOG(AK14))/LOG(2)))) -> 0 | AN14: =N14 -> 1222 | AO14: =COUNTIF(L50:L59,AN14) -> 0 | AP14: =AO14/(AQ4-AO20) -> 0 | AQ14: =IF(AP14=0,0,(AP14*((LOG(AP14))/LOG(2)))) -> 0 | AS14: =N14 -> 1222 | AT14: =COUNTIF(L60:L70,AS14) -> 0 | AU14: =AT14/(AV4-AT20) -> 0 | AV14: =IF(AU14=0,0,(AU14*((LOG(AU14))/LOG(2)))) -> 0
A15: 21 | B15: 1210 | C15: 12 | D15: 1220 | E15: 13 | F15: 1227 | G15: 23 | H15: 1241 | K15: 0 | L15: 2112 | N15: 2111 | O15: =COUNTIF($L$7:$L$500,N15) -> 1 | P15: =O15/$Q$4 -> 0.01587301587 | Q15: =IF(P15=0,0,(P15*((LOG(P15))/LOG(2)))) -> -0.0948774591 | T15: =N15 -> 2111 | U15: =COUNTIF(L7:L17,T15) -> 0 | V15: =U15/(W4-U20) -> 0 | W15: =IF(V15=0,0,(V15*((LOG(V15))/LOG(2)))) -> 0 | Y15: =N15 -> 2111 | Z15: =COUNTIF(L18:L27,Y15) -> 0 | AA15: =Z15/(AB4-Z20) -> 0 | AB15: =IF(AA15=0,0,(AA15*((LOG(AA15))/LOG(2)))) -> 0 | AD15: =N15 -> 2111 | AE15: =COUNTIF(L28:L38,AD15) -> 0 | AF15: =AE15/(AG4-AE20) -> 0 | AG15: =IF(AF15=0,0,(AF15*((LOG(AF15))/LOG(2)))) -> 0 | AI15: =N15 -> 2111 | AJ15: =COUNTIF(L39:L49,AI15) -> 0 | AK15: =AJ15/(AL4-AJ20) -> 0 | AL15: =IF(AK15=0,0,(AK15*((LOG(AK15))/LOG(2)))) -> 0 | AN15: =N15 -> 2111 | AO15: =COUNTIF(L50:L59,AN15) -> 0 | AP15: =AO15/(AQ4-AO20) -> 0 | AQ15: =IF(AP15=0,0,(AP15*((LOG(AP15))/LOG(2)))) -> 0 | AS15: =N15 -> 2111 | AT15: =COUNTIF(L60:L70,AS15) -> 1 | AU15: =AT15/(AV4-AT20) -> 0.1111111111 | AV15: =IF(AU15=0,0,(AU15*((LOG(AU15))/LOG(2)))) -> -0.352213889
A16: 12 | B16: 1343 | C16: 14 | D16: 1348 | E16: 13 | F16: 1353 | G16: 23 | H16: 1364 | K16: 0 | L16: 1112 | N16: 2112 | O16: =COUNTIF($L$7:$L$500,N16) -> 11 | P16: =O16/$Q$4 -> 0.1746031746 | Q16: =IF(P16=0,0,(P16*((LOG(P16))/LOG(2)))) -> -0.4396243072 | T16: =N16 -> 2112 | U16: =COUNTIF(L7:L17,T16) -> 4 | V16: =U16/(W4-U20) -> 0.3636363636 | W16: =IF(V16=0,0,(V16*((LOG(V16))/LOG(2)))) -> -0.5307024068 | Y16: =N16 -> 2112 | Z16: =COUNTIF(L18:L27,Y16) -> 2 | AA16: =Z16/(AB4-Z20) -> 0.2 | AB16: =IF(AA16=0,0,(AA16*((LOG(AA16))/LOG(2)))) -> -0.464385619 | AD16: =N16 -> 2112 | AE16: =COUNTIF(L28:L38,AD16) -> 2 | AF16: =AE16/(AG4-AE20) -> 0.1818181818 | AG16: =IF(AF16=0,0,(AF16*((LOG(AF16))/LOG(2)))) -> -0.4471693852 | AI16: =N16 -> 2112 | AJ16: =COUNTIF(L39:L49,AI16) -> 1 | AK16: =AJ16/(AL4-AJ20) -> 0.09090909091 | AL16: =IF(AK16=0,0,(AK16*((LOG(AK16))/LOG(2)))) -> -0.3144937835 | AN16: =N16 -> 2112 | AO16: =COUNTIF(L50:L59,AN16) -> 0 | AP16: =AO16/(AQ4-AO20) -> 0 | AQ16: =IF(AP16=0,0,(AP16*((LOG(AP16))/LOG(2)))) -> 0 | AS16: =N16 -> 2112 | AT16: =COUNTIF(L60:L70,AS16) -> 2 | AU16: =AT16/(AV4-AT20) -> 0.2222222222 | AV16: =IF(AU16=0,0,(AU16*((LOG(AU16))/LOG(2)))) -> -0.4822055559
A17: 21 | B17: 1466 | C17: 21 | D17: 1486 | E17: 22 | F17: 1498 | G17: 14 | H17: 1507 | K17: 0 | L17: 2221 | N17: 2121 | O17: =COUNTIF($L$7:$L$500,N17) -> 3 | P17: =O17/$Q$4 -> 0.04761904762 | Q17: =IF(P17=0,0,(P17*((LOG(P17))/LOG(2)))) -> -0.2091579725 | T17: =N17 -> 2121 | U17: =COUNTIF(L7:L17,T17) -> 1 | V17: =U17/(W4-U20) -> 0.09090909091 | W17: =IF(V17=0,0,(V17*((LOG(V17))/LOG(2)))) -> -0.3144937835 | Y17: =N17 -> 2121 | Z17: =COUNTIF(L18:L27,Y17) -> 1 | AA17: =Z17/(AB4-Z20) -> 0.1 | AB17: =IF(AA17=0,0,(AA17*((LOG(AA17))/LOG(2)))) -> -0.3321928095 | AD17: =N17 -> 2121 | AE17: =COUNTIF(L28:L38,AD17) -> 0 | AF17: =AE17/(AG4-AE20) -> 0 | AG17: =IF(AF17=0,0,(AF17*((LOG(AF17))/LOG(2)))) -> 0 | AI17: =N17 -> 2121 | AJ17: =COUNTIF(L39:L49,AI17) -> 1 | AK17: =AJ17/(AL4-AJ20) -> 0.09090909091 | AL17: =IF(AK17=0,0,(AK17*((LOG(AK17))/LOG(2)))) -> -0.3144937835 | AN17: =N17 -> 2121 | AO17: =COUNTIF(L50:L59,AN17) -> 0 | AP17: =AO17/(AQ4-AO20) -> 0 | AQ17: =IF(AP17=0,0,(AP17*((LOG(AP17))/LOG(2)))) -> 0 | AS17: =N17 -> 2121 | AT17: =COUNTIF(L60:L70,AS17) -> 0 | AU17: =AT17/(AV4-AT20) -> 0 | AV17: =IF(AU17=0,0,(AU17*((LOG(AU17))/LOG(2)))) -> 0
A18: 12 | B18: 1605 | C18: 14 | D18: 1619 | E18: 13 | F18: 1640 | G18: 14 | H18: 1644 | K18: 0 | L18: 1111 | N18: 2122 | O18: =COUNTIF($L$7:$L$500,N18) -> 2 | P18: =O18/$Q$4 -> 0.03174603175 | Q18: =IF(P18=0,0,(P18*((LOG(P18))/LOG(2)))) -> -0.1580088865 | T18: =N18 -> 2122 | U18: =COUNTIF(L7:L17,T18) -> 1 | V18: =U18/(W4-U20) -> 0.09090909091 | W18: =IF(V18=0,0,(V18*((LOG(V18))/LOG(2)))) -> -0.3144937835 | Y18: =N18 -> 2122 | Z18: =COUNTIF(L18:L27,Y18) -> 0 | AA18: =Z18/(AB4-Z20) -> 0 | AB18: =IF(AA18=0,0,(AA18*((LOG(AA18))/LOG(2)))) -> 0 | AD18: =N18 -> 2122 | AE18: =COUNTIF(L28:L38,AD18) -> 0 | AF18: =AE18/(AG4-AE20) -> 0 | AG18: =IF(AF18=0,0,(AF18*((LOG(AF18))/LOG(2)))) -> 0 | AI18: =N18 -> 2122 | AJ18: =COUNTIF(L39:L49,AI18) -> 1 | AK18: =AJ18/(AL4-AJ20) -> 0.09090909091 | AL18: =IF(AK18=0,0,(AK18*((LOG(AK18))/LOG(2)))) -> -0.3144937835 | AN18: =N18 -> 2122 | AO18: =COUNTIF(L50:L59,AN18) -> 0 | AP18: =AO18/(AQ4-AO20) -> 0 | AQ18: =IF(AP18=0,0,(AP18*((LOG(AP18))/LOG(2)))) -> 0 | AS18: =N18 -> 2122 | AT18: =COUNTIF(L60:L70,AS18) -> 0 | AU18: =AT18/(AV4-AT20) -> 0 | AV18: =IF(AU18=0,0,(AU18*((LOG(AU18))/LOG(2)))) -> 0
A19: 12 | B19: 1803 | C19: 14 | D19: 1807 | E19: 24 | F19: 1826 | G19: 14 | H19: 1842 | K19: 0 | L19: 1121 | N19: 2211 | O19: =COUNTIF($L$7:$L$500,N19) -> 2 | P19: =O19/$Q$4 -> 0.03174603175 | Q19: =IF(P19=0,0,(P19*((LOG(P19))/LOG(2)))) -> -0.1580088865 | T19: =N19 -> 2211 | U19: =COUNTIF(L7:L17,T19) -> 0 | V19: =U19/(W4-U20) -> 0 | W19: =IF(V19=0,0,(V19*((LOG(V19))/LOG(2)))) -> 0 | Y19: =N19 -> 2211 | Z19: =COUNTIF(L18:L27,Y19) -> 0 | AA19: =Z19/(AB4-Z20) -> 0 | AB19: =IF(AA19=0,0,(AA19*((LOG(AA19))/LOG(2)))) -> 0 | AD19: =N19 -> 2211 | AE19: =COUNTIF(L28:L38,AD19) -> 0 | AF19: =AE19/(AG4-AE20) -> 0 | AG19: =IF(AF19=0,0,(AF19*((LOG(AF19))/LOG(2)))) -> 0 | AI19: =N19 -> 2211 | AJ19: =COUNTIF(L39:L49,AI19) -> 1 | AK19: =AJ19/(AL4-AJ20) -> 0.09090909091 | AL19: =IF(AK19=0,0,(AK19*((LOG(AK19))/LOG(2)))) -> -0.3144937835 | AN19: =N19 -> 2211 | AO19: =COUNTIF(L50:L59,AN19) -> 0 | AP19: =AO19/(AQ4-AO20) -> 0 | AQ19: =IF(AP19=0,0,(AP19*((LOG(AP19))/LOG(2)))) -> 0 | AS19: =N19 -> 2211 | AT19: =COUNTIF(L60:L70,AS19) -> 1 | AU19: =AT19/(AV4-AT20) -> 0.1111111111 | AV19: =IF(AU19=0,0,(AU19*((LOG(AU19))/LOG(2)))) -> -0.352213889
A20: 21 | B20: 1998 | C20: 12 | D20: 2015 | E20: 13 | F20: 2023 | G20: 23 | H20: 2036 | K20: 0 | L20: 2112 | N20: 2212 | O20: =COUNTIF($L$7:$L$500,N20) -> 1 | P20: =O20/$Q$4 -> 0.01587301587 | Q20: =IF(P20=0,0,(P20*((LOG(P20))/LOG(2)))) -> -0.0948774591 | T20: =N20 -> 2212 | U20: =COUNTIF(L7:L17,T20) -> 0 | Y20: =N20 -> 2212 | Z20: =COUNTIF(L18:L27,Y20) -> 0 | AD20: =N20 -> 2212 | AE20: =COUNTIF(L28:L38,AD20) -> 0 | AI20: =N20 -> 2212 | AJ20: =COUNTIF(L39:L49,AI20) -> 0 | AN20: =N20 -> 2212 | AO20: =COUNTIF(L50:L59,AN20) -> 0 | AS20: =N20 -> 2212 | AT20: =COUNTIF(L60:L70,AS20) -> 1
A21: 12 | B21: 2154 | C21: 14 | D21: 2186 | E21: 24 | F21: 2220 | G21: 14 | H21: 2231 | K21: 0 | L21: 1121 | N21: 2221 | O21: =COUNTIF($L$7:$L$500,N21) -> 6 | P21: =O21/$Q$4 -> 0.09523809524 | Q21: =IF(P21=0,0,(P21*((LOG(P21))/LOG(2)))) -> -0.3230778498 | T21: =N21 -> 2221 | U21: =COUNTIF(L7:L17,T21) -> 1 | V21: =U21/(W4-U20) -> 0.09090909091 | W21: =IF(V21=0,0,(V21*((LOG(V21))/LOG(2)))) -> -0.3144937835 | Y21: =N21 -> 2221 | Z21: =COUNTIF(L18:L27,Y21) -> 0 | AA21: =Z21/(AB4-Z20) -> 0 | AB21: =IF(AA21=0,0,(AA21*((LOG(AA21))/LOG(2)))) -> 0 | AD21: =N21 -> 2221 | AE21: =COUNTIF(L28:L38,AD21) -> 0 | AF21: =AE21/(AG4-AE20) -> 0 | AG21: =IF(AF21=0,0,(AF21*((LOG(AF21))/LOG(2)))) -> 0 | AI21: =N21 -> 2221 | AJ21: =COUNTIF(L39:L49,AI21) -> 1 | AK21: =AJ21/(AL4-AJ20) -> 0.09090909091 | AL21: =IF(AK21=0,0,(AK21*((LOG(AK21))/LOG(2)))) -> -0.3144937835 | AN21: =N21 -> 2221 | AO21: =COUNTIF(L50:L59,AN21) -> 3 | AP21: =AO21/(AQ4-AO20) -> 0.3 | AQ21: =IF(AP21=0,0,(AP21*((LOG(AP21))/LOG(2)))) -> -0.5210896782 | AS21: =N21 -> 2221 | AT21: =COUNTIF(L60:L70,AS21) -> 1 | AU21: =AT21/(AV4-AT20) -> 0.1111111111 | AV21: =IF(AU21=0,0,(AU21*((LOG(AU21))/LOG(2)))) -> -0.352213889
A22: 21 | B22: 2430 | C22: 12 | D22: 2499 | E22: 24 | F22: 2512 | G22: 14 | H22: 2537 | K22: 0 | L22: 2121 | N22: 2222 | O22: =COUNTIF($L$7:$L$500,N22) -> 12 | P22: =O22/$Q$4 -> 0.1904761905 | Q22: =IF(P22=0,0,(P22*((LOG(P22))/LOG(2)))) -> -0.4556795091 | T22: =N22 -> 2222 | U22: =COUNTIF(L7:L17,T22) -> 0 | V22: =U22/(W4-U20) -> 0 | W22: =IF(V22=0,0,(V22*((LOG(V22))/LOG(2)))) -> 0 | Y22: =N22 -> 2222 | Z22: =COUNTIF(L18:L27,Y22) -> 0 | AA22: =Z22/(AB4-Z20) -> 0 | AB22: =IF(AA22=0,0,(AA22*((LOG(AA22))/LOG(2)))) -> 0 | AD22: =N22 -> 2222 | AE22: =COUNTIF(L28:L38,AD22) -> 1 | AF22: =AE22/(AG4-AE20) -> 0.09090909091 | AG22: =IF(AF22=0,0,(AF22*((LOG(AF22))/LOG(2)))) -> -0.3144937835 | AI22: =N22 -> 2222 | AJ22: =COUNTIF(L39:L49,AI22) -> 2 | AK22: =AJ22/(AL4-AJ20) -> 0.1818181818 | AL22: =IF(AK22=0,0,(AK22*((LOG(AK22))/LOG(2)))) -> -0.4471693852 | AN22: =N22 -> 2222 | AO22: =COUNTIF(L50:L59,AN22) -> 7 | AP22: =AO22/(AQ4-AO20) -> 0.7 | AQ22: =IF(AP22=0,0,(AP22*((LOG(AP22))/LOG(2)))) -> -0.360201221 | AS22: =N22 -> 2222 | AT22: =COUNTIF(L60:L70,AS22) -> 2 | AU22: =AT22/(AV4-AT20) -> 0.2222222222 | AV22: =IF(AU22=0,0,(AU22*((LOG(AU22))/LOG(2)))) -> -0.4822055559
A23: 12 | B23: 2689 | C23: 14 | D23: 2732 | E23: 13 | F23: 2747 | G23: 14 | H23: 2751 | K23: 0 | L23: 1111 | P23: =SUM(P7:P22) -> 1 | Q23: =-SUM(Q7:Q22) -> 3.398591419 | V23: =SUM(V7:V22) -> 1 | W23: =-SUM(W7:W22) -> 2.732158891 | AA23: =SUM(AA7:AA22) -> 1 | AB23: =-SUM(AB7:AB22) -> 2.446439345 | AF23: =SUM(AF7:AF22) -> 1 | AG23: =-SUM(AG7:AG22) -> 2.413088436 | AK23: =SUM(AK7:AK22) -> 1 | AL23: =-SUM(AL7:AL22) -> 3.095795255 | AP23: =SUM(AP7:AP22) -> 1 | AQ23: =-SUM(AQ7:AQ22) -> 0.8812908992 | AU23: =SUM(AU7:AU22) -> 1 | AV23: =-SUM(AV7:AV22) -> 2.725480557
A24: 12 | B24: 2891 | C24: 14 | D24: 2895 | E24: 13 | F24: 2899 | G24: 23 | H24: 2910 | K24: 0 | L24: 1112 | P24: U= | Q24: =Q23/(LOG(Q4)/LOG(2)) -> 0.5685849521 | V24: U1= | W24: =W23/(LOG(W4)/LOG(2)) -> 0.7897710354 | AA24: U2= | AB24: =AB23/(LOG(AB4)/LOG(2)) -> 0.7364516253 | AF24: U3= | AG24: =AG23/(LOG(AG4)/LOG(2)) -> 0.6975389898 | AK24: U4= | AL24: =AL23/(LOG(AL4)/LOG(2)) -> 0.8948855177 | AP24: U5= | AQ24: =AQ23/(LOG(AQ4)/LOG(2)) -> 0.2652949956 | AU24: U6= | AV24: =AV23/(LOG(AV4)/LOG(2)) -> 0.8204514003
A25: 21 | B25: 3038 | C25: 12 | D25: 3054 | E25: 13 | F25: 3098 | G25: 23 | H25: 3126 | K25: 0 | L25: 2112
A26: 12 | B26: 3305 | C26: 14 | D26: 3309 | E26: 13 | F26: 3346 | G26: 14 | H26: 3352 | K26: 0 | L26: 1111
A27: 12 | B27: 3512 | C27: 23 | D27: 3543 | E27: 24 | F27: 3553 | G27: 14 | H27: 3569 | K27: 0 | L27: 1221 | N27: Total Target Seq
A28: 12 | B28: 3737 | C28: 23 | D28: 3759 | E28: 13 | F28: 3777 | G28: 14 | H28: 3781 | K28: 0 | L28: 1211 | N28: =COUNTIF(L7:L70,G3) -> 1 | P28: 11 | Q28: 10 | R28: 11 | S28: 11 | T28: 10 | U28: 11
A29: 21 | B29: 3912 | C29: 21 | D29: 3942 | E29: 22 | F29: 3952 | G29: 23 | H29: 3973 | K29: 0 | L29: 2222 | P29: % of reinforcement given in 6 equal intervals based on number of trials
A30: 21 | B30: 4195 | C30: 12 | D30: 4230 | E30: 13 | F30: 4234 | G30: 23 | H30: 4246 | K30: 0 | L30: 2112 | P30: %_1 | Q30: %_2 | R30: %_3 | S30: %_4 | T30: %_5 | U30: %_6
A31: 12 | B31: 4399 | C31: 14 | D31: 4416 | E31: 13 | F31: 4434 | G31: 23 | H31: 4446 | K31: 0 | L31: 1112 | O31: target sequence | P31: =$G$3 -> 2212 | Q31: =$G$3 -> 2212 | R31: =$G$3 -> 2212 | S31: =$G$3 -> 2212 | T31: =$G$3 -> 2212 | U31: =$G$3 -> 2212
A32: 12 | B32: 4692 | C32: 14 | D32: 4701 | E32: 13 | F32: 4737 | G32: 14 | H32: 4751 | K32: 0 | L32: 1111 | O32: total reinforcement | P32: =U20 -> 0 | Q32: =Z20 -> 0 | R32: =AE20 -> 0 | S32: =AJ20 -> 0 | T32: =AO20 -> 0 | U32: =AT20 -> 1
A33: 12 | B33: 4896 | C33: 14 | D33: 4904 | E33: 13 | F33: 4925 | G33: 23 | H33: 4934 | K33: 0 | L33: 1112 | O33: % target
A34: 12 | B34: 5052 | C34: 14 | D34: 5057 | E34: 13 | F34: 5066 | G34: 14 | H34: 5097 | K34: 0 | L34: 1111 | O34: CCRF
A35: 12 | B35: 5370 | C35: 23 | D35: 5383 | E35: 13 | F35: 5406 | G35: 23 | H35: 5427 | K35: 0 | L35: 1212 | O35: % CCRf
A36: 21 | B36: 5573 | C36: 12 | D36: 5584 | E36: 13 | F36: 5592 | G36: 23 | H36: 5611 | K36: 0 | L36: 2112 | O36: average response rate | P36: =H17/P28 -> 137 | Q36: =(H27-H17)/Q28 -> 206.2 | R36: =(H38-H27)/R28 -> 224.4545455 | S36: =(H49-H38)/S28 -> 245.5454545 | T36: =(H59-H49)/T28 -> 1084.1 | U36: =(H70-H59)/U28 -> -1780
A37: 12 | B37: 5795 | C37: 14 | D37: 5835 | E37: 13 | F37: 5842 | G37: 14 | H37: 5872 | K37: 0 | L37: 1111
A38: 12 | B38: 6010 | C38: 14 | D38: 6014 | E38: 13 | F38: 6024 | G38: 23 | H38: 6038 | K38: 0 | L38: 1112
A39: 12 | B39: 6349 | C39: 14 | D39: 6358 | E39: 24 | F39: 6378 | G39: 14 | H39: 6393 | K39: 0 | L39: 1121
A40: 21 | B40: 6599 | C40: 12 | D40: 6627 | E40: 24 | F40: 6636 | G40: 14 | H40: 6649 | K40: 0 | L40: 2121
A41: 12 | B41: 6791 | C41: 14 | D41: 6798 | E41: 24 | F41: 6834 | G41: 14 | H41: 6848 | K41: 0 | L41: 1121
A42: 21 | B42: 7009 | C42: 21 | D42: 7036 | E42: 11 | F42: 7059 | G42: 12 | H42: 7064 | K42: 0 | L42: 2211
A43: 21 | B43: 7208 | C43: 12 | D43: 7219 | E43: 13 | F43: 7224 | G43: 23 | H43: 7246 | K43: 0 | L43: 2112
A44: 12 | B44: 7421 | C44: 23 | D44: 7439 | E44: 13 | F44: 7454 | G44: 14 | H44: 7458 | K44: 0 | L44: 1211
A45: 21 | B45: 7594 | C45: 21 | D45: 7604 | E45: 22 | F45: 7647 | G45: 23 | H45: 7665 | K45: 0 | L45: 2222
A46: 21 | B46: 7866 | C46: 12 | D46: 7881 | E46: 24 | F46: 7920 | G46: 23 | H46: 7937 | K46: 0 | L46: 2122
A47: 12 | B47: 8066 | C47: 14 | D47: 8079 | E47: 13 | F47: 8084 | G47: 14 | H47: 8097 | K47: 0 | L47: 1111
A48: 21 | B48: 8366 | C48: 21 | D48: 8404 | E48: 22 | F48: 8428 | G48: 14 | H48: 8443 | K48: 0 | L48: 2221
A49: 21 | B49: 8688 | C49: 21 | D49: 8721 | E49: 22 | F49: 8731 | G49: 23 | H49: 8739 | K49: 0 | L49: 2222
A50: 21 | B50: 8885 | C50: 21 | D50: 8940 | E50: 22 | F50: 8960 | G50: 23 | H50: 8982 | K50: 0 | L50: 2222
A51: 21 | B51: 9239 | C51: 21 | D51: 9249 | E51: 22 | F51: 9277 | G51: 23 | H51: 9371 | K51: 0 | L51: 2222
A52: 21 | B52: 12078 | C52: 21 | D52: 12101 | E52: 22 | F52: 12123 | G52: 14 | H52: 12142 | K52: 0 | L52: 2221
A53: 21 | B53: 12268 | C53: 21 | D53: 12294 | E53: 22 | F53: 12314 | G53: 14 | H53: 12334 | K53: 0 | L53: 2221
A54: 21 | B54: 12483 | C54: 21 | D54: 12513 | E54: 22 | F54: 12530 | G54: 14 | H54: 12577 | K54: 0 | L54: 2221
A55: 21 | B55: 13003 | C55: 21 | D55: 13023 | E55: 22 | F55: 13040 | G55: 23 | H55: 13055 | K55: 0 | L55: 2222
A56: 21 | B56: 15160 | C56: 21 | D56: 15170 | E56: 22 | F56: 15197 | G56: 23 | H56: 15224 | K56: 0 | L56: 2222
A57: 21 | B57: 15408 | C57: 21 | D57: 15447 | E57: 22 | F57: 15469 | G57: 23 | H57: 15504 | K57: 0 | L57: 2222
A58: 21 | B58: 18609 | C58: 21 | D58: 18622 | E58: 22 | F58: 18658 | G58: 23 | H58: 18679 | K58: 0 | L58: 2222
A59: 21 | B59: 19510 | C59: 21 | D59: 19523 | E59: 22 | F59: 19540 | G59: 23 | H59: 19580 | K59: 0 | L59: 2222
A60: 21 | B60: 19718 | C60: 21 | D60: 19745 | E60: 22 | F60: 19922 | G60: 23 | H60: 19934 | K60: 0 | L60: 2222
A61: 12 | B61: 20312 | C61: 23 | D61: 20321 | E61: 24 | F61: 20356 | G61: 14 | H61: 20390 | K61: 0 | L61: 1221
A62: 21 | B62: 20720 | C62: 21 | D62: 20735 | E62: 22 | F62: 20787 | G62: 14 | H62: 20797 | K62: 0 | L62: 2221
A63: 21 | B63: 21083 | C63: 21 | D63: 21492 | E63: 22 | F63: 21555 | G63: 23 | H63: 22145 | K63: 0 | L63: 2222
A64: 21 | B64: 22484 | C64: 21 | D64: 22500 | E64: 11 | F64: 22536 | G64: 21 | H64: 22552 | K64: 0 | L64: 2212
A65: 21 | B65: 22911 | C65: 12 | D65: 22926 | E65: 13 | F65: 22931 | G65: 14 | H65: 22936 | K65: 0 | L65: 2111
A66: 21 | B66: 23069 | C66: 12 | D66: 23082 | E66: 13 | F66: 23086 | G66: 23 | H66: 23096 | K66: 0 | L66: 2112
A67: 21 | B67: 23218 | C67: 12 | D67: 23231 | E67: 13 | F67: 23239 | G67: 23 | H67: 23250 | K67: 0 | L67: 2112
A68: 12 | B68: 23387 | C68: 14 | D68: 23407 | E68: 13 | F68: 23449 | G68: 23 | H68: 23457 | K68: 0 | L68: 1112
A69: 21 | B69: 23650 | C69: 21 | D69: 23663 | E69: 11 | F69: 23708 | G69: 12 | H69: 23745 | K69: 0 | L69: 2211
A70: 21 | B70: 23980 | L70: 2

Sheet !MA22840.096
A1: Report for:!MA22840.096
A2: Date: | B2: <date>
A3: Hen: | B3: <hen> | F3: Correct Sequence | G3: =Start!J2 -> 2212 | P3: Total Sequences in Data | Q3: =4994-COUNTBLANK(L7:L5000) -> 88 | V3: Total Sequences in Block Data | W3: =COUNTA(L7:L21) -> 15 | AA3: Total Sequences in Block Data | AB3: =COUNTA(L22:L35) -> 14 | AF3: Total Sequences in Block Data | AG3: =COUNTA(L36:L50) -> 15 | AK3: Total Sequences in Block Data | AL3: =COUNTA(L51:L65) -> 15 | AP3: Total Sequences in Block Data | AQ3: =COUNTA(L66:L79) -> 14 | AU3: Total Sequences in Block Data | AV3: =COUNTA(L80:L94) -> 15
P4: Total Sequences in Summary | Q4: =SUM(O7:O22) -> 88 | V4: Total Sequences in Block Summary | W4: =SUM(U7:U22) -> 15 | AA4: Total Sequences in Block Summary | AB4: =SUM(Z7:Z22) -> 14 | AF4: Total Sequences in Block Summary | AG4: =SUM(AE7:AE22) -> 15 | AK4: Total Sequences in Block Summary | AL4: =SUM(AJ7:AJ22) -> 15 | AP4: Total Sequences in Block Summary | AQ4: =SUM(AO7:AO22) -> 14 | AU4: Total Sequences in Block Summary | AV4: =SUM(AT7:AT22) -> 15
T5: Block 1 | Y5: Block 2 | AD5: Block 3 | AI5: Block 4 | AN5: Block 5 | AS5: Block 6
A6: Sequence Component 1 | B6: Time 1 | C6: Sequence Component 2 | D6: Time 2 | E6: Sequence Component 3 | F6: Time 3 | G6: Sequence Component 4 | H6: Time 4 | I6: Sequence Component 5 | J6: Time 5 | K6: Correct? 0=No 1=Yes | L6: Sequence | N6: Frequency | P6: Relative Frequency | Q6: Variability | T6: Frequency | V6: Relative Frequency | W6: Variability | Y6: Frequency | AA6: Relative Frequency | AB6: Variability | AD6: Frequency | AF6: Relative Frequency | AG6: Variability | AI6: Frequency | AK6: Relative Frequency | AL6: Variability | AN6: Frequency | AP6: Relative Frequency | AQ6: Variability | AS6: Frequency | AU6: Relative Frequency | AV6: Variability
A7: 21 | B7: 10 | C7: 12 | D7: 27 | E7: 13 | F7: 36 | G7: 14 | H7: 57 | K7: 0 | L7: 2111 | N7: 1111 | O7: =COUNTIF($L$7:$L$500,N7) -> 2 | P7: =O7/$Q$4 -> 0.02272727273 | Q7: =IF(P7=0,0,(P7*((LOG(P7))/LOG(2)))) -> -0.1240779913 | T7: =N7 -> 1111 | U7: =COUNTIF(L7:L21,T7) -> 0 | V7: =U7/(W4-U20) -> 0 | W7: =IF(V7=0,0,(V7*((LOG(V7))/LOG(2)))) -> 0 | Y7: =N7 -> 1111 | Z7: =COUNTIF(L22:L35,Y7) -> 0 | AA7: =Z7/(AB4-Z20) -> 0 | AB7: =IF(AA7=0,0,(AA7*((LOG(AA7))/LOG(2)))) -> 0 | AD7: =N7 -> 1111 | AE7: =COUNTIF(L36:L50,AD7) -> 0 | AF7: =AE7/(AG4-AE20) -> 0 | AG7: =IF(AF7=0,0,(AF7*((LOG(AF7))/LOG(2)))) -> 0 | AI7: =N7 -> 1111 | AJ7: =COUNTIF(L51:L65,AI7) -> 0 | AK7: =AJ7/(AL4-AJ20) -> 0 | AL7: =IF(AK7=0,0,(AK7*((LOG(AK7))/LOG(2)))) -> 0 | AN7: =N7 -> 1111 | AO7: =COUNTIF(L66:L79,AN7) -> 1 | AP7: =AO7/(AQ4-AO20) -> 0.08333333333 | AQ7: =IF(AP7=0,0,(AP7*((LOG(AP7))/LOG(2)))) -> -0.2987468751 | AS7: =N7 -> 1111 | AT7: =COUNTIF(L80:L94,AS7) -> 1 | AU7: =AT7/(AV4-AT20) -> 0.07692307692 | AV7: =IF(AU7=0,0,(AU7*((LOG(AU7))/LOG(2)))) -> -0.2846492091
A8: 12 | B8: 158 | C8: 14 | D8: 163 | E8: 24 | F8: 179 | G8: 14 | H8: 196 | K8: 0 | L8: 1121 | N8: 1112 | O8: =COUNTIF($L$7:$L$500,N8) -> 6 | P8: =O8/$Q$4 -> 0.06818181818 | Q8: =IF(P8=0,0,(P8*((LOG(P8))/LOG(2)))) -> -0.2641683489 | T8: =N8 -> 1112 | U8: =COUNTIF(L7:L21,T8) -> 0 | V8: =U8/(W4-U20) -> 0 | W8: =IF(V8=0,0,(V8*((LOG(V8))/LOG(2)))) -> 0 | Y8: =N8 -> 1112 | Z8: =COUNTIF(L22:L35,Y8) -> 0 | AA8: =Z8/(AB4-Z20) -> 0 | AB8: =IF(AA8=0,0,(AA8*((LOG(AA8))/LOG(2)))) -> 0 | AD8: =N8 -> 1112 | AE8: =COUNTIF(L36:L50,AD8) -> 3 | AF8: =AE8/(AG4-AE20) -> 0.2142857143 | AG8: =IF(AF8=0,0,(AF8*((LOG(AF8))/LOG(2)))) -> -0.4762269474 | AI8: =N8 -> 1112 | AJ8: =COUNTIF(L51:L65,AI8) -> 1 | AK8: =AJ8/(AL4-AJ20) -> 0.07142857143 | AL8: =IF(AK8=0,0,(AK8*((LOG(AK8))/LOG(2)))) -> -0.271953923 | AN8: =N8 -> 1112 | AO8: =COUNTIF(L66:L79,AN8) -> 1 | AP8: =AO8/(AQ4-AO20) -> 0.08333333333 | AQ8: =IF(AP8=0,0,(AP8*((LOG(AP8))/LOG(2)))) -> -0.2987468751 | AS8: =N8 -> 1112 | AT8: =COUNTIF(L80:L94,AS8) -> 1 | AU8: =AT8/(AV4-AT20) -> 0.07692307692 | AV8: =IF(AU8=0,0,(AU8*((LOG(AU8))/LOG(2)))) -> -0.2846492091
A9: 21 | B9: 298 | C9: 21 | D9: 321 | E9: 22 | F9: 386 | G9: 23 | H9: 394 | K9: 0 | L9: 2222 | N9: 1121 | O9: =COUNTIF($L$7:$L$500,N9) -> 3 | P9: =O9/$Q$4 -> 0.03409090909 | Q9: =IF(P9=0,0,(P9*((LOG(P9))/LOG(2)))) -> -0.1661750836 | T9: =N9 -> 1121 | U9: =COUNTIF(L7:L21,T9) -> 2 | V9: =U9/(W4-U20) -> 0.1538461538 | W9: =IF(V9=0,0,(V9*((LOG(V9))/LOG(2)))) -> -0.4154522643 | Y9: =N9 -> 1121 | Z9: =COUNTIF(L22:L35,Y9) -> 1 | AA9: =Z9/(AB4-Z20) -> 0.07142857143 | AB9: =IF(AA9=0,0,(AA9*((LOG(AA9))/LOG(2)))) -> -0.271953923 | AD9: =N9 -> 1121 | AE9: =COUNTIF(L36:L50,AD9) -> 0 | AF9: =AE9/(AG4-AE20) -> 0 | AG9: =IF(AF9=0,0,(AF9*((LOG(AF9))/LOG(2)))) -> 0 | AI9: =N9 -> 1121 | AJ9: =COUNTIF(L51:L65,AI9) -> 0 | AK9: =AJ9/(AL4-AJ20) -> 0 | AL9: =IF(AK9=0,0,(AK9*((LOG(AK9))/LOG(2)))) -> 0 | AN9: =N9 -> 1121 | AO9: =COUNTIF(L66:L79,AN9) -> 0 | AP9: =AO9/(AQ4-AO20) -> 0 | AQ9: =IF(AP9=0,0,(AP9*((LOG(AP9))/LOG(2)))) -> 0 | AS9: =N9 -> 1121 | AT9: =COUNTIF(L80:L94,AS9) -> 0 | AU9: =AT9/(AV4-AT20) -> 0 | AV9: =IF(AU9=0,0,(AU9*((LOG(AU9))/LOG(2)))) -> 0
A10: 21 | B10: 535 | C10: 21 | D10: 602 | E10: 11 | F10: 618 | G10: 21 | H10: 638 | K10: 0 | L10: 2212 | N10: 1122 | O10: =COUNTIF($L$7:$L$500,N10) -> 3 | P10: =O10/$Q$4 -> 0.03409090909 | Q10: =IF(P10=0,0,(P10*((LOG(P10))/LOG(2)))) -> -0.1661750836 | T10: =N10 -> 1122 | U10: =COUNTIF(L7:L21,T10) -> 0 | V10: =U10/(W4-U20) -> 0 | W10: =IF(V10=0,0,(V10*((LOG(V10))/LOG(2)))) -> 0 | Y10: =N10 -> 1122 | Z10: =COUNTIF(L22:L35,Y10) -> 2 | AA10: =Z10/(AB4-Z20) -> 0.1428571429 | AB10: =IF(AA10=0,0,(AA10*((LOG(AA10))/LOG(2)))) -> -0.4010507032 | AD10: =N10 -> 1122 | AE10: =COUNTIF(L36:L50,AD10) -> 0 | AF10: =AE10/(AG4-AE20) -> 0 | AG10: =IF(AF10=0,0,(AF10*((LOG(AF10))/LOG(2)))) -> 0 | AI10: =N10 -> 1122 | AJ10: =COUNTIF(L51:L65,AI10) -> 0 | AK10: =AJ10/(AL4-AJ20) -> 0 | AL10: =IF(AK10=0,0,(AK10*((LOG(AK10))/LOG(2)))) -> 0 | AN10: =N10 -> 1122 | AO10: =COUNTIF(L66:L79,AN10) -> 0 | AP10: =AO10/(AQ4-AO20) -> 0 | AQ10: =IF(AP10=0,0,(AP10*((LOG(AP10))/LOG(2)))) -> 0 | AS10: =N10 -> 1122 | AT10: =COUNTIF(L80:L94,AS10) -> 1 | AU10: =AT10/(AV4-AT20) -> 0.07692307692 | AV10: =IF(AU10=0,0,(AU10*((LOG(AU10))/LOG(2)))) -> -0.2846492091
A11: 21 | B11: 759 | C11: 21 | D11: 803 | E11: 22 | F11: 827 | G11: 23 | H11: 857 | K11: 0 | L11: 2222 | N11: 1211 | O11: =COUNTIF($L$7:$L$500,N11) -> 0 | P11: =O11/$Q$4 -> 0 | Q11: =IF(P11=0,0,(P11*((LOG(P11))/LOG(2)))) -> 0 | T11: =N11 -> 1211 | U11: =COUNTIF(L7:L21,T11) -> 0 | V11: =U11/(W4-U20) -> 0 | W11: =IF(V11=0,0,(V11*((LOG(V11))/LOG(2)))) -> 0 | Y11: =N11 -> 1211 | Z11: =COUNTIF(L22:L35,Y11) -> 0 | AA11: =Z11/(AB4-Z20) -> 0 | AB11: =IF(AA11=0,0,(AA11*((LOG(AA11))/LOG(2)))) -> 0 | AD11: =N11 -> 1211 | AE11: =COUNTIF(L36:L50,AD11) -> 0 | AF11: =AE11/(AG4-AE20) -> 0 | AG11: =IF(AF11=0,0,(AF11*((LOG(AF11))/LOG(2)))) -> 0 | AI11: =N11 -> 1211 | AJ11: =COUNTIF(L51:L65,AI11) -> 0 | AK11: =AJ11/(AL4-AJ20) -> 0 | AL11: =IF(AK11=0,0,(AK11*((LOG(AK11))/LOG(2)))) -> 0 | AN11: =N11 -> 1211 | AO11: =COUNTIF(L66:L79,AN11) -> 0 | AP11: =AO11/(AQ4-AO20) -> 0 | AQ11: =IF(AP11=0,0,(AP11*((LOG(AP11))/LOG(2)))) -> 0 | AS11: =N11 -> 1211 | AT11: =COUNTIF(L80:L94,AS11) -> 0 | AU11: =AT11/(AV4-AT20) -> 0 | AV11: =IF(AU11=0,0,(AU11*((LOG(AU11))/LOG(2)))) -> 0
A12: 12 | B12: 1074 | C12: 14 | D12: 1114 | E12: 24 | F12: 1127 | G12: 14 | H12: 1164 | K12: 0 | L12: 1121 | N12: 1212 | O12: =COUNTIF($L$7:$L$500,N12) -> 8 | P12: =O12/$Q$4 -> 0.09090909091 | Q12: =IF(P12=0,0,(P12*((LOG(P12))/LOG(2)))) -> -0.3144937835 | T12: =N12 -> 1212 | U12: =COUNTIF(L7:L21,T12) -> 0 | V12: =U12/(W4-U20) -> 0 | W12: =IF(V12=0,0,(V12*((LOG(V12))/LOG(2)))) -> 0 | Y12: =N12 -> 1212 | Z12: =COUNTIF(L22:L35,Y12) -> 4 | AA12: =Z12/(AB4-Z20) -> 0.2857142857 | AB12: =IF(AA12=0,0,(AA12*((LOG(AA12))/LOG(2)))) -> -0.5163871206 | AD12: =N12 -> 1212 | AE12: =COUNTIF(L36:L50,AD12) -> 1 | AF12: =AE12/(AG4-AE20) -> 0.07142857143 | AG12: =IF(AF12=0,0,(AF12*((LOG(AF12))/LOG(2)))) -> -0.271953923 | AI12: =N12 -> 1212 | AJ12: =COUNTIF(L51:L65,AI12) -> 2 | AK12: =AJ12/(AL4-AJ20) -> 0.1428571429 | AL12: =IF(AK12=0,0,(AK12*((LOG(AK12))/LOG(2)))) -> -0.4010507032 | AN12: =N12 -> 1212 | AO12: =COUNTIF(L66:L79,AN12) -> 0 | AP12: =AO12/(AQ4-AO20) -> 0 | AQ12: =IF(AP12=0,0,(AP12*((LOG(AP12))/LOG(2)))) -> 0 | AS12: =N12 -> 1212 | AT12: =COUNTIF(L80:L94,AS12) -> 1 | AU12: =AT12/(AV4-AT20) -> 0.07692307692 | AV12: =IF(AU12=0,0,(AU12*((LOG(AU12))/LOG(2)))) -> -0.2846492091
A13: 21 | B13: 1334 | C13: 21 | D13: 1354 | E13: 22 | F13: 1389 | G13: 23 | H13: 1409 | K13: 0 | L13: 2222 | N13: 1221 | O13: =COUNTIF($L$7:$L$500,N13) -> 10 | P13: =O13/$Q$4 -> 0.1136363636 | Q13: =IF(P13=0,0,(P13*((LOG(P13))/LOG(2)))) -> -0.3565344913 | T13: =N13 -> 1221 | U13: =COUNTIF(L7:L21,T13) -> 0 | V13: =U13/(W4-U20) -> 0 | W13: =IF(V13=0,0,(V13*((LOG(V13))/LOG(2)))) -> 0 | Y13: =N13 -> 1221 | Z13: =COUNTIF(L22:L35,Y13) -> 4 | AA13: =Z13/(AB4-Z20) -> 0.2857142857 | AB13: =IF(AA13=0,0,(AA13*((LOG(AA13))/LOG(2)))) -> -0.5163871206 | AD13: =N13 -> 1221 | AE13: =COUNTIF(L36:L50,AD13) -> 1 | AF13: =AE13/(AG4-AE20) -> 0.07142857143 | AG13: =IF(AF13=0,0,(AF13*((LOG(AF13))/LOG(2)))) -> -0.271953923 | AI13: =N13 -> 1221 | AJ13: =COUNTIF(L51:L65,AI13) -> 3 | AK13: =AJ13/(AL4-AJ20) -> 0.2142857143 | AL13: =IF(AK13=0,0,(AK13*((LOG(AK13))/LOG(2)))) -> -0.4762269474 | AN13: =N13 -> 1221 | AO13: =COUNTIF(L66:L79,AN13) -> 1 | AP13: =AO13/(AQ4-AO20) -> 0.08333333333 | AQ13: =IF(AP13=0,0,(AP13*((LOG(AP13))/LOG(2)))) -> -0.2987468751 | AS13: =N13 -> 1221 | AT13: =COUNTIF(L80:L94,AS13) -> 1 | AU13: =AT13/(AV4-AT20) -> 0.07692307692 | AV13: =IF(AU13=0,0,(AU13*((LOG(AU13))/LOG(2)))) -> -0.2846492091
A14: 21 | B14: 1580 | C14: 21 | D14: 1618 | E14: 22 | F14: 1643 | G14: 23 | H14: 1662 | K14: 0 | L14: 2222 | N14: 1222 | O14: =COUNTIF($L$7:$L$500,N14) -> 8 | P14: =O14/$Q$4 -> 0.09090909091 | Q14: =IF(P14=0,0,(P14*((LOG(P14))/LOG(2)))) -> -0.3144937835 | T14: =N14 -> 1222 | U14: =COUNTIF(L7:L21,T14) -> 1 | V14: =U14/(W4-U20) -> 0.07692307692 | W14: =IF(V14=0,0,(V14*((LOG(V14))/LOG(2)))) -> -0.2846492091 | Y14: =N14 -> 1222 | Z14: =COUNTIF(L22:L35,Y14) -> 1 | AA14: =Z14/(AB4-Z20) -> 0.07142857143 | AB14: =IF(AA14=0,0,(AA14*((LOG(AA14))/LOG(2)))) -> -0.271953923 | AD14: =N14 -> 1222 | AE14: =COUNTIF(L36:L50,AD14) -> 3 | AF14: =AE14/(AG4-AE20) -> 0.2142857143 | AG14: =IF(AF14=0,0,(AF14*((LOG(AF14))/LOG(2)))) -> -0.4762269474 | AI14: =N14 -> 1222 | AJ14: =COUNTIF(L51:L65,AI14) -> 2 | AK14: =AJ14/(AL4-AJ20) -> 0.1428571429 | AL14: =IF(AK14=0,0,(AK14*((LOG(AK14))/LOG(2)))) -> -0.4010507032 | AN14: =N14 -> 1222 | AO14: =COUNTIF(L66:L79,AN14) -> 1 | AP14: =AO14/(AQ4-AO20) -> 0.08333333333 | AQ14: =IF(AP14=0,0,(AP14*((LOG(AP14))/LOG(2)))) -> -0.2987468751 | AS14: =N14 -> 1222 | AT14: =COUNTIF(L80:L94,AS14) -> 0 | AU14: =AT14/(AV4-AT20) -> 0 | AV14: =IF(AU14=0,0,(AU14*((LOG(AU14))/LOG(2)))) -> 0
A15: 21 | B15: 2058 | C15: 12 | D15: 2070 | E15: 24 | F15: 2081 | G15: 23 | H15: 2125 | K15: 0 | L15: 2122 | N15: 2111 | O15: =COUNTIF($L$7:$L$500,N15) -> 2 | P15: =O15/$Q$4 -> 0.02272727273 | Q15: =IF(P15=0,0,(P15*((LOG(P15))/LOG(2)))) -> -0.1240779913 | T15: =N15 -> 2111 | U15: =COUNTIF(L7:L21,T15) -> 1 | V15: =U15/(W4-U20) -> 0.07692307692 | W15: =IF(V15=0,0,(V15*((LOG(V15))/LOG(2)))) -> -0.2846492091 | Y15: =N15 -> 2111 | Z15: =COUNTIF(L22:L35,Y15) -> 0 | AA15: =Z15/(AB4-Z20) -> 0 | AB15: =IF(AA15=0,0,(AA15*((LOG(AA15))/LOG(2)))) -> 0 | AD15: =N15 -> 2111 | AE15: =COUNTIF(L36:L50,AD15) -> 0 | AF15: =AE15/(AG4-AE20) -> 0 | AG15: =IF(AF15=0,0,(AF15*((LOG(AF15))/LOG(2)))) -> 0 | AI15: =N15 -> 2111 | AJ15: =COUNTIF(L51:L65,AI15) -> 0 | AK15: =AJ15/(AL4-AJ20) -> 0 | AL15: =IF(AK15=0,0,(AK15*((LOG(AK15))/LOG(2)))) -> 0 | AN15: =N15 -> 2111 | AO15: =COUNTIF(L66:L79,AN15) -> 1 | AP15: =AO15/(AQ4-AO20) -> 0.08333333333 | AQ15: =IF(AP15=0,0,(AP15*((LOG(AP15))/LOG(2)))) -> -0.2987468751 | AS15: =N15 -> 2111 | AT15: =COUNTIF(L80:L94,AS15) -> 0 | AU15: =AT15/(AV4-AT20) -> 0 | AV15: =IF(AU15=0,0,(AU15*((LOG(AU15))/LOG(2)))) -> 0
A16: 21 | B16: 2291 | C16: 21 | D16: 2306 | E16: 22 | F16: 2327 | G16: 14 | H16: 2341 | K16: 0 | L16: 2221 | N16: 2112 | O16: =COUNTIF($L$7:$L$500,N16) -> 2 | P16: =O16/$Q$4 -> 0.02272727273 | Q16: =IF(P16=0,0,(P16*((LOG(P16))/LOG(2)))) -> -0.1240779913 | T16: =N16 -> 2112 | U16: =COUNTIF(L7:L21,T16) -> 0 | V16: =U16/(W4-U20) -> 0 | W16: =IF(V16=0,0,(V16*((LOG(V16))/LOG(2)))) -> 0 | Y16: =N16 -> 2112 | Z16: =COUNTIF(L22:L35,Y16) -> 0 | AA16: =Z16/(AB4-Z20) -> 0 | AB16: =IF(AA16=0,0,(AA16*((LOG(AA16))/LOG(2)))) -> 0 | AD16: =N16 -> 2112 | AE16: =COUNTIF(L36:L50,AD16) -> 1 | AF16: =AE16/(AG4-AE20) -> 0.07142857143 | AG16: =IF(AF16=0,0,(AF16*((LOG(AF16))/LOG(2)))) -> -0.271953923 | AI16: =N16 -> 2112 | AJ16: =COUNTIF(L51:L65,AI16) -> 1 | AK16: =AJ16/(AL4-AJ20) -> 0.07142857143 | AL16: =IF(AK16=0,0,(AK16*((LOG(AK16))/LOG(2)))) -> -0.271953923 | AN16: =N16 -> 2112 | AO16: =COUNTIF(L66:L79,AN16) -> 0 | AP16: =AO16/(AQ4-AO20) -> 0 | AQ16: =IF(AP16=0,0,(AP16*((LOG(AP16))/LOG(2)))) -> 0 | AS16: =N16 -> 2112 | AT16: =COUNTIF(L80:L94,AS16) -> 0 | AU16: =AT16/(AV4-AT20) -> 0 | AV16: =IF(AU16=0,0,(AU16*((LOG(AU16))/LOG(2)))) -> 0
A17: 12 | B17: 2533 | C17: 23 | D17: 2552 | E17: 24 | F17: 2582 | G17: 23 | H17: 2613 | K17: 0 | L17: 1222 | N17: 2121 | O17: =COUNTIF($L$7:$L$500,N17) -> 1 | P17: =O17/$Q$4 -> 0.01136363636 | Q17: =IF(P17=0,0,(P17*((LOG(P17))/LOG(2)))) -> -0.07340263203 | T17: =N17 -> 2121 | U17: =COUNTIF(L7:L21,T17) -> 0 | V17: =U17/(W4-U20) -> 0 | W17: =IF(V17=0,0,(V17*((LOG(V17))/LOG(2)))) -> 0 | Y17: =N17 -> 2121 | Z17: =COUNTIF(L22:L35,Y17) -> 0 | AA17: =Z17/(AB4-Z20) -> 0 | AB17: =IF(AA17=0,0,(AA17*((LOG(AA17))/LOG(2)))) -> 0 | AD17: =N17 -> 2121 | AE17: =COUNTIF(L36:L50,AD17) -> 1 | AF17: =AE17/(AG4-AE20) -> 0.07142857143 | AG17: =IF(AF17=0,0,(AF17*((LOG(AF17))/LOG(2)))) -> -0.271953923 | AI17: =N17 -> 2121 | AJ17: =COUNTIF(L51:L65,AI17) -> 0 | AK17: =AJ17/(AL4-AJ20) -> 0 | AL17: =IF(AK17=0,0,(AK17*((LOG(AK17))/LOG(2)))) -> 0 | AN17: =N17 -> 2121 | AO17: =COUNTIF(L66:L79,AN17) -> 0 | AP17: =AO17/(AQ4-AO20) -> 0 | AQ17: =IF(AP17=0,0,(AP17*((LOG(AP17))/LOG(2)))) -> 0 | AS17: =N17 -> 2121 | AT17: =COUNTIF(L80:L94,AS17) -> 0 | AU17: =AT17/(AV4-AT20) -> 0 | AV17: =IF(AU17=0,0,(AU17*((LOG(AU17))/LOG(2)))) -> 0
